Workbook

Sheet LDC Info
Z3: 1 | AA3: Alectra Utilities Corporation-Brampton Rate Zone
Z4: 2 | AA4: Alectra Utilities Corporation-Enersource Rate Zone
Z5: 3 | AA5: Alectra Utilities Corporation-Horizon Utilities Rate Zone
Z6: 4 | AA6: Alectra Utilities Corporation-PowerStream Rate Zone
Z7: 5 | AA7: Alectra Utilities Corporation-Guelph Rate Zone
Z8: 6 | AA8: Algoma Power Inc.
Z9: 7 | AA9: Atikokan Hydro Inc.
Z10: 8 | AA10: Bluewater Power Distribution Corporation
Z11: 9 | AA11: Brantford Power Inc.
Z12: 10 | AA12: Burlington Hydro Inc.
Z13: 11 | AA13: Canadian Niagara Power Inc.
D14: Utility Name | E14: Grimsby Power Incorporated | Z14: 12 | AA14: Centre Wellington Hydro Ltd.
Z15: 13 | AA15: Chapleau Public Utilities Corporation
D16: Assigned EB Number | E16: EB-2021-0027 | Z16: 14 | AA16: Cooperative Hydro Embrun Inc.
Z17: 15 | AA17: E.L.K. Energy Inc.
D18: Name of Contact and Title | E18: Amy La Selva, Regulatory & Customer Accounts Representative | Z18: 16 | AA18: Elexicon Energy Inc.-Whitby Rate Zone
Z19: 17 | AA19: Elexicon Energy Inc.-Veridian Rate Zone
D20: Phone Number | E20: 905-945-5437 ext 258 | Z20: 18 | AA20: Energy+ Inc.
Z21: 19 | AA21: Entegrus Powerlines Inc.-For Entegrus-Main Rate Zone
D22: Email Address | E22: amyl@grimsbypower.com | Z22: 20 | AA22: Entegrus Powerlines Inc.-For Former St. Thomas Energy Rate Zone
Z23: 21 | AA23: ENWIN Utilities Ltd.
D24: Test Year | E24: 2022 | Z24: 22 | AA24: EPCOR Electricity Distribution Ontario Inc.
Z25: 23 | AA25: ERTH Power Corporation - ERTH Power Main Rate Zone
D26: Bridge Year | E26: =IF(ISBLANK(E24), "", E24-1) -> 2021 | Z26: 24 | AA26: ERTH POWER CORPORATION – GODERICH RATE ZONE
Z27: 25 | AA27: Essex Powerlines Corporation
D28: Last Rebasing Year | E28: 2016 | Z28: 26 | AA28: Festival Hydro Inc.
Z29: 27 | AA29: Fort Frances Power Corporation
A30: Identify the accounting standard used for the test year | Z30: 28 | AA30: Greater Sudbury Hydro Inc.
E31: MIFRS | Z31: 29 | AA31: Grimsby Power Incorporated
Z32: 30 | AA32: Halton Hills Hydro Inc.
A33: ="Did "& E14 &" update its depreciation and capitalization policies?" -> Did Grimsby Power Incorporated update its depreciation and capitalization policies? | Z33: 31 | AA33: Hearst Power Distribution Co. Ltd.
E34: Yes | Z34: 32 | AA34: Hydro 2000 Inc.
Z35: 33 | AA35: Hydro Hawkesbury Inc.
A36: If "yes" to cell E34, were the changes in policies reflected in a prior rebasing application? | Z36: 34 | AA36: Hydro One Networks Inc.
E37: Yes | Z37: 35 | AA37: Hydro One Networks Inc.-Former Haldimand County Hydro Inc. Service Area
Z38: 36 | AA38: Hydro One Networks Inc.-Former Norfolk Power Distribution Inc. Service Area
A39: ="When did "&E14&" update its actual depreciation and capitalization policies?" -> When did Grimsby Power Incorporated update its actual depreciation and capitalization policies? | Z39: 37 | AA39: Hydro One Networks Inc.-Former Woodstock Hydro Services Inc. Service Area
E40: 2001-01-01 | F40: 2013 | Z40: 38 | AA40: Hydro One Remote Communites Inc.
Z41: 39 | AA41: Hydro Ottawa Limited
A42: Identify the year the applicant adopted IFRS for financial reporting purposes | Z42: 40 | AA42: InnPower Corporation
E43: 2015 | Z43: 41 | AA43: Kingston Hydro Corporation
Z44: 42 | AA44: Kitchener-Wilmot Hydro Inc.
Z45: 43 | AA45: Lakefront Utilities Inc.
A46: ="Is " & E14 & " applying for cost recovery for the test and/or future year(s) for Green Energy initiatives?" -> Is Grimsby Power Incorporated applying for cost recovery for the test and/or future year(s) for Green Energy initiatives? | Z46: 44 | AA46: Lakeland Power Distribution Ltd.
E47: No | Z47: 45 | AA47: Lakeland Power Distribution Ltd.-Parry Sound Service Area
Z48: 46 | AA48: London Hydro Inc.
A49: ="Is " & E14 & " an embedded distributor?" -> Is Grimsby Power Incorporated an embedded distributor? | E49: Partial | Z49: 47 | AA49: Milton Hydro Distribution Inc.
Z50: 48 | AA50: Newmarket-Tay Power Distribution Ltd.-For Former Midland Power Utility Rate Zone
Z51: 49 | AA51: Newmarket-Tay Power Distribution Ltd.-For Newmarket-Tay Power Main Rate Zone
B52: Notes | Z52: 50 | AA52: Niagara Peninsula Energy Inc.
Z53: 51 | AA53: Niagara-on-the-Lake Hydro Inc.
C54: Pale green cells represent input cells. | Z54: 52 | AA54: North Bay Hydro Distribution Limited - Espanola service territory
Z55: 53 | AA55: North Bay Hydro Distribution Limited - North Bay service territory
C56: Pale blue cells represent drop-down lists. The applicant should select the appropriate item from the drop-down list. | Z56: 54 | AA56: Northern Ontario Wires Inc.
Z57: 55 | AA57: Oakville Hydro Electricity Distribution Inc.
C58: White cells contain fixed values, automatically generated values or formulae. | N58: =IF(LEN($G58)>1, (SUMPRODUCT(--($C$81:$C$1003=$C58),--($A$81:$A$1003=$D58), --($B$81:$B$1003=$B58&"_TOTAL"), $L$1:$L$889)), "") ->  | O58: =IF(LEN($G58)>1, (SUMPRODUCT(--($C$81:$C$1003=$C58),--($A$81:$A$1003=$D58), --($B$81:$B$1003=$B58&"_TOTAL"), $M$1:$M$889)), "") ->  | Z58: 56 | AA58: Orangeville Hydro Limited
Z59: 57 | AA59: Orillia Power Distribution Corporation
Z60: 58 | AA60: Oshawa PUC Networks Inc.
Z61: 59 | AA61: Ottawa River Power Corporation
Z62: 60 | AA62: Peterborough Distribution Incorporated
Z63: 61 | AA63: PUC Distribution Inc.
Z64: 62 | AA64: Renfrew Hydro Inc.
Z65: 63 | AA65: Rideau St. Lawrence Distribution Inc.
Z66: 64 | AA66: Sioux Lookout Hydro Inc.
Z67: 65 | AA67: Synergy North Corporation-Kenora Rate Zone
Z68: 66 | AA68: Synergy North Corporation-Thunder Bay Rate Zone
Z69: 67 | AA69: Tillsonburg Hydro Inc.
Z70: 68 | AA70: Toronto Hydro-Electric System Limited
Z71: 69 | AA71: Wasaga Distribution Inc.
Z72: 70 | AA72: Waterloo North Hydro Inc.
Z73: 71 | AA73: Welland Hydro-Electric System Corp.
Z74: 72 | AA74: Wellington North Power Inc.
Z75: 73 | AA75: Westario Power Inc.

Sheet Index
A15: 1 | B15: LDC Information Sheet | E15: 20 | F15: App.2-G: Service Reliability Indicators
A16: 2 | B16: Index | E16: 21 | F16: App.2-H: Other Operating Revenue (TO BE UPDATED AT THE DRAFT RATE ORDER STAGE)
A17: 3 | B17: Cost of Service Application Flowchart | E17: 22 | F17: App.2-I: Load Forecast CDM Adjustment Workform
A18: 4 | B18: List of Key References | E18: 23 | F18: App.2-IA: Load Forecast Data Instructions
A19: 5 | B19: App.2-A: List of Requested Approvals | E19: 24 | F19: App.2-IB: Actual and Forecast Load and Customer Data
A20: 6 | B20: App.2-AA: Capital Projects Table | E20: 25 | F20: App.2-JA: OM&A Summary Analysis (TO BE UPDATED AT THE DRAFT RATE ORDER STAGE)
A21: 7 | B21: App.2-AB: Capital Expenditures (TO BE UPDATED AT THE DRAFT RATE ORDER STAGE) | E21: 26 | F21: App.2-JB: Recoverable OM&A Cost Driver Table
A22: 8 | B22: App. 2-AC: Customer Engagement Worksheet | E22: 27 | F22: App.2-JC: OM&A Programs Table
A23: 9 | B23: App.2-B: General Accounting Instructions | E23: 28 | F23: App.2-K: Employee Costs (TO BE UPDATED AT THE DRAFT RATE ORDER STAGE)
A24: 10 | B24: App.2-BA: Fixed Asset Continuity Schedule | E24: 29 | F24: App.2-L: Recoverable OM&A Cost per Customer and per FTE
A25: 11 | B25: Appendix 2-BB: Service Life Comparison | E25: 30 | F25: App.2-M: Regulatory Costs Schedule (TO BE UPDATED AT THE DRAFT RATE ORDER STAGE)
A26: 12 | B26: App.2-C_DepExp: Depreciation and Amortization Expense | E26: 31 | F26: App.2-N: Shared Services and Corporate Cost Allocation
A27: 13 | B27: App.2-D: Overhead Expenses | E27: 32 | F27: App.2-OA: Capital Structure and Cost of Capital
A28: 14 | B28: App.2-EA: Account 1575 PP&E Deferral Account (2015 IFRS Adopters) - CONTACT OEB STAFF IF TAB REQUIRED | E28: 33 | F28: App.2-OB: Debt Instruments
A29: 15 | B29: App.2-EB: Account 1576 - Accounting Changes Under CGAAP (2012 Changes) - CONTACT OEB STAFF IF TAB REQUIRED | E29: 34 | F29: App.2-Q: Cost of Serving Embedded Distributor(s)
A30: 16 | B30: App.2-EC: Account 1576 - Accounting Changes Under CGAAP (2013 Changes) - CONTACT OEB STAFF IF TAB REQUIRED | E30: 35 | F30: App.2-R: Loss Factors
A31: 17 | B31: App.2-FA: Renewable Generation Connection Investment Summary (TO BE UPDATED AT THE DRAFT RATE ORDER STAGE) | E31: 36 | F31: App.2-S: Stranded Meter Treatment- CONTACT OEB STAFF IF TAB REQUIRED
A32: 18 | B32: App.2-FB: Calculation of Renewable Generation Connection Direct Benefits/Provincial Amount: Renewable Enabling Improvement Investments (TO BE UPDATED AT THE DRAFT RATE ORDER STAGE) | E32: 37 | F32: App.2-Y: Transition to MIFRS Summary Impact - CONTACT OEB STAFF IF TAB REQUIRED
A33: 19 | B33: App.2-FC: Calculation of Renewable Generation Connection Direct Benefits/Provincial Amount: Renewable Expansion Investments (TO BE UPDATED AT THE DRAFT RATE ORDER STAGE) | E33: 38 | F33: App.2-YA: One-Time Incremental IFRS Transition Costs - CONTACT OEB STAFF IF TAB REQUIRED
E34: 39 | F34: App.2-ZA: Commodity Expense
E35: 40 | F35: App.2-ZB: Cost of Power
A42: Note: | B42: Appendices for the Tariff of Rates and Charges at Current and Proposed Rates, and for the Bill Impacts are now in a separate spreadsheet model. These appendices were formerly 2-Z and 2-W.

Sheet COS Flowchart
B4: Cost of Service Rate Application Schematic
B6: The Cost of Service Rate Application Schematic is a flowchart that is included as a guide for the components of an application. The schematic demonstrates how demand and costs interrelate to derive the revenue requirement and how the revenue requirement is allocated between classes and through fixed/variable splits to derive rates that will be compensatory for the annual revenue requirement, based on the the forecasted demand. There is no form to be filled out; therefore, this Schedule is not required to be filed.

Sheet List of Key References
B2: List of Key References
A4: A list of key references for understanding the Filing Requirements has been embedded in the document below. To access the list of references and associated hyperlinks double-click the icon below.

Sheet App.2-A_Requested_Approvals
G1: File Number: | H1: =EBNUMBER -> EB-2021-0027
G2: Exhibit:
G3: Tab:
G4: Schedule:
G5: Page:
G7: Date: | H7: 2021-07-30
B9: Appendix 2-A
B10: List of Requested Approvals
B12: The distributor must fill out the following sheet with the complete list of specific approvals requested and relevant section(s) of the legislation must be provided. All approvals, including accounting orders (deferral and variance accounts) new rate classes, revised specific service charges or retail service charges which the applicant is seeking, must be separately identified, as well being clearly documented in the appropriate sections of the application.
B14: Additional requests may be added by copying and pasting blank input rows, as needed.
B16: If additional requests arise, or requested approvals are removed, during the processing of the application, the distributor should update this list.
B18: =CONCATENATE('LDC Info'!E14," is seeking the following approvals in this application:") -> Grimsby Power Incorporated is seeking the following approvals in this application:
B20: 1 | F20: The Applicant applies for an Order or Orders approving the proposed distribution rates and other charges set out in Exhibit 8 to this Application as just and reasonable rates and charges pursuant to Section 78 of the OEB Act, to be effective January 1, 2022
B22: 2 | F22: In the event that the OEB is unable to provide a Decision and Order in this Application for implementation by the Applicant as of January 1, 2022, the Applicant requests that the OEB issue an Interim Rate Order declaring the current Distribution Rates and Specific Service Charges as interim pending the implementation of the Board-approved 2022 distribution rates
B24: 3 | F24: In the event that the implementation date of the Board’s 2022 Rate Order is later than the effective date for 2022 distribution rates and charges, Grimsby Power requests permission to recover the incremental revenue from the effective date to the implementation date by way of an appropriate rate rider.
B26: 4 | F26: Approval of adjusted Retail Transmission Network and Connection Rates as filed in the RTSR Workform
B28: 5 | F28: Approval of adjusted low voltage rates
B30: 6 | F30: Continuance of Specific Service Charges as per the filed Tariff Schedule
B32: 7 | F32: Approval of Retail Service Charges adjusted by inflation as per the filed Tariff Schedule
B34: 8 | F34: Approval of rate riders for the disposition of Group 1, Group 2 and other Deferral and Variance Account balances as filed in the DVA Schedule
B36: 9 | F36: Continuance/Discontinuance of Group 2 accounts as per exhibit 9

Sheet App.2-AA_Capital Projects
H1: File Number: | I1: =EBNUMBER -> EB-2021-0027
H2: Exhibit:
H3: Tab:
H4: Schedule:
H5: Page:
H7: Date: | I7: 2021-07-30
A9: Appendix 2-AA
A10: Capital Projects Table
A13: Projects | B13: =C13-1 -> 2016 | C13: =D13-1 -> 2017 | D13: =E13-1 -> 2018 | E13: =F13-1 -> 2019 | F13: =BridgeYear - 1 -> 2020 | G13: =BridgeYear & " Bridge Year" -> 2021 Bridge Year | H13: =TestYear & " Test Year" -> 2022 Test Year
A14: Reporting Basis | B14: MIFRS | C14: MIFRS | D14: MIFRS | E14: MIFRS | F14: MIFRS | G14: MIFRS | H14: MIFRS
A15: System Access
A16: Residential Expansion | B16: 449287.87 | C16: 1069380.49 | D16: 623005.88 | E16: 274825.34 | F16: 627133.6 | G16: 498127.19 | H16: 660249.21
A17: Project - New Customer Connections | B17: 62147.24 | C17: 25395.42 | D17: 74406.22 | E17: 76579.51 | F17: 65127.24 | G17: 77946.99 | H17: 46153.93
A18: Project - Residential Subdivision Development | B18: 50438.33 | C18: 101451.84 | D18: 24860.58 | E18: 43716.9 | F18: 7064.01 | G18: 74738.06 | H18: 30193.86
A19: Program - Modifications to Existing Customer Connections | B19: 9783.87 | C19: 18601.59 | D19: 12283.2 | E19: 82503.86 | F19: 40458.07 | G19: 10880.89 | H19: 12285.69
A20: Project - Metrolinx - Pole Line Relocation Due to Road Widening at Casablanca Blvd & Livingston Ave. | H20: 134000
A21: Program - Transformer Station - Modifications to Support Renewable Generation | C21: 64870.64
A22: Program - Replace >50kW form Meters with Smart INTRVL | B22: 28400.04 | D22: 27905.15
A23: Project - Load Transfer Elimination and Pole Line Relocation/Reconfiguration | C23: 7717.89
A24: Sub-Total | B24: =SUM(B16:B23) -> 600057.35 | C24: 1287417.87 | D24: 762461.03 | E24: 477625.61 | F24: 739782.92 | G24: 661693.13 | H24: 882882.69
A25: System Renewal
A26: Program - Replace Defective Poles | B26: 67972.25 | C26: 81747.5 | D26: 119410.06 | E26: 258743.67 | F26: 251174.47 | G26: 286590.8 | H26: 521019.42
A27: Program - Secondary Bus Refurbishments | C27: 8497.89 | F27: 175417.11 | G27: 66332.96 | H27: 65675.6
A28: Program - Replace Sectionalizing Terminal | B28: 10188.48 | C28: 10888.29 | D28: 10732.23 | E28: 13916.94 | F28: 31695.02 | G28: 38038.75 | H28: 37686.02
A29: Program - Replace Gang Operated Load Break Switch | B29: 26240.63 | D29: 30449.08 | E29: 44437.91 | G29: 30228.44 | H29: 29220.31
A30: Program - Primary Cable Testing | B30: 69821.51 | E30: 125738.77 | H30: 27732.1
A31: Program - Replace Pad Mounted Transformers | B31: 32807.32 | C31: 78218.02 | D31: 114166.49 | E31: 168694.1 | F31: 56740.48 | G31: 79624.06 | H31: 56520.88
A32: Program - Primary Cable Silicon Injection | C32: 15832.78 | D32: 4440.28 | F32: 38814.58
A33: Program - Meter Replacements | B33: 2016.36 | C33: 13135.97
A34: Program - Rear Lot Conversion | F34: 12760 | G34: 258550 | H34: 598550
A35: Program - Niagara West MTS | D35: 51370.26 | E35: 33398.34 | F35: 11705 | G35: 50000 | H35: 100000
A36: Program - Voltage Conversion | D36: 206035.15 | E36: 424387.4 | F36: 62182.23
A37: Project - CNR Pole Line (18M4 Feeder) Relocation / Rerouting | D37: 28017.49 | F37: 20557 | G37: 212517.02 | H37: 435000
A38: Sub-Total | B38: =SUM(B26:B37) -> 209046.55 | C38: 208320.45 | D38: 564621.04 | E38: 1069317.13 | F38: 661045.89 | G38: 1021882.03 | H38: 1871404.33
A39: System Service
A40: Program - Primary OH Conductor and UG Cable Reinforcements | F40: 166953.9 | G40: 84098.43 | H40: 81540.77
A41: Program - Convert Radial Feeder Customers to Loop | C41: 544.43 | D41: 70613.48
A42: Project - Third Feeder from NW-MTS | E42: 99968.62 | F42: 36927.45 | G42: 599015.33
A43: Project - NWTS Automation & Improvements | B43: 53323.1 | C43: 173784.99 | E43: 45769.87 | F43: 82270.62
A44: Project - Automate Primary 3 Phase Switches - Install Reclosures | C44: 38624.89
A45: Project - Replace Manually Operated Pad Mounted Switchgear with an Automated/Remote Controlled PVI | C45: 157717.484 | E45: 103447.26
A46: Project - Pole Line Upgrade | E46: 233274.74
A47: Sub-Total | B47: =SUM(B40:B46) -> 53323.1 | C47: 370671.794 | D47: 70613.48 | E47: 482460.49 | F47: 286151.97 | G47: 683113.76 | H47: 81540.77
A48: General Plant
A49: Program - Computer Workstations | B49: 8804.6 | C49: 13758.19 | D49: 3695 | E49: 14380.48 | F49: 23428.4 | G49: 9000 | H49: 10000
A50: Program - Server/Network Hardware Upgrades due to Cyber Security | E50: 36300.54 | F50: 22795.79 | G50: 10000 | H50: 10000
A51: Software | B51: =24750+11509 -> 36259 | C51: 28702.22 | D51: 24245 | F51: 39369.66 | G51: 15000
A52: Project - SCADA System and Improvements | C52: 194995 | D52: 63984.5 | E52: 65044.05 | F52: 26636.02 | G52: 21040.4 | H52: 1063.2
A53: Vehicle - Trucks & Forklift | B53: 359939.58 | C53: 49063 | D53: 373868 | E53: 198424.65 | F53: 123960 | G53: 87000
A54: Building Upgrades | B54: 142410.82 | C54: 27258.82 | D54: 21137.4 | E54: 10399.1 | F54: 17819.08 | G54: 15000 | H54: 80000
A55: Office Furniture | D55: 6431.67 | G55: 10000
A56: NWTS - Upgrades | C56: 6468 | D56: 8255.73 | E56: 280
A57: Tools - Replacement | B57: 22560.88 | D57: 4120.76 | E57: 49998.23 | F57: 15009.09 | G57: 39000
A58: Communication Equipment | B58: 260 | C58: 5953.49 | D58: 1309.71 | E58: 3200 | F58: 6573 | G58: 10000
A59: Miscellaneous | E59: 3500.51 | F59: 1973
A60: Sub-Total | B60: =SUM(B49:B59) -> 570234.88 | C60: 326198.72 | D60: 507047.77 | E60: 381527.56 | F60: 277564.04 | G60: 216040.4 | H60: 101063.2
A61: Miscellaneous
A62: Total | B62: =SUMPRODUCT(--($A15:$A61="Sub-Total"), B$15:B$61)+B61 -> 1432661.88 | C62: 2192608.834 | D62: 1904743.32 | E62: 2410930.79 | F62: 1964544.82 | G62: 2582729.32 | H62: 2936890.99
A63: Less Renewable Generation Facility Assets and Other Non-Rate-Regulated Utility Assets (input as negative)
A64: Total | B64: =B62+B63 -> 1432661.88 | C64: =C62+C63 -> 2192608.834 | D64: 1904743.32 | E64: 2410930.79 | F64: 1964544.82 | G64: 2582729.32 | H64: 2936890.99
A65: Deferred Revenue (Capital Contribution) | B65: -304021.94 | C65: -723783.89 | D65: -363406.24 | E65: -214247.92 | F65: -461764.37 | G65: -344613.49 | H65: -423425.91
A66: Total | B66: =SUM(B64:B65) -> 1128639.94 | C66: 1468824.944 | D66: 1541337.08 | E66: 2196682.87 | F66: 1502780.45 | G66: 2238115.83 | H66: 2513465.08
A69: Notes:
A71: 1 Please provide a breakdown of the major components of each capital project undertaken in each year. Please ensure that all projects below the materiality threshold are included in the miscellaneous line. Add more projects as required.
A72: 2 The applicant should group projects appropriately and avoid presentations that result in classification of significant components of the capital budget in the miscellaneous category.

Sheet App.2-AB_Capital Expenditures
AE1: File Number: | AG1: =EBNUMBER -> EB-2021-0027
AE2: Exhibit:
AE3: Tab:
AE4: Schedule:
A5: TO BE UPDATED AT THE DRAFT RATE ORDER STAGE | AE5: Page:
AE7: Date: | AG7: 2021-07-30
A9: Appendix 2-AB
A10: Table 2 - Capital Expenditure Summary from Chapter 5 Consolidated Distribution System Plan Filing Requirements
A11: First year of Forecast Period:
A12: =TestYear -> 2022
A13: CATEGORY | B13: Historical Period (previous plan1 & actual) | AC13: Forecast Period (planned)
B14: =E14-1 -> 2013 | E14: =H14-1 -> 2014 | H14: =K14-1 -> 2015 | K14: =N14-1 -> 2016 | N14: =Q14-1 -> 2017 | Q14: =T14-1 -> 2018 | T14: =W14-1 -> 2019 | W14: =Z14-1 -> 2020 | Z14: =AC14-1 -> 2021 | AC14: =A12 -> 2022 | AD14: =AC14+1 -> 2023 | AE14: =AD14+1 -> 2024 | AF14: =AE14+1 -> 2025 | AG14: =AF14+1 -> 2026
B15: Plan | C15: Actual | D15: Var | E15: Plan | F15: Actual | G15: Var | H15: Plan | I15: Actual | J15: Var | K15: Plan | L15: Actual | M15: Var | N15: Plan | O15: Actual | P15: Var | Q15: Plan | R15: Actual | S15: Var | T15: Plan | U15: Actual | V15: Var | W15: Plan | X15: Actual | Y15: Var | Z15: Plan | AA15: Actual2 | AB15: Var
B16: $ '000 | D16: % | E16: $ '000 | G16: % | H16: $ '000 | J16: % | K16: $ '000 | M16: % | N16: $ '000 | P16: % | Q16: $ '000 | S16: % | T16: $ '000 | V16: % | W16: $ '000 | Y16: % | Z16: $ '000 | AB16: % | AC16: $ '000
A17: System Access | D17: =IF(ISERROR((C17-B17)/B17),"--",(C17-B17)/B17) -> -- | G17: =IF(ISERROR((F17-E17)/E17),"--",(F17-E17)/E17) -> -- | J17: =IF(ISERROR((I17-H17)/H17),"--",(I17-H17)/H17) -> -- | K17: 977.305 | L17: ='App.2-AA_Capital Projects'!B24/1000 -> 600.05735 | M17: =IF(ISERROR((L17-K17)/K17),"--",(L17-K17)/K17) -> -0.3860081039 | N17: 995.487 | O17: ='App.2-AA_Capital Projects'!C24/1000 -> 1287.41787 | P17: =IF(ISERROR((O17-N17)/N17),"--",(O17-N17)/N17) -> 0.2932543268 | Q17: 967.03 | R17: ='App.2-AA_Capital Projects'!D24/1000 -> 762.46103 | S17: =IF(ISERROR((R17-Q17)/Q17),"--",(R17-Q17)/Q17) -> -0.2115435612 | T17: 905.973 | U17: ='App.2-AA_Capital Projects'!E24/1000 -> 477.62561 | V17: =IF(ISERROR((U17-T17)/T17),"--",(U17-T17)/T17) -> -0.4728037039 | W17: 839.488 | X17: ='App.2-AA_Capital Projects'!F24/1000 -> 739.78292 | Y17: =IF(ISERROR((X17-W17)/W17),"--",(X17-W17)/W17) -> -0.1187689163 | Z17: ='App.2-AA_Capital Projects'!G24/1000 -> 661.69313 | AB17: =IF(ISERROR((AA17-Z17)/Z17),"--",(AA17-Z17)/Z17) -> -1 | AC17: ='App.2-AA_Capital Projects'!H24/1000 -> 882.88269 | AD17: 712.587 | AE17: 550.001 | AF17: 605.447 | AG17: 610.783
A18: System Renewal | D18: =IF(ISERROR((C18-B18)/B18),"--",(C18-B18)/B18) -> -- | G18: =IF(ISERROR((F18-E18)/E18),"--",(F18-E18)/E18) -> -- | J18: =IF(ISERROR((I18-H18)/H18),"--",(I18-H18)/H18) -> -- | K18: 204.847 | L18: ='App.2-AA_Capital Projects'!B38/1000 -> 209.04655 | M18: =IF(ISERROR((L18-K18)/K18),"--",(L18-K18)/K18) -> 0.02050091044 | N18: 917.551 | O18: ='App.2-AA_Capital Projects'!C38/1000 -> 208.32045 | P18: =IF(ISERROR((O18-N18)/N18),"--",(O18-N18)/N18) -> -0.7729603586 | Q18: 976.567 | R18: ='App.2-AA_Capital Projects'!D38/1000 -> 564.62104 | S18: =IF(ISERROR((R18-Q18)/Q18),"--",(R18-Q18)/Q18) -> -0.4218307192 | T18: 1061.595 | U18: ='App.2-AA_Capital Projects'!E38/1000 -> 1069.31713 | V18: =IF(ISERROR((U18-T18)/T18),"--",(U18-T18)/T18) -> 0.007274082866 | W18: 1067.14 | X18: ='App.2-AA_Capital Projects'!F38/1000 -> 661.04589 | Y18: =IF(ISERROR((X18-W18)/W18),"--",(X18-W18)/W18) -> -0.3805443616 | Z18: ='App.2-AA_Capital Projects'!G38/1000 -> 1021.88203 | AB18: =IF(ISERROR((AA18-Z18)/Z18),"--",(AA18-Z18)/Z18) -> -1 | AC18: ='App.2-AA_Capital Projects'!H38/1000 -> 1871.40433 | AD18: 891.453 | AE18: 1304.282 | AF18: 1295.468 | AG18: 1442.774
A19: System Service | D19: -- | G19: -- | J19: -- | K19: 177.879 | L19: ='App.2-AA_Capital Projects'!B47/1000 -> 53.3231 | M19: -0.700228245 | N19: 399.129 | O19: ='App.2-AA_Capital Projects'!C47/1000 -> 370.671794 | P19: -0.07129826698 | Q19: 409.185 | R19: ='App.2-AA_Capital Projects'!D47/1000 -> 70.61348 | S19: -0.8274289624 | T19: 420.977 | U19: ='App.2-AA_Capital Projects'!E47/1000 -> 482.46049 | V19: 0.1460495229 | W19: 427.543 | X19: ='App.2-AA_Capital Projects'!F47/1000 -> 286.15197 | Y19: -0.3307059875 | Z19: ='App.2-AA_Capital Projects'!G47/1000 -> 683.11376 | AB19: -1 | AC19: ='App.2-AA_Capital Projects'!H47/1000 -> 81.54077 | AD19: 1138.065 | AE19: 611.303 | AF19: 361.74 | AG19: 231.083
A20: General Plant | D20: -- | G20: -- | J20: -- | K20: 711.4 | L20: ='App.2-AA_Capital Projects'!B60/1000 -> 570.23488 | M20: -0.1984328367 | N20: 202.415 | O20: ='App.2-AA_Capital Projects'!C60/1000 -> 326.19872 | P20: 0.611534323 | Q20: 170.028 | R20: ='App.2-AA_Capital Projects'!D60/1000 -> 507.04777 | S20: 1.982142765 | T20: 173.429 | U20: ='App.2-AA_Capital Projects'!E60/1000 -> 381.52756 | V20: 1.199906359 | W20: 176.898 | X20: ='App.2-AA_Capital Projects'!F60/1000 -> 277.56404 | Y20: 0.5690626237 | Z20: ='App.2-AA_Capital Projects'!G60/1000 -> 216.0404 | AB20: -1 | AC20: ='App.2-AA_Capital Projects'!H60/1000 -> 101.0632 | AD20: 391.24 | AE20: 204.44 | AF20: 396.652 | AG20: 395.824
A21: TOTAL EXPENDITURE | B21: =SUM(B17:B20) -> 0 | C21: =SUM(C17:C20) -> 0 | D21: -- | E21: =SUM(E17:E20) -> 0 | F21: =SUM(F17:F20) -> 0 | G21: -- | H21: =SUM(H17:H20) -> 0 | I21: =SUM(I17:I20) -> 0 | J21: -- | K21: =SUM(K17:K20) -> 2071.431 | L21: =SUM(L17:L20) -> 1432.66188 | M21: -0.3083709378 | N21: =SUM(N17:N20) -> 2514.582 | O21: =SUM(O17:O20) -> 2192.608834 | P21: -0.1280424206 | Q21: 2522.81 | R21: 1904.74332 | S21: -0.2449913707 | T21: 2561.974 | U21: 2410.93079 | V21: -0.05895579346 | W21: 2511.069 | X21: 1964.54482 | Y21: -0.2176460225 | Z21: 2582.72932 | AA21: 0 | AB21: -1 | AC21: 2936.89099 | AD21: 3133.345 | AE21: 2670.026 | AF21: 2659.307 | AG21: =SUM(AG17:AG20) -> 2680.464
A22: Capital Contributions | D22: -- | G22: -- | J22: -- | K22: -561.251 | L22: ='App.2-AA_Capital Projects'!B65/1000 -> -304.02194 | M22: -0.4583137669 | N22: -571.998 | O22: ='App.2-AA_Capital Projects'!C65/1000 -> -723.78389 | P22: 0.2653608754 | Q22: -554.086 | R22: ='App.2-AA_Capital Projects'!D65/1000 -> -363.40624 | S22: -0.3441338709 | T22: -518.263 | U22: ='App.2-AA_Capital Projects'!E65/1000 -> -214.24792 | V22: -0.5866038671 | W22: -482.444 | X22: ='App.2-AA_Capital Projects'!F65/1000 -> -461.76437 | Y22: -0.04286431171 | Z22: ='App.2-AA_Capital Projects'!G65/1000 -> -344.61349 | AB22: -1 | AC22: ='App.2-AA_Capital Projects'!H65/1000 -> -423.42591 | AD22: -326.917 | AE22: -322.453 | AF22: -347.292 | AG22: -354.238
A23: Net Capital Expenditures | D23: -- | G23: -- | J23: -- | K23: =K21+K22 -> 1510.18 | L23: =L21+L22 -> 1128.63994 | M23: -0.2526454198 | N23: =N21+N22 -> 1942.584 | O23: =O21+O22 -> 1468.824944 | P23: -0.2438808597 | Q23: =Q21+Q22 -> 1968.724 | R23: =R21+R22 -> 1541.33708 | S23: -0.2170882866 | T23: =T21+T22 -> 2043.711 | U23: =U21+U22 -> 2196.68287 | V23: 0.07485004974 | W23: =W21+W22 -> 2028.625 | X23: =X21+X22 -> 1502.78045 | Y23: -0.259212299 | Z23: =Z21+Z22 -> 2238.11583 | AA23: =AA21+AA22 -> 0 | AB23: -1 | AC23: =AC21+AC22 -> 2513.46508 | AD23: =AD21+AD22 -> 2806.428 | AE23: =AE21+AE22 -> 2347.573 | AF23: =AF21+AF22 -> 2312.015 | AG23: =AG21+AG22 -> 2326.226
A24: System O&M | D24: -- | G24: -- | J24: -- | K24: ='App.2-JA_OM&A_Summary_Analys'!B16/1000 -> 1286.86112 | L24: ='App.2-JA_OM&A_Summary_Analys'!C16/1000 -> 1447.52247 | M24: 0.1248474661 | N24: 1708.71584 | O24: ='App.2-JA_OM&A_Summary_Analys'!G16/1000 -> 1298.39345 | P24: -0.2401349484 | Q24: 1777.064474 | R24: ='App.2-JA_OM&A_Summary_Analys'!H16/1000 -> 1501.50012 | S24: -0.1550671671 | T24: 1848.147053 | U24: ='App.2-JA_OM&A_Summary_Analys'!I16/1000 -> 1471.85374 | V24: -0.2036057207 | W24: 1922.072935 | X24: ='App.2-JA_OM&A_Summary_Analys'!J16/1000 -> 1583.69816 | Y24: -0.1760467923 | Z24: ='App.2-JA_OM&A_Summary_Analys'!K16/1000 -> 1474.827153 | AB24: -1 | AC24: ='App.2-JA_OM&A_Summary_Analys'!L16/1000 -> 1558.767478 | AD24: 1680.633157 | AE24: 1714.24582 | AF24: 1748.530737 | AG24: 1783.501351
A26: Notes to the Table:
A27: 1. Historical “previous plan” data is not required unless a plan has previously been filed. However, use the last OEB-approved, at least on a Total (Capital) Expenditure basis for the last cost of service rebasing year, and the applicant should include their planned budget in each subsequent historical year up to and including the Bridge Year.
A28: 2. Indicate the number of months of 'actual' data included in the last year of the Historical Period (normally a 'bridge' year):
A30: Explanatory Notes on Variances (complete only if applicable)
A31: Notes on shifts in forecast vs. historical budgets by category
A32: Note 2021 values are projections
A34: Notes on year over year Plan vs. Actual variances for Total Expenditures
A37: Notes on Plan vs. Actual variance trends for individual expenditure categories

Sheet Hidden_CAPEX (hidden)
A1: Utility Name | B1: EB Number | C1: Test Year | D1: Bridge Year | E1: Last Rebasing Year | F1: Category | G1: Year | H1: Plan | I1: Actual
A2: ='LDC Info'!$E$14 -> Grimsby Power Incorporated | B2: =EBNUMBER -> EB-2021-0027 | C2: =TestYear -> 2022 | D2: =BridgeYear -> 2021 | E2: =RebaseYear -> 2016 | F2: System Access | G2: ='App.2-AB_Capital Expenditures'!B14 -> 2013 | H2: ='App.2-AB_Capital Expenditures'!B17 -> 0 | I2: ='App.2-AB_Capital Expenditures'!C17 -> 0
A3: ='LDC Info'!$E$14 -> Grimsby Power Incorporated | B3: EB-2021-0027 | C3: 2022 | D3: 2021 | E3: 2016 | F3: System Renewal | G3: ='App.2-AB_Capital Expenditures'!B14 -> 2013 | H3: ='App.2-AB_Capital Expenditures'!B18 -> 0 | I3: ='App.2-AB_Capital Expenditures'!C18 -> 0
A4: ='LDC Info'!$E$14 -> Grimsby Power Incorporated | B4: EB-2021-0027 | C4: 2022 | D4: 2021 | E4: 2016 | F4: System Service | G4: ='App.2-AB_Capital Expenditures'!B14 -> 2013 | H4: ='App.2-AB_Capital Expenditures'!B19 -> 0 | I4: ='App.2-AB_Capital Expenditures'!C19 -> 0
A5: ='LDC Info'!$E$14 -> Grimsby Power Incorporated | B5: EB-2021-0027 | C5: 2022 | D5: 2021 | E5: 2016 | F5: General Plant | G5: ='App.2-AB_Capital Expenditures'!B14 -> 2013 | H5: ='App.2-AB_Capital Expenditures'!B20 -> 0 | I5: ='App.2-AB_Capital Expenditures'!C20 -> 0
A6: ='LDC Info'!$E$14 -> Grimsby Power Incorporated | B6: EB-2021-0027 | C6: 2022 | D6: 2021 | E6: 2016 | F6: Total Expenditure | G6: ='App.2-AB_Capital Expenditures'!B14 -> 2013 | H6: ='App.2-AB_Capital Expenditures'!B21 -> 0 | I6: ='App.2-AB_Capital Expenditures'!C21 -> 0
A7: ='LDC Info'!$E$14 -> Grimsby Power Incorporated | B7: EB-2021-0027 | C7: 2022 | D7: 2021 | E7: 2016 | F7: Capital Contributions | G7: ='App.2-AB_Capital Expenditures'!B14 -> 2013 | H7: ='App.2-AB_Capital Expenditures'!B22 -> 0 | I7: ='App.2-AB_Capital Expenditures'!C22 -> 0
A8: ='LDC Info'!$E$14 -> Grimsby Power Incorporated | B8: EB-2021-0027 | C8: 2022 | D8: 2021 | E8: 2016 | F8: Net Capital Expenditures | G8: ='App.2-AB_Capital Expenditures'!B14 -> 2013 | H8: ='App.2-AB_Capital Expenditures'!B23 -> 0 | I8: ='App.2-AB_Capital Expenditures'!C23 -> 0
A9: ='LDC Info'!$E$14 -> Grimsby Power Incorporated | B9: EB-2021-0027 | C9: 2022 | D9: 2021 | E9: 2016 | F9: System O&M | G9: ='App.2-AB_Capital Expenditures'!B14 -> 2013 | H9: ='App.2-AB_Capital Expenditures'!B24 -> 0 | I9: ='App.2-AB_Capital Expenditures'!C24 -> 0
A10: ='LDC Info'!$E$14 -> Grimsby Power Incorporated | B10: EB-2021-0027 | C10: 2022 | D10: 2021 | E10: 2016 | F10: System Access | G10: ='App.2-AB_Capital Expenditures'!E14 -> 2014 | H10: ='App.2-AB_Capital Expenditures'!E17 -> 0 | I10: ='App.2-AB_Capital Expenditures'!F17 -> 0
A11: ='LDC Info'!$E$14 -> Grimsby Power Incorporated | B11: EB-2021-0027 | C11: 2022 | D11: 2021 | E11: 2016 | F11: System Renewal | G11: ='App.2-AB_Capital Expenditures'!E14 -> 2014 | H11: ='App.2-AB_Capital Expenditures'!E18 -> 0 | I11: ='App.2-AB_Capital Expenditures'!F18 -> 0
A12: ='LDC Info'!$E$14 -> Grimsby Power Incorporated | B12: EB-2021-0027 | C12: 2022 | D12: 2021 | E12: 2016 | F12: System Service | G12: ='App.2-AB_Capital Expenditures'!E14 -> 2014 | H12: ='App.2-AB_Capital Expenditures'!E19 -> 0 | I12: ='App.2-AB_Capital Expenditures'!F19 -> 0
A13: ='LDC Info'!$E$14 -> Grimsby Power Incorporated | B13: EB-2021-0027 | C13: 2022 | D13: 2021 | E13: 2016 | F13: General Plant | G13: ='App.2-AB_Capital Expenditures'!E14 -> 2014 | H13: ='App.2-AB_Capital Expenditures'!E20 -> 0 | I13: ='App.2-AB_Capital Expenditures'!F20 -> 0
A14: ='LDC Info'!$E$14 -> Grimsby Power Incorporated | B14: EB-2021-0027 | C14: 2022 | D14: 2021 | E14: 2016 | F14: Total Expenditure | G14: ='App.2-AB_Capital Expenditures'!E14 -> 2014 | H14: ='App.2-AB_Capital Expenditures'!E21 -> 0 | I14: ='App.2-AB_Capital Expenditures'!F21 -> 0
A15: ='LDC Info'!$E$14 -> Grimsby Power Incorporated | B15: EB-2021-0027 | C15: 2022 | D15: 2021 | E15: 2016 | F15: Capital Contributions | G15: ='App.2-AB_Capital Expenditures'!E14 -> 2014 | H15: ='App.2-AB_Capital Expenditures'!E22 -> 0 | I15: ='App.2-AB_Capital Expenditures'!F22 -> 0
A16: ='LDC Info'!$E$14 -> Grimsby Power Incorporated | B16: EB-2021-0027 | C16: 2022 | D16: 2021 | E16: 2016 | F16: Net Capital Expenditures | G16: ='App.2-AB_Capital Expenditures'!E14 -> 2014 | H16: ='App.2-AB_Capital Expenditures'!E23 -> 0 | I16: ='App.2-AB_Capital Expenditures'!F23 -> 0
A17: ='LDC Info'!$E$14 -> Grimsby Power Incorporated | B17: EB-2021-0027 | C17: 2022 | D17: 2021 | E17: 2016 | F17: System O&M | G17: ='App.2-AB_Capital Expenditures'!E14 -> 2014 | H17: ='App.2-AB_Capital Expenditures'!E24 -> 0 | I17: ='App.2-AB_Capital Expenditures'!F24 -> 0
A18: ='LDC Info'!$E$14 -> Grimsby Power Incorporated | B18: EB-2021-0027 | C18: 2022 | D18: 2021 | E18: 2016 | F18: System Access | G18: ='App.2-AB_Capital Expenditures'!H14 -> 2015 | H18: ='App.2-AB_Capital Expenditures'!H17 -> 0 | I18: ='App.2-AB_Capital Expenditures'!I17 -> 0
A19: ='LDC Info'!$E$14 -> Grimsby Power Incorporated | B19: EB-2021-0027 | C19: 2022 | D19: 2021 | E19: 2016 | F19: System Renewal | G19: ='App.2-AB_Capital Expenditures'!H14 -> 2015 | H19: ='App.2-AB_Capital Expenditures'!H18 -> 0 | I19: ='App.2-AB_Capital Expenditures'!I18 -> 0
A20: ='LDC Info'!$E$14 -> Grimsby Power Incorporated | B20: EB-2021-0027 | C20: 2022 | D20: 2021 | E20: 2016 | F20: System Service | G20: ='App.2-AB_Capital Expenditures'!H14 -> 2015 | H20: ='App.2-AB_Capital Expenditures'!H19 -> 0 | I20: ='App.2-AB_Capital Expenditures'!I19 -> 0
A21: ='LDC Info'!$E$14 -> Grimsby Power Incorporated | B21: EB-2021-0027 | C21: 2022 | D21: 2021 | E21: 2016 | F21: General Plant | G21: ='App.2-AB_Capital Expenditures'!H14 -> 2015 | H21: ='App.2-AB_Capital Expenditures'!H20 -> 0 | I21: ='App.2-AB_Capital Expenditures'!I20 -> 0
A22: ='LDC Info'!$E$14 -> Grimsby Power Incorporated | B22: EB-2021-0027 | C22: 2022 | D22: 2021 | E22: 2016 | F22: Total Expenditure | G22: ='App.2-AB_Capital Expenditures'!H14 -> 2015 | H22: ='App.2-AB_Capital Expenditures'!H21 -> 0 | I22: ='App.2-AB_Capital Expenditures'!I21 -> 0
A23: ='LDC Info'!$E$14 -> Grimsby Power Incorporated | B23: EB-2021-0027 | C23: 2022 | D23: 2021 | E23: 2016 | F23: Capital Contributions | G23: ='App.2-AB_Capital Expenditures'!H14 -> 2015 | H23: ='App.2-AB_Capital Expenditures'!H22 -> 0 | I23: ='App.2-AB_Capital Expenditures'!I22 -> 0
A24: ='LDC Info'!$E$14 -> Grimsby Power Incorporated | B24: EB-2021-0027 | C24: 2022 | D24: 2021 | E24: 2016 | F24: Net Capital Expenditures | G24: ='App.2-AB_Capital Expenditures'!H14 -> 2015 | H24: ='App.2-AB_Capital Expenditures'!H23 -> 0 | I24: ='App.2-AB_Capital Expenditures'!I23 -> 0
A25: ='LDC Info'!$E$14 -> Grimsby Power Incorporated | B25: EB-2021-0027 | C25: 2022 | D25: 2021 | E25: 2016 | F25: System O&M | G25: ='App.2-AB_Capital Expenditures'!H14 -> 2015 | H25: ='App.2-AB_Capital Expenditures'!H24 -> 0 | I25: ='App.2-AB_Capital Expenditures'!I24 -> 0
A26: ='LDC Info'!$E$14 -> Grimsby Power Incorporated | B26: EB-2021-0027 | C26: 2022 | D26: 2021 | E26: 2016 | F26: System Access | G26: ='App.2-AB_Capital Expenditures'!K14 -> 2016 | H26: ='App.2-AB_Capital Expenditures'!K17 -> 977.305 | I26: ='App.2-AB_Capital Expenditures'!L17 -> 600.05735
A27: ='LDC Info'!$E$14 -> Grimsby Power Incorporated | B27: EB-2021-0027 | C27: 2022 | D27: 2021 | E27: 2016 | F27: System Renewal | G27: ='App.2-AB_Capital Expenditures'!K14 -> 2016 | H27: ='App.2-AB_Capital Expenditures'!K18 -> 204.847 | I27: ='App.2-AB_Capital Expenditures'!L18 -> 209.04655
A28: ='LDC Info'!$E$14 -> Grimsby Power Incorporated | B28: EB-2021-0027 | C28: 2022 | D28: 2021 | E28: 2016 | F28: System Service | G28: ='App.2-AB_Capital Expenditures'!K14 -> 2016 | H28: ='App.2-AB_Capital Expenditures'!K19 -> 177.879 | I28: ='App.2-AB_Capital Expenditures'!L19 -> 53.3231
A29: ='LDC Info'!$E$14 -> Grimsby Power Incorporated | B29: EB-2021-0027 | C29: 2022 | D29: 2021 | E29: 2016 | F29: General Plant | G29: ='App.2-AB_Capital Expenditures'!K14 -> 2016 | H29: ='App.2-AB_Capital Expenditures'!K20 -> 711.4 | I29: ='App.2-AB_Capital Expenditures'!L20 -> 570.23488
A30: ='LDC Info'!$E$14 -> Grimsby Power Incorporated | B30: EB-2021-0027 | C30: 2022 | D30: 2021 | E30: 2016 | F30: Total Expenditure | G30: ='App.2-AB_Capital Expenditures'!K14 -> 2016 | H30: ='App.2-AB_Capital Expenditures'!K21 -> 2071.431 | I30: ='App.2-AB_Capital Expenditures'!L21 -> 1432.66188
A31: ='LDC Info'!$E$14 -> Grimsby Power Incorporated | B31: EB-2021-0027 | C31: 2022 | D31: 2021 | E31: 2016 | F31: Capital Contributions | G31: ='App.2-AB_Capital Expenditures'!K14 -> 2016 | H31: ='App.2-AB_Capital Expenditures'!K22 -> -561.251 | I31: ='App.2-AB_Capital Expenditures'!L22 -> -304.02194
A32: ='LDC Info'!$E$14 -> Grimsby Power Incorporated | B32: EB-2021-0027 | C32: 2022 | D32: 2021 | E32: 2016 | F32: Net Capital Expenditures | G32: ='App.2-AB_Capital Expenditures'!K14 -> 2016 | H32: ='App.2-AB_Capital Expenditures'!K23 -> 1510.18 | I32: ='App.2-AB_Capital Expenditures'!L23 -> 1128.63994
A33: ='LDC Info'!$E$14 -> Grimsby Power Incorporated | B33: EB-2021-0027 | C33: 2022 | D33: 2021 | E33: 2016 | F33: System O&M | G33: ='App.2-AB_Capital Expenditures'!K14 -> 2016 | H33: ='App.2-AB_Capital Expenditures'!K24 -> 1286.86112 | I33: ='App.2-AB_Capital Expenditures'!L24 -> 1447.52247
A34: ='LDC Info'!$E$14 -> Grimsby Power Incorporated | B34: =EBNUMBER -> EB-2021-0027 | C34: =TestYear -> 2022 | D34: =BridgeYear -> 2021 | E34: =RebaseYear -> 2016 | F34: System Access | G34: ='App.2-AB_Capital Expenditures'!N14 -> 2017 | H34: ='App.2-AB_Capital Expenditures'!N17 -> 995.487 | I34: ='App.2-AB_Capital Expenditures'!O17 -> 1287.41787
A35: ='LDC Info'!$E$14 -> Grimsby Power Incorporated | B35: EB-2021-0027 | C35: 2022 | D35: 2021 | E35: 2016 | F35: System Renewal | G35: ='App.2-AB_Capital Expenditures'!N14 -> 2017 | H35: ='App.2-AB_Capital Expenditures'!N18 -> 917.551 | I35: ='App.2-AB_Capital Expenditures'!O18 -> 208.32045
A36: ='LDC Info'!$E$14 -> Grimsby Power Incorporated | B36: EB-2021-0027 | C36: 2022 | D36: 2021 | E36: 2016 | F36: System Service | G36: ='App.2-AB_Capital Expenditures'!N14 -> 2017 | H36: ='App.2-AB_Capital Expenditures'!N19 -> 399.129 | I36: ='App.2-AB_Capital Expenditures'!O19 -> 370.671794
A37: ='LDC Info'!$E$14 -> Grimsby Power Incorporated | B37: EB-2021-0027 | C37: 2022 | D37: 2021 | E37: 2016 | F37: General Plant | G37: ='App.2-AB_Capital Expenditures'!N14 -> 2017 | H37: ='App.2-AB_Capital Expenditures'!N20 -> 202.415 | I37: ='App.2-AB_Capital Expenditures'!O20 -> 326.19872
A38: ='LDC Info'!$E$14 -> Grimsby Power Incorporated | B38: EB-2021-0027 | C38: 2022 | D38: 2021 | E38: 2016 | F38: Total Expenditure | G38: ='App.2-AB_Capital Expenditures'!N14 -> 2017 | H38: ='App.2-AB_Capital Expenditures'!N21 -> 2514.582 | I38: ='App.2-AB_Capital Expenditures'!O21 -> 2192.608834
A39: ='LDC Info'!$E$14 -> Grimsby Power Incorporated | B39: EB-2021-0027 | C39: 2022 | D39: 2021 | E39: 2016 | F39: Capital Contributions | G39: ='App.2-AB_Capital Expenditures'!N14 -> 2017 | H39: ='App.2-AB_Capital Expenditures'!N22 -> -571.998 | I39: ='App.2-AB_Capital Expenditures'!O22 -> -723.78389
A40: ='LDC Info'!$E$14 -> Grimsby Power Incorporated | B40: EB-2021-0027 | C40: 2022 | D40: 2021 | E40: 2016 | F40: Net Capital Expenditures | G40: ='App.2-AB_Capital Expenditures'!N14 -> 2017 | H40: ='App.2-AB_Capital Expenditures'!N23 -> 1942.584 | I40: ='App.2-AB_Capital Expenditures'!O23 -> 1468.824944
A41: ='LDC Info'!$E$14 -> Grimsby Power Incorporated | B41: EB-2021-0027 | C41: 2022 | D41: 2021 | E41: 2016 | F41: System O&M | G41: ='App.2-AB_Capital Expenditures'!N14 -> 2017 | H41: ='App.2-AB_Capital Expenditures'!N24 -> 1708.71584 | I41: ='App.2-AB_Capital Expenditures'!O24 -> 1298.39345
A42: ='LDC Info'!$E$14 -> Grimsby Power Incorporated | B42: EB-2021-0027 | C42: 2022 | D42: 2021 | E42: 2016 | F42: System Access | G42: ='App.2-AB_Capital Expenditures'!Q14 -> 2018 | H42: ='App.2-AB_Capital Expenditures'!Q17 -> 967.03 | I42: ='App.2-AB_Capital Expenditures'!R17 -> 762.46103
A43: ='LDC Info'!$E$14 -> Grimsby Power Incorporated | B43: EB-2021-0027 | C43: 2022 | D43: 2021 | E43: 2016 | F43: System Renewal | G43: ='App.2-AB_Capital Expenditures'!Q14 -> 2018 | H43: ='App.2-AB_Capital Expenditures'!Q18 -> 976.567 | I43: ='App.2-AB_Capital Expenditures'!R18 -> 564.62104
A44: ='LDC Info'!$E$14 -> Grimsby Power Incorporated | B44: EB-2021-0027 | C44: 2022 | D44: 2021 | E44: 2016 | F44: System Service | G44: ='App.2-AB_Capital Expenditures'!Q14 -> 2018 | H44: ='App.2-AB_Capital Expenditures'!Q19 -> 409.185 | I44: ='App.2-AB_Capital Expenditures'!R19 -> 70.61348
A45: ='LDC Info'!$E$14 -> Grimsby Power Incorporated | B45: EB-2021-0027 | C45: 2022 | D45: 2021 | E45: 2016 | F45: General Plant | G45: ='App.2-AB_Capital Expenditures'!Q14 -> 2018 | H45: ='App.2-AB_Capital Expenditures'!Q20 -> 170.028 | I45: ='App.2-AB_Capital Expenditures'!R20 -> 507.04777
A46: ='LDC Info'!$E$14 -> Grimsby Power Incorporated | B46: EB-2021-0027 | C46: 2022 | D46: 2021 | E46: 2016 | F46: Total Expenditure | G46: ='App.2-AB_Capital Expenditures'!Q14 -> 2018 | H46: ='App.2-AB_Capital Expenditures'!Q21 -> 2522.81 | I46: ='App.2-AB_Capital Expenditures'!R21 -> 1904.74332
A47: ='LDC Info'!$E$14 -> Grimsby Power Incorporated | B47: EB-2021-0027 | C47: 2022 | D47: 2021 | E47: 2016 | F47: Capital Contributions | G47: ='App.2-AB_Capital Expenditures'!Q14 -> 2018 | H47: ='App.2-AB_Capital Expenditures'!Q22 -> -554.086 | I47: ='App.2-AB_Capital Expenditures'!R22 -> -363.40624
A48: ='LDC Info'!$E$14 -> Grimsby Power Incorporated | B48: EB-2021-0027 | C48: 2022 | D48: 2021 | E48: 2016 | F48: Net Capital Expenditures | G48: ='App.2-AB_Capital Expenditures'!Q14 -> 2018 | H48: ='App.2-AB_Capital Expenditures'!Q23 -> 1968.724 | I48: ='App.2-AB_Capital Expenditures'!R23 -> 1541.33708
A49: ='LDC Info'!$E$14 -> Grimsby Power Incorporated | B49: EB-2021-0027 | C49: 2022 | D49: 2021 | E49: 2016 | F49: System O&M | G49: ='App.2-AB_Capital Expenditures'!Q14 -> 2018 | H49: ='App.2-AB_Capital Expenditures'!Q24 -> 1777.064474 | I49: ='App.2-AB_Capital Expenditures'!R24 -> 1501.50012
A50: ='LDC Info'!$E$14 -> Grimsby Power Incorporated | B50: EB-2021-0027 | C50: 2022 | D50: 2021 | E50: 2016 | F50: System Access | G50: ='App.2-AB_Capital Expenditures'!T14 -> 2019 | H50: ='App.2-AB_Capital Expenditures'!T17 -> 905.973 | I50: ='App.2-AB_Capital Expenditures'!U17 -> 477.62561
A51: ='LDC Info'!$E$14 -> Grimsby Power Incorporated | B51: EB-2021-0027 | C51: 2022 | D51: 2021 | E51: 2016 | F51: System Renewal | G51: ='App.2-AB_Capital Expenditures'!T14 -> 2019 | H51: ='App.2-AB_Capital Expenditures'!T18 -> 1061.595 | I51: ='App.2-AB_Capital Expenditures'!U18 -> 1069.31713
A52: ='LDC Info'!$E$14 -> Grimsby Power Incorporated | B52: EB-2021-0027 | C52: 2022 | D52: 2021 | E52: 2016 | F52: System Service | G52: ='App.2-AB_Capital Expenditures'!T14 -> 2019 | H52: ='App.2-AB_Capital Expenditures'!T19 -> 420.977 | I52: ='App.2-AB_Capital Expenditures'!U19 -> 482.46049
A53: ='LDC Info'!$E$14 -> Grimsby Power Incorporated | B53: EB-2021-0027 | C53: 2022 | D53: 2021 | E53: 2016 | F53: General Plant | G53: ='App.2-AB_Capital Expenditures'!T14 -> 2019 | H53: ='App.2-AB_Capital Expenditures'!T20 -> 173.429 | I53: ='App.2-AB_Capital Expenditures'!U20 -> 381.52756
A54: ='LDC Info'!$E$14 -> Grimsby Power Incorporated | B54: EB-2021-0027 | C54: 2022 | D54: 2021 | E54: 2016 | F54: Total Expenditure | G54: ='App.2-AB_Capital Expenditures'!T14 -> 2019 | H54: ='App.2-AB_Capital Expenditures'!T21 -> 2561.974 | I54: ='App.2-AB_Capital Expenditures'!U21 -> 2410.93079
A55: ='LDC Info'!$E$14 -> Grimsby Power Incorporated | B55: EB-2021-0027 | C55: 2022 | D55: 2021 | E55: 2016 | F55: Capital Contributions | G55: ='App.2-AB_Capital Expenditures'!T14 -> 2019 | H55: ='App.2-AB_Capital Expenditures'!T22 -> -518.263 | I55: ='App.2-AB_Capital Expenditures'!U22 -> -214.24792
A56: ='LDC Info'!$E$14 -> Grimsby Power Incorporated | B56: EB-2021-0027 | C56: 2022 | D56: 2021 | E56: 2016 | F56: Net Capital Expenditures | G56: ='App.2-AB_Capital Expenditures'!T14 -> 2019 | H56: ='App.2-AB_Capital Expenditures'!T23 -> 2043.711 | I56: ='App.2-AB_Capital Expenditures'!U23 -> 2196.68287
A57: ='LDC Info'!$E$14 -> Grimsby Power Incorporated | B57: EB-2021-0027 | C57: 2022 | D57: 2021 | E57: 2016 | F57: System O&M | G57: ='App.2-AB_Capital Expenditures'!T14 -> 2019 | H57: ='App.2-AB_Capital Expenditures'!T24 -> 1848.147053 | I57: ='App.2-AB_Capital Expenditures'!U24 -> 1471.85374
A58: ='LDC Info'!$E$14 -> Grimsby Power Incorporated | B58: EB-2021-0027 | C58: 2022 | D58: 2021 | E58: 2016 | F58: System Access | G58: ='App.2-AB_Capital Expenditures'!W14 -> 2020 | H58: ='App.2-AB_Capital Expenditures'!W17 -> 839.488 | I58: ='App.2-AB_Capital Expenditures'!X17 -> 739.78292
A59: ='LDC Info'!$E$14 -> Grimsby Power Incorporated | B59: EB-2021-0027 | C59: 2022 | D59: 2021 | E59: 2016 | F59: System Renewal | G59: ='App.2-AB_Capital Expenditures'!W14 -> 2020 | H59: ='App.2-AB_Capital Expenditures'!W18 -> 1067.14 | I59: ='App.2-AB_Capital Expenditures'!X18 -> 661.04589
A60: ='LDC Info'!$E$14 -> Grimsby Power Incorporated | B60: EB-2021-0027 | C60: 2022 | D60: 2021 | E60: 2016 | F60: System Service | G60: ='App.2-AB_Capital Expenditures'!W14 -> 2020 | H60: ='App.2-AB_Capital Expenditures'!W19 -> 427.543 | I60: ='App.2-AB_Capital Expenditures'!X19 -> 286.15197
A61: ='LDC Info'!$E$14 -> Grimsby Power Incorporated | B61: EB-2021-0027 | C61: 2022 | D61: 2021 | E61: 2016 | F61: General Plant | G61: ='App.2-AB_Capital Expenditures'!W14 -> 2020 | H61: ='App.2-AB_Capital Expenditures'!W20 -> 176.898 | I61: ='App.2-AB_Capital Expenditures'!X20 -> 277.56404
A62: ='LDC Info'!$E$14 -> Grimsby Power Incorporated | B62: EB-2021-0027 | C62: 2022 | D62: 2021 | E62: 2016 | F62: Total Expenditure | G62: ='App.2-AB_Capital Expenditures'!W14 -> 2020 | H62: ='App.2-AB_Capital Expenditures'!W21 -> 2511.069 | I62: ='App.2-AB_Capital Expenditures'!X21 -> 1964.54482
A63: ='LDC Info'!$E$14 -> Grimsby Power Incorporated | B63: EB-2021-0027 | C63: 2022 | D63: 2021 | E63: 2016 | F63: Capital Contributions | G63: ='App.2-AB_Capital Expenditures'!W14 -> 2020 | H63: ='App.2-AB_Capital Expenditures'!W22 -> -482.444 | I63: ='App.2-AB_Capital Expenditures'!X22 -> -461.76437
A64: ='LDC Info'!$E$14 -> Grimsby Power Incorporated | B64: EB-2021-0027 | C64: 2022 | D64: 2021 | E64: 2016 | F64: Net Capital Expenditures | G64: ='App.2-AB_Capital Expenditures'!W14 -> 2020 | H64: ='App.2-AB_Capital Expenditures'!W23 -> 2028.625 | I64: ='App.2-AB_Capital Expenditures'!X23 -> 1502.78045
A65: ='LDC Info'!$E$14 -> Grimsby Power Incorporated | B65: EB-2021-0027 | C65: 2022 | D65: 2021 | E65: 2016 | F65: System O&M | G65: ='App.2-AB_Capital Expenditures'!W14 -> 2020 | H65: ='App.2-AB_Capital Expenditures'!W24 -> 1922.072935 | I65: ='App.2-AB_Capital Expenditures'!X24 -> 1583.69816
A66: ='LDC Info'!$E$14 -> Grimsby Power Incorporated | B66: =EBNUMBER -> EB-2021-0027 | C66: =TestYear -> 2022 | D66: =BridgeYear -> 2021 | E66: =RebaseYear -> 2016 | F66: System Access | G66: ='App.2-AB_Capital Expenditures'!Z14 -> 2021 | H66: ='App.2-AB_Capital Expenditures'!Z17 -> 661.69313 | I66: ='App.2-AB_Capital Expenditures'!AA17 -> 0
A67: ='LDC Info'!$E$14 -> Grimsby Power Incorporated | B67: EB-2021-0027 | C67: 2022 | D67: 2021 | E67: 2016 | F67: System Renewal | G67: ='App.2-AB_Capital Expenditures'!Z14 -> 2021 | H67: ='App.2-AB_Capital Expenditures'!Z18 -> 1021.88203 | I67: ='App.2-AB_Capital Expenditures'!AA18 -> 0
A68: ='LDC Info'!$E$14 -> Grimsby Power Incorporated | B68: EB-2021-0027 | C68: 2022 | D68: 2021 | E68: 2016 | F68: System Service | G68: ='App.2-AB_Capital Expenditures'!Z14 -> 2021 | H68: ='App.2-AB_Capital Expenditures'!Z19 -> 683.11376 | I68: ='App.2-AB_Capital Expenditures'!AA19 -> 0
A69: ='LDC Info'!$E$14 -> Grimsby Power Incorporated | B69: EB-2021-0027 | C69: 2022 | D69: 2021 | E69: 2016 | F69: General Plant | G69: ='App.2-AB_Capital Expenditures'!Z14 -> 2021 | H69: ='App.2-AB_Capital Expenditures'!Z20 -> 216.0404 | I69: ='App.2-AB_Capital Expenditures'!AA20 -> 0
A70: ='LDC Info'!$E$14 -> Grimsby Power Incorporated | B70: EB-2021-0027 | C70: 2022 | D70: 2021 | E70: 2016 | F70: Total Expenditure | G70: ='App.2-AB_Capital Expenditures'!Z14 -> 2021 | H70: ='App.2-AB_Capital Expenditures'!Z21 -> 2582.72932 | I70: ='App.2-AB_Capital Expenditures'!AA21 -> 0
A71: ='LDC Info'!$E$14 -> Grimsby Power Incorporated | B71: EB-2021-0027 | C71: 2022 | D71: 2021 | E71: 2016 | F71: Capital Contributions | G71: ='App.2-AB_Capital Expenditures'!Z14 -> 2021 | H71: ='App.2-AB_Capital Expenditures'!Z22 -> -344.61349 | I71: ='App.2-AB_Capital Expenditures'!AA22 -> 0
A72: ='LDC Info'!$E$14 -> Grimsby Power Incorporated | B72: EB-2021-0027 | C72: 2022 | D72: 2021 | E72: 2016 | F72: Net Capital Expenditures | G72: ='App.2-AB_Capital Expenditures'!Z14 -> 2021 | H72: ='App.2-AB_Capital Expenditures'!Z23 -> 2238.11583 | I72: ='App.2-AB_Capital Expenditures'!AA23 -> 0
A73: ='LDC Info'!$E$14 -> Grimsby Power Incorporated | B73: EB-2021-0027 | C73: 2022 | D73: 2021 | E73: 2016 | F73: System O&M | G73: ='App.2-AB_Capital Expenditures'!Z14 -> 2021 | H73: ='App.2-AB_Capital Expenditures'!Z24 -> 1474.827153 | I73: ='App.2-AB_Capital Expenditures'!AA24 -> 0
A74: ='LDC Info'!$E$14 -> Grimsby Power Incorporated | B74: EB-2021-0027 | C74: 2022 | D74: 2021 | E74: 2016 | F74: System Access | G74: ='App.2-AB_Capital Expenditures'!AC14 -> 2022 | H74: ='App.2-AB_Capital Expenditures'!AC17 -> 882.88269
A75: ='LDC Info'!$E$14 -> Grimsby Power Incorporated | B75: EB-2021-0027 | C75: 2022 | D75: 2021 | E75: 2016 | F75: System Renewal | G75: ='App.2-AB_Capital Expenditures'!AC14 -> 2022 | H75: ='App.2-AB_Capital Expenditures'!AC18 -> 1871.40433
A76: ='LDC Info'!$E$14 -> Grimsby Power Incorporated | B76: EB-2021-0027 | C76: 2022 | D76: 2021 | E76: 2016 | F76: System Service | G76: ='App.2-AB_Capital Expenditures'!AC14 -> 2022 | H76: ='App.2-AB_Capital Expenditures'!AC19 -> 81.54077
A77: ='LDC Info'!$E$14 -> Grimsby Power Incorporated | B77: EB-2021-0027 | C77: 2022 | D77: 2021 | E77: 2016 | F77: General Plant | G77: ='App.2-AB_Capital Expenditures'!AC14 -> 2022 | H77: ='App.2-AB_Capital Expenditures'!AC20 -> 101.0632
A78: ='LDC Info'!$E$14 -> Grimsby Power Incorporated | B78: EB-2021-0027 | C78: 2022 | D78: 2021 | E78: 2016 | F78: Total Expenditure | G78: ='App.2-AB_Capital Expenditures'!AC14 -> 2022 | H78: ='App.2-AB_Capital Expenditures'!AC21 -> 2936.89099
A79: ='LDC Info'!$E$14 -> Grimsby Power Incorporated | B79: EB-2021-0027 | C79: 2022 | D79: 2021 | E79: 2016 | F79: Capital Contributions | G79: ='App.2-AB_Capital Expenditures'!AC14 -> 2022 | H79: ='App.2-AB_Capital Expenditures'!AC22 -> -423.42591
A80: ='LDC Info'!$E$14 -> Grimsby Power Incorporated | B80: EB-2021-0027 | C80: 2022 | D80: 2021 | E80: 2016 | F80: Net Capital Expenditures | G80: ='App.2-AB_Capital Expenditures'!AC14 -> 2022 | H80: ='App.2-AB_Capital Expenditures'!AC23 -> 2513.46508
A81: ='LDC Info'!$E$14 -> Grimsby Power Incorporated | B81: EB-2021-0027 | C81: 2022 | D81: 2021 | E81: 2016 | F81: System O&M | G81: ='App.2-AB_Capital Expenditures'!AC14 -> 2022 | H81: ='App.2-AB_Capital Expenditures'!AC24 -> 1558.767478
A82: ='LDC Info'!$E$14 -> Grimsby Power Incorporated | B82: EB-2021-0027 | C82: 2022 | D82: 2021 | E82: 2016 | F82: System Access | G82: ='App.2-AB_Capital Expenditures'!AD14 -> 2023 | H82: ='App.2-AB_Capital Expenditures'!AD17 -> 712.587
A83: ='LDC Info'!$E$14 -> Grimsby Power Incorporated | B83: EB-2021-0027 | C83: 2022 | D83: 2021 | E83: 2016 | F83: System Renewal | G83: ='App.2-AB_Capital Expenditures'!AD14 -> 2023 | H83: ='App.2-AB_Capital Expenditures'!AD18 -> 891.453
A84: ='LDC Info'!$E$14 -> Grimsby Power Incorporated | B84: EB-2021-0027 | C84: 2022 | D84: 2021 | E84: 2016 | F84: System Service | G84: ='App.2-AB_Capital Expenditures'!AD14 -> 2023 | H84: ='App.2-AB_Capital Expenditures'!AD19 -> 1138.065
A85: ='LDC Info'!$E$14 -> Grimsby Power Incorporated | B85: EB-2021-0027 | C85: 2022 | D85: 2021 | E85: 2016 | F85: General Plant | G85: ='App.2-AB_Capital Expenditures'!AD14 -> 2023 | H85: ='App.2-AB_Capital Expenditures'!AD20 -> 391.24
A86: ='LDC Info'!$E$14 -> Grimsby Power Incorporated | B86: EB-2021-0027 | C86: 2022 | D86: 2021 | E86: 2016 | F86: Total Expenditure | G86: ='App.2-AB_Capital Expenditures'!AD14 -> 2023 | H86: ='App.2-AB_Capital Expenditures'!AD21 -> 3133.345
A87: ='LDC Info'!$E$14 -> Grimsby Power Incorporated | B87: EB-2021-0027 | C87: 2022 | D87: 2021 | E87: 2016 | F87: Capital Contributions | G87: ='App.2-AB_Capital Expenditures'!AD14 -> 2023 | H87: ='App.2-AB_Capital Expenditures'!AD22 -> -326.917
A88: ='LDC Info'!$E$14 -> Grimsby Power Incorporated | B88: EB-2021-0027 | C88: 2022 | D88: 2021 | E88: 2016 | F88: Net Capital Expenditures | G88: ='App.2-AB_Capital Expenditures'!AD14 -> 2023 | H88: ='App.2-AB_Capital Expenditures'!AD23 -> 2806.428
A89: ='LDC Info'!$E$14 -> Grimsby Power Incorporated | B89: EB-2021-0027 | C89: 2022 | D89: 2021 | E89: 2016 | F89: System O&M | G89: ='App.2-AB_Capital Expenditures'!AD14 -> 2023 | H89: ='App.2-AB_Capital Expenditures'!AD24 -> 1680.633157
A90: ='LDC Info'!$E$14 -> Grimsby Power Incorporated | B90: EB-2021-0027 | C90: 2022 | D90: 2021 | E90: 2016 | F90: System Access | G90: ='App.2-AB_Capital Expenditures'!AE14 -> 2024 | H90: ='App.2-AB_Capital Expenditures'!AE17 -> 550.001
A91: ='LDC Info'!$E$14 -> Grimsby Power Incorporated | B91: EB-2021-0027 | C91: 2022 | D91: 2021 | E91: 2016 | F91: System Renewal | G91: ='App.2-AB_Capital Expenditures'!AE14 -> 2024 | H91: ='App.2-AB_Capital Expenditures'!AE18 -> 1304.282
A92: ='LDC Info'!$E$14 -> Grimsby Power Incorporated | B92: EB-2021-0027 | C92: 2022 | D92: 2021 | E92: 2016 | F92: System Service | G92: ='App.2-AB_Capital Expenditures'!AE14 -> 2024 | H92: ='App.2-AB_Capital Expenditures'!AE19 -> 611.303
A93: ='LDC Info'!$E$14 -> Grimsby Power Incorporated | B93: EB-2021-0027 | C93: 2022 | D93: 2021 | E93: 2016 | F93: General Plant | G93: ='App.2-AB_Capital Expenditures'!AE14 -> 2024 | H93: ='App.2-AB_Capital Expenditures'!AE20 -> 204.44
A94: ='LDC Info'!$E$14 -> Grimsby Power Incorporated | B94: EB-2021-0027 | C94: 2022 | D94: 2021 | E94: 2016 | F94: Total Expenditure | G94: ='App.2-AB_Capital Expenditures'!AE14 -> 2024 | H94: ='App.2-AB_Capital Expenditures'!AE21 -> 2670.026
A95: ='LDC Info'!$E$14 -> Grimsby Power Incorporated | B95: EB-2021-0027 | C95: 2022 | D95: 2021 | E95: 2016 | F95: Capital Contributions | G95: ='App.2-AB_Capital Expenditures'!AE14 -> 2024 | H95: ='App.2-AB_Capital Expenditures'!AE22 -> -322.453
A96: ='LDC Info'!$E$14 -> Grimsby Power Incorporated | B96: EB-2021-0027 | C96: 2022 | D96: 2021 | E96: 2016 | F96: Net Capital Expenditures | G96: ='App.2-AB_Capital Expenditures'!AE14 -> 2024 | H96: ='App.2-AB_Capital Expenditures'!AE23 -> 2347.573
A97: ='LDC Info'!$E$14 -> Grimsby Power Incorporated | B97: EB-2021-0027 | C97: 2022 | D97: 2021 | E97: 2016 | F97: System O&M | G97: ='App.2-AB_Capital Expenditures'!AE14 -> 2024 | H97: ='App.2-AB_Capital Expenditures'!AE24 -> 1714.24582
A98: ='LDC Info'!$E$14 -> Grimsby Power Incorporated | B98: =EBNUMBER -> EB-2021-0027 | C98: =TestYear -> 2022 | D98: =BridgeYear -> 2021 | E98: =RebaseYear -> 2016 | F98: System Access | G98: ='App.2-AB_Capital Expenditures'!AF14 -> 2025 | H98: ='App.2-AB_Capital Expenditures'!AF17 -> 605.447
A99: ='LDC Info'!$E$14 -> Grimsby Power Incorporated | B99: EB-2021-0027 | C99: 2022 | D99: 2021 | E99: 2016 | F99: System Renewal | G99: ='App.2-AB_Capital Expenditures'!AF14 -> 2025 | H99: ='App.2-AB_Capital Expenditures'!AF18 -> 1295.468
A100: ='LDC Info'!$E$14 -> Grimsby Power Incorporated | B100: EB-2021-0027 | C100: 2022 | D100: 2021 | E100: 2016 | F100: System Service | G100: ='App.2-AB_Capital Expenditures'!AF14 -> 2025 | H100: ='App.2-AB_Capital Expenditures'!AF19 -> 361.74
A101: ='LDC Info'!$E$14 -> Grimsby Power Incorporated | B101: EB-2021-0027 | C101: 2022 | D101: 2021 | E101: 2016 | F101: General Plant | G101: ='App.2-AB_Capital Expenditures'!AF14 -> 2025 | H101: ='App.2-AB_Capital Expenditures'!AF20 -> 396.652
A102: ='LDC Info'!$E$14 -> Grimsby Power Incorporated | B102: EB-2021-0027 | C102: 2022 | D102: 2021 | E102: 2016 | F102: Total Expenditure | G102: ='App.2-AB_Capital Expenditures'!AF14 -> 2025 | H102: ='App.2-AB_Capital Expenditures'!AF21 -> 2659.307
A103: ='LDC Info'!$E$14 -> Grimsby Power Incorporated | B103: EB-2021-0027 | C103: 2022 | D103: 2021 | E103: 2016 | F103: Capital Contributions | G103: ='App.2-AB_Capital Expenditures'!AF14 -> 2025 | H103: ='App.2-AB_Capital Expenditures'!AF22 -> -347.292
A104: ='LDC Info'!$E$14 -> Grimsby Power Incorporated | B104: EB-2021-0027 | C104: 2022 | D104: 2021 | E104: 2016 | F104: Net Capital Expenditures | G104: ='App.2-AB_Capital Expenditures'!AF14 -> 2025 | H104: ='App.2-AB_Capital Expenditures'!AF23 -> 2312.015
A105: ='LDC Info'!$E$14 -> Grimsby Power Incorporated | B105: EB-2021-0027 | C105: 2022 | D105: 2021 | E105: 2016 | F105: System O&M | G105: ='App.2-AB_Capital Expenditures'!AF14 -> 2025 | H105: ='App.2-AB_Capital Expenditures'!AF24 -> 1748.530737
A106: ='LDC Info'!$E$14 -> Grimsby Power Incorporated | B106: EB-2021-0027 | C106: 2022 | D106: 2021 | E106: 2016 | F106: System Access | G106: ='App.2-AB_Capital Expenditures'!AG14 -> 2026 | H106: ='App.2-AB_Capital Expenditures'!AG17 -> 610.783
A107: ='LDC Info'!$E$14 -> Grimsby Power Incorporated | B107: EB-2021-0027 | C107: 2022 | D107: 2021 | E107: 2016 | F107: System Renewal | G107: ='App.2-AB_Capital Expenditures'!AG14 -> 2026 | H107: ='App.2-AB_Capital Expenditures'!AG18 -> 1442.774
A108: ='LDC Info'!$E$14 -> Grimsby Power Incorporated | B108: EB-2021-0027 | C108: 2022 | D108: 2021 | E108: 2016 | F108: System Service | G108: ='App.2-AB_Capital Expenditures'!AG14 -> 2026 | H108: ='App.2-AB_Capital Expenditures'!AG19 -> 231.083
A109: ='LDC Info'!$E$14 -> Grimsby Power Incorporated | B109: EB-2021-0027 | C109: 2022 | D109: 2021 | E109: 2016 | F109: General Plant | G109: ='App.2-AB_Capital Expenditures'!AG14 -> 2026 | H109: ='App.2-AB_Capital Expenditures'!AG20 -> 395.824
A110: ='LDC Info'!$E$14 -> Grimsby Power Incorporated | B110: EB-2021-0027 | C110: 2022 | D110: 2021 | E110: 2016 | F110: Total Expenditure | G110: ='App.2-AB_Capital Expenditures'!AG14 -> 2026 | H110: ='App.2-AB_Capital Expenditures'!AG21 -> 2680.464
A111: ='LDC Info'!$E$14 -> Grimsby Power Incorporated | B111: EB-2021-0027 | C111: 2022 | D111: 2021 | E111: 2016 | F111: Capital Contributions | G111: ='App.2-AB_Capital Expenditures'!AG14 -> 2026 | H111: ='App.2-AB_Capital Expenditures'!AG22 -> -354.238
A112: ='LDC Info'!$E$14 -> Grimsby Power Incorporated | B112: EB-2021-0027 | C112: 2022 | D112: 2021 | E112: 2016 | F112: Net Capital Expenditures | G112: ='App.2-AB_Capital Expenditures'!AG14 -> 2026 | H112: ='App.2-AB_Capital Expenditures'!AG23 -> 2326.226
A113: ='LDC Info'!$E$14 -> Grimsby Power Incorporated | B113: EB-2021-0027 | C113: 2022 | D113: 2021 | E113: 2016 | F113: System O&M | G113: ='App.2-AB_Capital Expenditures'!AG14 -> 2026 | H113: ='App.2-AB_Capital Expenditures'!AG24 -> 1783.501351

Sheet App.2-AC_Customer Engagement
B1: File Number: | C1: =EBNUMBER -> EB-2021-0027
B2: Exhibit:
B3: Tab:
B4: Schedule:
B5: Page:
B7: Date: | C7: 2021-07-30
A9: Appendix 2-AC
A10: Customer Engagement Activities Summary
A12: Provide a list of customer engagement activities | B12: Provide a list of customer needs and preferences identified through each engagement activity | C12: Actions taken to respond to identified needs and preferences. If no action was taken, explain why.
A13: Customer Satisfaction Survey - An independent Customer Satisfaction Survey has been completed every other year since 2014. 2016 2018 2020 | B13: The surveys have provided insight into the need for reduced costs, improved communication and reliability. Also the needs for more information regarding account payment status and easier payment options. | C13: GPI has made a conscious effort to keep costs reasonable. GPI still uses its website to communicate with customers and recently started using twitter. The capital projects over the next five years will help increase reliability. In 2021 Grimsby Power will implement a new customer portal that will allows customers to view up to date payment records and offers easy access to consumption and payment options with one log in.
A14: ESA Survey - An independent ESA Survey has been completed every other year since 2016. 2017 2019 | B14: The survey identified certain areas where customers have less knowledge. The main area was what to do when a power line is touching a vehicle. | C14: As a result of the survey's Grimsby Power has started communicating more frequently about safety around the distribution system. This included a display at the Grimsby Community Safety Event in 2019. At the Community Safety Event Grimsby Power set up a display that replicated a downed power line over a vehicle and showed kids and adults what to do if they come across this type of situation.
A15: GPI Website - Customers have access to everything GPI has to offer and contact information if they have any additional questions. | B15: Through the use of the website customers have identified the preference of having more online option. | C15: The website was updated to be more interactive but still have the same amount of information available for customers.
A16: Customer Service Phone calls | B16: Through daily conversations with customers we have learned of their concerns regarding cost, more payment options, having more information about their current status of their account online and the need for improved reliability. | C16: GPI has made a conscious effort to keep costs reasonable. GPI still uses its website to communicate with customers and recently started using twitter. The capital projects over the next five years will help increase reliability. In 2021 Grimsby Power will implement a new customer portal that will allows customers to view up to date payment records and offers easy access to consumption and payment options with one log in.
A17: Customer Walk Ins - Customers are able to walk into Grimsby Power's office Monday through Friday. | B17: Often times the customers served in office do not have access to the internet or have accessibility issues. Customers appreciate having the option to walk into the office to speak with someone face to face. Customers often come in with "tree issues" or other issues about the distribution equipment on their property. | C17: Grimsby Power will continue to have an office open for its customers. Grimsby Power also has a 24 hour drop off box for customers convenience.
A18: Customer contact during an outage (during regular business hours) | B18: Communication during an outage is important to our customers. During office hours all calls are answered by GPI staff. During these times customers have identified the concerns about how the outage effects them. | C18: In response to this feedback Grimsby Power posts information more frequently on our website and communicates directly with customers if they request a call back with an update. Grimsby Power also has outage information on Twitter.
A19: Engagement with Town Council | B19: Through engaging our local Town Council members we have learned of our customers preference to have their local utility involved in the community. | C19: Since 2015 Grimsby Power has participated in the annual Town of Grimsby Christmas parade and donated to local charities. Grimsby Power also provides annual feedback to Town Council regarding corporate performance, rates for residential customers, capital investments and reliability.
A20: Grimsby Home Show - Customers engaged with GPI representatives April 15-16, 2016 | B20: Customers expressed concerns regarding energy use and the need to reduce use and cost. | C20: Grimsby Power continued to promote conservation programs to help customers reduce their consumption.
A21: Presentation to Grimsby Senior's Group - Grimsby Power presented to the Grimsby Senior's group about understanding the electricity bill, safety around the distribution system and programs available to help reduce the electricity bill. February 25, 2019 | B21: Seniors expressed concerns about cost, renewable energy and charging stations. | C21: Seniors where given information to help them sign up for available programs that help reduce the bill including AFT and the home heating and cooling program. Reminders about the time of use prices were also provided.
A22: Grimsby Community Safety Event - Grimsby Power set up a display that replicated a downed power line and showed kids and adults what to do if they come across this type of situation. May 11, 2019 | B22: During the event customers expressed concerns about power outages. Some people that engaged with Grimsby Power staff appreciated the safety information shared. Once they saw the enactment they realized the type of service wires in their community. | C22: Continued promotion of safety around distribution equipment at other events. Safety tips posted on Grimsby Power website.
A23: Business Customer Engagement Breakfast - Grimsby Power has had three Breakfast Engagement Events. At the events customers are updated on capital projects, conservation programs and consumption monitoring tools. November 22, 2017 November 21, 2018 November 28, 2019 | B23: At the event customers have expressed the need for the following: -Fewer outages, value for money, conservation and reduced usage/demand, sustainability, stay local, keep costs reasonable, decreased regulations, more integration between LDC's, suppliers and regulators, education on energy usage and impact on bills, and renewable energy | C23: Grimsby Power continued to promote conservation programs to help customers reduce their consumption. We also helped customers receive access to the C&I Energy Manager tool available to help monitor consumption and demand. Through the engagement events we also spoke with customers individually about capital projects that may impact their business.
A24: Town Hall Meetings - The CEO of GPI speaks at the Town Hall Council meetings providing the town council and observers with updates from the OEB and our local LDC performance metrics and conservation September 18, 2017 August 26, 2019 September 21, 2020 | B24: Through Town Hall meetings we have heard about the importance of costs, financial stability and conservation. | C24: GPI has made a conscious effort to keep costs reasonable. Dividends have been reinvested in the company to ensure investments are made in the distribution system.
A25: Happening in Grimsby - A community event in the Downtown core of Grimsby. Grimsby Power set up a booth at the event and had information about AFT, Time of Use pricing , Capital projects and Tree Trimming. June 22, 2019 | B25: Customers appreciated learning about the projects taking place in their community and the need for more communication. Customers liked hearing about why the projects were needed and the impact on our system. | C25: GPI continued to take part in community events to inform customers and answer questions.
A26: LEAP - Low income customers receive information about the LEAP program through handouts and on the phone with customer service. GPI partners with GBF Community Services to help low income customers. | B26: Through interaction with customers eligible for LEAP GPI recognizes that cost is still an issue for some customers in Grimsby. | C26: The "Take Charge" LEAP brochure is included with every hand delivered disconnection notice promoting the LEAP funding and Low Income Service Rules to increase awareness of the programs for those customers in need.
A27: Spring & Fall Coupon Events April 23, 2016 October 22, 2016 April 8, 2017 October 21, 2017 April 21, 2018 October 20, 2018 | B27: During the yearly events customers spoke about the importance of reducing energy use and how the rebates and coupons helped reduce the cost of making the switch within their home. | C27: These events continued until the Minister of Energy, Northern Development and Mines centralized the Save on Energy programs effective April 1, 2019.
A28: Grimsby Chamber of Commerce Presentation - GPI Presented to a group of small to medium sized business owners in Grimsby about understanding an electricity bill, the distribution system and conservation programs. April 5, 2018 | B28: The participants expressed interest in conservation and reducing the bill. | C28: Continued outreach to customers interested in conservation programs and understanding their bill.
A29: Mayor's Breakfast - Grimsby Power set up a table for promoting conservation and low income programs October 25, 2016 October 24, 2017 | B29: At the event GPI was able to connect with developers, business owners and community leaders. Participants expressed the need to reduce energy consumption and interest in Save on Energy programs. They were also interested in capital projects and subdivision development. | C29: GPI continued outreach to customers interested in conservation programs and spoke with developers regarding upcoming projects.
A30: Meeting with Developer's - A meeting with developer's building in the Town of Grimsby November 23, 2017 | B30: While developers expressed interest in High Performance New Construction the work needed to apply to the program seemed to out way the benefit. | C30: GPI continued outreach to customers interested in conservation programs.
A31: Electrical Awareness for Emergency Responders - GPI staff presented about distribution safety to local emergency responders. January 23, 2019 | B31: The event was geared towards local responders attending events involving distribution equipment. At the event the responders commented on the need for training like this to keep people safe in an emergency situation. | C31: GPI will continue to have events like this to help responders know what to do in an emergency situation involving distribution equipment.
A32: Grimsby Farmer's Market - GPI staff set up a booth and the Grimsby Farmer's Market. At the booth there was information about conservation, capital projects, power outages and tree trimming. June 27, 2019 July 25, 2019 August 29, 2019 | B32: Many customers stopped at the booth to ask about projects, outages, their hydro bill, smart meters, conservation programs, consumption etc. | C32: Customers were contacted after the event regarding their specific questions if they could not be answered right away. Information was provided to customers interested in applying for AFT. Feedback regarding outages and projects was responded to by informing customers about capital projects that would address their concern and future projects related to reliability.
A52: Note: Use "ALT-ENTER" to go to the next line within a cell

Sheet App.2-B_Acctg Instructions
A1: General Instructions to MIFRS Appendices
A2: Types of Schedules to File
A4: The purpose of this tab is to provide general instructions. The specific instructions to each appendix are listed in footnotes of each appendix.
A6: The typical applicant is expected to have made capitalization and depreciation policy changes under CGAAP as permitted by the OEB on January 1, 2012 or mandated by the OEB by January 1, 2013, and adopted IFRS for reporting purposes on January 1, 2015 (transition date January 1, 2014). Most distributors filing for 2021 rates have rebased with these accounting changes reflected in a prior rebasing application. If that is the case, information relating to pre-accounting policy changes is not generally required. Most distributors may have rebased under MIFRS. If that is the case, information related to the accounting standard used prior to IFRS is not generally required. The information to be provided by applicants will depend on when the accounting policy changes were made and when they last rebased. In general, applicants should provide the following information in the appendices:
E9: Reflecting Accounting Policy Changes in Current Application | G9: Reflected Accounting Policy Changes in Prior Application3 | H9: Rebased under MIFRS in Prior Application3
E10: Accounting Policy Changes in 2012 and Adopted IFRS in 2015 | F10: Accounting Policy Changes in 2013 and Adopted IFRS in 2015 | G10: Adopted IFRS in 2015 | H10: IFRS Since 2015
B11: 2021 | C11: Test | E11: MIFRS | F11: MIFRS | G11: MIFRS | H11: MIFRS
A12: Information to be filed in 2019 CoS Application | B12: 2020 | C12: Bridge | E12: MIFRS | F12: MIFRS | G12: MIFRS | H12: MIFRS
B13: 2019 | C13: Bridge | E13: MIFRS | F13: MIFRS | G13: MIFRS | H13: MIFRS
B14: 2018 | C14: Bridge | E14: MIFRS | F14: MIFRS | G14: MIFRS | H14: MIFRS
B15: 2017 | C15: Historical | E15: MIFRS | F15: MIFRS | G15: MIFRS | H15: MIFRS
B16: 2016 | C16: Historical | E16: MIFRS | F16: MIFRS | G16: MIFRS | H16: MIFRS
B17: 2015 | C17: Historical | E17: MIFRS and Revised CGAAP1 | F17: MIFRS and Revised CGAAP1 | G17: MIFRS and Revised CGAAP1 | H17: N/A
B18: 2014 | C18: Historical | E18: Revised CGAAP | F18: CGAAP and Revised CGAAP2 | G18: N/A | H18: N/A
B19: 2013 | C19: Historical | E19: CGAAP and Revised CGAAP2 | F19: N/A | G19: N/A | H19: N/A
A21: 1) For the transition year (2014), the applicant may file two appendices, one under Revised CGAAP and one under MIFRS, depending on the materiality of impacts. See the specific instructions under each appendix below for further details.
A22: 2) For applicants that are reflecting accounting policy changes for the first time in a rebasing application, the applicant must file two appendices in the year that the applicant implemented changes to its capitalization and depreciation policies (2012 or 2013), one before and one after the policy changes.
A23: 3) Applicants should provide CGAAP and Revised CGAAP schedules (i.e. as indicated in the first two columns of the above table) to support balances in Account 1576 if the account has yet to be disposed of.
A26: Appendix 2-BA - Fixed Asset Schedule
A28: Applicants are to provide Appendix 2-BA in accordance with the years and corresponding accounting standards noted in the above table to provide a year over year continuity in fixed assets.
A29: If this is the first application where the applicant is rebasing under MIFRS, the applicant should file two appendices, one under Revised CGAAP and one under MIFRS for the transition year (2014), if the change between Revised CGAAP and MIFRS is material. If the change from the accounting standards is not material, the applicant may choose to only provide one appendix under MIFRS. However, the applicant must also indicate the fixed asset net book value balance under Revised CGAAP, the total dollar value of the change and explain why it is not material.
A33: The applicant must establish the continuity of historical cost for gross assets and accumulated depreciation by asset class by ensuring that the opening balance in the year agrees to the closing balance in the prior year.
A36: Appendix 2-Cx - Depreciation and Amortization
A38: Applicants are to provide Appendix 2-C in accordance with the years and corresponding accounting standards listed in the above table.
A39: Appendix 2-C is to be used under all of the scenarios presented in the table above. In the appendix, the applicant will need to indicate which scenario applies. The appendix is to be duplicated for each year and for each accounting standard required as per the above table.
A40: Depreciation accounting policy changes were mandated by the OEB by January 1, 2013. In general, no further changes to an applicant's depreciation policy (i.e. assets' service lives) are expected after the OEB mandated changes by January 1, 2013, unless a change is determined to be necessary in accordance with the depreciation review required under IFRS. If the applicant has made any changes to its depreciation policy subsequent to the OEB mandated changes, for the year of the change, applicants must quantify the change in depreciation. If there are significant changes to multiple asset classes, the applicant must complete Appendix 2-C before and after the change. Applicants must also explain the nature of the change, the reason for the change, quantify the impact of the change.
A42: Appendix 2-E - Account 1575, IFRS-CGAAP Transitional PP&E Amounts (2-EA), Account 1576, Accounting Changes Under CGAAP (2-EB, 2-EC) CONTACT OEB STAFF IF TAB REQUIRED
A44: 1) For an applicant that has a balance in Account 1576 to dispose:
A45: · | B45: If an applicant changed capitalization and depreciation policies effective January 1, 2012, the applicant must complete Appendix 2-EB
A46: · | B46: If an applicant changed capitalization and depreciation policies effective January 1, 2013, the applicant must complete Appendix 2-EC
A48: 2) For an applicant that has a balance in Account 1575 to dispose:
A49: · | B49: The applicant must complete 2-EA
A50: If the applicant did not make any further PP&E accounting policy changes beyond the capitalization and depreciation policy changes as mandated by the OEB by January 1, 2013 (i.e. no further changes made on transition to IFRS), the applicant must indicate this and does not need to complete Appendix 2-EA.
A54: Appendix 2-Y - Summary of Impacts to Revenue Requirement from Transition to MIFRS CONTACT OEB STAFF IF TAB REQUIRED
A56: Applicants must complete Appendix 2-Y if this is the first rebasing application under MIFRS. An applicant must provide a summary of the dollar impacts of MIFRS to each component of the revenue requirement (e.g. rate base, operating costs, etc.), including the overall impact on the proposed revenue requirement. Accordingly, the applicant must identify financial differences and resulting revenue requirement impacts arising from the adoption of MIFRS as compared to CGAAP. If the applicant is reflecting the changes in capitalization and depreciation policies for the first time in a rebasing application as well, then a comparison between MIFRS and CGAAP before the change in accounting policies should be completed. If the applicant changed capitalization and depreciation policies and reflected these changes in a prior rebasing application, then a comparison between MIFRS and CGAAP after the change in accounting policies should be completed.

Sheet App.2-BA_Fixed Asset Cont
L1: File Number: | M1: =EBNUMBER -> EB-2021-0027
L2: Exhibit:
L3: Tab:
L4: Schedule:
L5: Page:
L7: Date: | M7: 2021-07-30
A9: Appendix 2-BA
A10: Fixed Asset Continuity Schedule 1
E12: Accounting Standard | F12: MIFRS
E13: Year | F13: 2016
D15: Cost | J15: Accumulated Depreciation
A16: CCA Class 2 | B16: OEB Account 3 | C16: Description 3 | D16: Opening Balance | E16: Additions 4 | F16: Disposals 6 | G16: Closing Balance | I16: Opening Balance | J16: Additions | K16: Disposals 6 | L16: Closing Balance | M16: Net Book Value
B17: 1609 | C17: Capital Contributions Paid | G17: =D17+E17+F17 -> 0 | L17: =I17+J17+K17 -> 0 | M17: =G17+L17 -> 0
A18: 12 | B18: 1611 | C18: Computer Software (Formally known as Account 1925) | D18: 774616.42 | E18: 36259 | F18: -2705.15 | G18: =D18+E18+F18 -> 808170.27 | I18: -524255.64 | J18: -109479.96 | K18: 2250.63 | L18: =I18+J18+K18 -> -631484.97 | M18: 176685.3
A19: CEC | B19: 1612 | C19: Land Rights (Formally known as Account 1906) | D19: 0 | G19: =D19+E19+F19 -> 0 | L19: =I19+J19+K19 -> 0 | M19: 0
A20: N/A | B20: 1805 | C20: Land | D20: 149992 | G20: =D20+E20+F20 -> 149992 | L20: =I20+J20+K20 -> 0 | M20: 149992
A21: 47 | B21: 1808 | C21: Buildings and Fixtures (50) | D21: 1256185 | G21: =D21+E21+F21 -> 1256185 | I21: -296720.82 | J21: -25123.7 | L21: =I21+J21+K21 -> -321844.52 | M21: 934340.48
A22: 47 | B22: 1808 | C22: Buildings and Fixtures (25) | G22: =D22+E22+F22 -> 0 | L22: =I22+J22+K22 -> 0 | M22: 0
A23: 13 | B23: 1810 | C23: Leasehold Improvements | D23: 0 | G23: 0 | L23: 0 | M23: =G23+L23 -> 0
A24: 47 | B24: 1815 | C24: Transformer Station Equipment >50 kV (10) | E24: 52224.72 | G24: 52224.72 | J24: -2611.24 | L24: -2611.24 | M24: 49613.48
A25: 47 | B25: 1815 | C25: Transformer Station Equipment >50 kV (20) | D25: 732309.7 | G25: =D25+E25+F25 -> 732309.7 | I25: -231586.67 | J25: -62590.38 | L25: =I25+J25+K25 -> -294177.05 | M25: =G25+L25 -> 438132.65
A26: 47 | B26: 1815 | C26: Transformer Station Equipment >50 kV (40) | D26: 3355781.43 | E26: 30946.12 | G26: =D26+E26+F26 -> 3386727.55 | I26: -662399.13 | J26: -84070.03 | L26: =I26+J26+K26 -> -746469.16 | M26: =G26+L26 -> 2640258.39
A27: 47 | B27: 1815 | C27: Transformer Station Equipment >50 kV (45) | D27: 2682922.03 | G27: =D27+E27+F27 -> 2682922.03 | I27: -809911.9 | J27: -56757.88 | L27: =I27+J27+K27 -> -866669.78 | M27: =G27+L27 -> 1816252.25
A28: 47 | B28: 1815 | C28: Transformer Station Equipment >50 kV (50) | D28: 77278.53 | G28: =D28+E28+F28 -> 77278.53 | I28: -23277.36 | J28: -1421.08 | L28: =I28+J28+K28 -> -24698.44 | M28: =G28+L28 -> 52580.09
A29: 47 | B29: 1815 | C29: Transformer Station Equipment >50 kV (55) | D29: 643776.67 | G29: =D29+E29+F29 -> 643776.67 | I29: -193584.61 | J29: -10469.58 | L29: =I29+J29+K29 -> -204054.19 | M29: =G29+L29 -> 439722.48
A30: 47 | B30: 1820 | C30: Distribution Station Equipment <50 kV | D30: 0 | G30: 0 | L30: 0 | M30: 0
A31: 47 | B31: 1825 | C31: Storage Battery Equipment | D31: 0 | G31: 0 | L31: 0 | M31: 0
A32: 47 | B32: 1830 | C32: Poles, Towers & Fixtures | D32: 4218570.33 | E32: 165274.87 | G32: 4383845.2 | I32: -519174.76 | J32: -116777.07 | L32: -635951.83 | M32: 3747893.37
A33: 47 | B33: 1835 | C33: Overhead Conductors & Devices | D33: 3136960.04 | E33: 90334.96 | G33: 3227295 | I33: -205663.55 | J33: -55427.5 | L33: -261091.05 | M33: 2966203.95
A34: 47 | B34: 1840 | C34: Underground Conduit | D34: 2400775.21 | E34: 89555.69 | G34: 2490330.9 | I34: -267386.5 | J34: -61496.47 | L34: -328882.97 | M34: 2161447.93
A35: 47 | B35: 1845 | C35: Underground Conductors & Devices | D35: 2037508.14 | E35: 104841.73 | G35: 2142349.87 | I35: -255791.36 | J35: -74698.95 | L35: -330490.31 | M35: 1811859.56
A36: 47 | B36: 1850 | C36: Line Transformers | D36: 4473551.13 | E36: 193544.35 | G36: 4667095.48 | I36: -543799.11 | J36: -138975.16 | L36: -682774.27 | M36: 3984321.21
A37: 47 | B37: 1855 | C37: Services - Overhead | D37: 221570.79 | E37: 14791.26 | G37: 236362.05 | I37: -14033.61 | J37: -3961.63 | L37: -17995.24 | M37: 218366.81
A38: 47 | B38: 1855 | C38: Services Underground | D38: 1465885.69 | E38: 56493.12 | G38: 1522378.81 | I38: -123103.33 | J38: -42966.16 | L38: -166069.49 | M38: 1356309.32
A39: 47 | B39: 1860 | C39: Meters 15yrs | D39: 1795910.79 | E39: 22567.75 | G39: 1818478.54 | I39: -497992.7 | J39: -121874.46 | L39: -619867.16 | M39: 1198611.38
A40: 47 | B40: 1860 | C40: Meters >50 | D40: 279715.34 | E40: 39663.51 | G40: 319378.85 | I40: -48391.14 | J40: -13564.19 | L40: =I40+J40+K40 -> -61955.33 | M40: =G40+L40 -> 257423.52
A41: 47 | B41: 1860 | C41: Meters CT's & PT's | D41: 172981.93 | E41: 2188.94 | G41: 175170.87 | I41: -13960.58 | J41: -5213.6 | L41: -19174.18 | M41: 155996.69
A42: N/A | B42: 1905 | C42: Land | D42: 111555.65 | G42: 111555.65 | L42: 0 | M42: 111555.65
A43: 47 | B43: 1908 | C43: Buildings and Fixtures (50) | D43: 311425.99 | G43: 311425.99 | I43: -62285.2 | J43: -12457.04 | L43: -74742.24 | M43: 236683.75
A44: 47 | B44: 1908 | C44: Buildings and Fixtures (40) | D44: 55126.6 | G44: =D44+E44+F44 -> 55126.6 | I44: -7349.84 | J44: -2048.07 | L44: =I44+J44+K44 -> -9397.91 | M44: =G44+L44 -> 45728.69
A45: 47 | B45: 1908 | C45: Buildings and Fixtures (25) | D45: 230777.11 | E45: 117555.93 | G45: =D45+E45+F45 -> 348333.04 | I45: -38611.58 | J45: -11585.61 | L45: =I45+J45+K45 -> -50197.19 | M45: =G45+L45 -> 298135.85
A46: 13 | B46: 1910 | C46: Leasehold Improvements | E46: 0 | G46: 0 | L46: 0 | M46: 0
A47: 8 | B47: 1915 | C47: Office Furniture & Equipment (10 years) | D47: 128284.67 | E47: 26772.47 | G47: 155057.14 | I47: -39386.07 | J47: -13165.18 | L47: -52551.25 | M47: 102505.89
A48: 10 | B48: 1920 | C48: Computer Equipment - Hardware | D48: 153123.47 | E48: 6887 | F48: -27282.71 | G48: 132727.76 | I48: -105213.82 | J48: -19371.71 | K48: 24399.64 | L48: -100185.89 | M48: 32541.87
A49: 45 | B49: 1920 | C49: Computer Equip.-Hardware(Post Mar. 22/04) | G49: =D49+E49+F49 -> 0 | L49: 0 | M49: 0
A50: 50 | B50: 1920 | C50: Computer Equip.-Hardware(Post Mar. 19/07) | G50: 0 | L50: 0 | M50: 0
A51: 10 | B51: 1930 | C51: Transportation Equipment (8) | D51: 21466.08 | G51: 21466.08 | I51: -19037.45 | J51: -903.32 | L51: -19940.77 | M51: 1525.31
A52: 10 | B52: 1930 | C52: Transportation Equipment (15) | D52: 344949.71 | E52: 359939.58 | G52: =D52+E52+F52 -> 704889.29 | I52: -83489.58 | J52: -45120.71 | L52: =I52+J52+K52 -> -128610.29 | M52: =G52+L52 -> 576279
A53: 8 | B53: 1935 | C53: Stores Equipment | E53: 11962.55 | G53: 11962.55 | J53: -598.13 | L53: -598.13 | M53: 11364.42
A54: 8 | B54: 1940 | C54: Tools, Shop & Garage Equipment | D54: 199687.02 | E54: 7105.35 | G54: 206792.37 | I54: -51419.06 | J54: -20440.57 | L54: -71859.63 | M54: 134932.74
A55: 8 | B55: 1945 | C55: Measurement & Testing Equipment | D55: 37484.51 | E55: 3492.98 | G55: 40977.49 | I55: -22576.25 | J55: -4791.67 | L55: -27367.92 | M55: 13609.57
A56: 8 | B56: 1950 | C56: Power Operated Equipment | G56: 0 | L56: 0 | M56: 0
A57: 8 | B57: 1955 | C57: Communications Equipment | D57: 70079.89 | E57: 260 | F57: -3754.37 | G57: 66585.52 | I57: -19015.08 | J57: -8138.45 | K57: 1314.03 | L57: -25839.5 | M57: 40746.02
A58: 8 | B58: 1955 | C58: Communication Equipment (Smart Meters) | D58: 0 | G58: 0 | L58: 0 | M58: 0
A59: 8 | B59: 1960 | C59: Miscellaneous Equipment | D59: 0 | G59: 0 | L59: 0 | M59: 0
A60: 47 | B60: 1970 | C60: Load Management Controls Customer Premises | D60: 16438.8 | G60: 16438.8 | I60: -2181.82 | J60: -1643.88 | L60: -3825.7 | M60: 12613.1
A61: 47 | B61: 1975 | C61: Load Management Controls Utility Premises | D61: 0 | G61: 0 | L61: 0 | M61: 0
A62: 47 | B62: 1980 | C62: System Supervisor Equipment | D62: 0 | G62: 0 | L62: 0 | M62: 0
A63: 47 | B63: 1985 | C63: Miscellaneous Fixed Assets | D63: 0 | G63: 0 | L63: 0 | M63: 0
A64: 47 | B64: 1990 | C64: Other Tangible Property | D64: 0 | G64: 0 | L64: 0 | M64: 0
A65: 47 | B65: 1995 | C65: Contributions & Grants | D65: 0 | G65: 0 | L65: 0 | M65: 0
A66: 47 | B66: 2440 | C66: Deferred Revenue5 | D66: -3788063.9 | E66: -304021.94 | G66: -4092085.84 | I66: 202153.78 | J66: 107794.69 | L66: =I66+J66+K66 -> 309948.47 | M66: =G66+L66 -> -3782137.37
B67: 2005 | C67: Property Under Finance Lease7 | G67: 0 | L67: 0 | M67: 0
C68: Sub-Total | D68: =SUM(D17:D67) -> 27768626.77 | E68: =SUM(E17:E67) -> 1128639.94 | F68: =SUM(F17:F67) -> -33742.23 | G68: =SUM(G17:G67) -> 28863524.48 | I68: =SUM(I17:I67) -> -5479444.74 | J68: =SUM(J17:J67) -> -1019948.69 | K68: =SUM(K17:K67) -> 27964.3 | L68: =SUM(L17:L67) -> -6471429.13 | M68: =SUM(M17:M67) -> 22392095.35
C69: Less Socialized Renewable Energy Generation Investments (input as negative) | G69: =D69+E69+F69 -> 0 | L69: =I69+J69+K69 -> 0 | M69: =G69+L69 -> 0
C70: Less Other Non Rate-Regulated Utility Assets (input as negative) | G70: 0 | L70: =I70+J70+K70 -> 0 | M70: 0
C71: Total PP&E | D71: =SUM(D68:D70) -> 27768626.77 | E71: =SUM(E68:E70) -> 1128639.94 | F71: =SUM(F68:F70) -> -33742.23 | G71: =SUM(G68:G70) -> 28863524.48 | I71: =SUM(I68:I70) -> -5479444.74 | J71: =SUM(J68:J70) -> -1019948.69 | K71: =SUM(K68:K70) -> 27964.3 | L71: =SUM(L68:L70) -> -6471429.13 | M71: =SUM(M68:M70) -> 22392095.35
C72: Depreciation Expense adj. from gain or loss on the retirement of assets (pool of like assets), if applicable6
C73: Total | J73: =J71+J72 -> -1019948.69
I75: Less: Fully Allocated Depreciation
A76: 10 | C76: Transportation | I76: Transportation | K76: =(J51+J52) -> -46024.03
A77: 8 | C77: Stores Equipment | I77: Stores Equipment
A78: 47 | C78: Deferred Revenue | I78: Deferred Revenue | K78: =J66 -> 107794.69
I79: Net Depreciation | K79: =J73-K76-K77-K78 -> -1081719.35
A81: Notes:
A83: 1 | B83: Tables in the format outlined above covering all fixed asset accounts should be submitted for the Test Year, Bridge Year and all relevant historical years. At a minimum , the applicant must provide data for the earlier of: 1) all historical years back to its last rebasing; or 2) at least three years of historical actuals, in addition to Bridge Year and Test Year forecasts.
A86: 2 | B86: The "CCA Class" for fixed assets should generally agree with the CCA Class used for tax purposes in Tax Returns. Fixed Assets sub-components may be used where the underlying asset components are classified under multiple CCA Classes for tax purposes. If an applicant uses any different classes from those shown in the table, an explanation should be provided. (also see note 3).
A89: 3 | B89: The table may need to be customized for a utility's asset categories or for any new asset accounts announced or authorized by the OEB.
A91: 4 | B91: The additions in column (E) must not include construction work in progress (CWIP).
A93: 5 | B93: Effective on the date of IFRS adoption, customer contributions will no longer be recorded in Account 1995 Contributions & Grants, but will be recorded in Account 2440, Deferred Revenues. Amortization of deferred revenue will be removed from the depreciation expense shown on this fixed asset continuity schedule as it should be included as income in Appendix 2-H Other Revenues.
A95: 6 | B95: The applicant must ensure that all asset disposals have been clearly identified in the Chapter 2 Appendices for all historic, bridge and test years. Where a distributor for general financial reporting purposes under IFRS has accounted for the amount of gain or loss on the retirement of assets in a pool of like assets as a charge or credit to income, for reporting and rate application filings, the distributor shall reclassify such gains and losses as depreciation expense, and disclose the amount separately.
A99: 7 | B99: This account includes the amount recorded under finance leases for plant leased from others and used by the utility in its utility operations.
A103: Appendix 2-BA
A104: Fixed Asset Continuity Schedule 1
E106: Accounting Standard | F106: MIFRS
E107: Year | F107: 2017
D109: Cost | J109: Accumulated Depreciation
A110: CCA Class 2 | B110: OEB Account 3 | C110: Description 3 | D110: Opening Balance | E110: Additions 4 | F110: Disposals 6 | G110: Closing Balance | I110: Opening Balance | J110: Additions | K110: Disposals 6 | L110: Closing Balance | M110: Net Book Value
B111: 1609 | C111: Capital Contributions Paid | G111: =D111+E111+F111 -> 0 | L111: =I111+J111+K111 -> 0 | M111: =G111+L111 -> 0
A112: 12 | B112: 1611 | C112: Computer Software (Formally known as Account 1925) | D112: =G18 -> 808170.27 | E112: 25271.31 | G112: =D112+E112+F112 -> 833441.58 | I112: =L18 -> -631484.97 | J112: -89835.99 | L112: =I112+J112+K112 -> -721320.96 | M112: 112120.62
A113: CEC | B113: 1612 | C113: Land Rights (Formally known as Account 1906) | D113: =G19 -> 0 | G113: =D113+E113+F113 -> 0 | I113: =L19 -> 0 | L113: =I113+J113+K113 -> 0 | M113: 0
A114: N/A | B114: 1805 | C114: Land | D114: =G20 -> 149992 | G114: =D114+E114+F114 -> 149992 | I114: =L20 -> 0 | L114: =I114+J114+K114 -> 0 | M114: 149992
A115: 47 | B115: 1808 | C115: Buildings | D115: =G21 -> 1256185 | G115: =D115+E115+F115 -> 1256185 | I115: =L21 -> -321844.52 | J115: -25123.7 | L115: =I115+J115+K115 -> -346968.22 | M115: 909216.78
A116: 47 | B116: 1808 | C116: Buildings | D116: =G23 -> 0 | E116: 6468 | G116: =D116+E116+F116 -> 6468 | I116: =L23 -> 0 | J116: -129.36 | L116: =I116+J116+K116 -> -129.36 | M116: 6338.64
A117: 13 | B117: 1810 | C117: Leasehold Improvements | D117: =G23 -> 0 | G117: 0 | I117: =L23 -> 0 | L117: 0 | M117: =G117+L117 -> 0
A118: 47 | B118: 1815 | C118: Transformer Station Equipment >50 kV (10) | D118: 52224.72 | E118: 50963.47 | G118: 103188.19 | I118: -2611.24 | J118: -7770.65 | L118: -10381.89 | M118: 92806.3
A119: 47 | B119: 1815 | C119: Transformer Station Equipment >50 kV (20) | D119: 732309.7 | E119: 57977.86 | G119: =D119+E119+F119 -> 790287.56 | I119: -294177.05 | J119: -64039.83 | L119: =I119+J119+K119 -> -358216.88 | M119: =G119+L119 -> 432070.68
A120: 47 | B120: 1815 | C120: Transformer Station Equipment >50 kV (40) | D120: 3386727.55 | G120: =D120+E120+F120 -> 3386727.55 | I120: -746469.16 | J120: -84456.85 | L120: =I120+J120+K120 -> -830926.01 | M120: =G120+L120 -> 2555801.54
A121: 47 | B121: 1815 | C121: Transformer Station Equipment >50 kV (45) | D121: 2682922.03 | G121: =D121+E121+F121 -> 2682922.03 | I121: -866669.78 | J121: -56757.89 | L121: =I121+J121+K121 -> -923427.67 | M121: =G121+L121 -> 1759494.36
A122: 47 | B122: 1815 | C122: Transformer Station Equipment >50 kV (50) | D122: 77278.53 | G122: =D122+E122+F122 -> 77278.53 | I122: -24698.44 | J122: -1421.09 | L122: =I122+J122+K122 -> -26119.53 | M122: =G122+L122 -> 51159
A123: 47 | B123: 1815 | C123: Transformer Station Equipment >50 kV (55) | D123: 643776.67 | G123: =D123+E123+F123 -> 643776.67 | I123: -204054.19 | J123: -10469.58 | L123: =I123+J123+K123 -> -214523.77 | M123: =G123+L123 -> 429252.9
A124: 47 | B124: 1820 | C124: Distribution Station Equipment <50 kV | D124: 0 | G124: 0 | I124: 0 | L124: 0 | M124: 0
A125: 47 | B125: 1825 | C125: Storage Battery Equipment | D125: 0 | G125: 0 | I125: 0 | L125: 0 | M125: 0
A126: 47 | B126: 1830 | C126: Poles, Towers & Fixtures | D126: 4383845.2 | E126: 189576.05 | F126: -36010.32 | G126: 4537410.93 | I126: -635951.83 | J126: -120747.59 | K126: 33931.3 | L126: -722768.12 | M126: 3814642.81
A127: 47 | B127: 1835 | C127: Overhead Conductors & Devices | D127: 3227295 | E127: 249898.67 | F127: -2932.5 | G127: 3474261.17 | I127: -261091.05 | J127: -58262.79 | K127: 2932.5 | L127: -316421.34 | M127: 3157839.83
A128: 47 | B128: 1840 | C128: Underground Conduit | D128: 2490330.9 | E128: 348205.08 | F128: 0 | G128: 2838535.98 | I128: -328882.97 | J128: -65874.08 | K128: 0 | L128: -394757.05 | M128: 2443778.93
A129: 47 | B129: 1845 | C129: Underground Conductors & Devices | D129: 2142349.87 | E129: 317446.1 | F129: 0 | G129: 2459795.97 | I129: -330490.31 | J129: -81737.07 | K129: 0 | L129: -412227.38 | M129: 2047568.59
A130: 47 | B130: 1850 | C130: Line Transformers | D130: 4667095.48 | E130: 397743.97 | F130: -4050 | G130: 5060789.45 | I130: -682774.27 | J130: -146051.73 | K130: 4050 | L130: -824776 | M130: 4236013.45
A131: 47 | B131: 1855 | C131: Services - Overhead | D131: 236362.05 | E131: 24365.25 | F131: -913.75 | G131: 259813.55 | I131: -17995.24 | J131: -4288.57 | K131: 913.75 | L131: -21370.06 | M131: 238443.49
A132: 47 | B132: 1855 | C132: Services Underground | D132: 1522378.81 | E132: 104182.51 | F132: -78.75 | G132: 1626482.57 | I132: -166069.49 | J132: -45274.7 | K132: 78.75 | L132: -211265.44 | M132: 1415217.13
A133: 47 | B133: 1860 | C133: Meters 15yrs | D133: 1818478.54 | E133: 72752.4 | G133: 1891230.94 | I133: -619867.16 | J133: -125051.82 | L133: -744918.98 | M133: 1146311.96
A134: 47 | B134: 1860 | C134: Meters >50 | D134: 319378.85 | E134: 48814.42 | G134: 368193.27 | I134: -61955.33 | J134: -15333.75 | L134: -77289.08 | M134: 290904.19
A135: 47 | B135: 1860 | C135: Meters CT's & PT's | D135: 175170.87 | E135: 4484.33 | G135: 179655.2 | I135: -19174.18 | J135: -5308.92 | L135: -24483.1 | M135: 155172.1
A136: N/A | B136: 1905 | C136: Land | D136: 111555.65 | G136: 111555.65 | I136: 0 | L136: 0 | M136: 111555.65
A137: 47 | B137: 1908 | C137: Buildings and Fixtures (50) | D137: 311425.99 | G137: 311425.99 | I137: -74742.24 | J137: -12457.04 | L137: -87199.28 | M137: 224226.71
A138: 47 | B138: 1908 | C138: Buildings and Fixtures (40) | D138: 55126.6 | G138: 55126.6 | I138: -9397.91 | J138: -2049.22 | L138: -11447.13 | M138: 43679.47
A139: 47 | B139: 1908 | C139: Buildings and Fixtures (25) | D139: 348333.04 | E139: 25478.83 | G139: 373811.87 | I139: -50197.19 | J139: -14240.03 | L139: -64437.22 | M139: 309374.65
A140: 13 | B140: 1910 | C140: Leasehold Improvements | L140: 0 | M140: 0
A141: 8 | B141: 1915 | C141: Office Furniture & Equipment (10 years) | D141: =G47 -> 155057.14 | E141: 1779.99 | G141: 156837.13 | I141: =L47 -> -52551.25 | J141: -14592.82 | L141: -67144.07 | M141: 89693.06
A142: 10 | B142: 1920 | C142: Computer Equipment - Hardware | D142: =G48 -> 132727.76 | E142: 13758.19 | F142: -954 | G142: 145531.95 | I142: =L48 -> -100185.89 | J142: -16125.36 | K142: 858.6 | L142: -115452.65 | M142: 30079.3
A143: 45 | B143: 1920 | C143: Computer Equip.-Hardware(Post Mar. 22/04) | L143: 0 | M143: 0
A144: 50 | B144: 1920 | C144: Computer Equip.-Hardware(Post Mar. 19/07) | L144: 0 | M144: 0
A145: 10 | B145: 1930 | C145: Transportation Equipment (8) | D145: =G51 -> 21466.08 | E145: 49063 | G145: 70529.08 | I145: =L51 -> -19940.77 | J145: -3515.18 | L145: -23455.95 | M145: 47073.13
A146: 10 | B146: 1930 | C146: Transportation Equipment (15) | D146: =G52 -> 704889.29 | G146: 704889.29 | I146: =L52 -> -128610.29 | J146: -36576.49 | L146: -165186.78 | M146: 539702.51
A147: 8 | B147: 1935 | C147: Stores Equipment | D147: =G53 -> 11962.55 | G147: 11962.55 | I147: =L53 -> -598.13 | J147: -1196.26 | L147: -1794.39 | M147: 10168.16
A148: 8 | B148: 1940 | C148: Tools, Shop & Garage Equipment | D148: =G54 -> 206792.37 | F148: -146.6 | G148: 206645.77 | I148: =L54 -> -71859.63 | J148: -20108.63 | K148: 22 | L148: -91946.26 | M148: 114699.51
A149: 8 | B149: 1945 | C149: Measurement & Testing Equipment | D149: =G55 -> 40977.49 | E149: 3430.91 | G149: 44408.4 | I149: =L55 -> -27367.92 | J149: -5281.16 | L149: -32649.08 | M149: 11759.32
A150: 8 | B150: 1950 | C150: Power Operated Equipment
A151: 8 | B151: 1955 | C151: Communications Equipment | D151: =G57 -> 66585.52 | E151: 5953.49 | G151: 72539.01 | I151: =L57 -> -25839.5 | J151: -8410.47 | L151: -34249.97 | M151: 38289.04
A152: 8 | B152: 1955 | C152: Communication Equipment (Smart Meters)
A153: 8 | B153: 1960 | C153: Miscellaneous Equipment
A154: 47 | B154: 1970 | C154: Load Management Controls Customer Premises | D154: =G60 -> 16438.8 | G154: 16438.8 | I154: =L60 -> -3825.7 | J154: -1643.88 | L154: -5469.58 | M154: 10969.22
A155: 47 | B155: 1975 | C155: Load Management Controls Utility Premises
A156: 47 | B156: 1980 | C156: System Supervisor Equipment | E156: 194995 | G156: 194995 | J156: -4874.88 | L156: -4874.88 | M156: 190120.12
A157: 47 | B157: 1985 | C157: Miscellaneous Fixed Assets
A158: 47 | B158: 1990 | C158: Other Tangible Property
A159: 47 | B159: 1995 | C159: Contributions & Grants
A160: 47 | B160: 2440 | C160: Deferred Revenue5 | D160: =G66 -> -4092085.84 | E160: -723783.89 | G160: -4815869.73 | I160: =L66 -> 309948.47 | J160: 121588.1 | L160: 431536.57 | M160: -4384333.16
B161: 2005 | C161: Property Under Finance Lease7 | G161: 0 | L161: 0 | M161: 0
C162: Sub-Total | D162: =SUM(D111:D161) -> 28863524.48 | E162: =SUM(E111:E161) -> 1468824.94 | F162: =SUM(F111:F161) -> -45085.92 | G162: =SUM(G111:G161) -> 30287263.5 | I162: =SUM(I111:I161) -> -6471429.13 | J162: =SUM(J111:J161) -> -1027419.28 | K162: =SUM(K111:K161) -> 42786.9 | L162: =SUM(L111:L161) -> -7456061.51 | M162: =SUM(M111:M161) -> 22831201.99
C163: Less Socialized Renewable Energy Generation Investments (input as negative) | G163: =D163+E163+F163 -> 0 | L163: =I163+J163+K163 -> 0 | M163: =G163+L163 -> 0
C164: Less Other Non Rate-Regulated Utility Assets (input as negative) | G164: =D164+E164+F164 -> 0 | L164: =I164+J164+K164 -> 0 | M164: =G164+L164 -> 0
C165: Total PP&E | D165: =SUM(D162:D164) -> 28863524.48 | E165: =SUM(E162:E164) -> 1468824.94 | F165: =SUM(F162:F164) -> -45085.92 | G165: =SUM(G162:G164) -> 30287263.5 | I165: =SUM(I162:I164) -> -6471429.13 | J165: =SUM(J162:J164) -> -1027419.28 | K165: =SUM(K162:K164) -> 42786.9 | L165: =SUM(L162:L164) -> -7456061.51 | M165: =SUM(M162:M164) -> 22831201.99
C166: Depreciation Expense adj. from gain or loss on the retirement of assets (pool of like assets), if applicable6
C167: Total | J167: =J165+J166 -> -1027419.28
I169: Less: Fully Allocated Depreciation
A170: 10 | C170: Transportation | I170: Transportation | K170: =(J145+J146) -> -40091.67
A171: 8 | C171: Stores Equipment | I171: Stores Equipment
A172: 47 | C172: Deferred Revenue | I172: Deferred Revenue | K172: =J160 -> 121588.1
I173: Net Depreciation | K173: =J167-K170-K171-K172 -> -1108915.71
A177: Appendix 2-BA
A178: Fixed Asset Continuity Schedule 1
E180: Accounting Standard | F180: MIFRS
E181: Year | F181: 2018
D183: Cost | J183: Accumulated Depreciation
A184: CCA Class 2 | B184: OEB Account 3 | C184: Description 3 | D184: Opening Balance | E184: Additions 4 | F184: Disposals 6 | G184: Closing Balance | I184: Opening Balance | J184: Additions | K184: Disposals 6 | L184: Closing Balance | M184: Net Book Value
B185: 1609 | C185: Capital Contributions Paid | G185: =D185+E185+F185 -> 0 | L185: =I185+J185+K185 -> 0 | M185: =G185+L185 -> 0
A186: 12 | B186: 1611 | C186: Computer Software (Formally known as Account 1925) | D186: =G112 -> 833441.58 | E186: 24245 | G186: =D186+E186+F186 -> 857686.58 | I186: =L112 -> -721320.96 | J186: -59192.55 | L186: =I186+J186+K186 -> -780513.51 | M186: 77173.07
A187: CEC | B187: 1612 | C187: Land Rights (Formally known as Account 1906) | I187: 0 | L187: =I187+J187+K187 -> 0 | M187: 0
A188: N/A | B188: 1805 | C188: Land | D188: =G114 -> 149992 | G188: =D188+E188+F188 -> 149992 | I188: 0 | L188: =I188+J188+K188 -> 0 | M188: 149992
A189: 47 | B189: 1808 | C189: Buildings | D189: =G115 -> 1256185 | G189: =D189+E189+F189 -> 1256185 | I189: -346968.22 | J189: -25123.7 | L189: =I189+J189+K189 -> -372091.92 | M189: 884093.08
A190: 47 | B190: 1808 | C190: Buildings | D190: =G116 -> 6468 | E190: 8255.73 | G190: =D190+E190+F190 -> 14723.73 | I190: -129.36 | J190: -423.83 | L190: =I190+J190+K190 -> -553.19 | M190: 14170.54
A191: 13 | B191: 1810 | C191: Leasehold Improvements | D191: =G117 -> 0 | I191: 0 | L191: 0 | M191: =G191+L191 -> 0
A192: 47 | B192: 1815 | C192: Transformer Station Equipment >50 kV (10) | D192: =G118 -> 103188.19 | G192: 103188.19 | I192: =L118 -> -10381.89 | J192: -10318.89 | L192: -20700.78 | M192: 82487.41
A193: 47 | B193: 1815 | C193: Transformer Station Equipment >50 kV (20) | D193: 790287.56 | E193: 8384.35 | G193: =D193+E193+F193 -> 798671.91 | I193: -358216.88 | J193: -65698.88 | L193: =I193+J193+K193 -> -423915.76 | M193: =G193+L193 -> 374756.15
A194: 47 | B194: 1815 | C194: Transformer Station Equipment >50 kV (40) | D194: 3386727.55 | E194: 43800 | G194: =D194+E194+F194 -> 3430527.55 | I194: -830926.01 | J194: -85004.35 | L194: =I194+J194+K194 -> -915930.36 | M194: =G194+L194 -> 2514597.19
A195: 47 | B195: 1815 | C195: Transformer Station Equipment >50 kV (45) | D195: 2682922.03 | G195: =D195+E195+F195 -> 2682922.03 | I195: -923427.67 | J195: -56757.89 | L195: =I195+J195+K195 -> -980185.56 | M195: =G195+L195 -> 1702736.47
A196: 47 | B196: 1815 | C196: Transformer Station Equipment >50 kV (50) | D196: 77278.53 | G196: =D196+E196+F196 -> 77278.53 | I196: -26119.53 | J196: -1421.09 | L196: =I196+J196+K196 -> -27540.62 | M196: =G196+L196 -> 49737.91
A197: 47 | B197: 1815 | C197: Transformer Station Equipment >50 kV (55) | D197: 643776.67 | G197: =D197+E197+F197 -> 643776.67 | I197: -214523.77 | J197: -10469.58 | L197: =I197+J197+K197 -> -224993.35 | M197: =G197+L197 -> 418783.32
A198: 47 | B198: 1820 | C198: Distribution Station Equipment <50 kV | L198: 0 | M198: 0
A199: 47 | B199: 1825 | C199: Storage Battery Equipment | L199: 0 | M199: 0
A200: 47 | B200: 1830 | C200: Poles, Towers & Fixtures | D200: =G126 -> 4537410.93 | E200: 147603.43 | G200: 4685014.36 | I200: =L126 -> -722768.12 | J200: -124417.29 | L200: -847185.41 | M200: 3837828.95
A201: 47 | B201: 1835 | C201: Overhead Conductors & Devices | D201: 3474261.17 | E201: 89215.74 | G201: 3563476.91 | I201: -316421.34 | J201: -61088.73 | L201: -377510.07 | M201: 3185966.84
A202: 47 | B202: 1840 | C202: Underground Conduit | D202: 2838535.98 | E202: 271079.01 | G202: 3109614.99 | I202: -394757.05 | J202: -72066.92 | L202: -466823.97 | M202: 2642791.02
A203: 47 | B203: 1845 | C203: Underground Conductors & Devices | D203: 2459795.97 | E203: 189997.37 | G203: 2649793.34 | I203: -412227.38 | J203: -90194.46 | L203: -502421.84 | M203: 2147371.5
A204: 47 | B204: 1850 | C204: Line Transformers | D204: 5060789.45 | E204: 312527.35 | F204: -5973.15 | G204: 5367343.65 | I204: -824776 | J204: -154860.3 | L204: -979636.3 | M204: 4387707.35
A205: 47 | B205: 1855 | C205: Services - Overhead | D205: 259813.55 | E205: 16095.93 | G205: 275909.48 | I205: -21370.06 | J205: -4626.36 | L205: -25996.42 | M205: 249913.06
A206: 47 | B206: 1855 | C206: Services Underground | D206: 1626482.57 | E206: 169973.44 | G206: 1796456.01 | I206: -211265.44 | J206: -49204.38 | L206: -260469.82 | M206: 1535986.19
A207: 47 | B207: 1860 | C207: Meters 15yrs | D207: 1891230.94 | E207: 108698.56 | G207: 1999929.5 | I207: -744918.98 | J207: -131100.19 | L207: -876019.17 | M207: 1123910.33
A208: 47 | B208: 1860 | C208: Meters >50 | D208: 368193.27 | E208: 33041.28 | G208: 401234.55 | I208: -77289.08 | J208: -16970.87 | L208: -94259.95 | M208: 306974.6
A209: 47 | B209: 1860 | C209: Meters CT's & PT's | D209: 179655.2 | E209: 7279.08 | G209: 186934.28 | I209: -24483.1 | J209: -5476.98 | L209: -29960.08 | M209: 156974.2
A210: N/A | B210: 1905 | C210: Land | D210: 111555.65 | G210: 111555.65 | I210: 0 | L210: 0 | M210: 111555.65
A211: 47 | B211: 1908 | C211: Buildings and Fixtures (50) | D211: 311425.99 | G211: 311425.99 | I211: -87199.28 | J211: -6228.52 | L211: -93427.8 | M211: 217998.19
A212: 47 | B212: 1908 | C212: Buildings and Fixtures (40) | D212: 55126.6 | G212: 55126.6 | I212: -11447.13 | J212: -1378.16 | L212: -12825.29 | M212: 42301.31
A213: 47 | B213: 1908 | C213: Buildings and Fixtures (25) | D213: 373811.87 | E213: 21137.4 | G213: 394949.27 | I213: -64437.22 | J213: -15349.15 | L213: -79786.37 | M213: 315162.9
A214: 13 | B214: 1910 | C214: Leasehold Improvements | L214: 0 | M214: 0
A215: 8 | B215: 1915 | C215: Office Furniture & Equipment (10 years) | D215: =G141 -> 156837.13 | E215: 6431.67 | F215: -20070.79 | G215: 143198.01 | I215: =L141 -> -67144.07 | J215: -14405.54 | K215: 20070.79 | L215: -61478.82 | M215: 81719.19
A216: 10 | B216: 1920 | C216: Computer Equipment - Hardware | D216: =G142 -> 145531.95 | E216: 3695 | F216: -4566.48 | G216: 144660.47 | I216: =L142 -> -115452.65 | J216: -11525.13 | K216: 4566.48 | L216: -122411.3 | M216: 22249.17
A217: 45 | B217: 1920 | C217: Computer Equip.-Hardware(Post Mar. 22/04) | G217: 0 | L217: 0 | M217: 0
A218: 50 | B218: 1920 | C218: Computer Equip.-Hardware(Post Mar. 19/07) | G218: 0 | L218: 0 | M218: 0
A219: 10 | B219: 1930 | C219: Transportation Equipment (8) | D219: =G145 -> 70529.08 | E219: 480 | G219: 71009.08 | I219: =L145 -> -23455.95 | J219: -6611.63 | L219: -30067.58 | M219: 40941.5
A220: 10 | B220: 1930 | C220: Transportation Equipment (15) | D220: =G146 -> 704889.29 | E220: 373388 | G220: 1078277.29 | I220: =L146 -> -165186.78 | J220: -59438.89 | L220: -224625.67 | M220: 853651.62
A221: 8 | B221: 1935 | C221: Stores Equipment | D221: =G147 -> 11962.55 | G221: 11962.55 | I221: =L147 -> -1794.39 | J221: -1196.26 | K221: 0 | L221: -2990.65 | M221: 8971.9
A222: 8 | B222: 1940 | C222: Tools, Shop & Garage Equipment | D222: =G148 -> 206645.77 | E222: 1125.76 | F222: -5243.09 | G222: 202528.44 | I222: =L148 -> -91946.26 | J222: -19275.27 | K222: 5243.09 | L222: -105978.44 | M222: 96550
A223: 8 | B223: 1945 | C223: Measurement & Testing Equipment | D223: =G149 -> 44408.4 | E223: 2995 | F223: -2449.39 | G223: 44954.01 | I223: =L149 -> -32649.08 | J223: -5720.85 | K223: 2449.39 | L223: -35920.54 | M223: 9033.47
A224: 8 | B224: 1950 | C224: Power Operated Equipment | G224: 0 | L224: 0 | M224: 0
A225: 8 | B225: 1955 | C225: Communications Equipment | D225: =G151 -> 72539.01 | E225: 1309.71 | G225: 73848.72 | I225: =L151 -> -34249.97 | J225: -8975.21 | L225: -43225.18 | M225: 30623.54
A226: 8 | B226: 1955 | C226: Communication Equipment (Smart Meters) | G226: 0 | L226: 0 | M226: 0
A227: 8 | B227: 1960 | C227: Miscellaneous Equipment | G227: 0 | L227: 0 | M227: 0
A228: 47 | B228: 1970 | C228: Load Management Controls Customer Premises | D228: =G154 -> 16438.8 | G228: 16438.8 | I228: =L154 -> -5469.58 | J228: -1643.88 | L228: -7113.46 | M228: 9325.34
... 290 more rows

Sheet Appendix 2-BB Service Life
N1: File Number: | P1: ='LDC Info'!E16 -> EB-2021-0027
N2: Exhibit:
N3: Tab:
N4: Schedule:
N5: Page:
N7: Date: | P7: 2021-07-30
A9: Appendix 2-BB
A10: Service Life Comparison
A11: Table F-1 from Kinetrics Report1
C15: Asset Details | F15: Useful Life | J15: USoA Account Number | K15: USoA Account Description | L15: Current | N15: Proposed | P15: Outside Range of Min, Max TUL?
A16: Parent* | B16: # | C16: Category| Component | Type | F16: MIN UL | G16: TUL | H16: MAX UL | L16: Years | M16: Rate | N16: Years | O16: Rate | P16: Below Min TUL | Q16: Above Max TUL
A17: OH | B17: 1 | C17: Fully Dressed Wood Poles | D17: Overall | F17: 35 | G17: 45 | H17: 75 | J17: 1830 | K17: Poles, Towers and Fixtures | L17: 45 | M17: =IF(ISERROR(1/L17), "", 1/L17) -> 0.02222222222 | N17: 45 | O17: =IF(ISERROR(1/N17), "", 1/N17) -> 0.02222222222 | P17: =IF(ISBLANK(N17),"",IF(N17<F17,"Yes","No")) -> No | Q17: =IF(ISBLANK(N17),"",IF(N17>H17,"Yes","No")) -> No
D18: Cross Arm | E18: Wood | F18: 20 | G18: 40 | H18: 55 | M18: =IF(ISERROR(1/L18), "", 1/L18) ->  | O18: =IF(ISERROR(1/N18), "", 1/N18) ->  | P18: =IF(ISBLANK(N18),"",IF(N18<F18,"Yes","No")) ->  | Q18: =IF(ISBLANK(N18),"",IF(N18>H18,"Yes","No")) -> 
E19: Steel | F19: 30 | G19: 70 | H19: 95
B20: 2 | C20: Fully Dressed Concrete Poles | D20: Overall | F20: 50 | G20: 60 | H20: 80
D21: Cross Arm | E21: Wood | F21: 20 | G21: 40 | H21: 55
E22: Steel | F22: 30 | G22: 70 | H22: 95
B23: 3 | C23: Fully Dressed Steel Poles | D23: Overall | F23: 60 | G23: 60 | H23: 80
D24: Cross Arm | E24: Wood | F24: 20 | G24: 40 | H24: 55
E25: Steel | F25: 30 | G25: 70 | H25: 95
B26: 4 | C26: OH Line Switch | F26: 30 | G26: 45 | H26: 55
B27: 5 | C27: OH Line Switch Motor | F27: 15 | G27: 25 | H27: 25
B28: 6 | C28: OH Line Switch RTU | F28: 15 | G28: 20 | H28: 20
B29: 7 | C29: OH Integral Switches | F29: 35 | G29: 45 | H29: 60 | J29: 1855 | K29: Services | L29: 60 | M29: 0.01666666667 | N29: 60 | O29: 0.01666666667 | P29: No | Q29: No
B30: 8 | C30: OH Conductors | F30: 50 | G30: 60 | H30: 75 | J30: 1835 | K30: Overhead Conductors and Devices | L30: 60 | M30: 0.01666666667 | N30: 60 | O30: 0.01666666667 | P30: No | Q30: No
B31: 9 | C31: OH Transformers & Voltage Regulators | F31: 30 | G31: 40 | H31: 60 | J31: 1850 | K31: Line Transformers | L31: 40 | M31: 0.025 | N31: 40 | O31: 0.025 | P31: No | Q31: No
B32: 10 | C32: OH Shunt Capacitor Banks | F32: 25 | G32: 30 | H32: 40
B33: 11 | C33: Reclosers | F33: 25 | G33: 40 | H33: 55
A34: TS & MS | B34: 12 | C34: Power Transformers | D34: Overall | F34: 30 | G34: 45 | H34: 60
D35: Bushing | F35: 10 | G35: 20 | H35: 30
D36: Tap Changer | F36: 20 | G36: 30 | H36: 60
B37: 13 | C37: Station Service Transformer | F37: 30 | G37: 45 | H37: 55
B38: 14 | C38: Station Grounding Transformer | F38: 30 | G38: 40 | H38: 40
B39: 15 | C39: Station DC System | D39: Communication | F39: 10 | G39: 20 | H39: 30 | J39: 1815 | K39: Transformer Station Equipment - Above 50kV | L39: 10 | M39: 0.1 | N39: 10 | O39: 0.1 | P39: No | Q39: No
D40: Battery Bank | F40: 10 | G40: 15 | H40: 15
D41: Monitoring and Control System | F41: 20 | G41: 20 | H41: 30 | J41: 1815 | K41: Transformer Station Equipment - Above 50kV | L41: 20 | M41: 0.05 | N41: 20 | O41: 0.05 | P41: No | Q41: No
B42: 16 | C42: Station Metal Clad Switchgear | D42: Cables | F42: 30 | G42: 40 | H42: 60 | J42: 1815 | K42: Transformer Station Equipment - Above 50kV | L42: 40 | M42: 0.025 | N42: 40 | O42: 0.025 | P42: No | Q42: No
D43: Transformer | F43: 25 | G43: 40 | H43: 60 | J43: 1815 | K43: Transformer Station Equipment - Above 50kV | L43: 45 | M43: 0.02222222222 | N43: 45 | O43: 0.02222222222 | P43: No | Q43: No
B44: 17 | C44: Station Independent Breakers | F44: 35 | G44: 45 | H44: 65 | J44: 1815 | K44: Transformer Station Equipment - Above 50kV | L44: 55 | M44: 0.01818181818 | N44: 55 | O44: 0.01818181818 | P44: No | Q44: No
B45: 18 | C45: Station Switch | F45: 30 | G45: 50 | H45: 60 | J45: 1815 | K45: Transformer Station Equipment - Above 50kV | L45: 50 | M45: 0.02 | N45: 50 | O45: 0.02 | P45: No | Q45: No
B46: 19 | C46: Electromechanical Relays | F46: 25 | G46: 35 | H46: 50
B47: 20 | C47: Solid State Relays | F47: 10 | G47: 30 | H47: 45
B48: 21 | C48: Digital & Numeric Relays | F48: 15 | G48: 20 | H48: 20
B49: 22 | C49: Rigid Busbars | F49: 30 | G49: 55 | H49: 60
B50: 23 | C50: Steel Structure | F50: 35 | G50: 50 | H50: 90
A51: UG | B51: 24 | C51: Primary Paper Insulated Lead Covered (PILC) Cables | F51: 60 | G51: 65 | H51: 75
B52: 25 | C52: Primary Ethylene-Propylene Rubber (EPR) Cables | F52: 20 | G52: 25 | H52: 25
B53: 26 | C53: Primary Non-Tree Retardant (TR) Cross Linked Polyethylene (XLPE) Cables Direct Buried | F53: 20 | G53: 25 | H53: 30
B54: 27 | C54: Primary Non-TR XLPE Cables in Duct | F54: 20 | G54: 25 | H54: 30 | J54: 1845 | K54: Underground Conductors and Devices | L54: 30 | M54: 0.03333333333 | N54: 30 | O54: 0.03333333333 | P54: No | Q54: No
B55: 30 | C55: Secondary PILC Cables | F55: 70 | G55: 75 | H55: 80
B56: 31 | C56: Secondary Cables Direct Buried | F56: 25 | G56: 35 | H56: 40 | J56: 1855 | K56: Services | L56: 35 | M56: 0.02857142857 | N56: 35 | O56: 0.02857142857 | P56: No | Q56: No
B57: 32 | C57: Secondary Cables in Duct | F57: 35 | G57: 40 | H57: 60
B58: 33 | C58: Network Tranformers | D58: Overall | F58: 20 | G58: 35 | H58: 50
D59: Protector | F59: 20 | G59: 35 | H59: 40
B60: 34 | C60: Pad-Mounted Transformers | F60: 25 | G60: 40 | H60: 45 | J60: 1850 | K60: Line Transformers | L60: 40 | M60: 0.025 | N60: 40 | O60: 0.025 | P60: No | Q60: No
B61: 35 | C61: Submersible/Vault Transformers | F61: 25 | G61: 35 | H61: 45
B62: 36 | C62: UG Foundation | F62: 35 | G62: 55 | H62: 70
B63: 37 | C63: UG Vaults | D63: Overall | F63: 40 | G63: 60 | H63: 80
D64: Roof | F64: 20 | G64: 30 | H64: 45
B65: 38 | C65: UG Vault Switches | F65: 20 | G65: 35 | H65: 50
B66: 39 | C66: Pad-Mounted Switchgear | F66: 20 | G66: 30 | H66: 45
B67: 40 | C67: Ducts | F67: 30 | G67: 50 | H67: 85 | J67: 1840 | K67: Underground Conduit | L67: 50 | M67: 0.02 | N67: 50 | O67: 0.02 | P67: No | Q67: No
B68: 41 | C68: Concrete Encased Duct Banks | F68: 35 | G68: 55 | H68: 80
B69: 42 | C69: Cable Chambers | F69: 50 | G69: 60 | H69: 80
A70: S | B70: 43 | C70: Remote SCADA | F70: 15 | G70: 20 | H70: 30 | J70: 1980 | K70: System Supervisor Equipment | L70: 20 | M70: 0.05 | N70: 20 | O70: 0.05 | P70: No | Q70: No
A73: Table F-2 from Kinetrics Report1
C75: Asset Details | F75: Useful Life Range | J75: USoA Account Number | K75: USoA Account Description | L75: Current | N75: Proposed | P75: Outside Range of Min, Max TUL?
B76: # | C76: Category| Component | Type | L76: Years | M76: Rate | N76: Years | O76: Rate | P76: Below Min Range | Q76: Above Max Range
B77: 1 | C77: Office Equipment | F77: 5 | G77: 15 | J77: 1915 | K77: Office Furniture and Equipment | L77: 10 | M77: =IF(ISERROR(1/L77), "", 1/L77) -> 0.1 | N77: 10 | O77: =IF(ISERROR(1/N77), "", 1/N77) -> 0.1 | P77: =IF(ISBLANK(N77),"",IF(N77<F77,"Yes","No")) -> No | Q77: =IF(ISBLANK(N77),"",IF(N77>G77,"Yes","No")) -> No
B78: 2 | C78: Vehicles | D78: Trucks & Buckets | F78: 5 | G78: 15 | M78: =IF(ISERROR(1/L78), "", 1/L78) ->  | O78: =IF(ISERROR(1/N78), "", 1/N78) ->  | P78: =IF(ISBLANK(N78),"",IF(N78<F78,"Yes","No")) ->  | Q78: =IF(ISBLANK(N78),"",IF(N78>G78,"Yes","No")) -> 
D79: Trailers | F79: 5 | G79: 20 | J79: 1930 | K79: Transportation Equipment | L79: 15 | M79: 0.06666666667 | N79: 15 | O79: 0.06666666667 | P79: No | Q79: No
D80: Vans | F80: 5 | G80: 10 | J80: 1930 | K80: Transportation Equipment | L80: 8 | M80: 0.125 | N80: 8 | O80: 0.125 | P80: No | Q80: No
B81: 3 | C81: Administrative Buildings | F81: 50 | G81: 75 | J81: 1908 | K81: Buildings and Fixtures | L81: 50 | M81: =IF(ISERROR(1/L81), "", 1/L81) -> 0.02 | N81: 50 | O81: =IF(ISERROR(1/N81), "", 1/N81) -> 0.02 | P81: =IF(ISBLANK(N81),"",IF(N81<F81,"Yes","No")) -> No | Q81: =IF(ISBLANK(N81),"",IF(N81>G81,"Yes","No")) -> No
B82: 4 | C82: Leasehold Improvements | F82: Lease dependent | P82: =IF(ISBLANK(N82),"",IF(N82<F82,"Yes","No")) ->  | Q82: =IF(ISBLANK(N82),"",IF(N82>G82,"Yes","No")) -> 
B83: 5 | C83: Station Buildings | D83: Station Buildings | F83: 50 | G83: 75 | J83: 1808 | K83: Buildings and Fixtures | L83: 50 | M83: 0.02 | N83: 50 | O83: 0.02 | P83: No | Q83: No
D84: Parking | F84: 25 | G84: 30 | J84: 1908 | K84: Buildings and Fixtures | L84: 25 | M84: 0.04 | N84: 25 | O84: 0.04 | P84: No | Q84: No
D85: Fence | F85: 25 | G85: 60 | J85: 1908 | K85: Buildings and Fixtures | L85: 40 | M85: 0.025 | N85: 40 | O85: 0.025 | P85: No | Q85: No
D86: Roof | F86: 20 | G86: 30
B87: 6 | C87: Computer Equipment | D87: Hardware | F87: 3 | G87: 5 | J87: 1920 | K87: Computer Equipment - Hardware | L87: 5 | M87: 0.2 | N87: 5 | O87: 0.2 | P87: No | Q87: No
D88: Software | F88: 2 | G88: 5 | J88: 1611 | K88: Computer Software | L88: 5 | M88: 0.2 | N88: 5 | O88: 0.2 | P88: No | Q88: No
B89: 7 | C89: Equipment | D89: Power Operated | F89: 5 | G89: 10 | J89: 1970 | K89: Load Management Controls Customer Premises | L89: 10 | M89: 0.1 | N89: 10 | O89: 0.1 | P89: No | Q89: No
D90: Stores | F90: 5 | G90: 10 | J90: 1935 | K90: Stores Equipment | L90: 10 | M90: 0.1 | N90: 15 | O90: 0.06666666667 | P90: No | Q90: Yes
D91: Tools, Shop, Garage Equipment | F91: 5 | G91: 10 | J91: 1940 | K91: Tools, Shop and Garage Equipment | L91: 10 | M91: 0.1 | N91: 10 | O91: 0.1 | P91: No | Q91: No
D92: Measurement & Testing Equipment | F92: 5 | G92: 10 | J92: 1945 | K92: Measurement and Testing Equipment | L92: 5 | M92: 0.2 | N92: 5 | O92: 0.2 | P92: No | Q92: No
B93: 8 | C93: Communication | D93: Towers | F93: 60 | G93: 70
D94: Wireless | F94: 2 | G94: 10 | J94: 1955 | K94: Communication Equipment | L94: 10 | M94: 0.1 | N94: 8.5 | O94: 0.1176470588 | P94: No | Q94: No
B95: 9 | C95: Residential Energy Meters | F95: 25 | G95: 35
B96: 10 | C96: Industrial/Commercial Energy Meters | F96: 25 | G96: 35 | J96: 1860 | K96: Meters | L96: 25 | M96: 0.04 | N96: 25 | O96: 0.04 | P96: No | Q96: No
B97: 11 | C97: Wholesale Energy Meters | F97: 15 | G97: 30 | J97: 1860 | K97: Meters | L97: 25 | M97: 0.04 | N97: 25 | O97: 0.04 | P97: No | Q97: No
B98: 12 | C98: Current & Potential Transformer (CT & PT) | F98: 35 | G98: 50 | J98: 1860 | K98: Meters | L98: 35 | M98: 0.02857142857 | N98: 35 | O98: 0.02857142857 | P98: No | Q98: No
B99: 13 | C99: Smart Meters | F99: 5 | G99: 15 | J99: 1860 | K99: Meters | L99: 15 | M99: 0.06666666667 | N99: 15 | O99: 0.06666666667 | P99: No | Q99: No
B100: 14 | C100: Repeaters - Smart Metering | F100: 10 | G100: 15 | J100: 1860 | K100: Meters | L100: 15 | M100: 0.06666666667 | N100: 15 | O100: 0.06666666667 | P100: No | Q100: No
B101: 15 | C101: Data Collectors - Smart Metering | F101: 15 | G101: 20
A104: * TS & MS = Transformer and Municipal Stations UG = Underground Systems S = Monitoring and Control Systems
A106: Note 1: | B106: Tables F-1 and F-2 above are to be used as a reference in order to complete columns J, K, L and N.
B107: See pages 17-19 of Kinetrics Report

Sheet App.2-C_DepExp
A9: Appendix 2-C
A10: Depreciation and Amortization Expense
A12: This appendix is to be completed in conjunction with the accounting instructions in Appendix 2-B
A14: Scenario that applies | C14: Applicable Years and Accounting Standard | R14: Year Reflected in Schedule Below | S14: Accounting Standard Reflected in Schedule Below
A15: Rebasing for the first time with depreciation policy changes made in 2012. | C15: ="This appendix must be duplicated and completed for the years 2012 to " & TestYear & ". The appendix for 2012 is to be completed under CGAAP (prior to changes in depreciation policies)." &" The appendix for 2012 to 2014 must be completed under Revised CGAAP (after changes in depreciation policies). The appendix for 2014 to " & TestYear & " is to be completed under MIFRS (2014 if changes to MIFRS are material)." -> This appendix must be duplicated and completed for the years 2012 to 2022. The appendix for 2012 is to be completed under CGAAP (prior to changes in depreciation policies). The appendix for 2012 to 2014 must be completed under Revised CGAAP (after changes in depreciation policies). The appendix for 2014 to 2022 is to be completed under MIFRS (2014 if changes to MIFRS are material).
A16: Rebasing for the first time with depreciation policy changes made in 2013. | C16: ="This appendix must be duplicated and completed for the years 2013 to " & TestYear & ". The appendix for 2013 is to be completed under CGAAP (prior to changes in depreciation policies)."&" The appendix for 2013 to 2014 must be completed under Revised CGAAP (after changes in depreciation policies). The appendix for 2014 to " & TestYear & " is to be completed under MIFRS (2014 if changes to MIFRS are material)." -> This appendix must be duplicated and completed for the years 2013 to 2022. The appendix for 2013 is to be completed under CGAAP (prior to changes in depreciation policies). The appendix for 2013 to 2014 must be completed under Revised CGAAP (after changes in depreciation policies). The appendix for 2014 to 2022 is to be completed under MIFRS (2014 if changes to MIFRS are material).
A17: Already rebased with depreciation policy changes in a prior rate application and rebasing MIFRS for the first time. | C17: This appendix must be completed for 2014 to the test year. The appendix for 2014 is to be completed under Revised CGAAP (after changes in depreciation policies). The appendix for 2014 to the test year is to be completed under MIFRS (2014 if changes to MIFRS are material).
A18: Already rebased under MIFRS in a prior rate application | C18: ="This appendix must be completed under MIFRS for each year for the earlier of: 1) all historical years back to its last rebasing; or 2) at least three years of historical actuals, in addition to Bridge Year and Test Year forecasts." -> This appendix must be completed under MIFRS for each year for the earlier of: 1) all historical years back to its last rebasing; or 2) at least three years of historical actuals, in addition to Bridge Year and Test Year forecasts. | R18: 2016 | S18: MIFRS
C20: Book Values | J20: Service Lives | N20: Depreciation Expense
A21: Account | B21: Description | C21: Opening Net Book Value of Existing Assets as at Date of Policy Change (Jan. 1) 1 | D21: Less Fully Depreciated 7 | E21: Net Amount of Existing Assets Before Policy Change to be Depreciated | F21: Opening Gross Book Value of Assets Acquired After Policy Change 2 | G21: Less Fully Depreciated 8 | H21: Net Amount of Assets Acquired After Policy Change to be Depreciated | I21: Current Year Additions | J21: Average Remaining Life of Assets Existing Before Policy Change 3 | K21: Depreciation Rate Assets Acquired After Policy Change | L21: Life of Assets Acquired After Policy Change 4 | M21: Depreciation Rate on New Additions | N21: Depreciation Expense on Assets Existing Before Policy Change | O21: Depreciation Expense on Assets Acquired After Policy Change | P21: Depreciation Expense on Current Year Additions 5 | Q21: Total Current Year Depreciation Expense | R21: Depreciation Expense per Appendix 2-BA Fixed Assets, Column J | S21: Variance 6
C22: a | D22: b | E22: c = a-b | F22: d | G22: e | H22: f = d- e | I22: g | J22: h | K22: i = 1/h | L22: j | M22: k = 1/j | N22: l = c/h | O22: m = f/j | P22: n = g*0.5/j | Q22: o = l+m+n | R22: p | S22: q = p-o
A23: 1611 | B23: Computer Software (Formally known as Account 1925) | C23: =202116.06+87249.86 -> 289365.92 | D23: 262678.31 | E23: =C23-D23 -> 26687.61 | F23: ='App.2-BA_Fixed Asset Cont'!D18 -> 774616.42 | G23: =F23-484790.5 -> 289825.92 | H23: =F23-G23 -> 484790.5 | I23: ='App.2-BA_Fixed Asset Cont'!E18 -> 36259 | J23: 3 | K23: =IF(J23=0,0,1/J23) -> 0.3333333333 | L23: ='Appendix 2-BB Service Life '!L88 -> 5 | M23: =IF(L23=0,0,1/L23) -> 0.2 | N23: =IF(J23=0,0,+E23/J23) -> 8895.87 | O23: =IF(L23=0,0,+H23/L23) -> 96958.1 | P23: =IF(L23=0,0,+(I23*0.5)/L23) -> 3625.9 | Q23: =IF(ISERROR(+N23+O23+P23), 0, +N23+O23+P23) -> 109479.87 | R23: =-'App.2-BA_Fixed Asset Cont'!J18 -> 109479.96 | S23: =IF(ISERROR(+R23-Q23), 0, +R23-Q23) -> 0.09000000001
A24: 1612 | B24: Land Rights (Formally known as Account 1906) | E24: =C24-D24 -> 0 | F24: ='App.2-BA_Fixed Asset Cont'!D19 -> 0 | H24: =F24-G24 -> 0 | I24: ='App.2-BA_Fixed Asset Cont'!E19 -> 0 | K24: =IF(J24=0,0,1/J24) -> 0 | M24: =IF(L24=0,0,1/L24) -> 0 | N24: =IF(J24=0,0,+E24/J24) -> 0 | O24: =IF(L24=0,0,+H24/L24) -> 0 | P24: =IF(L24=0,0,+(I24*0.5)/L24) -> 0 | Q24: =IF(ISERROR(+N24+O24+P24), 0, +N24+O24+P24) -> 0 | R24: =-'App.2-BA_Fixed Asset Cont'!J19 -> 0 | S24: =IF(ISERROR(+R24-Q24), 0, +R24-Q24) -> 0
A25: 1805 | B25: Land | E25: 0 | F25: ='App.2-BA_Fixed Asset Cont'!D20 -> 149992 | H25: 149992 | I25: ='App.2-BA_Fixed Asset Cont'!E20 -> 0 | K25: 0 | M25: 0 | N25: =IF(J25=0,0,+E25/J25) -> 0 | O25: =IF(L25=0,0,+H25/L25) -> 0 | P25: =IF(L25=0,0,+(I25*0.5)/L25) -> 0 | Q25: =IF(ISERROR(+N25+O25+P25), 0, +N25+O25+P25) -> 0 | R25: =-'App.2-BA_Fixed Asset Cont'!J20 -> 0 | S25: 0
A26: 1808 | B26: Buildings | E26: 0 | F26: ='App.2-BA_Fixed Asset Cont'!D21 -> 1256185 | H26: 1256185 | I26: ='App.2-BA_Fixed Asset Cont'!E21 -> 0 | K26: 0 | L26: ='Appendix 2-BB Service Life '!L83 -> 50 | M26: 0.02 | N26: =IF(J26=0,0,+E26/J26) -> 0 | O26: =IF(L26=0,0,+H26/L26) -> 25123.7 | P26: =IF(L26=0,0,+(I26*0.5)/L26) -> 0 | Q26: =IF(ISERROR(+N26+O26+P26), 0, +N26+O26+P26) -> 25123.7 | R26: =-'App.2-BA_Fixed Asset Cont'!J21 -> 25123.7 | S26: 0
A27: 1810 | B27: Leasehold Improvements | E27: 0 | F27: ='App.2-BA_Fixed Asset Cont'!D23 -> 0 | H27: 0 | I27: ='App.2-BA_Fixed Asset Cont'!E23 -> 0 | K27: 0 | M27: 0 | N27: 0 | O27: =IF(L27=0,0,+H27/L27) -> 0 | P27: 0 | Q27: 0 | R27: =-'App.2-BA_Fixed Asset Cont'!J22 -> 0 | S27: 0
A28: 1815 | B28: Transformer Station Equipment >50 kV (10) | C28: 0 | E28: 0 | F28: ='App.2-BA_Fixed Asset Cont'!D24 -> 0 | H28: 0 | I28: ='App.2-BA_Fixed Asset Cont'!E24 -> 52224.72 | J28: 10 | K28: 0.1 | L28: 10 | M28: 0.1 | N28: 0 | O28: 0 | P28: 2611.236 | Q28: 2611.236 | R28: =-'App.2-BA_Fixed Asset Cont'!J24 -> 2611.24 | S28: 0
A29: 1815 | B29: Transformer Station Equipment >50 kV (20) | C29: 732309.7 | D29: =C29-207803.04 -> 524506.66 | E29: =C29-D29 -> 207803.04 | F29: ='App.2-BA_Fixed Asset Cont'!D25 -> 732309.7 | H29: =F29-G29 -> 732309.7 | I29: ='App.2-BA_Fixed Asset Cont'!E25 -> 0 | J29: 8 | K29: =IF(J29=0,0,1/J29) -> 0.125 | L29: 20 | M29: =IF(L29=0,0,1/L29) -> 0.05 | N29: 25975.38 | O29: =IF(L29=0,0,+H29/L29) -> 36615.485 | P29: =IF(L29=0,0,+(I29*0.5)/L29) -> 0 | Q29: 62590.865 | R29: =-'App.2-BA_Fixed Asset Cont'!J25 -> 62590.38 | S29: -0.485
A30: 1815 | B30: Transformer Station Equipment >50 kV (40) | C30: 3355781.43 | D30: 2708610.68 | E30: =C30-D30 -> 647170.75 | F30: ='App.2-BA_Fixed Asset Cont'!D26 -> 3355781.43 | G30: 932982.93 | H30: =F30-G30 -> 2422798.5 | I30: ='App.2-BA_Fixed Asset Cont'!E26 -> 30946.12 | J30: 28 | K30: =IF(J30=0,0,1/J30) -> 0.03571428571 | L30: 40 | M30: =IF(L30=0,0,1/L30) -> 0.025 | N30: 23113.24107 | O30: 60569.9625 | P30: 386.8265 | Q30: 84070.03007 | R30: =-'App.2-BA_Fixed Asset Cont'!J26 -> 84070.03 | S30: -7.142857066e-05
A31: 1815 | B31: Transformer Station Equipment >50 kV (45) | C31: 2682922.03 | D31: 1873010.93 | E31: =C31-D31 -> 809911.1 | F31: ='App.2-BA_Fixed Asset Cont'!D27 -> 2682922.03 | G31: 1233241.66 | H31: =F31-G31 -> 1449680.37 | I31: ='App.2-BA_Fixed Asset Cont'!E27 -> 0 | J31: 33 | K31: =IF(J31=0,0,1/J31) -> 0.0303030303 | L31: 45 | M31: =IF(L31=0,0,1/L31) -> 0.02222222222 | N31: 24542.76061 | O31: 32215.11933 | P31: 0 | Q31: 56757.87994 | R31: =-'App.2-BA_Fixed Asset Cont'!J27 -> 56757.88 | S31: 6.060606393e-05
A32: 1815 | B32: Transformer Station Equipment >50 kV (50) | C32: 77278.53 | D32: 54001.17 | E32: =C32-D32 -> 23277.36 | F32: ='App.2-BA_Fixed Asset Cont'!D28 -> 77278.53 | G32: 36852.64 | H32: =F32-G32 -> 40425.89 | I32: ='App.2-BA_Fixed Asset Cont'!E28 -> 0 | J32: 38 | K32: =IF(J32=0,0,1/J32) -> 0.02631578947 | L32: 50 | M32: =IF(L32=0,0,1/L32) -> 0.02 | N32: 612.5621053 | O32: 808.5178 | P32: 0 | Q32: 1421.079905 | R32: =-'App.2-BA_Fixed Asset Cont'!J28 -> 1421.08 | S32: 9.473684213e-05
A33: 1815 | B33: Transformer Station Equipment >50 kV (55) | C33: 643776.67 | D33: 242715.75 | E33: =C33-D33 -> 401060.92 | F33: ='App.2-BA_Fixed Asset Cont'!D29 -> 643776.67 | G33: 580934.7 | H33: =F33-G33 -> 62841.97 | I33: ='App.2-BA_Fixed Asset Cont'!E29 -> 0 | J33: 43 | K33: =IF(J33=0,0,1/J33) -> 0.02325581395 | L33: 55 | M33: =IF(L33=0,0,1/L33) -> 0.01818181818 | N33: 9326.99814 | O33: 1142.581273 | P33: 0 | Q33: 10469.57941 | R33: =-'App.2-BA_Fixed Asset Cont'!J29 -> 10469.58 | S33: 0.0005877378408
A34: 1820 | B34: Distribution Station Equipment <50 kV | E34: 0 | F34: ='App.2-BA_Fixed Asset Cont'!D30 -> 0 | H34: 0 | I34: ='App.2-BA_Fixed Asset Cont'!E30 -> 0 | K34: 0 | M34: 0 | N34: 0 | O34: 0 | P34: 0 | Q34: 0 | R34: =-'App.2-BA_Fixed Asset Cont'!J30 -> 0 | S34: 0
A35: 1825 | B35: Storage Battery Equipment | E35: 0 | F35: ='App.2-BA_Fixed Asset Cont'!D31 -> 0 | H35: 0 | I35: ='App.2-BA_Fixed Asset Cont'!E31 -> 0 | K35: 0 | M35: 0 | N35: 0 | O35: 0 | P35: 0 | Q35: 0 | R35: =-'App.2-BA_Fixed Asset Cont'!J31 -> 0 | S35: 0
A36: 1830 | B36: Poles, Towers & Fixtures | C36: 3337032.994 | D36: =311841.25-25542 -> 286299.25 | E36: 3050733.744 | F36: ='App.2-BA_Fixed Asset Cont'!D32 -> 4218570.33 | G36: 3050169.83 | H36: 1168400.5 | I36: ='App.2-BA_Fixed Asset Cont'!E32 -> 165274.87 | J36: 34 | K36: 0.02941176471 | L36: ='Appendix 2-BB Service Life '!L17 -> 45 | M36: 0.02222222222 | N36: 89727.46306 | O36: =IF(L36=0,0,+H36/L36) -> 25964.45556 | P36: 1836.387444 | Q36: 117528.3061 | R36: =-'App.2-BA_Fixed Asset Cont'!J32 -> 116777.07 | S36: -751.2360612
A37: 1835 | B37: Overhead Conductors & Devices | C37: 1897776.008 | D37: 313191.64 | E37: 1584584.368 | F37: ='App.2-BA_Fixed Asset Cont'!D33 -> 3136960.04 | G37: 1600974 | H37: 1535986.04 | I37: ='App.2-BA_Fixed Asset Cont'!E33 -> 90334.96 | J37: 54.5 | K37: 0.01834862385 | L37: ='Appendix 2-BB Service Life '!L30 -> 60 | M37: 0.01666666667 | N37: 29074.94253 | O37: 25599.76733 | P37: 752.7913333 | Q37: 55427.5012 | R37: =-'App.2-BA_Fixed Asset Cont'!J33 -> 55427.5 | S37: -0.001199043611
A38: 1840 | B38: Underground Conduit | C38: 1853805.346 | D38: 253180.04 | E38: 1600625.306 | F38: ='App.2-BA_Fixed Asset Cont'!D34 -> 2400775.21 | G38: 1675113.88 | H38: 725661.33 | I38: ='App.2-BA_Fixed Asset Cont'!E34 -> 89555.69 | J38: 34.73 | K38: 0.02879355024 | L38: ='Appendix 2-BB Service Life '!L67 -> 50 | M38: 0.02 | N38: 46087.68517 | O38: 14513.2266 | P38: 895.5569 | Q38: 61496.46867 | R38: =-'App.2-BA_Fixed Asset Cont'!J34 -> 61496.47 | S38: 0.00132867838
A39: 1845 | B39: Underground Conductors & Devices | C39: 1058667.625 | D39: 220916.32 | E39: 837751.3047 | F39: ='App.2-BA_Fixed Asset Cont'!D35 -> 2037508.14 | G39: 842341.64 | H39: 1195166.5 | I39: ='App.2-BA_Fixed Asset Cont'!E35 -> 104841.73 | J39: 25.3 | K39: 0.0395256917 | L39: ='Appendix 2-BB Service Life '!L54 -> 30 | M39: 0.03333333333 | N39: 33112.69979 | O39: 39838.88333 | P39: 1747.362167 | Q39: 74698.94529 | R39: =-'App.2-BA_Fixed Asset Cont'!J35 -> 74698.95 | S39: 0.004709787958
A40: 1850 | B40: Line Transformers | C40: 2978873.637 | D40: 346650.8 | E40: 2632222.837 | F40: ='App.2-BA_Fixed Asset Cont'!D36 -> 4473551.13 | G40: 2593799.57 | H40: 1879751.56 | I40: ='App.2-BA_Fixed Asset Cont'!E36 -> 193544.35 | J40: 29.23 | K40: 0.03421142662 | L40: ='Appendix 2-BB Service Life '!L60 -> 40 | M40: 0.025 | N40: 90052.09844 | O40: 46993.789 | P40: 2419.304375 | Q40: 139465.1918 | R40: =-'App.2-BA_Fixed Asset Cont'!J36 -> 138975.16 | S40: -490.0318158
A41: 1855 | B41: Services Overhead | C41: 134453.7575 | D41: 27745.95 | E41: 106707.8075 | F41: ='App.2-BA_Fixed Asset Cont'!D37 -> 221570.79 | G41: 108258.38 | H41: 113312.41 | I41: ='App.2-BA_Fixed Asset Cont'!E37 -> 14791.26 | J41: 54.73 | K41: 0.01827151471 | L41: ='Appendix 2-BB Service Life '!L29 -> 60 | M41: 0.01666666667 | N41: 1949.713275 | O41: 1888.540167 | P41: 123.2605 | Q41: 3961.513942 | R41: =-'App.2-BA_Fixed Asset Cont'!J37 -> 3961.63 | S41: 0.1160584989
A42: 1855 | B42: Services Underground | C42: 505122.3431 | D42: 259545.2 | E42: 245577.1431 | F42: ='App.2-BA_Fixed Asset Cont'!D38 -> 1465885.69 | G42: 267580.54 | H42: 1198305.15 | I42: ='App.2-BA_Fixed Asset Cont'!E38 -> 56493.12 | J42: 31 | K42: 0.03225806452 | L42: ='Appendix 2-BB Service Life '!L56 -> 35 | M42: 0.02857142857 | N42: 7921.843325 | O42: 34237.29 | P42: =IF(L42=0,0,+(I42*0.5)/L42) -> 807.0445714 | Q42: 42966.1779 | R42: =-'App.2-BA_Fixed Asset Cont'!J38 -> 42966.16 | S42: -0.01789637709
A43: 1860 | B43: Meters 15yrs | C43: 1519758.165 | D43: 1254176.81 | E43: 265581.3551 | F43: ='App.2-BA_Fixed Asset Cont'!D39 -> 1795910.79 | G43: 267753.05 | H43: 1528157.74 | I43: ='App.2-BA_Fixed Asset Cont'!E39 -> 22567.75 | J43: 13.8 | K43: 0.07246376812 | L43: ='Appendix 2-BB Service Life '!L99 -> 15 | M43: 0.06666666667 | N43: 19245.02573 | O43: 101877.1827 | P43: 752.2583333 | Q43: 121874.4667 | R43: =-'App.2-BA_Fixed Asset Cont'!J39 -> 121874.46 | S43: -0.00673187591
A44: 1860 | B44: Meters >50 | C44: 162826.962 | D44: 1842.76 | E44: 160984.202 | F44: ='App.2-BA_Fixed Asset Cont'!D40 -> 279715.34 | G44: 171596.78 | H44: 108118.56 | I44: ='App.2-BA_Fixed Asset Cont'!E40 -> 39663.51 | J44: 19.06 | K44: 0.05246589717 | L44: ='Appendix 2-BB Service Life '!L96 -> 25 | M44: =IF(L44=0,0,1/L44) -> 0.04 | N44: 8446.18059 | O44: 4324.7424 | P44: 793.2702 | Q44: 13564.19319 | R44: =-'App.2-BA_Fixed Asset Cont'!J40 -> 13564.19 | S44: -0.003190221852
A45: 1860 | B45: Meters CT's & PT's | C45: 69489.2159 | D45: 6709.5 | E45: 62779.7159 | F45: ='App.2-BA_Fixed Asset Cont'!D41 -> 172981.93 | G45: 63407.32 | H45: 109574.61 | I45: ='App.2-BA_Fixed Asset Cont'!E41 -> 2188.94 | J45: 30.6 | K45: 0.03267973856 | L45: ='Appendix 2-BB Service Life '!L98 -> 35 | M45: =IF(L45=0,0,1/L45) -> 0.02857142857 | N45: 2051.624703 | O45: 3130.703143 | P45: 31.27057143 | Q45: 5213.598417 | R45: =-'App.2-BA_Fixed Asset Cont'!J41 -> 5213.6 | S45: 0.001582970812
A46: 1905 | B46: Land | C46: 111555.65 | E46: 111555.65 | F46: ='App.2-BA_Fixed Asset Cont'!D42 -> 111555.65 | H46: 111555.65 | I46: ='App.2-BA_Fixed Asset Cont'!E42 -> 0 | K46: 0 | M46: 0 | N46: 0 | O46: 0 | P46: 0 | Q46: 0 | R46: =-'App.2-BA_Fixed Asset Cont'!J42 -> 0 | S46: 0
A47: 1908 | B47: Buildings and Fixtures (50) | C47: 311425.99 | D47: 161941.52 | E47: 149484.47 | F47: ='App.2-BA_Fixed Asset Cont'!D43 -> 311425.99 | H47: 311425.99 | I47: ='App.2-BA_Fixed Asset Cont'!E43 -> 0 | J47: 24 | K47: 0.04166666667 | L47: ='Appendix 2-BB Service Life '!L81 -> 50 | M47: 0.02 | N47: 6228.519583 | O47: 6228.5198 | P47: 0 | Q47: 12457.03938 | R47: =-'App.2-BA_Fixed Asset Cont'!J43 -> 12457.04 | S47: 0.0006166666681
A48: 1908 | B48: Buildings and Fixtures (40) | C48: 29371.6 | D48: 1639.13 | E48: 27732.47 | F48: ='App.2-BA_Fixed Asset Cont'!D44 -> 55126.6 | G48: =F48-25755 -> 29371.6 | H48: 25755 | I48: ='App.2-BA_Fixed Asset Cont'!E44 -> 0 | J48: 19.75 | K48: 0.05063291139 | L48: ='Appendix 2-BB Service Life '!L85 -> 40 | M48: 0.025 | N48: 1404.175696 | O48: 643.875 | P48: 0 | Q48: 2048.050696 | R48: =-'App.2-BA_Fixed Asset Cont'!J44 -> 2048.07 | S48: 0.01930379747
A49: 1908 | B49: Buildings and Fixtures (25) | C49: 174025.76 | D49: =C49-162480.13 -> 11545.63 | E49: 162480.13 | F49: ='App.2-BA_Fixed Asset Cont'!D45 -> 230777.11 | G49: =F49-56751.35 -> 174025.76 | H49: 56751.35 | I49: ='App.2-BA_Fixed Asset Cont'!E45 -> 117555.93 | J49: 23.33 | K49: 0.04286326618 | L49: ='Appendix 2-BB Service Life '!L84 -> 25 | M49: 0.04 | N49: 6964.429061 | O49: 2270.054 | P49: 2351.1186 | Q49: 11585.60166 | R49: =-'App.2-BA_Fixed Asset Cont'!J45 -> 11585.61 | S49: 0.008338705529
A50: 1910 | B50: Leasehold Improvements | E50: 0 | F50: ='App.2-BA_Fixed Asset Cont'!D46 -> 0 | H50: 0 | I50: ='App.2-BA_Fixed Asset Cont'!E46 -> 0 | K50: 0 | M50: 0 | N50: 0 | O50: 0 | P50: 0 | Q50: 0 | R50: =-'App.2-BA_Fixed Asset Cont'!J46 -> 0 | S50: 0
A51: 1915 | B51: Office Furniture & Equipment (10 years) | C51: 25914.31 | D51: 11318.43 | E51: 14595.88 | F51: ='App.2-BA_Fixed Asset Cont'!D47 -> 128284.67 | G51: 27001.38 | H51: 101283.29 | I51: ='App.2-BA_Fixed Asset Cont'!E47 -> 26772.47 | J51: 5.67 | K51: 0.176366843 | L51: ='Appendix 2-BB Service Life '!L77 -> 10 | M51: 0.1 | N51: 2574.229277 | O51: 10128.329 | P51: 1338.6235 | Q51: 14041.18178 | R51: =-'App.2-BA_Fixed Asset Cont'!J47 -> 13165.18 | S51: -876.0017769
A52: 1920 | B52: Computer Equipment - Hardware | C52: =39632.47+24807.51 -> 64439.98 | D52: 62871.3 | E52: 1568.68 | F52: ='App.2-BA_Fixed Asset Cont'!D48 -> 153123.47 | G52: 62322.94 | H52: 90800.53 | I52: ='App.2-BA_Fixed Asset Cont'!E48 -> 6887 | J52: 3 | K52: 0.3333333333 | L52: ='Appendix 2-BB Service Life '!L87 -> 5 | M52: 0.2 | N52: 522.8933333 | O52: 18160.106 | P52: 688.7 | Q52: 19371.69933 | R52: =-'App.2-BA_Fixed Asset Cont'!J48 -> 19371.71 | S52: 0.01066666667
A53: 1920 | B53: Computer Equip.-Hardware(Post Mar. 22/04) | E53: 0 | F53: ='App.2-BA_Fixed Asset Cont'!D49 -> 0 | H53: 0 | I53: ='App.2-BA_Fixed Asset Cont'!E49 -> 0 | K53: 0 | M53: 0 | N53: 0 | O53: 0 | P53: 0 | Q53: 0 | R53: =-'App.2-BA_Fixed Asset Cont'!J49 -> 0 | S53: 0
A54: 1920 | B54: Computer Equip.-Hardware(Post Mar. 19/07) | E54: 0 | F54: ='App.2-BA_Fixed Asset Cont'!D50 -> 0 | H54: 0 | I54: ='App.2-BA_Fixed Asset Cont'!E50 -> 0 | K54: 0 | M54: 0 | N54: 0 | O54: 0 | P54: 0 | Q54: 0 | R54: =-'App.2-BA_Fixed Asset Cont'!J50 -> 0 | S54: 0
A55: 1930 | B55: Transportation Equipment (8) | C55: 17876.08 | D55: 15830.4 | E55: 2045.68 | F55: ='App.2-BA_Fixed Asset Cont'!D51 -> 21466.08 | G55: 14416.83 | H55: 7049.25 | J55: 4.5 | K55: 0.2222222222 | L55: ='Appendix 2-BB Service Life '!L80 -> 8 | M55: 0.125 | N55: 454.5955556 | O55: 881.15625 | P55: 0 | Q55: 1335.751806 | R55: =-'App.2-BA_Fixed Asset Cont'!J51 -> 903.32 | S55: -432.4318056
A56: 1930 | B56: Transportation Equipment (15) | C56: 22698.11 | E56: 22698.11 | F56: ='App.2-BA_Fixed Asset Cont'!D52 -> 344949.71 | H56: 344949.71 | I56: 359939.58 | J56: 2.25 | K56: 0.4444444444 | L56: ='Appendix 2-BB Service Life '!L79 -> 15 | M56: 0.06666666667 | N56: 10088.04889 | O56: 22996.64733 | P56: 11997.986 | Q56: 45082.68222 | R56: =-'App.2-BA_Fixed Asset Cont'!J52 -> 45120.71 | S56: 38.02777778
A57: 1935 | B57: Stores Equipment | E57: 0 | F57: ='App.2-BA_Fixed Asset Cont'!D53 -> 0 | H57: 0 | I57: ='App.2-BA_Fixed Asset Cont'!E53 -> 11962.55 | K57: 0 | L57: ='Appendix 2-BB Service Life '!L90 -> 10 | M57: 0.1 | N57: 0 | O57: 0 | P57: 598.1275 | Q57: 598.1275 | R57: =-'App.2-BA_Fixed Asset Cont'!J53 -> 598.13 | S57: 0.0025
A58: 1940 | B58: Tools, Shop & Garage Equipment | C58: =63326.24+3410 -> 66736.24 | D58: 24370.95 | E58: 42365.29 | F58: ='App.2-BA_Fixed Asset Cont'!D54 -> 199687.02 | G58: 61971.66 | H58: 137715.36 | I58: ='App.2-BA_Fixed Asset Cont'!E54 -> 7105.35 | J58: 6.71 | K58: 0.1490312966 | L58: ='Appendix 2-BB Service Life '!L91 -> 10 | M58: 0.1 | N58: 6313.754098 | O58: 13771.536 | P58: 355.2675 | Q58: 20440.5576 | R58: =-'App.2-BA_Fixed Asset Cont'!J54 -> 20440.57 | S58: 0.01240163935
A59: 1945 | B59: Measurement & Testing Equipment | C59: 15272.67 | D59: 15272.67 | E59: 0 | F59: ='App.2-BA_Fixed Asset Cont'!D55 -> 37484.51 | G59: 15273.16 | H59: 22211.35 | I59: ='App.2-BA_Fixed Asset Cont'!E55 -> 3492.98 | J59: 1.5 | K59: 0.6666666667 | L59: ='Appendix 2-BB Service Life '!L92 -> 5 | M59: 0.2 | N59: 0 | O59: 4442.27 | P59: 349.298 | Q59: 4791.568 | R59: =-'App.2-BA_Fixed Asset Cont'!J55 -> 4791.67 | S59: 0.102
A60: 1950 | B60: Power Operated Equipment | E60: 0 | F60: ='App.2-BA_Fixed Asset Cont'!D56 -> 0 | H60: 0 | I60: ='App.2-BA_Fixed Asset Cont'!E56 -> 0 | K60: 0 | M60: 0 | N60: 0 | O60: 0 | P60: 0 | Q60: 0 | R60: =-'App.2-BA_Fixed Asset Cont'!J56 -> 0 | S60: 0
A61: 1955 | B61: Communications Equipment | E61: 0 | F61: ='App.2-BA_Fixed Asset Cont'!D57 -> 70079.89 | H61: 70079.89 | I61: ='App.2-BA_Fixed Asset Cont'!E57 -> 260 | K61: 0 | L61: 8.5 | M61: 0.1176470588 | N61: 0 | O61: 8244.692941 | P61: 15.29411765 | Q61: 8259.987059 | R61: =-'App.2-BA_Fixed Asset Cont'!J57 -> 8138.45 | S61: -121.5370588
A62: 1955 | B62: Communication Equipment (Smart Meters) | E62: 0 | F62: ='App.2-BA_Fixed Asset Cont'!D58 -> 0 | H62: 0 | I62: ='App.2-BA_Fixed Asset Cont'!E58 -> 0 | K62: 0 | M62: 0 | N62: 0 | O62: 0 | P62: 0 | Q62: 0 | R62: =-'App.2-BA_Fixed Asset Cont'!J58 -> 0 | S62: 0
A63: 1960 | B63: Miscellaneous Equipment | E63: 0 | F63: ='App.2-BA_Fixed Asset Cont'!D59 -> 0 | H63: 0 | I63: ='App.2-BA_Fixed Asset Cont'!E59 -> 0 | K63: 0 | M63: 0 | N63: 0 | O63: 0 | P63: 0 | Q63: 0 | R63: =-'App.2-BA_Fixed Asset Cont'!J59 -> 0 | S63: 0
A64: 1970 | B64: Load Management Controls Customer Premises | E64: 0 | F64: ='App.2-BA_Fixed Asset Cont'!D60 -> 16438.8 | H64: 16438.8 | I64: ='App.2-BA_Fixed Asset Cont'!E60 -> 0 | K64: 0 | L64: ='Appendix 2-BB Service Life '!L89 -> 10 | M64: 0.1 | N64: 0 | O64: 1643.88 | P64: 0 | Q64: 1643.88 | R64: =-'App.2-BA_Fixed Asset Cont'!J60 -> 1643.88 | S64: 2.273736754e-13
A65: 1975 | B65: Load Management Controls Utility Premises | E65: 0 | H65: 0 | K65: 0 | M65: 0 | N65: 0 | O65: 0 | P65: 0 | Q65: 0 | R65: =-'App.2-BA_Fixed Asset Cont'!J61 -> 0 | S65: 0
A66: 1980 | B66: System Supervisor Equipment | E66: 0 | H66: 0 | K66: 0 | M66: 0 | N66: 0 | O66: 0 | P66: 0 | Q66: 0 | R66: =-'App.2-BA_Fixed Asset Cont'!J62 -> 0 | S66: 0
A67: 1985 | B67: Miscellaneous Fixed Assets | E67: 0 | H67: 0 | K67: 0 | M67: 0 | N67: 0 | O67: 0 | P67: 0 | Q67: 0 | R67: =-'App.2-BA_Fixed Asset Cont'!J63 -> 0 | S67: 0
A68: 1990 | B68: Other Tangible Property | E68: 0 | H68: 0 | K68: 0 | M68: 0 | N68: 0 | O68: 0 | P68: 0 | Q68: 0 | R68: =-'App.2-BA_Fixed Asset Cont'!J64 -> 0 | S68: 0
A69: 1995 | B69: Contributions & Grants -Transformer Station | E69: 0 | F69: -1218270.2 | H69: -1218270.2 | J69: 40 | K69: 0.025 | L69: 40 | M69: 0.025 | N69: 0 | O69: -30456.755 | P69: 0 | Q69: -30456.755 | R69: -30456.755 | S69: -3.637978807e-12
A70: 1995 | B70: Contributions & Grants - Poles | C70: =-13086.59 -> -13086.59 | D70: 145.41 | E70: =C70-D70 -> -13232 | F70: -105927.54 | G70: -13232 | H70: =F70-G70 -> -92695.54 | I70: -62281.44 | J70: 45 | K70: =IF(J70=0,0,1/J70) -> 0.02222222222 | L70: 45 | M70: =IF(L70=0,0,1/L70) -> 0.02222222222 | N70: =IF(J70=0,0,+E70/J70) -> -294.0444444 | O70: =IF(L70=0,0,+H70/L70) -> -2059.900889 | P70: =IF(L70=0,0,+(I70*0.5)/L70) -> -692.016 | Q70: =IF(ISERROR(+N70+O70+P70), 0, +N70+O70+P70) -> -3045.961333 | R70: -3045.971333 | S70: =IF(ISERROR(+R70-Q70), 0, +R70-Q70) -> -0.009999999997
A71: 1995 | B71: Contributions & Grants - OH Conductors | C71: =-46607.29 -> -46607.29 | D71: 388.39 | E71: -46995.68 | F71: -110583.89 | G71: -46995.68 | H71: -63588.21 | I71: -14841.04 | J71: 60 | K71: 0.01666666667 | L71: 60 | M71: 0.01666666667 | N71: -783.2613333 | O71: -1059.8035 | P71: -123.6753333 | Q71: -1966.740167 | R71: -1966.740167 | S71: -3.410605132e-12
A72: 1995 | B72: Contributions & Grants - UG Conduit | C72: =-149903.6 -> -149903.6 | D72: 1499.04 | E72: -151402.64 | F72: -295431.86 | G72: -151402.64 | H72: -144029.22 | I72: -22882.98 | J72: 50 | K72: 0.02 | L72: 50 | M72: 0.02 | N72: -3028.0528 | O72: -2880.5844 | P72: -228.8298 | Q72: -6137.467 | R72: -6137.457 | S72: 0.01
A73: 1995 | B73: Contributions & Grants - UG Conductors | C73: =-105185.96 -> -105185.96 | D73: 1753.1 | E73: -106939.06 | F73: -323668.42 | G73: -106939.06 | H73: -216729.36 | I73: -65433.18 | J73: 30 | K73: 0.03333333333 | L73: 30 | M73: 0.03333333333 | N73: -3564.635333 | O73: -7224.312 | P73: -1090.553 | Q73: -11879.50033 | R73: -11879.50033 | S73: 3.274180926e-11
A74: 1995 | B74: Contributions & Grants - Line Transformers | C74: =-173795.96 -> -173795.96 | D74: 2172.45 | E74: -175968.41 | F74: =-203169.48-486085.04 -> -689254.52 | G74: -175968.41 | H74: -513286.11 | I74: =-15006.56-62961.32 -> -77967.88 | J74: 40 | K74: 0.025 | L74: 40 | M74: 0.025 | N74: -4399.21025 | O74: -12832.15275 | P74: -974.5985 | Q74: -18205.9615 | R74: -18205.95 | S74: 0.0115
A75: 1995 | B75: Contributions & Grants - Services OH | C75: =-414.64 -> -414.64 | D75: 3.46 | E75: -418.1 | F75: -9047.35 | G75: -418.1 | H75: -8629.25 | I75: -580.94 | J75: 60 | K75: 0.01666666667 | L75: 60 | M75: 0.01666666667 | N75: -6.968333333 | O75: -143.8208333 | P75: -4.841166667 | Q75: -155.6303333 | R75: -155.6303333 | S75: 3.410605132e-13
A76: 1995 | B76: Contributions & Grants - Services UG | C76: =-201559.87 -> -201559.87 | D76: 2879.43 | E76: -204439.3 | F76: -874139.55 | G76: -204439.3 | H76: -669700.25 | I76: -43784.05 | J76: 35 | K76: 0.02857142857 | L76: 35 | M76: 0.02857142857 | N76: -5841.122857 | O76: -19134.29286 | P76: -625.4864286 | Q76: -25600.90214 | R76: -25600.90214 | S76: 4.365574569e-11
A77: 1995 | B77: Contributions & Grants - Meters 15 years | C77: =-10021.18-1137.37 -> -11158.55 | D77: =200.42+22.75 -> 223.17 | E77: -11381.72 | F77: =-69115.18-30270.71-4184.3-2402.54 -> -105972.73 | G77: -11381.72 | H77: -94591.01 | I77: =-4941.77-3368.55-282.23 -> -8592.55 | J77: 15 | K77: 0.06666666667 | L77: 15 | M77: 0.06666666667 | N77: -758.7813333 | O77: -6306.067333 | P77: -286.4183333 | Q77: -7351.267 | R77: =-4772.40433333333-2130.34-288.36-160.17 -> -7351.274333 | S77: -0.007333333332
A78: 1995 | B78: Contributions & Grants - Meters 25 years | C78: =-4447.13-1042.1 -> -5489.23 | D78: =88.94+20.84 -> 109.78 | E78: -5599.01 | F78: =-24289.56-1042.1 -> -25331.66 | G78: -5599.01 | H78: -19732.65 | I78: -5408.22 | J78: 25 | K78: 0.04 | L78: 25 | M78: 0.04 | N78: -223.9604 | O78: -789.306 | P78: -108.1644 | Q78: -1121.4308 | R78: =-1079.75-41.68 -> -1121.43 | S78: 0.0008
A79: 1995 | B79: Contributions & Grants - Meters 35 years | C79: =-2127.34 -> -2127.34 | D79: 30.39 | E79: -2157.73 | F79: -16837.39 | G79: -2157.73 | H79: -14679.66 | I79: -2249.66 | J79: 35 | K79: 0.02857142857 | L79: 35 | M79: 0.02857142857 | N79: -61.64942857 | O79: -419.4188571 | P79: -32.138 | Q79: -513.2062857 | R79: -513.21 | S79: -0.003714285714
A80: 1995 | B80: Contributions & Grants - Load Mgmt Control | E80: 0 | F80: -13598.8 | G80: =C80 -> 0 | H80: -13598.8 | J80: 10 | K80: 0.1 | L80: 10 | M80: 0.1 | N80: 0 | O80: -1359.88 | P80: 0 | Q80: -1359.88 | R80: -1359.88 | S80: -2.273736754e-13
A81: 2005 | B81: Property Under Finance Lease | E81: 0 | H81: 0 | K81: 0 | M81: 0 | N81: 0 | O81: 0 | P81: 0 | Q81: 0 | S81: 0
B82: Total | C82: =SUM(C23:C81) -> 21429227.69 | D82: 8949776.42 | E82: 12479451.27 | F82: 27768626.76 | G82: 13380682.52 | H82: 14387944.24 | I82: 1128639.94 | N82: =SUM(N23:N81) -> 435725.0475 | O82: 556546.818 | P82: 30310.16315 | Q82: 1022582.029 | R82: 1019948.679 | S82: -2633.353327
A85: General: | B85: Applicants are to complete this appendix to show the reasonability of the depreciation expense that is included in rate base via. Accumulated depreciation and the revenue requirement.
B86: Applicants must provide a breakdown of depreciation and amortization expense in the above format for all relevant accounts. Balances presented in the table should exclude asset retirement obligations (AROs) and the related depreciation and accretion expense. These should be disclosed separately consistent with the Notes of historical Audited Financial Statements.
A89: Notes:
A90: 1 | B90: This is the net book value of assets that existed as at the date of the utility's change in depreciation policies (i.e. as at Jan. 1, 2012 or Jan. 1, 2013). These assets are to be depreciated at the average remaining service life. This amount will not change in years subsequent to the date of the utility's change in depreciation policies. This column is expected to be used until the assets that existed as at the date of the utility's change in depreciation policies are fully depreciated.
A91: 2 | B91: This is the opening gross book value of assets that have been acquired after the date of the utility's change in depreciation policies (i.e. additions starting in 2012/2013 for those who changed policies Jan. 1, 2012/2013). These assets are to be depreciated at the revised service life. The amount is expected to be equal to the opening gross book value of the prior year plus the prior year's additions.
A92: 3 | B92: A recalculation should be performed to determine the average remaining life of opening balance of assets (i.e. excluding current year's additions) under the change in policies under CGAAP. For example, Asset A had a useful life of 20 years under CGAAP without the change in policies. On January 1 of the year of policy changes, Asset A was 3 years depreciated. As a result, Asset A would have a remaining service life of 17 years (20 years less 3 years) as at January 1 of the year of policy changes. Due to making the change in policies under CGAAP, management re-assessed the asset useful lives and concluded that the revised useful life of Asset A is now 30 years. Therefore, the average remaining useful life of the opening balance of Asset A is determined to be 27 years (30 years less 3 years) under the revised CGAAP as at January 1 of the year of policy changes.
A93: 4 | B93: The useful life used should be consistent with the OEB's regulatory accounting policies as set out in the Accounting Procedures Handbook for Electricity Distributors, effective Jan. 1, 2012 and also with the Report of the Board, Transition to International Financial Reporting Standards, EB-2008-0408, and the Kinectrics Report.
A94: 5 | B94: OEB policy of the "half-year" rule - the applicant must ensure that additions in the year attract a half-year depreciation expense in the first year. Deviations from this standard practice must be supported in the application.
A95: 6 | B95: The applicant must provide an explanation of material variances in evidence.
A96: 7 | B96: This should include assets in column A (excel column C) that become fully depreciated since the date of the policy change. The amount input in b (excel column D) should equal the net book value of the asset as at the date of depreciation policy change
A97: 8 | B97: This should include assets in column D (excel column F) that have become fully depreciated. The amount input in e (excel column G) should equal the gross book value of the asset
A100: 2017 | C100: Book Values | J100: Service Lives | N100: Depreciation Expense
A101: Account | B101: Description | C101: Opening Net Book Value of Existing Assets as at Date of Policy Change (Jan. 1) 1 | D101: Less Fully Depreciated 7 | E101: Net Amount of Existing Assets Before Policy Change to be Depreciated | F101: Opening Gross Book Value of Assets Acquired After Policy Change 2 | G101: Less Fully Depreciated 8 | H101: Net Amount of Assets Acquired After Policy Change to be Depreciated | I101: Current Year Additions | J101: Average Remaining Life of Assets Existing Before Policy Change 3 | K101: Depreciation Rate Assets Acquired After Policy Change | L101: Life of Assets Acquired After Policy Change 4 | M101: Depreciation Rate on New Additions | N101: Depreciation Expense on Assets Existing Before Policy Change | O101: Depreciation Expense on Assets Acquired After Policy Change | P101: Depreciation Expense on Current Year Additions 5 | Q101: Total Current Year Depreciation Expense | R101: Depreciation Expense per Appendix 2-BA Fixed Assets, Column J | S101: Variance 6
C102: a | D102: b | E102: c = a-b | F102: d | G102: e | H102: f = d- e | I102: g | J102: h | K102: i = 1/h | L102: j | M102: k = 1/j | N102: l = c/h | O102: m = f/j | P102: n = g*0.5/j | Q102: o = l+m+n | R102: p | S102: q = p-o
A103: 1611 | B103: Computer Software (Formally known as Account 1925) | C103: 289365.92 | D103: =C103 -> 289365.92 | E103: =C103-D103 -> 0 | F103: ='App.2-BA_Fixed Asset Cont'!D112 -> 808170.27 | G103: 371625.98 | H103: =F103-G103 -> 436544.29 | I103: ='App.2-BA_Fixed Asset Cont'!E112 -> 25271.31 | J103: 3 | K103: =IF(J103=0,0,1/J103) -> 0.3333333333 | L103: 5 | M103: =IF(L103=0,0,1/L103) -> 0.2 | N103: =IF(J103=0,0,+E103/J103) -> 0 | O103: =IF(L103=0,0,+H103/L103) -> 87308.858 | P103: =IF(L103=0,0,+(I103*0.5)/L103) -> 2527.131 | Q103: =IF(ISERROR(+N103+O103+P103), 0, +N103+O103+P103) -> 89835.989 | R103: =-'App.2-BA_Fixed Asset Cont'!J112 -> 89835.99 | S103: =IF(ISERROR(+R103-Q103), 0, +R103-Q103) -> 0.001000000004
A104: 1612 | B104: Land Rights (Formally known as Account 1906) | E104: =C104-D104 -> 0 | F104: ='App.2-BA_Fixed Asset Cont'!D113 -> 0 | H104: =F104-G104 -> 0 | I104: ='App.2-BA_Fixed Asset Cont'!E113 -> 0 | K104: =IF(J104=0,0,1/J104) -> 0 | M104: =IF(L104=0,0,1/L104) -> 0 | N104: =IF(J104=0,0,+E104/J104) -> 0 | O104: =IF(L104=0,0,+H104/L104) -> 0 | P104: =IF(L104=0,0,+(I104*0.5)/L104) -> 0 | Q104: =IF(ISERROR(+N104+O104+P104), 0, +N104+O104+P104) -> 0 | R104: =-'App.2-BA_Fixed Asset Cont'!J113 -> 0 | S104: 0
A105: 1805 | B105: Land | E105: 0 | F105: ='App.2-BA_Fixed Asset Cont'!D114 -> 149992 | H105: 149992 | I105: ='App.2-BA_Fixed Asset Cont'!E114 -> 0 | K105: 0 | M105: 0 | N105: 0 | O105: =IF(L105=0,0,+H105/L105) -> 0 | P105: 0 | Q105: 0 | R105: =-'App.2-BA_Fixed Asset Cont'!J114 -> 0 | S105: 0
A106: 1808 | B106: Buildings and Fixtures (50) | E106: 0 | F106: ='App.2-BA_Fixed Asset Cont'!D115 -> 1256185 | H106: 1256185 | I106: ='App.2-BA_Fixed Asset Cont'!E115 -> 0 | K106: 0 | L106: 50 | M106: 0.02 | N106: 0 | O106: 25123.7 | P106: 0 | Q106: 25123.7 | R106: =-'App.2-BA_Fixed Asset Cont'!J115 -> 25123.7 | S106: 0
A107: 1808 | B107: Buildings and Fixtures (25) | E107: 0 | F107: ='App.2-BA_Fixed Asset Cont'!D116 -> 0 | H107: 0 | I107: ='App.2-BA_Fixed Asset Cont'!E116 -> 6468 | K107: 0 | L107: 25 | M107: =IF(L107=0,0,1/L107) -> 0.04 | N107: =IF(J107=0,0,+E107/J107) -> 0 | O107: =IF(L107=0,0,+H107/L107) -> 0 | P107: =IF(L107=0,0,+(I107*0.5)/L107) -> 129.36 | Q107: =IF(ISERROR(+N107+O107+P107), 0, +N107+O107+P107) -> 129.36 | R107: =-'App.2-BA_Fixed Asset Cont'!J116 -> 129.36 | S107: 0
A108: 1810 | B108: Leasehold Improvements | E108: 0 | F108: ='App.2-BA_Fixed Asset Cont'!D117 -> 0 | H108: 0 | I108: ='App.2-BA_Fixed Asset Cont'!E117 -> 0 | K108: 0 | M108: 0 | N108: 0 | O108: 0 | P108: 0 | Q108: 0 | R108: =-'App.2-BA_Fixed Asset Cont'!J117 -> 0 | S108: 0
A109: 1815 | B109: Transformer Station Equipment >50 kV (10) | C109: 0 | E109: 0 | F109: ='App.2-BA_Fixed Asset Cont'!D118 -> 52224.72 | H109: 52224.72 | I109: ='App.2-BA_Fixed Asset Cont'!E118 -> 50963.47 | J109: 10 | K109: 0.1 | L109: 10 | M109: 0.1 | N109: 0 | O109: 5222.472 | P109: 2548.1735 | Q109: 7770.6455 | R109: =-'App.2-BA_Fixed Asset Cont'!J118 -> 7770.65 | S109: 0
A110: 1815 | B110: Transformer Station Equipment >50 kV (20) | C110: 732309.7 | D110: 524506.66 | E110: 207803.04 | F110: ='App.2-BA_Fixed Asset Cont'!D119 -> 732309.7 | H110: 732309.7 | I110: ='App.2-BA_Fixed Asset Cont'!E119 -> 57977.86 | J110: 8 | K110: 0.125 | L110: 20 | M110: 0.05 | N110: 25975.38 | O110: 36615.485 | P110: 1449.4465 | Q110: 64040.3115 | R110: =-'App.2-BA_Fixed Asset Cont'!J119 -> 64039.83 | S110: =IF(ISERROR(+R110-Q110), 0, +R110-Q110) -> -0.4815
A111: 1815 | B111: Transformer Station Equipment >50 kV (40) | C111: 3355781.43 | D111: 2708610.68 | E111: 647170.75 | F111: ='App.2-BA_Fixed Asset Cont'!D120 -> 3386727.55 | G111: 932982.93 | H111: 2453744.62 | I111: ='App.2-BA_Fixed Asset Cont'!E120 -> 0 | J111: 28 | K111: 0.03571428571 | L111: 40 | M111: 0.025 | N111: 23113.24107 | O111: 61343.6155 | P111: 0 | Q111: 84456.85657 | R111: =-'App.2-BA_Fixed Asset Cont'!J120 -> 84456.85 | S111: -0.006571428559
A112: 1815 | B112: Transformer Station Equipment >50 kV (45) | C112: 2682922.03 | D112: 1873010.93 | E112: 809911.1 | F112: ='App.2-BA_Fixed Asset Cont'!D121 -> 2682922.03 | G112: 1233241.66 | H112: 1449680.37 | I112: ='App.2-BA_Fixed Asset Cont'!E121 -> 0 | J112: 33 | K112: 0.0303030303 | L112: 45 | M112: 0.02222222222 | N112: 24542.76061 | O112: 32215.11933 | P112: 0 | Q112: 56757.87994 | R112: =-'App.2-BA_Fixed Asset Cont'!J121 -> 56757.89 | S112: 0.01006060607
A113: 1815 | B113: Transformer Station Equipment >50 kV (50) | C113: 77278.53 | D113: 54001.17 | E113: 23277.36 | F113: ='App.2-BA_Fixed Asset Cont'!D122 -> 77278.53 | G113: 36852.64 | H113: 40425.89 | I113: ='App.2-BA_Fixed Asset Cont'!E122 -> 0 | J113: 38 | K113: 0.02631578947 | L113: 50 | M113: 0.02 | N113: 612.5621053 | O113: 808.5178 | P113: 0 | Q113: 1421.079905 | R113: =-'App.2-BA_Fixed Asset Cont'!J122 -> 1421.09 | S113: 0.01009473684
A114: 1815 | B114: Transformer Station Equipment >50 kV (55) | C114: 643776.67 | D114: 242715.75 | E114: 401060.92 | F114: ='App.2-BA_Fixed Asset Cont'!D123 -> 643776.67 | G114: 580934.7 | H114: 62841.97 | I114: ='App.2-BA_Fixed Asset Cont'!E123 -> 0 | J114: 43 | K114: 0.02325581395 | L114: 55 | M114: 0.01818181818 | N114: 9326.99814 | O114: 1142.581273 | P114: 0 | Q114: 10469.57941 | R114: =-'App.2-BA_Fixed Asset Cont'!J123 -> 10469.58 | S114: 0.0005877378408
A115: 1820 | B115: Distribution Station Equipment <50 kV | E115: 0 | F115: ='App.2-BA_Fixed Asset Cont'!D124 -> 0 | H115: 0 | I115: ='App.2-BA_Fixed Asset Cont'!E124 -> 0 | K115: 0 | M115: 0 | N115: 0 | O115: 0 | P115: 0 | Q115: 0 | R115: =-'App.2-BA_Fixed Asset Cont'!J124 -> 0 | S115: 0
A116: 1825 | B116: Storage Battery Equipment | E116: 0 | F116: ='App.2-BA_Fixed Asset Cont'!D125 -> 0 | H116: 0 | I116: ='App.2-BA_Fixed Asset Cont'!E125 -> 0 | K116: 0 | M116: 0 | N116: 0 | O116: 0 | P116: 0 | Q116: 0 | R116: =-'App.2-BA_Fixed Asset Cont'!J125 -> 0 | S116: 0
A117: 1830 | B117: Poles, Towers & Fixtures | C117: 3337032.994 | D117: 286299.25 | E117: 3050733.744 | F117: ='App.2-BA_Fixed Asset Cont'!D126 -> 4383845.2 | G117: 3050169.83 | H117: 1333675.37 | I117: ='App.2-BA_Fixed Asset Cont'!E126 -> 189576.05 | J117: 34 | K117: 0.02941176471 | L117: 45 | M117: 0.02222222222 | N117: 89727.46306 | O117: 29637.23044 | P117: 2106.400556 | Q117: 121471.0941 | R117: =-'App.2-BA_Fixed Asset Cont'!J126 -> 120747.59 | S117: -723.5040612
A118: 1835 | B118: Overhead Conductors & Devices | C118: 1897776.008 | D118: 313191.64 | E118: 1584584.368 | F118: ='App.2-BA_Fixed Asset Cont'!D127 -> 3227295 | G118: 1600974 | H118: 1626321 | I118: ='App.2-BA_Fixed Asset Cont'!E127 -> 249898.67 | J118: 54.5 | K118: 0.01834862385 | L118: 60 | M118: 0.01666666667 | N118: 29074.94253 | O118: 27105.35 | P118: 2082.488917 | Q118: 58262.78145 | R118: =-'App.2-BA_Fixed Asset Cont'!J127 -> 58262.79 | S118: 0.008550956387
A119: 1840 | B119: Underground Conduit | C119: 1853805.346 | D119: 253180.04 | E119: 1600625.306 | F119: ='App.2-BA_Fixed Asset Cont'!D128 -> 2490330.9 | G119: 1675113.88 | H119: 815217.02 | I119: ='App.2-BA_Fixed Asset Cont'!E128 -> 348205.08 | J119: 34.73 | K119: 0.02879355024 | L119: 50 | M119: 0.02 | N119: 46087.68517 | O119: 16304.3404 | P119: 3482.0508 | Q119: 65874.07637 | R119: =-'App.2-BA_Fixed Asset Cont'!J128 -> 65874.08 | S119: 0.003628678387
A120: 1845 | B120: Underground Conductors & Devices | C120: 1058667.625 | D120: 220916.32 | E120: 837751.3047 | F120: ='App.2-BA_Fixed Asset Cont'!D129 -> 2142349.87 | G120: 842341.64 | H120: 1300008.23 | I120: ='App.2-BA_Fixed Asset Cont'!E129 -> 317446.1 | J120: 25.3 | K120: 0.0395256917 | L120: 30 | M120: 0.03333333333 | N120: 33112.69979 | O120: 43333.60767 | P120: 5290.768333 | Q120: 81737.07579 | R120: =-'App.2-BA_Fixed Asset Cont'!J129 -> 81737.07 | S120: -0.005790212002
A121: 1850 | B121: Line Transformers | C121: 2978873.637 | D121: 346650.8 | E121: 2632222.837 | F121: ='App.2-BA_Fixed Asset Cont'!D130 -> 4667095.48 | G121: 2593799.57 | H121: 2073295.91 | I121: ='App.2-BA_Fixed Asset Cont'!E130 -> 397743.97 | J121: 29.23 | K121: 0.03421142662 | L121: 40 | M121: 0.025 | N121: 90052.09844 | O121: 51832.39775 | P121: 4971.799625 | Q121: 146856.2958 | R121: =-'App.2-BA_Fixed Asset Cont'!J130 -> 146051.73 | S121: -804.5658158
A122: 1855 | B122: Services Overhead | C122: 134453.7575 | D122: 27745.95 | E122: 106707.8075 | F122: ='App.2-BA_Fixed Asset Cont'!D131 -> 236362.05 | G122: 108258.38 | H122: 128103.67 | I122: ='App.2-BA_Fixed Asset Cont'!E131 -> 24365.25 | J122: 54.73 | K122: 0.01827151471 | L122: 60 | M122: 0.01666666667 | N122: 1949.713275 | O122: 2135.061167 | P122: 203.04375 | Q122: 4287.818192 | R122: =-'App.2-BA_Fixed Asset Cont'!J131 -> 4288.57 | S122: 0.7518084989
A123: 1855 | B123: Services Underground | C123: 505122.3431 | D123: 259545.2 | E123: 245577.1431 | F123: ='App.2-BA_Fixed Asset Cont'!D132 -> 1522378.81 | G123: =267580.54-460.46 -> 267120.08 | H123: 1255258.73 | I123: ='App.2-BA_Fixed Asset Cont'!E132 -> 104182.51 | J123: 31 | K123: 0.03225806452 | L123: 35 | M123: 0.02857142857 | N123: 7921.843325 | O123: 35864.53514 | P123: 1488.321571 | Q123: 45274.70004 | R123: =-'App.2-BA_Fixed Asset Cont'!J132 -> 45274.7 | S123: -3.923423355e-05
A124: 1860 | B124: Meters 15yrs | C124: 1519758.165 | D124: 1254176.81 | E124: 265581.3551 | F124: ='App.2-BA_Fixed Asset Cont'!D133 -> 1818478.54 | G124: 267753.05 | H124: 1550725.49 | I124: ='App.2-BA_Fixed Asset Cont'!E133 -> 72752.4 | J124: 13.8 | K124: 0.07246376812 | L124: 15 | M124: 0.06666666667 | N124: 19245.02573 | O124: 103381.6993 | P124: 2425.08 | Q124: 125051.8051 | R124: =-'App.2-BA_Fixed Asset Cont'!J133 -> 125051.82 | S124: 0.01493479074
A125: 1860 | B125: Meters >50 | C125: 162826.962 | D125: 1842.76 | E125: 160984.202 | F125: ='App.2-BA_Fixed Asset Cont'!D134 -> 319378.85 | G125: 171596.78 | H125: 147782.07 | I125: ='App.2-BA_Fixed Asset Cont'!E134 -> 48814.42 | J125: 19.06 | K125: 0.05246589717 | L125: 25 | M125: 0.04 | N125: 8446.18059 | O125: 5911.2828 | P125: 976.2884 | Q125: 15333.75179 | R125: =-'App.2-BA_Fixed Asset Cont'!J134 -> 15333.75 | S125: -0.001790221851
A126: 1860 | B126: Meters CT's & PT's | C126: 69489.2159 | D126: 6709.5 | E126: 62779.7159 | F126: ='App.2-BA_Fixed Asset Cont'!D135 -> 175170.87 | G126: 63407.32 | H126: 111763.55 | I126: ='App.2-BA_Fixed Asset Cont'!E135 -> 4484.33 | J126: 30.6 | K126: 0.03267973856 | L126: 35 | M126: 0.02857142857 | N126: 2051.624703 | O126: 3193.244286 | P126: 64.06185714 | Q126: 5308.930846 | R126: =-'App.2-BA_Fixed Asset Cont'!J135 -> 5308.92 | S126: -0.01084560062
A127: 1905 | B127: Land | C127: 111555.65 | E127: 111555.65 | F127: ='App.2-BA_Fixed Asset Cont'!D136 -> 111555.65 | H127: 111555.65 | I127: ='App.2-BA_Fixed Asset Cont'!E136 -> 0 | K127: 0 | M127: 0 | N127: 0 | O127: 0 | P127: 0 | Q127: 0 | R127: =-'App.2-BA_Fixed Asset Cont'!J136 -> 0 | S127: 0
A128: 1908 | B128: Buildings and Fixtures (50) | C128: 311425.99 | D128: 161941.52 | E128: 149484.47 | F128: ='App.2-BA_Fixed Asset Cont'!D137 -> 311425.99 | H128: 311425.99 | I128: ='App.2-BA_Fixed Asset Cont'!E137 -> 0 | J128: 24 | K128: 0.04166666667 | L128: 50 | M128: 0.02 | N128: 6228.519583 | O128: 6228.5198 | P128: 0 | Q128: 12457.03938 | R128: =-'App.2-BA_Fixed Asset Cont'!J137 -> 12457.04 | S128: 0.0006166666681
A129: 1908 | B129: Buildings and Fixtures (40) | C129: 29371.6 | D129: 1639.13 | E129: 27732.47 | F129: ='App.2-BA_Fixed Asset Cont'!D138 -> 55126.6 | G129: 29371.6 | H129: 25755 | I129: ='App.2-BA_Fixed Asset Cont'!E138 -> 0 | J129: 19.75 | K129: 0.05063291139 | L129: 40 | M129: 0.025 | N129: 1404.175696 | O129: 643.875 | P129: 0 | Q129: 2048.050696 | R129: =-'App.2-BA_Fixed Asset Cont'!J138 -> 2049.22 | S129: 1.169303797
A130: 1908 | B130: Buildings and Fixtures (25) | C130: 174025.76 | D130: 16357.89 | E130: 157667.87 | F130: ='App.2-BA_Fixed Asset Cont'!D139 -> 348333.04 | G130: 174025.76 | H130: 174307.28 | I130: ='App.2-BA_Fixed Asset Cont'!E139 -> 25478.83 | J130: 23.33 | K130: 0.04286326618 | L130: 25 | M130: 0.04 | N130: 6758.15988 | O130: 6972.2912 | P130: 509.5766 | Q130: 14240.02768 | R130: =-'App.2-BA_Fixed Asset Cont'!J139 -> 14240.03 | S130: 0.002320017145
A131: 1910 | B131: Leasehold Improvements | E131: 0 | F131: ='App.2-BA_Fixed Asset Cont'!D140 -> 0 | H131: 0 | I131: ='App.2-BA_Fixed Asset Cont'!E140 -> 0 | K131: 0 | M131: 0 | N131: 0 | O131: 0 | P131: 0 | Q131: 0 | R131: =-'App.2-BA_Fixed Asset Cont'!J140 -> 0 | S131: 0
A132: 1915 | B132: Office Furniture & Equipment (10 years) | C132: 25914.31 | D132: 11318.43 | E132: 14595.88 | F132: ='App.2-BA_Fixed Asset Cont'!D141 -> 155057.14 | G132: 27001.38 | H132: 128055.76 | I132: ='App.2-BA_Fixed Asset Cont'!E141 -> 1779.99 | J132: 5.67 | K132: 0.176366843 | L132: 10 | M132: 0.1 | N132: 2574.229277 | O132: 12805.576 | P132: 88.9995 | Q132: 15468.80478 | R132: =-'App.2-BA_Fixed Asset Cont'!J141 -> 14592.82 | S132: -875.9847769
A133: 1920 | B133: Computer Equipment - Hardware | C133: 64439.98 | D133: 62871.3 | E133: 1568.68 | F133: ='App.2-BA_Fixed Asset Cont'!D142 -> 132727.76 | G133: 62322.94 | H133: 70404.82 | I133: ='App.2-BA_Fixed Asset Cont'!E142 -> 13758.19 | J133: 3 | K133: 0.3333333333 | L133: 5 | M133: 0.2 | N133: 522.8933333 | O133: 14080.964 | P133: 1375.819 | Q133: 15979.67633 | R133: =-'App.2-BA_Fixed Asset Cont'!J142 -> 16125.36 | S133: 145.6836667
A134: 1920 | B134: Computer Equip.-Hardware(Post Mar. 22/04) | E134: 0 | F134: ='App.2-BA_Fixed Asset Cont'!D143 -> 0 | H134: 0 | I134: ='App.2-BA_Fixed Asset Cont'!E143 -> 0 | K134: 0 | M134: 0 | N134: 0 | O134: 0 | P134: 0 | Q134: 0 | R134: =-'App.2-BA_Fixed Asset Cont'!J143 -> 0 | S134: 0
A135: 1920 | B135: Computer Equip.-Hardware(Post Mar. 19/07) | E135: 0 | F135: ='App.2-BA_Fixed Asset Cont'!D144 -> 0 | H135: 0 | I135: ='App.2-BA_Fixed Asset Cont'!E144 -> 0 | K135: 0 | M135: 0 | N135: 0 | O135: 0 | P135: 0 | Q135: 0 | R135: =-'App.2-BA_Fixed Asset Cont'!J144 -> 0 | S135: 0
A136: 1930 | B136: Transportation Equipment (8) | C136: 17876.08 | D136: 17876.08 | E136: 0 | F136: ='App.2-BA_Fixed Asset Cont'!D145 -> 21466.08 | G136: 14416.83 | H136: 7049.25 | I136: ='App.2-BA_Fixed Asset Cont'!E145 -> 49063 | J136: 4.5 | K136: 0.2222222222 | L136: 8 | M136: 0.125 | N136: 0 | O136: 881.15625 | P136: 3066.4375 | Q136: 3947.59375 | R136: =-'App.2-BA_Fixed Asset Cont'!J145 -> 3515.18 | S136: -432.41375
A137: 1930 | B137: Transportation Equipment (15) | C137: 22698.11 | D137: =C137 -> 22698.11 | E137: 0 | F137: ='App.2-BA_Fixed Asset Cont'!D146 -> 704889.29 | H137: 704889.29 | I137: ='App.2-BA_Fixed Asset Cont'!E146 -> 0 | J137: 2.25 | K137: 0.4444444444 | L137: 15 | M137: 0.06666666667 | N137: 0 | O137: 46992.61933 | P137: 0 | Q137: 46992.61933 | R137: =-'App.2-BA_Fixed Asset Cont'!J146 -> 36576.49 | S137: -10416.12933
A138: 1935 | B138: Stores Equipment | E138: 0 | F138: ='App.2-BA_Fixed Asset Cont'!D147 -> 11962.55 | H138: 11962.55 | I138: ='App.2-BA_Fixed Asset Cont'!E147 -> 0 | K138: 0 | L138: 10 | M138: 0.1 | N138: 0 | O138: 1196.255 | P138: 0 | Q138: 1196.255 | R138: =-'App.2-BA_Fixed Asset Cont'!J147 -> 1196.26 | S138: 0.005
A139: 1940 | B139: Tools, Shop & Garage Equipment | C139: 66736.24 | D139: =24370.95+4512.83 -> 28883.78 | E139: 37852.46 | F139: ='App.2-BA_Fixed Asset Cont'!D148 -> 206792.37 | G139: 62118.08 | H139: 144674.29 | I139: ='App.2-BA_Fixed Asset Cont'!E148 -> 0 | J139: 6.71 | K139: 0.1490312966 | L139: 10 | M139: 0.1 | N139: 5641.201192 | O139: 14467.429 | P139: 0 | Q139: 20108.63019 | R139: =-'App.2-BA_Fixed Asset Cont'!J148 -> 20108.63 | S139: -0.0001922503689 | U139: =S139*J139 -> -0.001289999975
A140: 1945 | B140: Measurement & Testing Equipment | C140: 15272.67 | D140: 15272.67 | E140: 0 | F140: ='App.2-BA_Fixed Asset Cont'!D149 -> 40977.49 | G140: 16287.17 | H140: 24690.32 | I140: ='App.2-BA_Fixed Asset Cont'!E149 -> 3430.91 | J140: 1.5 | K140: 0.6666666667 | L140: 5 | M140: 0.2 | N140: 0 | O140: 4938.064 | P140: 343.091 | Q140: 5281.155 | R140: =-'App.2-BA_Fixed Asset Cont'!J149 -> 5281.16 | S140: 0.004999999998
A141: 1950 | B141: Power Operated Equipment | E141: 0 | F141: ='App.2-BA_Fixed Asset Cont'!D150 -> 0 | H141: 0 | I141: ='App.2-BA_Fixed Asset Cont'!E150 -> 0 | K141: 0 | M141: 0 | N141: 0 | O141: 0 | P141: 0 | Q141: 0 | R141: =-'App.2-BA_Fixed Asset Cont'!J150 -> 0 | S141: 0
A142: 1955 | B142: Communications Equipment | E142: 0 | F142: ='App.2-BA_Fixed Asset Cont'!D151 -> 66585.52 | H142: 66585.52 | I142: ='App.2-BA_Fixed Asset Cont'!E151 -> 5953.49 | K142: 0 | L142: 8.5 | M142: 0.1176470588 | N142: 0 | O142: 7833.590588 | P142: 350.2052941 | Q142: 8183.795882 | R142: =-'App.2-BA_Fixed Asset Cont'!J151 -> 8410.47 | S142: 226.6741176
A143: 1955 | B143: Communication Equipment (Smart Meters) | E143: 0 | F143: ='App.2-BA_Fixed Asset Cont'!D152 -> 0 | H143: 0 | I143: ='App.2-BA_Fixed Asset Cont'!E152 -> 0 | K143: 0 | M143: 0 | N143: 0 | O143: 0 | P143: 0 | Q143: 0 | R143: =-'App.2-BA_Fixed Asset Cont'!J152 -> 0 | S143: 0
A144: 1960 | B144: Miscellaneous Equipment | E144: 0 | F144: ='App.2-BA_Fixed Asset Cont'!D153 -> 0 | H144: 0 | I144: ='App.2-BA_Fixed Asset Cont'!E153 -> 0 | K144: 0 | M144: 0 | N144: 0 | O144: 0 | P144: 0 | Q144: 0 | R144: =-'App.2-BA_Fixed Asset Cont'!J153 -> 0 | S144: 0
A145: 1970 | B145: Load Management Controls Customer Premises | E145: 0 | F145: ='App.2-BA_Fixed Asset Cont'!D154 -> 16438.8 | H145: 16438.8 | I145: ='App.2-BA_Fixed Asset Cont'!E154 -> 0 | K145: 0 | L145: 10 | M145: 0.1 | N145: 0 | O145: 1643.88 | P145: 0 | Q145: 1643.88 | R145: =-'App.2-BA_Fixed Asset Cont'!J154 -> 1643.88 | S145: 2.273736754e-13
A146: 1975 | B146: Load Management Controls Utility Premises | E146: 0 | F146: ='App.2-BA_Fixed Asset Cont'!D155 -> 0 | H146: 0 | I146: ='App.2-BA_Fixed Asset Cont'!E155 -> 0 | K146: 0 | M146: 0 | N146: 0 | O146: 0 | P146: 0 | Q146: 0 | R146: =-'App.2-BA_Fixed Asset Cont'!J155 -> 0 | S146: 0
A147: 1980 | B147: System Supervisor Equipment | E147: 0 | F147: ='App.2-BA_Fixed Asset Cont'!D156 -> 0 | H147: 0 | I147: ='App.2-BA_Fixed Asset Cont'!E156 -> 194995 | K147: 0 | L147: ='Appendix 2-BB Service Life '!L70 -> 20 | M147: 0.05 | N147: 0 | O147: 0 | P147: 4874.875 | Q147: 4874.875 | R147: =-'App.2-BA_Fixed Asset Cont'!J156 -> 4874.88 | S147: 0.005
A148: 1985 | B148: Miscellaneous Fixed Assets | E148: 0 | F148: ='App.2-BA_Fixed Asset Cont'!D157 -> 0 | H148: 0 | K148: 0 | M148: 0 | N148: 0 | O148: 0 | P148: 0 | Q148: 0 | R148: =-'App.2-BA_Fixed Asset Cont'!J157 -> 0 | S148: 0
A149: 1990 | B149: Other Tangible Property | E149: 0 | H149: 0 | K149: 0 | M149: 0 | N149: 0 | O149: 0 | P149: 0 | Q149: 0 | R149: =-'App.2-BA_Fixed Asset Cont'!J158 -> 0 | S149: 0
A150: 1995 | B150: Contributions & Grants -Transformer Station | E150: 0 | F150: -1218270.2 | H150: -1218270.2 | J150: 40 | K150: 0.025 | L150: 40 | M150: 0.025 | N150: 0 | O150: -30456.755 | P150: 0 | Q150: -30456.755 | R150: -30456.755 | S150: -3.637978807e-12
A151: 1995 | B151: Contributions & Grants - Poles | C151: =-13086.59 -> -13086.59 | D151: 145.41 | E151: -13232 | F151: -168208.97 | G151: -13232 | H151: -154976.97 | I151: -40711.57 | J151: 45 | K151: 0.02222222222 | L151: 45 | M151: 0.02222222222 | N151: =IF(J151=0,0,+E151/J151) -> -294.0444444 | O151: =IF(L151=0,0,+H151/L151) -> -3443.932667 | P151: =IF(L151=0,0,+(I151*0.5)/L151) -> -452.3507778 | Q151: =IF(ISERROR(+N151+O151+P151), 0, +N151+O151+P151) -> -4190.327889 | R151: -4190.328111 | S151: -0.0002222222211
A152: 1995 | B152: Contributions & Grants - OH Conductors | C152: =-46607.29 -> -46607.29 | D152: 388.39 | E152: -46995.68 | F152: -125424.93 | G152: -46995.68 | H152: -78429.25 | I152: -52307.97 | J152: 60 | K152: 0.01666666667 | L152: 60 | M152: 0.01666666667 | N152: -783.2613333 | O152: -1307.154167 | P152: -435.89975 | Q152: -2526.31525 | R152: -2526.31525 | S152: 0
A153: 1995 | B153: Contributions & Grants - UG Conduit | C153: =-149903.6 -> -149903.6 | D153: 1499.04 | E153: -151402.64 | F153: -318314.84 | G153: -151402.64 | H153: -166912.2 | I153: -205711.26 | J153: 50 | K153: 0.02 | L153: 50 | M153: 0.02 | N153: -3028.0528 | O153: -3338.244 | P153: -2057.1126 | Q153: -8423.4094 | R153: -8423.4094 | S153: 0
A154: 1995 | B154: Contributions & Grants - UG Conductors | C154: =-105185.96 -> -105185.96 | D154: 1753.1 | E154: -106939.06 | F154: -389101.6 | G154: -106939.06 | H154: -282162.54 | I154: -135203.27 | J154: 30 | K154: 0.03333333333 | L154: 30 | M154: 0.03333333333 | N154: -3564.635333 | O154: -9405.418 | P154: -2253.387833 | Q154: -15223.44117 | R154: -15223.44 | S154: 0.001166666667
A155: 1995 | B155: Contributions & Grants - Line Transformers | C155: =-173795.96 -> -173795.96 | D155: 2172.45 | E155: -175968.41 | F155: -767222.4 | G155: -175968.41 | H155: -591253.99 | I155: -184044.9 | J155: 40 | K155: 0.025 | L155: 40 | M155: 0.025 | N155: -4399.21025 | O155: -14781.34975 | P155: -2300.56125 | Q155: -21481.12125 | R155: -21481.12 | S155: 0.001249999998
A156: 1995 | B156: Contributions & Grants - Services OH | C156: =-414.64 -> -414.64 | D156: 3.46 | E156: -418.1 | F156: -9628.29 | G156: -418.1 | H156: -9210.19 | I156: -1474.28 | J156: 60 | K156: 0.01666666667 | L156: 60 | M156: 0.01666666667 | N156: -6.968333333 | O156: -153.5031667 | P156: -12.28566667 | Q156: -172.7571667 | R156: -172.7571667 | S156: -3.126388037e-13
A157: 1995 | B157: Contributions & Grants - Services UG | C157: =-201559.87 -> -201559.87 | D157: 2879.43 | E157: -204439.3 | F157: -917923.6 | G157: -204439.3 | H157: -713484.3 | I157: -62982.7 | J157: 35 | K157: 0.02857142857 | L157: 35 | M157: 0.02857142857 | N157: -5841.122857 | O157: -20385.26571 | P157: -899.7528571 | Q157: -27126.14143 | R157: -27126.14143 | S157: 2.546585165e-11
A158: 1995 | B158: Contributions & Grants - Meters 15 years | C158: =-10021.18-1137.37 -> -11158.55 | D158: =200.42+22.75 -> 223.17 | E158: -11381.72 | F158: -114565.28 | G158: -11381.72 | H158: -103183.56 | I158: -30765.86 | J158: 15 | K158: 0.06666666667 | L158: 15 | M158: 0.06666666667 | N158: -758.7813333 | O158: -6878.904 | P158: -1025.528667 | Q158: -8663.214 | R158: -8663.204 | S158: 0.009999999998
A159: 1995 | B159: Contributions & Grants - Meters 25 years | C159: =-4447.13-1042.1 -> -5489.23 | D159: =88.94+20.84 -> 109.78 | E159: -5599.01 | F159: -30739.88 | G159: -5599.01 | H159: -25140.87 | I159: -6761.16 | J159: 25 | K159: 0.04 | L159: 25 | M159: 0.04 | N159: -223.9604 | O159: -1005.6348 | P159: -135.2232 | Q159: -1364.8184 | R159: -1364.8184 | S159: 0
A160: 1995 | B160: Contributions & Grants - Meters 35 years | C160: =-2127.34 -> -2127.34 | D160: 30.39 | E160: -2157.73 | F160: -19087.05 | G160: -2157.73 | H160: -16929.32 | I160: -3820.92 | J160: 35 | K160: 0.02857142857 | L160: 35 | M160: 0.02857142857 | N160: -61.64942857 | O160: -483.6948571 | P160: -54.58457143 | Q160: -599.9288571 | R160: -599.9288571 | S160: 1.136868377e-13
A161: 1995 | B161: Contributions & Grants - Load Mgmt Control | E161: 0 | F161: -13598.8 | H161: -13598.8 | J161: 10 | K161: 0.1 | L161: 10 | M161: 0.1 | N161: 0 | O161: -1359.88 | P161: 0 | Q161: -1359.88 | R161: -1359.88 | S161: -2.273736754e-13
A162: 2005 | B162: Property Under Finance Lease | E162: 0 | H162: 0 | K162: 0 | M162: 0 | N162: 0 | O162: 0 | P162: 0 | Q162: 0 | S162: 0
B163: Total | C163: =SUM(C103:C162) -> 21429227.69 | D163: 9010532.91 | E163: 12418694.78 | F163: 28863524.48 | G163: 13463182.55 | H163: 15400341.93 | I163: 1468824.94 | N163: =SUM(N103:N162) -> 415407.711 | O163: 594163.5819 | P163: 30726.73153 | Q163: 1040298.024 | R163: 1027419.282 | S163: -12878.74658
A169: 2018 | C169: Book Values | J169: Service Lives | N169: Depreciation Expense
A170: Account | B170: Description | C170: Opening Net Book Value of Existing Assets as at Date of Policy Change (Jan. 1) 1 | D170: Less Fully Depreciated 7 | E170: Net Amount of Existing Assets Before Policy Change to be Depreciated | F170: Opening Gross Book Value of Assets Acquired After Policy Change 2 | G170: Less Fully Depreciated 8 | H170: Net Amount of Assets Acquired After Policy Change to be Depreciated | I170: Current Year Additions | J170: Average Remaining Life of Assets Existing Before Policy Change 3 | K170: Depreciation Rate Assets Acquired After Policy Change | L170: Life of Assets Acquired After Policy Change 4 | M170: Depreciation Rate on New Additions | N170: Depreciation Expense on Assets Existing Before Policy Change | O170: Depreciation Expense on Assets Acquired After Policy Change | P170: Depreciation Expense on Current Year Additions 5 | Q170: Total Current Year Depreciation Expense | R170: Depreciation Expense per Appendix 2-BA Fixed Assets, Column J | S170: Variance 6
C171: a | D171: b | E171: c = a-b | F171: d | G171: e | H171: f = d- e | I171: g | J171: h | K171: i = 1/h | L171: j | M171: k = 1/j | N171: l = c/h | O171: m = f/j | P171: n = g*0.5/j | Q171: o = l+m+n | R171: p | S171: q = p-o
A172: 1611 | B172: Computer Software (Formally known as Account 1925) | C172: 289365.92 | D172: =C172 -> 289365.92 | E172: =C172-D172 -> 0 | F172: ='App.2-BA_Fixed Asset Cont'!D186 -> 833441.58 | G172: 549601.33 | H172: =F172-G172 -> 283840.25 | I172: ='App.2-BA_Fixed Asset Cont'!E186 -> 24245 | J172: =J103 -> 3 | K172: =IF(J172=0,0,1/J172) -> 0.3333333333 | L172: =L103 -> 5 | M172: =IF(L172=0,0,1/L172) -> 0.2 | N172: =IF(J172=0,0,+E172/J172) -> 0 | O172: =IF(L172=0,0,+H172/L172) -> 56768.05 | P172: =IF(L172=0,0,+(I172*0.5)/L172) -> 2424.5 | Q172: =IF(ISERROR(+N172+O172+P172), 0, +N172+O172+P172) -> 59192.55 | R172: =-'App.2-BA_Fixed Asset Cont'!J186 -> 59192.55 | S172: =IF(ISERROR(+R172-Q172), 0, +R172-Q172) -> -2.182787284e-11
A173: 1612 | B173: Land Rights (Formally known as Account 1906) | E173: =C173-D173 -> 0 | F173: ='App.2-BA_Fixed Asset Cont'!D187 -> 0 | H173: =F173-G173 -> 0 | I173: ='App.2-BA_Fixed Asset Cont'!E187 -> 0 | J173: =J104 -> 0 | K173: =IF(J173=0,0,1/J173) -> 0 | L173: 0 | M173: =IF(L173=0,0,1/L173) -> 0 | N173: =IF(J173=0,0,+E173/J173) -> 0 | O173: =IF(L173=0,0,+H173/L173) -> 0 | P173: =IF(L173=0,0,+(I173*0.5)/L173) -> 0 | Q173: =IF(ISERROR(+N173+O173+P173), 0, +N173+O173+P173) -> 0 | R173: =-'App.2-BA_Fixed Asset Cont'!J187 -> 0 | S173: 0
A174: 1805 | B174: Land | E174: 0 | F174: ='App.2-BA_Fixed Asset Cont'!D188 -> 149992 | H174: 149992 | I174: ='App.2-BA_Fixed Asset Cont'!E188 -> 0 | J174: 0 | K174: 0 | L174: 0 | M174: 0 | N174: 0 | O174: =IF(L174=0,0,+H174/L174) -> 0 | P174: 0 | Q174: 0 | R174: =-'App.2-BA_Fixed Asset Cont'!J188 -> 0 | S174: 0
A175: 1808 | B175: Buildings and Fixtures (50) | E175: 0 | F175: ='App.2-BA_Fixed Asset Cont'!D189 -> 1256185 | H175: 1256185 | I175: ='App.2-BA_Fixed Asset Cont'!E189 -> 0 | J175: 0 | K175: 0 | L175: 50 | M175: 0.02 | N175: 0 | O175: 25123.7 | P175: 0 | Q175: 25123.7 | R175: =-'App.2-BA_Fixed Asset Cont'!J189 -> 25123.7 | S175: 0
A176: 1808 | B176: Buildings and Fixtures (25) | E176: =C176-D176 -> 0 | F176: ='App.2-BA_Fixed Asset Cont'!D190 -> 6468 | H176: =F176-G176 -> 6468 | I176: ='App.2-BA_Fixed Asset Cont'!E190 -> 8255.73 | J176: 0 | K176: =IF(J176=0,0,1/J176) -> 0 | L176: 25 | M176: =IF(L176=0,0,1/L176) -> 0.04 | N176: =IF(J176=0,0,+E176/J176) -> 0 | O176: =IF(L176=0,0,+H176/L176) -> 258.72 | P176: =IF(L176=0,0,+(I176*0.5)/L176) -> 165.1146 | Q176: =IF(ISERROR(+N176+O176+P176), 0, +N176+O176+P176) -> 423.8346 | R176: =-'App.2-BA_Fixed Asset Cont'!J190 -> 423.83 | S176: =IF(ISERROR(+R176-Q176), 0, +R176-Q176) -> -0.0046
A177: 1810 | B177: Leasehold Improvements | E177: 0 | F177: ='App.2-BA_Fixed Asset Cont'!D191 -> 0 | H177: 0 | I177: ='App.2-BA_Fixed Asset Cont'!E191 -> 0 | J177: 0 | K177: 0 | L177: 0 | M177: 0 | N177: 0 | O177: 0 | P177: 0 | Q177: 0 | R177: =-'App.2-BA_Fixed Asset Cont'!J191 -> 0 | S177: 0
A178: 1815 | B178: Transformer Station Equipment >50 kV (10) | C178: 0 | E178: 0 | F178: ='App.2-BA_Fixed Asset Cont'!D192 -> 103188.19 | H178: 103188.19 | I178: ='App.2-BA_Fixed Asset Cont'!E192 -> 0 | J178: 10 | K178: 0.1 | L178: 10 | M178: 0.1 | N178: 0 | O178: 10318.819 | P178: 0 | Q178: 10318.819 | R178: =-'App.2-BA_Fixed Asset Cont'!J192 -> 10318.89 | S178: 0
A179: 1815 | B179: Transformer Station Equipment >50 kV (20) | C179: 732309.7 | D179: 524506.66 | E179: 207803.04 | F179: ='App.2-BA_Fixed Asset Cont'!D193 -> 790287.56 | H179: 790287.56 | I179: ='App.2-BA_Fixed Asset Cont'!E193 -> 8384.35 | J179: 8 | K179: 0.125 | L179: 20 | M179: 0.05 | N179: 25975.38 | O179: 39514.378 | P179: 209.60875 | Q179: 65699.36675 | R179: =-'App.2-BA_Fixed Asset Cont'!J193 -> 65698.88 | S179: =IF(ISERROR(+R179-Q179), 0, +R179-Q179) -> -0.48675
A180: 1815 | B180: Transformer Station Equipment >50 kV (40) | C180: 3355781.43 | D180: 2708610.68 | E180: 647170.75 | F180: ='App.2-BA_Fixed Asset Cont'!D194 -> 3386727.55 | G180: 932982.93 | H180: 2453744.62 | I180: ='App.2-BA_Fixed Asset Cont'!E194 -> 43800 | J180: 28 | K180: 0.03571428571 | L180: 40 | M180: 0.025 | N180: 23113.24107 | O180: 61343.6155 | P180: 547.5 | Q180: 85004.35657 | R180: =-'App.2-BA_Fixed Asset Cont'!J194 -> 85004.35 | S180: -0.006571428559
A181: 1815 | B181: Transformer Station Equipment >50 kV (45) | C181: 2682922.03 | D181: 1873010.93 | E181: 809911.1 | F181: ='App.2-BA_Fixed Asset Cont'!D195 -> 2682922.03 | G181: 1233241.66 | H181: 1449680.37 | I181: ='App.2-BA_Fixed Asset Cont'!E195 -> 0 | J181: 33 | K181: 0.0303030303 | L181: 45 | M181: 0.02222222222 | N181: 24542.76061 | O181: 32215.11933 | P181: 0 | Q181: 56757.87994 | R181: =-'App.2-BA_Fixed Asset Cont'!J195 -> 56757.89 | S181: 0.01006060607
A182: 1815 | B182: Transformer Station Equipment >50 kV (50) | C182: 77278.53 | D182: 54001.17 | E182: 23277.36 | F182: ='App.2-BA_Fixed Asset Cont'!D196 -> 77278.53 | G182: 36852.64 | H182: 40425.89 | I182: ='App.2-BA_Fixed Asset Cont'!E196 -> 0 | J182: 38 | K182: 0.02631578947 | L182: 50 | M182: 0.02 | N182: 612.5621053 | O182: 808.5178 | P182: 0 | Q182: 1421.079905 | R182: =-'App.2-BA_Fixed Asset Cont'!J196 -> 1421.09 | S182: 0.01009473684
A183: 1815 | B183: Transformer Station Equipment >50 kV (55) | C183: 643776.67 | D183: 242715.75 | E183: 401060.92 | F183: ='App.2-BA_Fixed Asset Cont'!D197 -> 643776.67 | G183: 580934.7 | H183: 62841.97 | I183: ='App.2-BA_Fixed Asset Cont'!E197 -> 0 | J183: 43 | K183: 0.02325581395 | L183: 55 | M183: 0.01818181818 | N183: 9326.99814 | O183: 1142.581273 | P183: 0 | Q183: 10469.57941 | R183: =-'App.2-BA_Fixed Asset Cont'!J197 -> 10469.58 | S183: 0.0005877378408
A184: 1820 | B184: Distribution Station Equipment <50 kV | E184: 0 | F184: ='App.2-BA_Fixed Asset Cont'!D198 -> 0 | H184: 0 | I184: ='App.2-BA_Fixed Asset Cont'!E198 -> 0 | J184: 0 | K184: 0 | M184: 0 | N184: 0 | O184: 0 | P184: 0 | Q184: 0 | R184: =-'App.2-BA_Fixed Asset Cont'!J198 -> 0 | S184: 0
A185: 1825 | B185: Storage Battery Equipment | E185: 0 | F185: ='App.2-BA_Fixed Asset Cont'!D199 -> 0 | H185: 0 | I185: ='App.2-BA_Fixed Asset Cont'!E199 -> 0 | J185: 0 | K185: 0 | M185: 0 | N185: 0 | O185: 0 | P185: 0 | Q185: 0 | R185: =-'App.2-BA_Fixed Asset Cont'!J199 -> 0 | S185: 0
A186: 1830 | B186: Poles, Towers & Fixtures | C186: 3337032.994 | D186: 286299.25 | E186: 3050733.744 | F186: ='App.2-BA_Fixed Asset Cont'!D200 -> 4537410.93 | G186: 3050169.83 | H186: 1487241.1 | I186: ='App.2-BA_Fixed Asset Cont'!E200 -> 147603.43 | J186: 34 | K186: 0.02941176471 | L186: 45 | M186: 0.02222222222 | N186: 89727.46306 | O186: 33049.80222 | P186: 1640.038111 | Q186: 124417.3034 | R186: =-'App.2-BA_Fixed Asset Cont'!J200 -> 124417.29 | S186: -0.01339452225
A187: 1835 | B187: Overhead Conductors & Devices | C187: 1897776.008 | D187: 313191.64 | E187: 1584584.368 | F187: ='App.2-BA_Fixed Asset Cont'!D201 -> 3474261.17 | G187: 1600974 | H187: 1873287.17 | I187: ='App.2-BA_Fixed Asset Cont'!E201 -> 89215.74 | J187: 54.5 | K187: 0.01834862385 | L187: 60 | M187: 0.01666666667 | N187: 29074.94253 | O187: 31221.45283 | P187: 743.4645 | Q187: 61039.85987 | R187: =-'App.2-BA_Fixed Asset Cont'!J201 -> 61088.73 | S187: 48.87013429
A188: 1840 | B188: Underground Conduit | C188: 1853805.346 | D188: 253180.04 | E188: 1600625.306 | F188: ='App.2-BA_Fixed Asset Cont'!D202 -> 2838535.98 | G188: 1675113.88 | H188: 1163422.1 | I188: ='App.2-BA_Fixed Asset Cont'!E202 -> 271079.01 | J188: 34.73 | K188: 0.02879355024 | L188: 50 | M188: 0.02 | N188: 46087.68517 | O188: 23268.442 | P188: 2710.7901 | Q188: 72066.91727 | R188: =-'App.2-BA_Fixed Asset Cont'!J202 -> 72066.92 | S188: 0.002728678373
A189: 1845 | B189: Underground Conductors & Devices | C189: 1058667.625 | D189: 220916.32 | E189: 837751.3047 | F189: ='App.2-BA_Fixed Asset Cont'!D203 -> 2459795.97 | G189: 842341.64 | H189: 1617454.33 | I189: ='App.2-BA_Fixed Asset Cont'!E203 -> 189997.37 | J189: 25.3 | K189: 0.0395256917 | L189: 30 | M189: 0.03333333333 | N189: 33112.69979 | O189: 53915.14433 | P189: 3166.622833 | Q189: 90194.46696 | R189: =-'App.2-BA_Fixed Asset Cont'!J203 -> 90194.46 | S189: -0.006956878686
A190: 1850 | B190: Line Transformers | C190: 2978873.637 | D190: 346650.8 | E190: 2632222.837 | F190: ='App.2-BA_Fixed Asset Cont'!D204 -> 5060789.45 | G190: 2593799.57 | H190: 2466989.88 | I190: ='App.2-BA_Fixed Asset Cont'!E204 -> 312527.35 | J190: 29.23 | K190: 0.03421142662 | L190: 40 | M190: 0.025 | N190: 90052.09844 | O190: 61674.747 | P190: 3906.591875 | Q190: 155633.4373 | R190: =-'App.2-BA_Fixed Asset Cont'!J204 -> 154860.3 | S190: -773.1373158
A191: 1855 | B191: Services Overhead | C191: 134453.7575 | D191: 27745.95 | E191: 106707.8075 | F191: ='App.2-BA_Fixed Asset Cont'!D205 -> 259813.55 | G191: 108258.38 | H191: 151555.17 | I191: ='App.2-BA_Fixed Asset Cont'!E205 -> 16095.93 | J191: 54.73 | K191: 0.01827151471 | L191: 60 | M191: 0.01666666667 | N191: 1949.713275 | O191: 2525.9195 | P191: 134.13275 | Q191: 4609.765525 | R191: =-'App.2-BA_Fixed Asset Cont'!J205 -> 4626.36 | S191: 16.59447517
A192: 1855 | B192: Services Underground | C192: 505122.3431 | D192: 259545.2 | E192: 245577.1431 | F192: ='App.2-BA_Fixed Asset Cont'!D206 -> 1626482.57 | G192: 267120.08 | H192: 1359362.49 | I192: ='App.2-BA_Fixed Asset Cont'!E206 -> 169973.44 | J192: 31 | K192: 0.03225806452 | L192: 35 | M192: 0.02857142857 | N192: 7921.843325 | O192: 38838.92829 | P192: 2428.192 | Q192: 49188.96361 | R192: =-'App.2-BA_Fixed Asset Cont'!J206 -> 49204.38 | S192: 15.41638934
A193: 1860 | B193: Meters 15yrs | C193: 1519758.165 | D193: 1254176.81 | E193: 265581.3551 | F193: ='App.2-BA_Fixed Asset Cont'!D207 -> 1891230.94 | G193: 267753.05 | H193: 1623477.89 | I193: ='App.2-BA_Fixed Asset Cont'!E207 -> 108698.56 | J193: 13.8 | K193: 0.07246376812 | L193: 15 | M193: 0.06666666667 | N193: 19245.02573 | O193: 108231.8593 | P193: 3623.285333 | Q193: 131100.1704 | R193: =-'App.2-BA_Fixed Asset Cont'!J207 -> 131100.19 | S193: 0.0196014574
A194: 1860 | B194: Meters >50 | C194: 162826.962 | D194: 1842.76 | E194: 160984.202 | F194: ='App.2-BA_Fixed Asset Cont'!D208 -> 368193.27 | G194: 171596.78 | H194: 196596.49 | I194: ='App.2-BA_Fixed Asset Cont'!E208 -> 33041.28 | J194: 19.06 | K194: 0.05246589717 | L194: 25 | M194: 0.04 | N194: 8446.18059 | O194: 7863.8596 | P194: 660.8256 | Q194: 16970.86579 | R194: =-'App.2-BA_Fixed Asset Cont'!J208 -> 16970.87 | S194: 0.004209778148
A195: 1860 | B195: Meters CT's & PT's | C195: 69489.2159 | D195: 6709.5 | E195: 62779.7159 | F195: ='App.2-BA_Fixed Asset Cont'!D209 -> 179655.2 | G195: 63407.32 | H195: 116247.88 | I195: ='App.2-BA_Fixed Asset Cont'!E209 -> 7279.08 | J195: 30.6 | K195: 0.03267973856 | L195: 35 | M195: 0.02857142857 | N195: 2051.624703 | O195: 3321.368 | P195: 103.9868571 | Q195: 5476.97956 | R195: =-'App.2-BA_Fixed Asset Cont'!J209 -> 5476.98 | S195: 0.0004401136684
A196: 1905 | B196: Land | C196: 111555.65 | E196: 111555.65 | F196: ='App.2-BA_Fixed Asset Cont'!D210 -> 111555.65 | H196: 111555.65 | I196: ='App.2-BA_Fixed Asset Cont'!E210 -> 0 | J196: 0 | K196: 0 | M196: 0 | N196: 0 | O196: 0 | P196: 0 | Q196: 0 | R196: =-'App.2-BA_Fixed Asset Cont'!J210 -> 0 | S196: 0
A197: 1908 | B197: Buildings and Fixtures (50) | C197: 311425.99 | D197: =C197 -> 311425.99 | E197: 0 | F197: ='App.2-BA_Fixed Asset Cont'!D211 -> 311425.99 | H197: 311425.99 | I197: ='App.2-BA_Fixed Asset Cont'!E211 -> 0 | J197: 24 | K197: 0.04166666667 | L197: 50 | M197: 0.02 | N197: 0 | O197: 6228.5198 | P197: 0 | Q197: 6228.5198 | R197: =-'App.2-BA_Fixed Asset Cont'!J211 -> 6228.52 | S197: 0.0002000000004
A198: 1908 | B198: Buildings and Fixtures (40) | C198: 29371.6 | D198: =1639.13+13230.34 -> 14869.47 | E198: 14502.13 | F198: ='App.2-BA_Fixed Asset Cont'!D212 -> 55126.6 | G198: 29371.6 | H198: 25755 | I198: ='App.2-BA_Fixed Asset Cont'!E212 -> 0 | J198: 19.75 | K198: 0.05063291139 | L198: 40 | M198: 0.025 | N198: 734.2850633 | O198: 643.875 | P198: 0 | Q198: 1378.160063 | R198: =-'App.2-BA_Fixed Asset Cont'!J212 -> 1378.16 | S198: -6.329113899e-05
A199: 1908 | B199: Buildings and Fixtures (25) | C199: 174025.76 | D199: 16357.89 | E199: 157667.87 | F199: ='App.2-BA_Fixed Asset Cont'!D213 -> 373811.87 | G199: 174025.76 | H199: 199786.11 | I199: ='App.2-BA_Fixed Asset Cont'!E213 -> 21137.4 | J199: 23.33 | K199: 0.04286326618 | L199: 25 | M199: 0.04 | N199: 6758.15988 | O199: 7991.4444 | P199: 422.748 | Q199: 15172.35228 | R199: =-'App.2-BA_Fixed Asset Cont'!J213 -> 15349.15 | S199: 176.79772
A200: 1910 | B200: Leasehold Improvements | E200: 0 | F200: ='App.2-BA_Fixed Asset Cont'!D214 -> 0 | H200: 0 | I200: ='App.2-BA_Fixed Asset Cont'!E214 -> 0 | J200: 0 | K200: 0 | M200: 0 | N200: 0 | O200: 0 | P200: 0 | Q200: 0 | R200: =-'App.2-BA_Fixed Asset Cont'!J214 -> 0 | S200: 0
A201: 1915 | B201: Office Furniture & Equipment (10 years) | C201: 25914.31 | D201: 11318.43 | E201: 14595.88 | F201: ='App.2-BA_Fixed Asset Cont'!D215 -> 156837.13 | G201: 27001.38 | H201: 129835.75 | I201: ='App.2-BA_Fixed Asset Cont'!E215 -> 6431.67 | J201: 5.67 | K201: 0.176366843 | L201: 10 | M201: 0.1 | N201: 2574.229277 | O201: 12983.575 | P201: 321.5835 | Q201: 15879.38778 | R201: =-'App.2-BA_Fixed Asset Cont'!J215 -> 14405.54 | S201: -1473.847777
A202: 1920 | B202: Computer Equipment - Hardware | C202: 64439.98 | D202: 62871.3 | E202: 1568.68 | F202: ='App.2-BA_Fixed Asset Cont'!D216 -> 145531.95 | G202: =62322.94+27430.9 -> 89753.84 | H202: 55778.11 | I202: ='App.2-BA_Fixed Asset Cont'!E216 -> 3695 | J202: 3 | K202: 0.3333333333 | L202: 5 | M202: 0.2 | N202: 522.8933333 | O202: 11155.622 | P202: 369.5 | Q202: 12048.01533 | R202: =-'App.2-BA_Fixed Asset Cont'!J216 -> 11525.13 | S202: -522.8853333
A203: 1920 | B203: Computer Equip.-Hardware(Post Mar. 22/04) | E203: 0 | F203: ='App.2-BA_Fixed Asset Cont'!D217 -> 0 | H203: 0 | I203: ='App.2-BA_Fixed Asset Cont'!E217 -> 0 | J203: 0 | K203: 0 | M203: 0 | N203: 0 | O203: 0 | P203: 0 | Q203: 0 | R203: =-'App.2-BA_Fixed Asset Cont'!J217 -> 0 | S203: 0
A204: 1920 | B204: Computer Equip.-Hardware(Post Mar. 19/07) | E204: 0 | F204: ='App.2-BA_Fixed Asset Cont'!D218 -> 0 | H204: 0 | I204: ='App.2-BA_Fixed Asset Cont'!E218 -> 0 | J204: 0 | K204: 0 | M204: 0 | N204: 0 | O204: 0 | P204: 0 | Q204: 0 | R204: =-'App.2-BA_Fixed Asset Cont'!J218 -> 0 | S204: 0
A205: 1930 | B205: Transportation Equipment (8) | C205: 17876.08 | D205: 17876.08 | E205: 0 | F205: ='App.2-BA_Fixed Asset Cont'!D219 -> 70529.08 | G205: 14416.83 | H205: 56112.25 | I205: ='App.2-BA_Fixed Asset Cont'!E219 -> 480 | J205: 4.5 | K205: 0.2222222222 | L205: 8 | M205: 0.125 | N205: 0 | O205: 7014.03125 | P205: 30 | Q205: 7044.03125 | R205: =-'App.2-BA_Fixed Asset Cont'!J219 -> 6611.63 | S205: -432.40125
A206: 1930 | B206: Transportation Equipment (15) | C206: 22698.11 | D206: =C206 -> 22698.11 | E206: 0 | F206: ='App.2-BA_Fixed Asset Cont'!D220 -> 704889.29 | H206: 704889.29 | I206: ='App.2-BA_Fixed Asset Cont'!E220 -> 373388 | J206: 2.25 | K206: 0.4444444444 | L206: 15 | M206: 0.06666666667 | N206: =IF(J206=0,0,+E206/J206) -> 0 | O206: =IF(L206=0,0,+H206/L206) -> 46992.61933 | P206: 12446.26667 | Q206: 59438.886 | R206: =-'App.2-BA_Fixed Asset Cont'!J220 -> 59438.89 | S206: 0.004000000001
A207: 1935 | B207: Stores Equipment | E207: 0 | F207: ='App.2-BA_Fixed Asset Cont'!D221 -> 11962.55 | H207: 11962.55 | I207: ='App.2-BA_Fixed Asset Cont'!E221 -> 0 | J207: 0 | K207: 0 | L207: 10 | M207: 0.1 | N207: 0 | O207: 1196.255 | P207: 0 | Q207: 1196.255 | R207: =-'App.2-BA_Fixed Asset Cont'!J221 -> 1196.26 | S207: 0.005
A208: 1940 | B208: Tools, Shop & Garage Equipment | C208: 66736.24 | D208: 30967.19 | E208: 35769.05 | F208: ='App.2-BA_Fixed Asset Cont'!D222 -> 206645.77 | G208: 62118.08 | H208: 144527.69 | I208: ='App.2-BA_Fixed Asset Cont'!E222 -> 1125.76 | J208: 6.71 | K208: 0.1490312966 | L208: 10 | M208: 0.1 | N208: 5330.707899 | O208: 14452.769 | P208: 56.288 | Q208: 19839.7649 | R208: =-'App.2-BA_Fixed Asset Cont'!J222 -> 19275.27 | S208: -564.4948987
A209: 1945 | B209: Measurement & Testing Equipment | C209: 15272.67 | D209: =C209 -> 15272.67 | E209: 0 | F209: ='App.2-BA_Fixed Asset Cont'!D223 -> 44408.4 | G209: =16287.17+1014.48 -> 17301.65 | H209: 27106.75 | I209: ='App.2-BA_Fixed Asset Cont'!E223 -> 2995 | J209: 1.5 | K209: 0.6666666667 | L209: 5 | M209: 0.2 | N209: 0 | O209: 5421.35 | P209: 299.5 | Q209: 5720.85 | R209: =-'App.2-BA_Fixed Asset Cont'!J223 -> 5720.85 | S209: -9.094947018e-13
A210: 1950 | B210: Power Operated Equipment | E210: 0 | F210: ='App.2-BA_Fixed Asset Cont'!D224 -> 0 | H210: 0 | I210: ='App.2-BA_Fixed Asset Cont'!E224 -> 0 | J210: 0 | K210: 0 | M210: 0 | N210: 0 | O210: 0 | P210: 0 | Q210: 0 | R210: =-'App.2-BA_Fixed Asset Cont'!J224 -> 0 | S210: 0
A211: 1955 | B211: Communications Equipment | E211: 0 | F211: ='App.2-BA_Fixed Asset Cont'!D225 -> 72539.01 | H211: 72539.01 | I211: ='App.2-BA_Fixed Asset Cont'!E225 -> 1309.71 | J211: 0 | K211: 0 | L211: 8.5 | M211: 0.1176470588 | N211: 0 | O211: 8534.001176 | P211: 77.04176471 | Q211: 8611.042941 | R211: =-'App.2-BA_Fixed Asset Cont'!J225 -> 8975.21 | S211: 364.1670588
A212: 1955 | B212: Communication Equipment (Smart Meters) | E212: 0 | F212: ='App.2-BA_Fixed Asset Cont'!D226 -> 0 | H212: 0 | I212: ='App.2-BA_Fixed Asset Cont'!E226 -> 0 | J212: 0 | K212: 0 | M212: 0 | N212: 0 | O212: 0 | P212: 0 | Q212: 0 | R212: =-'App.2-BA_Fixed Asset Cont'!J226 -> 0 | S212: 0
A213: 1960 | B213: Miscellaneous Equipment | E213: 0 | F213: ='App.2-BA_Fixed Asset Cont'!D227 -> 0 | H213: 0 | I213: ='App.2-BA_Fixed Asset Cont'!E227 -> 0 | J213: 0 | K213: 0 | M213: 0 | N213: 0 | O213: 0 | P213: 0 | Q213: 0 | R213: =-'App.2-BA_Fixed Asset Cont'!J227 -> 0 | S213: 0
A214: 1970 | B214: Load Management Controls Customer Premises | E214: 0 | F214: ='App.2-BA_Fixed Asset Cont'!D228 -> 16438.8 | H214: 16438.8 | I214: ='App.2-BA_Fixed Asset Cont'!E228 -> 0 | J214: 0 | K214: 0 | L214: 10 | M214: 0.1 | N214: 0 | O214: 1643.88 | P214: 0 | Q214: 1643.88 | R214: =-'App.2-BA_Fixed Asset Cont'!J228 -> 1643.88 | S214: 2.273736754e-13
A215: 1975 | B215: Load Management Controls Utility Premises | E215: 0 | F215: ='App.2-BA_Fixed Asset Cont'!D229 -> 0 | H215: 0 | I215: ='App.2-BA_Fixed Asset Cont'!E229 -> 0 | J215: 0 | K215: 0 | M215: 0 | N215: 0 | O215: 0 | P215: 0 | Q215: 0 | R215: =-'App.2-BA_Fixed Asset Cont'!J229 -> 0 | S215: 0
A216: 1980 | B216: System Supervisor Equipment | E216: 0 | F216: ='App.2-BA_Fixed Asset Cont'!D230 -> 194995 | H216: 194995 | I216: ='App.2-BA_Fixed Asset Cont'!E230 -> 63984.51 | J216: 0 | K216: 0 | L216: 20 | M216: 0.05 | N216: 0 | O216: 9749.75 | P216: 1599.61275 | Q216: 11349.36275 | R216: =-'App.2-BA_Fixed Asset Cont'!J230 -> 11349.36 | S216: -0.00275
A217: 1985 | B217: Miscellaneous Fixed Assets | E217: 0 | F217: ='App.2-BA_Fixed Asset Cont'!D231 -> 0 | H217: 0 | I217: ='App.2-BA_Fixed Asset Cont'!E231 -> 0 | J217: 0 | K217: 0 | M217: 0 | N217: 0 | O217: 0 | P217: 0 | Q217: 0 | R217: =-'App.2-BA_Fixed Asset Cont'!J231 -> 0 | S217: 0
A218: 1990 | B218: Other Tangible Property | E218: 0 | F218: ='App.2-BA_Fixed Asset Cont'!D231 -> 0 | H218: 0 | I218: ='App.2-BA_Fixed Asset Cont'!E231 -> 0 | J218: 0 | K218: 0 | M218: 0 | N218: 0 | O218: 0 | P218: 0 | Q218: 0 | R218: =-'App.2-BA_Fixed Asset Cont'!J227 -> 0 | S218: 0
A219: 1995 | B219: Contributions & Grants -Transformer Station | E219: 0 | F219: -1218270.2 | H219: -1218270.2 | J219: 40 | K219: 0.025 | L219: 40 | M219: 0.025 | N219: 0 | O219: -30456.755 | P219: 0 | Q219: -30456.755 | R219: -30456.745 | S219: 0.009999999998
A220: 1995 | B220: Contributions & Grants - Poles | C220: =-13086.59 -> -13086.59 | D220: 145.41 | E220: -13232 | F220: -208920.54 | G220: -13232 | H220: -195688.54 | I220: -14942.54 | J220: 45 | K220: 0.02222222222 | L220: 45 | M220: 0.02222222222 | N220: -294.0444444 | O220: -4348.634222 | P220: -166.0282222 | Q220: -4808.706889 | R220: -4808.707111 | S220: -0.0002222222211
A221: 1995 | B221: Contributions & Grants - OH Conductors | C221: =-46607.29 -> -46607.29 | D221: 388.39 | E221: -46995.68 | F221: -177732.9 | G221: -46995.68 | H221: -130737.22 | I221: -35923.54 | J221: 60 | K221: 0.01666666667 | L221: 60 | M221: 0.01666666667 | N221: -783.2613333 | O221: -2178.953667 | P221: -299.3628333 | Q221: -3261.577833 | R221: -3261.577833 | S221: 3.637978807e-12
A222: 1995 | B222: Contributions & Grants - UG Conduit | C222: =-149903.6 -> -149903.6 | D222: 1499.04 | E222: -151402.64 | F222: -524026.1 | G222: -151402.64 | H222: -372623.46 | I222: -42455.51 | J222: 50 | K222: 0.02 | L222: 50 | M222: 0.02 | N222: -3028.0528 | O222: -7452.4692 | P222: -424.5551 | Q222: -10905.0771 | R222: -10905.0771 | S222: 0
... 266 more rows

Sheet App.2-D_Overhead
H1: File Number: | I1: =EBNUMBER -> EB-2021-0027
H2: Exhibit:
H3: Tab:
H4: Schedule:
H5: Page:
H7: Date: | I7: 2021-07-30
A9: Appendix 2-D
A10: Overhead Expense
A12: Applicants are to provide a breakdown of OM&A before capitalization in the below table. OM&A before capitalization may be broken down by cost center, program, drivers or another format best suited to focus on capitalized vs. uncapitalized OM&A.
A14: OM&A Before Capitalization
B15: =F15-4 -> 2017 | C15: =G15-4 -> 2018 | D15: =G15-3 -> 2019 | E15: =G15-2 -> 2020 | F15: =G15-1 -> 2021 | G15: =TestYear -> 2022
B16: Historical Year | C16: Historical Year | D16: Historical Year | E16: Historical Year | F16: Bridge Year | G16: Test Year
A17: Lineman's Expenses | B17: 187584 | C17: 211392.03 | D17: 208067.8 | E17: 197992.31 | F17: 197695.96 | G17: 236645.94
A18: Truck Expenses | B18: 98872 | C18: 142765.45 | D18: 149031.98 | E18: 173812.31 | F18: 189496.57 | G18: 192610.24
A20: Total OM&A Before Capitalization (B) | B20: =SUM(B17:B19) -> 286456 | C20: 354157.48 | D20: 357099.78 | E20: 371804.62 | F20: 387192.53 | G20: 429256.18
A22: Applicants are to provide a breakdown of capitalized OM&A in the below table. Capitalized OM&A may be broken down using the categories listed in the table below if possible. Otherwise, applicants are to provide its own break down of capitalized OM&A.
A24: Capitalized OM&A | H24: Directly | I24: Explanation for Change in Overhead Capitalized
B25: =F25-4 -> 2017 | C25: =G25-4 -> 2018 | D25: =G25-3 -> 2019 | E25: =G25-2 -> 2020 | F25: =G25-1 -> 2021 | G25: =TestYear -> 2022 | H25: Attributable?
B26: Historical Year | C26: Historical Year | D26: Historical Year | E26: Historical Year | F26: Bridge Year | G26: Test Year | H26: (Yes/No)
A27: Employee Benefits | B27: 62923.53 | C27: 94217.13 | D27: 109137.18 | E27: 83672.01 | F27: 79296.3 | G27: 113722.37 | H27: Yes
A28: costs of site preparation
A29: Fleet Cost | B29: 51482.89 | C29: 71674.84 | D29: 85335.38 | E29: 68255.02 | F29: 71146.02 | G29: 58498 | H29: Yes
A30: costs of testing whether the asset is functioning properly
A31: professional fees
A33: costs of opening a new facility
A34: costs of introducing a new product or service (including costs of advertising and promotional activities)
A35: costs of conducting business in a new location or with a new class of customer (including costs of staff training)
A36: administration and other general overhead costs
A38: Insert description of additional item(s) and new rows if needed
A40: Total Capitalized OM&A (A) | B40: =SUM(B27:B39) -> 114406.42 | C40: 165891.97 | D40: 194472.56 | E40: 151927.03 | F40: 150442.32 | G40: 172220.37
A42: % of Capitalized OM&A (=A/B) | B42: =IF(ISERROR(B40/B20),"0%",B40/B20) -> 0.3993856648 | C42: 0.4684130066 | D42: 0.5445888541 | E42: 0.4086206083 | F42: 0.3885465456 | G42: 0.401206501

Sheet App.2-EA_Account 1575 (2015) (hidden)
H1: File Number: | I1: =EBNUMBER -> EB-2021-0027
H2: Exhibit:
H3: Tab:
H4: Schedule:
H5: Page:
H7: Date:
A9: Appendix 2-EA
A10: Account 1575 - IFRS-CGAAP Transitional PP&E Amounts
A11: 2015 Adopters of IFRS for Financial Reporting Purposes
A13: For applicants that adopted IFRS on January 1, 2015 for financial reporting purposes
B17: 2014 | C17: =TestYear-3 -> 2019 | D17: =TestYear-2 -> 2020 | E17: =CONCATENATE(TestYear-1," Bridge Year") -> 2021 Bridge Year | F17: =CONCATENATE(TestYear," Rebasing Year") -> 2022 Rebasing Year
A18: Reporting Basis | B18: CGAAP | C18: CGAAP | D18: CGAAP | E18: MIFRS | F18: MIFRS
B19: Actual | C19: Actual | D19: Actual | E19: Forecast | F19: Forecast
D20: $ | E20: $
A21: PP&E Values under CGAAP
A22: Opening net PP&E - Note 1 | C22: =+B25 -> 0 | D22: =+C25 -> 0 | E22: =+D25 -> 0
A23: Net Additions - Note 4
A24: Net Depreciation (amounts should be negative) - Note 4
A25: Closing net PP&E (1) | B25: =SUM(B22:B24) -> 0 | C25: =SUM(C22:C24) -> 0 | D25: =SUM(D22:D24) -> 0 | E25: =SUM(E22:E24) -> 0
A27: PP&E Values under MIFRS (Starts from 2014, the transition year)
A28: Opening net PP&E - Note 1 | C28: =+B31 -> 0 | D28: =+C31 -> 0 | E28: =+D31 -> 0
A29: Net Additions - Note 4
A30: Net Depreciation (amounts should be negative) - Note 4
A31: Closing net PP&E (2) | B31: =SUM(B28:B30) -> 0 | C31: =SUM(C28:C30) -> 0 | D31: =SUM(D28:D30) -> 0 | E31: =SUM(E28:E30) -> 0
A33: Difference in Closing net PP&E, former CGAAP vs. revised CGAAP | B33: =B25-B31 -> 0 | C33: =C25-C31 -> 0 | D33: =D25-D31 -> 0 | E33: =E25-E31 -> 0
A36: Effect on Deferral and Variance Account Rate Riders
A37: Closing balance in Account 1575 | F37: =IF(ISERROR(E33), 0, E33) -> 0 | H37: WACC
A38: Return on Rate Base Associated with Account 1575 balance at WACC - Note 2 | F38: =E33*I37*I38 -> 0 | G38: # of years of rate rider disposition period
A39: Amount included in Deferral and Variance Account Rate Rider Calculation | F39: =F37+F38 -> 0
A41: Notes:
A42: 1 For an applicant that adopted IFRS on January 1, 2015, the PP&E values as of January 1, 2014 under both CGAAP and MIFRS should be the same.
A43: 2 Return on rate base associated with deferred balance is calculated as:
A44: the deferral account closing balance as of 2017 x WACC X # of years of rate rider disposition period
A45: * Please note that the calculation should be adjusted once WACC is updated and finalized in the rate application.
A46: 3 The PP&E deferral account is cleared by including the total balance in the deferral and variance account rate rider calculation.
A47: 4 Net additions are additions net of disposals; Net depreciation is additions to depreciation net of disposals.

Sheet App.2-EB_Account 1576 (2012) (hidden)
K1: File Number: | L1: =EBNUMBER -> EB-2021-0027
K2: Exhibit:
K3: Tab:
K4: Schedule:
K5: Page:
K7: Date:
A9: Appendix 2-EB
A10: Account 1576 - Accounting Changes under CGAAP
A11: 2012 Changes in Accounting Policies under CGAAP
A13: For applicants with a balance in Account 1576 and made capitalization and depreciation expense accounting policy changes under CGAAP effective January 1, 2012. This is the first time the applicant is rebasing with changes in these accounting policies.
B17: Prior Years Rebasing | C17: 2012 | D17: 2013 | E17: 2014 | F17: 2015 | G17: 2016 | H17: 2017 | I17: 2018 Rebasing Year
A18: Reporting Basis | B18: CGAAP | C18: CGAAP | D18: CGAAP | E18: CGAAP | F18: MIFRS - Note 5 | G18: MIFRS | H18: MIFRS | I18: MIFRS
B19: Forecast | C19: Actual | D19: Actual | E19: Actual | F19: Actual | G19: Actual | H19: Forecast | I19: Forecast
C20: $ | D20: $ | E20: $ | F20: $ | G20: $ | H20: $
A21: PP&E Values under former CGAAP
A22: Opening net PP&E - Note 1 | D22: =+C25 -> 0 | E22: =+D25 -> 0 | F22: =+E25 -> 0 | G22: =+F25 -> 0 | H22: =+G25 -> 0
A23: Net Additions - Note 4
A24: Net Depreciation (amounts should be negative) - Note 4
A25: Closing net PP&E (1) | C25: =C22+C23+C24 -> 0 | D25: 0 | E25: 0 | F25: 0 | G25: 0 | H25: 0
A27: PP&E Values under revised CGAAP (Starts from 2012)
A28: Opening net PP&E - Note 1 | D28: =+C31 -> 0 | E28: =+D31 -> 0 | F28: =+E31 -> 0 | G28: =+F31 -> 0 | H28: =+G31 -> 0
A29: Net Additions - Note 4
A30: Net Depreciation (amounts should be negative) - Note 4
A31: Closing net PP&E (2) | C31: =SUM(C28:C30) -> 0 | D31: 0 | E31: 0 | F31: 0 | G31: 0 | H31: 0
A33: Difference in Closing net PP&E, former CGAAP vs. revised CGAAP | C33: =C25-C31 -> 0 | D33: 0 | E33: 0 | F33: 0 | G33: 0 | H33: 0
A36: Effect on Deferral and Variance Account Rate Riders
A37: Closing balance in Account 1576 | I37: =IF(ISERROR(H33), 0, H33) -> 0 | K37: WACC
A38: Return on Rate Base Associated with Account 1576 balance at WACC - Note 2 | I38: =H33*L37*L38 -> 0 | J38: # of years of rate rider disposition period
A39: Amount included in Deferral and Variance Account Rate Rider Calculation | I39: =I37+I38 -> 0
A41: Notes:
A42: 1 For an applicant that made the capitalization and depreciation expense accounting policy changes on January 1, 2012, the PP&E values as of January 1, 2012 under both former CGAAP and revised CGAAP should be the same.
A43: 2 Return on rate base associated with Account 1576 balance is calculated as:
A44: the variance account ending balance as of 2017 x WACC X # of years of rate rider disposition period
A45: * Please note that the calculation should be adjusted once WACC is updated and finalized in the rate application.
A46: 3 Account 1576 is cleared by including the total balance in the deferral and variance account rate rider calculation.
A47: 4 Net additions are additions net of disposals; Net depreciation is additions to depreciation net of disposals.
A48: 5 Differences due to the adoption of MIFRS are to be shown separately in Account 1575 in Appendix 2-EA as Accounts 1575 and 1576 cannot be used interchangably.

Sheet App.2-EC_Account 1576 (2013) (hidden)
J1: File Number: | K1: =EBNUMBER -> EB-2021-0027
J2: Exhibit:
J3: Tab:
J4: Schedule:
J5: Page:
J7: Date:
A9: Appendix 2-EC
A10: Account 1576 - Accounting Changes under CGAAP
A11: 2013 Changes in Accounting Policies under CGAAP
A13: For applicants with a balance in Account 1576 and made capitalization and depreciation expense accounting policy changes under CGAAP effective January 1, 2013. This is the first time the applicant is rebasing with changes in these accounting policies.
B17: Prior Years Rebasing | C17: 2013 | D17: 2014 | E17: 2015 | F17: 2016 | G17: 2017 | H17: 2018 Rebasing Year
A18: Reporting Basis | B18: CGAAP | C18: CGAAP | D18: CGAAP | E18: MIFRS - Note 5 | F18: MIFRS | G18: MIFRS | H18: MIFRS
B19: Actual | C19: Actual | D19: Actual | E19: Actual | F19: Actual | G19: Forecast | H19: Forecast
C20: $ | D20: $ | F20: $
A21: PP&E Values under former CGAAP
A22: Opening net PP&E - Note 1 | D22: =+C25 -> 0 | E22: =+D25 -> 0 | F22: =+E25 -> 0 | G22: =+F25 -> 0
A23: Net Additions - Note 4
A24: Net Depreciation (amounts should be negative) - Note 4
A25: Closing net PP&E (1) | C25: =C22+C23+C24 -> 0 | D25: =D22+D23+D24 -> 0 | E25: =E22+E23+E24 -> 0 | F25: =F22+F23+F24 -> 0 | G25: =G22+G23+G24 -> 0
A27: PP&E Values under revised CGAAP (Starts from 2012)
A28: Opening net PP&E - Note 1 | D28: =+C31 -> 0 | E28: =+D31 -> 0 | F28: =+E31 -> 0 | G28: =+F31 -> 0
A29: Net Additions - Note 4
A30: Net Depreciation (amounts should be negative) - Note 4
A31: Closing net PP&E (2) | C31: =SUM(C28:C30) -> 0 | D31: =SUM(D28:D30) -> 0 | E31: =SUM(E28:E30) -> 0 | F31: =SUM(F28:F30) -> 0 | G31: =SUM(G28:G30) -> 0
A33: Difference in Closing net PP&E, former CGAAP vs. revised CGAAP | C33: =C25-C31 -> 0 | D33: =D25-D31 -> 0 | E33: =E25-E31 -> 0 | F33: =F25-F31 -> 0 | G33: =G25-G31 -> 0
A36: Effect on Deferral and Variance Account Rate Riders
A37: Closing balance in Account 1576 | H37: =IF(ISERROR(G33), 0, G33) -> 0 | J37: WACC
A38: Return on Rate Base Associated with Account 1576 balance at WACC - Note 2 | H38: =G33*K37*K38 -> 0 | I38: # of years of rate rider disposition period
A39: Amount included in Deferral and Variance Account Rate Rider Calculation | H39: =H37+H38 -> 0
A41: Notes:
A42: 1 For an applicant that made the capitalization and depreciation expense accounting policy changes on January 1, 2013, the PP&E values as of January 1, 2013 under both former CGAAP and revised CGAAP should be the same.
A43: 2 Return on rate base associated with Account 1576 balance is calculated as:
A44: the variance account ending balance as of 2017 x WACC X # of years of rate rider disposition period
A45: * Please note that the calculation should be adjusted once WACC is updated and finalized in the rate application.
A46: 3 Account 1576 is cleared by including the total balance in the deferral and variance account rate rider calculation.
A47: 4 Net additions are additions net of disposals; Net depreciation is additions to depreciation net of disposals.
A48: 5 Differences due to the adoption of MIFRS are to be shown separately in Account 1575 in Appendix 2-EA as Accounts 1575 and 1576 cannot be used interchangably.

Sheet Hidden_REG Invest. (hidden)
A1: Utility Name | B1: EB Number | C1: Test Year | D1: Bridge Year | E1: Last Rebasing Year | F1: Renewable Generation Connection Investment Summary | G1: Year | H1: Amount
A2: ='LDC Info'!$E$14 -> Grimsby Power Incorporated | B2: =EBNUMBER -> EB-2021-0027 | C2: =TestYear -> 2022 | D2: =BridgeYear -> 2021 | E2: =RebaseYear -> 2016 | F2: REI Investments_A_Total Capital Costs | G2: ='App.2-FA Proposed REG Invest.'!$C$31 -> 2017 | H2: ='App.2-FA Proposed REG Invest.'!C62 -> 0
A3: ='LDC Info'!$E$14 -> Grimsby Power Incorporated | B3: EB-2021-0027 | C3: 2022 | D3: 2021 | E3: 2016 | F3: REI Investments_A_Total OM&A Start-Up | G3: ='App.2-FA Proposed REG Invest.'!$C$31 -> 2017 | H3: ='App.2-FA Proposed REG Invest.'!$C63 -> 0
A4: ='LDC Info'!$E$14 -> Grimsby Power Incorporated | B4: EB-2021-0027 | C4: 2022 | D4: 2021 | E4: 2016 | F4: REI Investments_A_Total OM&A Ongoing | G4: ='App.2-FA Proposed REG Invest.'!$C$31 -> 2017 | H4: ='App.2-FA Proposed REG Invest.'!$C64 -> 0
A5: ='LDC Info'!$E$14 -> Grimsby Power Incorporated | B5: EB-2021-0027 | C5: 2022 | D5: 2021 | E5: 2016 | F5: REI Investments_A_Total Capital Costs | G5: ='App.2-FA Proposed REG Invest.'!$D$31 -> 2018 | H5: ='App.2-FA Proposed REG Invest.'!D62 -> 0
A6: ='LDC Info'!$E$14 -> Grimsby Power Incorporated | B6: EB-2021-0027 | C6: 2022 | D6: 2021 | E6: 2016 | F6: REI Investments_A_Total OM&A Start-Up | G6: ='App.2-FA Proposed REG Invest.'!$D$31 -> 2018 | H6: ='App.2-FA Proposed REG Invest.'!D63 -> 0
A7: ='LDC Info'!$E$14 -> Grimsby Power Incorporated | B7: EB-2021-0027 | C7: 2022 | D7: 2021 | E7: 2016 | F7: REI Investments_A_Total OM&A Ongoing | G7: ='App.2-FA Proposed REG Invest.'!$D$31 -> 2018 | H7: ='App.2-FA Proposed REG Invest.'!D64 -> 0
A8: ='LDC Info'!$E$14 -> Grimsby Power Incorporated | B8: EB-2021-0027 | C8: 2022 | D8: 2021 | E8: 2016 | F8: REI Investments_A_Total Capital Costs | G8: ='App.2-FA Proposed REG Invest.'!$E$31 -> 2019 | H8: ='App.2-FA Proposed REG Invest.'!E62 -> 0
A9: ='LDC Info'!$E$14 -> Grimsby Power Incorporated | B9: EB-2021-0027 | C9: 2022 | D9: 2021 | E9: 2016 | F9: REI Investments_A_Total OM&A Start-Up | G9: ='App.2-FA Proposed REG Invest.'!$E$31 -> 2019 | H9: ='App.2-FA Proposed REG Invest.'!E63 -> 0
A10: ='LDC Info'!$E$14 -> Grimsby Power Incorporated | B10: EB-2021-0027 | C10: 2022 | D10: 2021 | E10: 2016 | F10: REI Investments_A_Total OM&A Ongoing | G10: ='App.2-FA Proposed REG Invest.'!$E$31 -> 2019 | H10: ='App.2-FA Proposed REG Invest.'!E64 -> 0
A11: ='LDC Info'!$E$14 -> Grimsby Power Incorporated | B11: EB-2021-0027 | C11: 2022 | D11: 2021 | E11: 2016 | F11: REI Investments_A_Total Capital Costs | G11: ='App.2-FA Proposed REG Invest.'!$F$31 -> 2020 | H11: ='App.2-FA Proposed REG Invest.'!F62 -> 0
A12: ='LDC Info'!$E$14 -> Grimsby Power Incorporated | B12: EB-2021-0027 | C12: 2022 | D12: 2021 | E12: 2016 | F12: REI Investments_A_Total OM&A Start-Up | G12: ='App.2-FA Proposed REG Invest.'!$F$31 -> 2020 | H12: ='App.2-FA Proposed REG Invest.'!F63 -> 0
A13: ='LDC Info'!$E$14 -> Grimsby Power Incorporated | B13: EB-2021-0027 | C13: 2022 | D13: 2021 | E13: 2016 | F13: REI Investments_A_Total OM&A Ongoing | G13: ='App.2-FA Proposed REG Invest.'!$F$31 -> 2020 | H13: ='App.2-FA Proposed REG Invest.'!F64 -> 0
A14: ='LDC Info'!$E$14 -> Grimsby Power Incorporated | B14: EB-2021-0027 | C14: 2022 | D14: 2021 | E14: 2016 | F14: REI Investments_A_Total Capital Costs | G14: ='App.2-FA Proposed REG Invest.'!$G$31 -> 2021 | H14: ='App.2-FA Proposed REG Invest.'!G62 -> 0
A15: ='LDC Info'!$E$14 -> Grimsby Power Incorporated | B15: EB-2021-0027 | C15: 2022 | D15: 2021 | E15: 2016 | F15: REI Investments_A_Total OM&A Start-Up | G15: ='App.2-FA Proposed REG Invest.'!$G$31 -> 2021 | H15: ='App.2-FA Proposed REG Invest.'!G63 -> 0
A16: ='LDC Info'!$E$14 -> Grimsby Power Incorporated | B16: EB-2021-0027 | C16: 2022 | D16: 2021 | E16: 2016 | F16: REI Investments_A_Total OM&A Ongoing | G16: ='App.2-FA Proposed REG Invest.'!$G$31 -> 2021 | H16: ='App.2-FA Proposed REG Invest.'!G64 -> 0
A17: ='LDC Info'!$E$14 -> Grimsby Power Incorporated | B17: EB-2021-0027 | C17: 2022 | D17: 2021 | E17: 2016 | F17: REI Investments_A_Total Capital Costs | G17: ='App.2-FA Proposed REG Invest.'!$H$31 -> 2022 | H17: ='App.2-FA Proposed REG Invest.'!H62 -> 0
A18: ='LDC Info'!$E$14 -> Grimsby Power Incorporated | B18: EB-2021-0027 | C18: 2022 | D18: 2021 | E18: 2016 | F18: REI Investments_A_Total OM&A Start-Up | G18: ='App.2-FA Proposed REG Invest.'!$H$31 -> 2022 | H18: ='App.2-FA Proposed REG Invest.'!H63 -> 0
A19: ='LDC Info'!$E$14 -> Grimsby Power Incorporated | B19: EB-2021-0027 | C19: 2022 | D19: 2021 | E19: 2016 | F19: REI Investments_A_Total OM&A Ongoing | G19: ='App.2-FA Proposed REG Invest.'!$H$31 -> 2022 | H19: ='App.2-FA Proposed REG Invest.'!H64 -> 0
A20: ='LDC Info'!$E$14 -> Grimsby Power Incorporated | B20: EB-2021-0027 | C20: 2022 | D20: 2021 | E20: 2016 | F20: REI Investments_A_Total Capital Costs | G20: ='App.2-FA Proposed REG Invest.'!$I$31 -> 2023 | H20: ='App.2-FA Proposed REG Invest.'!I62 -> 0
A21: ='LDC Info'!$E$14 -> Grimsby Power Incorporated | B21: EB-2021-0027 | C21: 2022 | D21: 2021 | E21: 2016 | F21: REI Investments_A_Total OM&A Start-Up | G21: ='App.2-FA Proposed REG Invest.'!$I$31 -> 2023 | H21: ='App.2-FA Proposed REG Invest.'!I63 -> 0
A22: ='LDC Info'!$E$14 -> Grimsby Power Incorporated | B22: EB-2021-0027 | C22: 2022 | D22: 2021 | E22: 2016 | F22: REI Investments_A_Total OM&A Ongoing | G22: ='App.2-FA Proposed REG Invest.'!$I$31 -> 2023 | H22: ='App.2-FA Proposed REG Invest.'!I64 -> 0
A23: ='LDC Info'!$E$14 -> Grimsby Power Incorporated | B23: EB-2021-0027 | C23: 2022 | D23: 2021 | E23: 2016 | F23: REI Investments_A_Total Capital Costs | G23: ='App.2-FA Proposed REG Invest.'!$J$31 -> 2024 | H23: ='App.2-FA Proposed REG Invest.'!J62 -> 0
A24: ='LDC Info'!$E$14 -> Grimsby Power Incorporated | B24: EB-2021-0027 | C24: 2022 | D24: 2021 | E24: 2016 | F24: REI Investments_A_Total OM&A Start-Up | G24: ='App.2-FA Proposed REG Invest.'!$J$31 -> 2024 | H24: ='App.2-FA Proposed REG Invest.'!J63 -> 0
A25: ='LDC Info'!$E$14 -> Grimsby Power Incorporated | B25: EB-2021-0027 | C25: 2022 | D25: 2021 | E25: 2016 | F25: REI Investments_A_Total OM&A Ongoing | G25: ='App.2-FA Proposed REG Invest.'!$J$31 -> 2024 | H25: ='App.2-FA Proposed REG Invest.'!J64 -> 0
A26: ='LDC Info'!$E$14 -> Grimsby Power Incorporated | B26: EB-2021-0027 | C26: 2022 | D26: 2021 | E26: 2016 | F26: REI Investments_A_Total Capital Costs | G26: ='App.2-FA Proposed REG Invest.'!$K$31 -> 2025 | H26: ='App.2-FA Proposed REG Invest.'!K62 -> 0
A27: ='LDC Info'!$E$14 -> Grimsby Power Incorporated | B27: EB-2021-0027 | C27: 2022 | D27: 2021 | E27: 2016 | F27: REI Investments_A_Total OM&A Start-Up | G27: ='App.2-FA Proposed REG Invest.'!$K$31 -> 2025 | H27: ='App.2-FA Proposed REG Invest.'!K63 -> 0
A28: ='LDC Info'!$E$14 -> Grimsby Power Incorporated | B28: EB-2021-0027 | C28: 2022 | D28: 2021 | E28: 2016 | F28: REI Investments_A_Total OM&A Ongoing | G28: ='App.2-FA Proposed REG Invest.'!$K$31 -> 2025 | H28: ='App.2-FA Proposed REG Invest.'!K64 -> 0
A29: ='LDC Info'!$E$14 -> Grimsby Power Incorporated | B29: EB-2021-0027 | C29: 2022 | D29: 2021 | E29: 2016 | F29: REI Investments_A_Total Capital Costs | G29: ='App.2-FA Proposed REG Invest.'!$L$31 -> 2026 | H29: ='App.2-FA Proposed REG Invest.'!L62 -> 0
A30: ='LDC Info'!$E$14 -> Grimsby Power Incorporated | B30: EB-2021-0027 | C30: 2022 | D30: 2021 | E30: 2016 | F30: REI Investments_A_Total OM&A Start-Up | G30: ='App.2-FA Proposed REG Invest.'!$L$31 -> 2026 | H30: ='App.2-FA Proposed REG Invest.'!L63 -> 0
A31: ='LDC Info'!$E$14 -> Grimsby Power Incorporated | B31: EB-2021-0027 | C31: 2022 | D31: 2021 | E31: 2016 | F31: REI Investments_A_Total OM&A Ongoing | G31: ='App.2-FA Proposed REG Invest.'!$L$31 -> 2026 | H31: ='App.2-FA Proposed REG Invest.'!L64 -> 0
A32: ='LDC Info'!$E$14 -> Grimsby Power Incorporated | B32: EB-2021-0027 | C32: 2022 | D32: 2021 | E32: 2016 | F32: Expansion Investments_B_Total Capital Costs | G32: ='App.2-FA Proposed REG Invest.'!$C$31 -> 2017 | H32: ='App.2-FA Proposed REG Invest.'!C99 -> 0
A33: ='LDC Info'!$E$14 -> Grimsby Power Incorporated | B33: EB-2021-0027 | C33: 2022 | D33: 2021 | E33: 2016 | F33: Expansion Investments_B_Total OM&A Start-Up | G33: ='App.2-FA Proposed REG Invest.'!$C$31 -> 2017 | H33: ='App.2-FA Proposed REG Invest.'!C100 -> 0
A34: ='LDC Info'!$E$14 -> Grimsby Power Incorporated | B34: EB-2021-0027 | C34: 2022 | D34: 2021 | E34: 2016 | F34: Expansion Investments_B_Total OM&A Ongoing | G34: ='App.2-FA Proposed REG Invest.'!$C$31 -> 2017 | H34: ='App.2-FA Proposed REG Invest.'!C101 -> 0
A35: ='LDC Info'!$E$14 -> Grimsby Power Incorporated | B35: EB-2021-0027 | C35: 2022 | D35: 2021 | E35: 2016 | F35: Expansion Investments_B_Total Capital Costs | G35: ='App.2-FA Proposed REG Invest.'!$D$31 -> 2018 | H35: ='App.2-FA Proposed REG Invest.'!D99 -> 0
A36: ='LDC Info'!$E$14 -> Grimsby Power Incorporated | B36: EB-2021-0027 | C36: 2022 | D36: 2021 | E36: 2016 | F36: Expansion Investments_B_Total OM&A Start-Up | G36: ='App.2-FA Proposed REG Invest.'!$D$31 -> 2018 | H36: ='App.2-FA Proposed REG Invest.'!D100 -> 0
A37: ='LDC Info'!$E$14 -> Grimsby Power Incorporated | B37: EB-2021-0027 | C37: 2022 | D37: 2021 | E37: 2016 | F37: Expansion Investments_B_Total OM&A Ongoing | G37: ='App.2-FA Proposed REG Invest.'!$D$31 -> 2018 | H37: ='App.2-FA Proposed REG Invest.'!D101 -> 0
A38: ='LDC Info'!$E$14 -> Grimsby Power Incorporated | B38: EB-2021-0027 | C38: 2022 | D38: 2021 | E38: 2016 | F38: Expansion Investments_B_Total Capital Costs | G38: ='App.2-FA Proposed REG Invest.'!$E$31 -> 2019 | H38: ='App.2-FA Proposed REG Invest.'!E99 -> 0
A39: ='LDC Info'!$E$14 -> Grimsby Power Incorporated | B39: EB-2021-0027 | C39: 2022 | D39: 2021 | E39: 2016 | F39: Expansion Investments_B_Total OM&A Start-Up | G39: ='App.2-FA Proposed REG Invest.'!$E$31 -> 2019 | H39: ='App.2-FA Proposed REG Invest.'!E100 -> 0
A40: ='LDC Info'!$E$14 -> Grimsby Power Incorporated | B40: EB-2021-0027 | C40: 2022 | D40: 2021 | E40: 2016 | F40: Expansion Investments_B_Total OM&A Ongoing | G40: ='App.2-FA Proposed REG Invest.'!$E$31 -> 2019 | H40: ='App.2-FA Proposed REG Invest.'!E101 -> 0
A41: ='LDC Info'!$E$14 -> Grimsby Power Incorporated | B41: EB-2021-0027 | C41: 2022 | D41: 2021 | E41: 2016 | F41: Expansion Investments_B_Total Capital Costs | G41: ='App.2-FA Proposed REG Invest.'!$F$31 -> 2020 | H41: ='App.2-FA Proposed REG Invest.'!F99 -> 0
A42: ='LDC Info'!$E$14 -> Grimsby Power Incorporated | B42: EB-2021-0027 | C42: 2022 | D42: 2021 | E42: 2016 | F42: Expansion Investments_B_Total OM&A Start-Up | G42: ='App.2-FA Proposed REG Invest.'!$F$31 -> 2020 | H42: ='App.2-FA Proposed REG Invest.'!F100 -> 0
A43: ='LDC Info'!$E$14 -> Grimsby Power Incorporated | B43: EB-2021-0027 | C43: 2022 | D43: 2021 | E43: 2016 | F43: Expansion Investments_B_Total OM&A Ongoing | G43: ='App.2-FA Proposed REG Invest.'!$F$31 -> 2020 | H43: ='App.2-FA Proposed REG Invest.'!F101 -> 0
A44: ='LDC Info'!$E$14 -> Grimsby Power Incorporated | B44: EB-2021-0027 | C44: 2022 | D44: 2021 | E44: 2016 | F44: Expansion Investments_B_Total Capital Costs | G44: ='App.2-FA Proposed REG Invest.'!$G$31 -> 2021 | H44: ='App.2-FA Proposed REG Invest.'!G99 -> 0
A45: ='LDC Info'!$E$14 -> Grimsby Power Incorporated | B45: EB-2021-0027 | C45: 2022 | D45: 2021 | E45: 2016 | F45: Expansion Investments_B_Total OM&A Start-Up | G45: ='App.2-FA Proposed REG Invest.'!$G$31 -> 2021 | H45: ='App.2-FA Proposed REG Invest.'!G100 -> 0
A46: ='LDC Info'!$E$14 -> Grimsby Power Incorporated | B46: EB-2021-0027 | C46: 2022 | D46: 2021 | E46: 2016 | F46: Expansion Investments_B_Total OM&A Ongoing | G46: ='App.2-FA Proposed REG Invest.'!$G$31 -> 2021 | H46: ='App.2-FA Proposed REG Invest.'!G101 -> 0
A47: ='LDC Info'!$E$14 -> Grimsby Power Incorporated | B47: EB-2021-0027 | C47: 2022 | D47: 2021 | E47: 2016 | F47: Expansion Investments_B_Total Capital Costs | G47: ='App.2-FA Proposed REG Invest.'!$H$31 -> 2022 | H47: ='App.2-FA Proposed REG Invest.'!H99 -> 0
A48: ='LDC Info'!$E$14 -> Grimsby Power Incorporated | B48: EB-2021-0027 | C48: 2022 | D48: 2021 | E48: 2016 | F48: Expansion Investments_B_Total OM&A Start-Up | G48: ='App.2-FA Proposed REG Invest.'!$H$31 -> 2022 | H48: ='App.2-FA Proposed REG Invest.'!H100 -> 0
A49: ='LDC Info'!$E$14 -> Grimsby Power Incorporated | B49: EB-2021-0027 | C49: 2022 | D49: 2021 | E49: 2016 | F49: Expansion Investments_B_Total OM&A Ongoing | G49: ='App.2-FA Proposed REG Invest.'!$H$31 -> 2022 | H49: ='App.2-FA Proposed REG Invest.'!H101 -> 0
A50: ='LDC Info'!$E$14 -> Grimsby Power Incorporated | B50: EB-2021-0027 | C50: 2022 | D50: 2021 | E50: 2016 | F50: Expansion Investments_B_Total Capital Costs | G50: ='App.2-FA Proposed REG Invest.'!$I$31 -> 2023 | H50: ='App.2-FA Proposed REG Invest.'!I99 -> 0
A51: ='LDC Info'!$E$14 -> Grimsby Power Incorporated | B51: EB-2021-0027 | C51: 2022 | D51: 2021 | E51: 2016 | F51: Expansion Investments_B_Total OM&A Start-Up | G51: ='App.2-FA Proposed REG Invest.'!$I$31 -> 2023 | H51: ='App.2-FA Proposed REG Invest.'!I100 -> 0
A52: ='LDC Info'!$E$14 -> Grimsby Power Incorporated | B52: EB-2021-0027 | C52: 2022 | D52: 2021 | E52: 2016 | F52: Expansion Investments_B_Total OM&A Ongoing | G52: ='App.2-FA Proposed REG Invest.'!$I$31 -> 2023 | H52: ='App.2-FA Proposed REG Invest.'!I101 -> 0
A53: ='LDC Info'!$E$14 -> Grimsby Power Incorporated | B53: EB-2021-0027 | C53: 2022 | D53: 2021 | E53: 2016 | F53: Expansion Investments_B_Total Capital Costs | G53: ='App.2-FA Proposed REG Invest.'!$J$31 -> 2024 | H53: ='App.2-FA Proposed REG Invest.'!J99 -> 0
A54: ='LDC Info'!$E$14 -> Grimsby Power Incorporated | B54: EB-2021-0027 | C54: 2022 | D54: 2021 | E54: 2016 | F54: Expansion Investments_B_Total OM&A Start-Up | G54: ='App.2-FA Proposed REG Invest.'!$J$31 -> 2024 | H54: ='App.2-FA Proposed REG Invest.'!J100 -> 0
A55: ='LDC Info'!$E$14 -> Grimsby Power Incorporated | B55: EB-2021-0027 | C55: 2022 | D55: 2021 | E55: 2016 | F55: Expansion Investments_B_Total OM&A Ongoing | G55: ='App.2-FA Proposed REG Invest.'!$J$31 -> 2024 | H55: ='App.2-FA Proposed REG Invest.'!J101 -> 0
A56: ='LDC Info'!$E$14 -> Grimsby Power Incorporated | B56: EB-2021-0027 | C56: 2022 | D56: 2021 | E56: 2016 | F56: Expansion Investments_B_Total Capital Costs | G56: ='App.2-FA Proposed REG Invest.'!$K$31 -> 2025 | H56: ='App.2-FA Proposed REG Invest.'!K99 -> 0
A57: ='LDC Info'!$E$14 -> Grimsby Power Incorporated | B57: EB-2021-0027 | C57: 2022 | D57: 2021 | E57: 2016 | F57: Expansion Investments_B_Total OM&A Start-Up | G57: ='App.2-FA Proposed REG Invest.'!$K$31 -> 2025 | H57: ='App.2-FA Proposed REG Invest.'!K100 -> 0
A58: ='LDC Info'!$E$14 -> Grimsby Power Incorporated | B58: EB-2021-0027 | C58: 2022 | D58: 2021 | E58: 2016 | F58: Expansion Investments_B_Total OM&A Ongoing | G58: ='App.2-FA Proposed REG Invest.'!$K$31 -> 2025 | H58: ='App.2-FA Proposed REG Invest.'!K101 -> 0
A59: ='LDC Info'!$E$14 -> Grimsby Power Incorporated | B59: EB-2021-0027 | C59: 2022 | D59: 2021 | E59: 2016 | F59: Expansion Investments_B_Total Capital Costs | G59: ='App.2-FA Proposed REG Invest.'!$L$31 -> 2026 | H59: ='App.2-FA Proposed REG Invest.'!L99 -> 0
A60: ='LDC Info'!$E$14 -> Grimsby Power Incorporated | B60: EB-2021-0027 | C60: 2022 | D60: 2021 | E60: 2016 | F60: Expansion Investments_B_Total OM&A Start-Up | G60: ='App.2-FA Proposed REG Invest.'!$L$31 -> 2026 | H60: ='App.2-FA Proposed REG Invest.'!L100 -> 0
A61: ='LDC Info'!$E$14 -> Grimsby Power Incorporated | B61: EB-2021-0027 | C61: 2022 | D61: 2021 | E61: 2016 | F61: Expansion Investments_B_Total OM&A Ongoing | G61: ='App.2-FA Proposed REG Invest.'!$L$31 -> 2026 | H61: ='App.2-FA Proposed REG Invest.'!L101 -> 0

Sheet Hidden_REG Improvement (hidden)
A1: Utility Name | B1: EB Number | C1: Test Year | D1: Bridge Year | E1: Last Rebasing Year | F1: Renewable Generation Connection Direct Benefits/Provincial Amount Renewable Enabling Improvement Investments | G1: Year | H1: Amount
A2: ='LDC Info'!$E$14 -> Grimsby Power Incorporated | B2: =EBNUMBER -> EB-2021-0027 | C2: =TestYear -> 2022 | D2: =BridgeYear -> 2021 | E2: =RebaseYear -> 2016 | F2: Provincial Rate Protection | G2: ='App.2-FB Calc of REG Improvemnt'!D17 -> 2017 | H2: ='App.2-FB Calc of REG Improvemnt'!F$44 -> 0
A3: ='LDC Info'!$E$14 -> Grimsby Power Incorporated | B3: EB-2021-0027 | C3: 2022 | D3: 2021 | E3: 2016 | F3: Provincial Rate Protection | G3: ='App.2-FB Calc of REG Improvemnt'!G17 -> 2018 | H3: ='App.2-FB Calc of REG Improvemnt'!I$44 -> 0
A4: ='LDC Info'!$E$14 -> Grimsby Power Incorporated | B4: EB-2021-0027 | C4: 2022 | D4: 2021 | E4: 2016 | F4: Provincial Rate Protection | G4: ='App.2-FB Calc of REG Improvemnt'!J17 -> 2019 | H4: ='App.2-FB Calc of REG Improvemnt'!L$44 -> 0
A5: ='LDC Info'!$E$14 -> Grimsby Power Incorporated | B5: EB-2021-0027 | C5: 2022 | D5: 2021 | E5: 2016 | F5: Provincial Rate Protection | G5: ='App.2-FB Calc of REG Improvemnt'!M17 -> 2020 | H5: ='App.2-FB Calc of REG Improvemnt'!O$44 -> 0
A6: ='LDC Info'!$E$14 -> Grimsby Power Incorporated | B6: EB-2021-0027 | C6: 2022 | D6: 2021 | E6: 2016 | F6: Provincial Rate Protection | G6: ='App.2-FB Calc of REG Improvemnt'!P17 -> 2021 | H6: ='App.2-FB Calc of REG Improvemnt'!R$44 -> 0
A7: ='LDC Info'!$E$14 -> Grimsby Power Incorporated | B7: EB-2021-0027 | C7: 2022 | D7: 2021 | E7: 2016 | F7: Provincial Rate Protection | G7: ='App.2-FB Calc of REG Improvemnt'!S17 -> 2022 | H7: ='App.2-FB Calc of REG Improvemnt'!U$44 -> 0
A8: ='LDC Info'!$E$14 -> Grimsby Power Incorporated | B8: EB-2021-0027 | C8: 2022 | D8: 2021 | E8: 2016 | F8: Provincial Rate Protection | G8: ='App.2-FB Calc of REG Improvemnt'!V17 -> 2023 | H8: ='App.2-FB Calc of REG Improvemnt'!X$44 -> 0
A9: ='LDC Info'!$E$14 -> Grimsby Power Incorporated | B9: EB-2021-0027 | C9: 2022 | D9: 2021 | E9: 2016 | F9: Provincial Rate Protection | G9: ='App.2-FB Calc of REG Improvemnt'!Y17 -> 2024 | H9: ='App.2-FB Calc of REG Improvemnt'!AA$44 -> 0
A10: ='LDC Info'!$E$14 -> Grimsby Power Incorporated | B10: EB-2021-0027 | C10: 2022 | D10: 2021 | E10: 2016 | F10: Provincial Rate Protection | G10: ='App.2-FB Calc of REG Improvemnt'!AB17 -> 2025 | H10: ='App.2-FB Calc of REG Improvemnt'!AD$44 -> 0
A11: ='LDC Info'!$E$14 -> Grimsby Power Incorporated | B11: EB-2021-0027 | C11: 2022 | D11: 2021 | E11: 2016 | F11: Provincial Rate Protection | G11: ='App.2-FB Calc of REG Improvemnt'!AE17 -> 2026 | H11: ='App.2-FB Calc of REG Improvemnt'!AG$44 -> 0

Sheet Hidden_REG Expansion (hidden)
A1: Utility Name | B1: EB Number | C1: Test Year | D1: Bridge Year | E1: Last Rebasing Year | F1: Calculation of Renewable Generation Connection Direct Benefits/Provincial Amount Renewable Expansion Investments | G1: Year | H1: Amount
A2: ='LDC Info'!$E$14 -> Grimsby Power Incorporated | B2: =EBNUMBER -> EB-2021-0027 | C2: =TestYear -> 2022 | D2: =BridgeYear -> 2021 | E2: =RebaseYear -> 2016 | F2: Provincial Rate Protection | G2: ='App.2-FC Calc of REG Expansion'!D$17 -> 2017 | H2: ='App.2-FC Calc of REG Expansion'!F$44 -> 0
A3: ='LDC Info'!$E$14 -> Grimsby Power Incorporated | B3: EB-2021-0027 | C3: 2022 | D3: 2021 | E3: 2016 | F3: Provincial Rate Protection | G3: ='App.2-FC Calc of REG Expansion'!G$17 -> 2018 | H3: ='App.2-FC Calc of REG Expansion'!I$44 -> 0
A4: ='LDC Info'!$E$14 -> Grimsby Power Incorporated | B4: EB-2021-0027 | C4: 2022 | D4: 2021 | E4: 2016 | F4: Provincial Rate Protection | G4: ='App.2-FC Calc of REG Expansion'!J$17 -> 2019 | H4: ='App.2-FC Calc of REG Expansion'!L$44 -> 0
A5: ='LDC Info'!$E$14 -> Grimsby Power Incorporated | B5: EB-2021-0027 | C5: 2022 | D5: 2021 | E5: 2016 | F5: Provincial Rate Protection | G5: ='App.2-FC Calc of REG Expansion'!M$17 -> 2020 | H5: ='App.2-FC Calc of REG Expansion'!O$44 -> 0
A6: ='LDC Info'!$E$14 -> Grimsby Power Incorporated | B6: EB-2021-0027 | C6: 2022 | D6: 2021 | E6: 2016 | F6: Provincial Rate Protection | G6: ='App.2-FC Calc of REG Expansion'!P$17 -> 2021 | H6: ='App.2-FC Calc of REG Expansion'!R$44 -> 0
A7: ='LDC Info'!$E$14 -> Grimsby Power Incorporated | B7: EB-2021-0027 | C7: 2022 | D7: 2021 | E7: 2016 | F7: Provincial Rate Protection | G7: ='App.2-FC Calc of REG Expansion'!S$17 -> 2022 | H7: ='App.2-FC Calc of REG Expansion'!U$44 -> 0
A8: ='LDC Info'!$E$14 -> Grimsby Power Incorporated | B8: EB-2021-0027 | C8: 2022 | D8: 2021 | E8: 2016 | F8: Provincial Rate Protection | G8: ='App.2-FC Calc of REG Expansion'!V$17 -> 2023 | H8: ='App.2-FC Calc of REG Expansion'!X$44 -> 0
A9: ='LDC Info'!$E$14 -> Grimsby Power Incorporated | B9: EB-2021-0027 | C9: 2022 | D9: 2021 | E9: 2016 | F9: Provincial Rate Protection | G9: ='App.2-FC Calc of REG Expansion'!Y$17 -> 2024 | H9: ='App.2-FC Calc of REG Expansion'!AA$44 -> 0
A10: ='LDC Info'!$E$14 -> Grimsby Power Incorporated | B10: EB-2021-0027 | C10: 2022 | D10: 2021 | E10: 2016 | F10: Provincial Rate Protection | G10: ='App.2-FC Calc of REG Expansion'!AB$17 -> 2025 | H10: ='App.2-FC Calc of REG Expansion'!AD$44 -> 0
A11: ='LDC Info'!$E$14 -> Grimsby Power Incorporated | B11: EB-2021-0027 | C11: 2022 | D11: 2021 | E11: 2016 | F11: Provincial Rate Protection | G11: ='App.2-FC Calc of REG Expansion'!AE$17 -> 2026 | H11: ='App.2-FC Calc of REG Expansion'!AG$44 -> 0

Sheet App.2-FA Proposed REG Invest.
K1: File Number: | L1: 0
K2: Exhibit:
K3: Tab:
A4: TO BE UPDATED AT DRAFT RATE ORDER STAGE | K4: Schedule:
K5: Page:
K7: Date: | L7: 2021-07-30
A9: Appendix 2-FA
A10: Renewable Generation Connection Investment Summary (past investments or over the future rate setting period)
A12: Enter the details of the Renewable Generation Connection projects as described in the appropriate section of the Filing Requirements.
A13: All costs entered on this page will be transferred to the appropriate cells in the appendices that follow.
A14: For Part A, Renewable Enabling Improvements (REI), these amounts will be transferred to Appendix 2 - FB
A15: For Part B, Expansions, these amounts will be transferred to Appendix 2 - FC
A17: If there are more than five projects proposed to be in-service in a certain year, please amend the tables below and ensure that the formulae for the Total Amounts in any given rate year are updated.
A18: Based on the current methodology and allocation, amounts allocated represent 6% for REI Connection Investments and 17% for Expansion Investments. (EB-2009-0349, 6-10-2010, p. 15, note 9)
A19: Ensure that OM&A costs below are not included in Recoverable OM&A (App. 2-JA)
A20: There are two scenarios described below. Separate sets of spreadsheets (2-FA, 2-FB, 2-FC) should be submited for each scenario as required.
A21: Scenario 1: | B21: Past Investments with No Recovery. The distributor has made investments in the past (during the IRM Years), but has not received approval for these projects and therefore did not receive
B22: revenue from the IESO under Regulation 330/09 and did not receive ratepayer revenue for the direct benefit portion of the investment.
B23: The WCA percentage, debt percentages, interest rates, kWh, tax rates, amortization period, CCA Class and percentage should correspond to the distributor's last Cost of Service approval.
B24: The Direct Benefit portion of the calculated Revenue Requirement for each year should be summed and can be applied for recovery from the distributor's ratepayers through a rate rider.
B25: The Provincial Recovery portion of the calculated Revenue Requirement for each year should be summed and can be applied for recovery from the IESO through a separate order.
A27: Scenario 2: | B27: Investments in the Test Year and Beyond. Distributor plans to make investments in 2021 and/or beyond. These investments should be added to 2-FA in the appropriate year.
B28: The WCA percentage, debt percentages, interest rates, kWh, tax rates, amortization period, CCA Class and percentage should correspond to the distributor's current application.
A30: Part A | H30: Test Year
A31: REI Investments (Direct Benefit at 6%) | C31: =D31-1 -> 2017 | D31: =E31-1 -> 2018 | E31: =F31-1 -> 2019 | F31: =G31-1 -> 2020 | G31: =H31-1 -> 2021 | H31: ='LDC Info'!$E$24 -> 2022 | I31: =H31+1 -> 2023 | J31: =I31+1 -> 2024 | K31: =J31+1 -> 2025 | L31: =K31+1 -> 2026
A32: Project 1
A33: Name: REI Connection Project
A34: Capital Costs | C34: 0 | D34: 0 | E34: 0 | F34: 0 | G34: 0 | H34: 0 | I34: 0 | J34: 0 | K34: 0 | L34: 0
A35: Incremental OM&A (Start-Up) | C35: 0 | D35: 0 | E35: 0 | F35: 0 | G35: 0 | H35: 0 | I35: 0 | J35: 0 | K35: 0 | L35: 0
A36: Incremental OM&A (Ongoing) | C36: 0 | D36: 0 | E36: 0 | F36: 0 | G36: 0 | H36: 0 | I36: 0 | J36: 0 | K36: 0 | L36: 0
A38: Project 2
A39: Name: REI Connection Project
A40: Capital Costs | C40: 0 | D40: 0 | E40: 0 | F40: 0 | G40: 0 | H40: 0 | I40: 0 | J40: 0 | K40: 0 | L40: 0
A41: Incremental OM&A (Start-Up) | C41: 0 | D41: 0 | E41: 0 | F41: 0 | G41: 0 | H41: 0 | I41: 0 | J41: 0 | K41: 0 | L41: 0
A42: Incremental OM&A (Ongoing) | C42: 0 | D42: 0 | E42: 0 | F42: 0 | G42: 0 | H42: 0 | I42: 0 | J42: 0 | K42: 0 | L42: 0
A44: Project 3
A45: Name: REI Connection Project
A46: Capital Costs | C46: 0 | D46: 0 | E46: 0 | F46: 0 | G46: 0 | H46: 0 | I46: 0 | J46: 0 | K46: 0 | L46: 0
A47: Incremental OM&A (Start-Up) | C47: 0 | D47: 0 | E47: 0 | F47: 0 | G47: 0 | H47: 0 | I47: 0 | J47: 0 | K47: 0 | L47: 0
A48: Incremental OM&A (Ongoing) | C48: 0 | D48: 0 | E48: 0 | F48: 0 | G48: 0 | H48: 0 | I48: 0 | J48: 0 | K48: 0 | L48: 0
A50: Project 4
A51: Name: REI Connection Project
A52: Capital Costs | C52: 0 | D52: 0 | E52: 0 | F52: 0 | G52: 0 | H52: 0 | I52: 0 | J52: 0 | K52: 0 | L52: 0
A53: Incremental OM&A (Start-Up) | C53: 0 | D53: 0 | E53: 0 | F53: 0 | G53: 0 | H53: 0 | I53: 0 | J53: 0 | K53: 0 | L53: 0
A54: Incremental OM&A (Ongoing) | C54: 0 | D54: 0 | E54: 0 | F54: 0 | G54: 0 | H54: 0 | I54: 0 | J54: 0 | K54: 0 | L54: 0
A56: Project 5
A57: Name: REI Connection Project
A58: Capital Costs | C58: 0 | D58: 0 | E58: 0 | F58: 0 | G58: 0 | H58: 0 | I58: 0 | J58: 0 | K58: 0 | L58: 0
A59: Incremental OM&A (Start-Up) | C59: 0 | D59: 0 | E59: 0 | F59: 0 | G59: 0 | H59: 0 | I59: 0 | J59: 0 | K59: 0 | L59: 0
A60: Incremental OM&A (Ongoing) | C60: 0 | D60: 0 | E60: 0 | F60: 0 | G60: 0 | H60: 0 | I60: 0 | J60: 0 | K60: 0 | L60: 0
A62: Total Capital Costs | C62: =SUM(C58,C52,C46,C40,C34) -> 0 | D62: 0 | E62: 0 | F62: 0 | G62: 0 | H62: 0 | I62: 0 | J62: 0 | K62: 0 | L62: 0
A63: Total Incremental OM&A (Start-Up) | C63: 0 | D63: 0 | E63: 0 | F63: 0 | G63: 0 | H63: 0 | I63: 0 | J63: 0 | K63: 0 | L63: 0
A64: Total Incremental OM&A (Ongoing) | C64: 0 | D64: 0 | E64: 0 | F64: 0 | G64: 0 | H64: 0 | I64: 0 | J64: 0 | K64: 0 | L64: 0
A67: Part B | H67: Test Year
A68: Expansion Investments (Direct Benefit at 17%) | C68: =D68-1 -> 2017 | D68: =E68-1 -> 2018 | E68: =F68-1 -> 2019 | F68: =G68-1 -> 2020 | G68: =H68-1 -> 2021 | H68: =H31 -> 2022 | I68: =H68+1 -> 2023 | J68: =I68+1 -> 2024 | K68: =J68+1 -> 2025 | L68: =K68+1 -> 2026
A69: Project 1
A70: Name: Expansion Connection Project
A71: Capital Costs | C71: 0 | D71: 0 | E71: 0 | F71: 0 | G71: 0 | H71: 0 | I71: 0 | J71: 0 | K71: 0 | L71: 0
A72: Incremental OM&A (Start-Up) | C72: 0 | D72: 0 | E72: 0 | F72: 0 | G72: 0 | H72: 0 | I72: 0 | J72: 0 | K72: 0 | L72: 0
A73: Incremental OM&A (Ongoing) | C73: 0 | D73: 0 | E73: 0 | F73: 0 | G73: 0 | H73: 0 | I73: 0 | J73: 0 | K73: 0 | L73: 0
A75: Project 2
A76: Name: Expansion Connection Project
A77: Capital Costs | C77: 0 | D77: 0 | E77: 0 | F77: 0 | G77: 0 | H77: 0 | I77: 0 | J77: 0 | K77: 0 | L77: 0
A78: Incremental OM&A (Start-Up) | C78: 0 | D78: 0 | E78: 0 | F78: 0 | G78: 0 | H78: 0 | I78: 0 | J78: 0 | K78: 0 | L78: 0
A79: Incremental OM&A (Ongoing) | C79: 0 | D79: 0 | E79: 0 | F79: 0 | G79: 0 | H79: 0 | I79: 0 | J79: 0 | K79: 0 | L79: 0
A81: Project 3
A82: Name: Expansion Connection Project
A83: Capital Costs | C83: 0 | D83: 0 | E83: 0 | F83: 0 | G83: 0 | H83: 0 | I83: 0 | J83: 0 | K83: 0 | L83: 0
A84: Incremental OM&A (Start-Up) | C84: 0 | D84: 0 | E84: 0 | F84: 0 | G84: 0 | H84: 0 | I84: 0 | J84: 0 | K84: 0 | L84: 0
A85: Incremental OM&A (Ongoing) | C85: 0 | D85: 0 | E85: 0 | F85: 0 | G85: 0 | H85: 0 | I85: 0 | J85: 0 | K85: 0 | L85: 0
A87: Project 4
A88: Name: Expansion Connection Project
A89: Capital Costs | C89: 0 | D89: 0 | E89: 0 | F89: 0 | G89: 0 | H89: 0 | I89: 0 | J89: 0 | K89: 0 | L89: 0
A90: Incremental OM&A (Start-Up) | C90: 0 | D90: 0 | E90: 0 | F90: 0 | G90: 0 | H90: 0 | I90: 0 | J90: 0 | K90: 0 | L90: 0
A91: Incremental OM&A (Ongoing) | C91: 0 | D91: 0 | E91: 0 | F91: 0 | G91: 0 | H91: 0 | I91: 0 | J91: 0 | K91: 0 | L91: 0
A93: Project 5
A94: Name: Expansion Connection Project
A95: Capital Costs | C95: 0 | D95: 0 | E95: 0 | F95: 0 | G95: 0 | H95: 0 | I95: 0 | J95: 0 | K95: 0 | L95: 0
A96: Incremental OM&A (Start-Up) | C96: 0 | D96: 0 | E96: 0 | F96: 0 | G96: 0 | H96: 0 | I96: 0 | J96: 0 | K96: 0 | L96: 0
A97: Incremental OM&A (Ongoing) | C97: 0 | D97: 0 | E97: 0 | F97: 0 | G97: 0 | H97: 0 | I97: 0 | J97: 0 | K97: 0 | L97: 0
A99: Total Capital Costs | C99: =SUM(C95,C89,C83,C77,C71) -> 0 | D99: 0 | E99: 0 | F99: 0 | G99: 0 | H99: 0 | I99: 0 | J99: 0 | K99: 0 | L99: 0
A100: Total Incremental OM&A (Start-Up) | C100: 0 | D100: 0 | E100: 0 | F100: 0 | G100: 0 | H100: 0 | I100: 0 | J100: 0 | K100: 0 | L100: 0
A101: Total Incremental OM&A (Ongoing) | C101: 0 | D101: 0 | E101: 0 | F101: 0 | G101: 0 | H101: 0 | I101: 0 | J101: 0 | K101: 0 | L101: 0

Sheet App.2-FB Calc of REG Improvemnt
R1: File Number: | S1: 0
R2: Exhibit:
R3: Tab:
A4: TO BE UPDATED AT DRAFT RATE ORDER STAGE | R4: Schedule:
R5: Page:
R7: Date:
A9: Appendix 2-FB
A10: Calculation of Renewable Generation Connection Direct Benefits/Provincial Amount: Renewable Enabling Improvement Investments
A12: This table will calculate the distributor/provincial shares of the investments entered in Part A of Appendix 2-FA.
A13: Enter values in green shaded cells: WCA percentage, debt percentages, interest rates, kWh, tax rates, amortization period, CCA Class and percentage.
A14: For historical investments, enter these variables that were approved in your last cost of service test year. For 2021 and beyond, enter variables as in the application.
A15: Rate Riders related to the direct benefit portion of the renewable investments are not calculated for the Test Year as these assets and costs are already in the distributor's rate base/revenue requirement.
S16: Test Year
D17: =G17-1 -> 2017 | G17: =J17-1 -> 2018 | J17: =M17-1 -> 2019 | M17: =P17-1 -> 2020 | P17: =S17-1 -> 2021 | S17: ='LDC Info'!$E$24 -> 2022 | V17: =S17+1 -> 2023 | Y17: =V17+1 -> 2024 | Z17: 2016 | AB17: =Y17+1 -> 2025 | AE17: =AB17+1 -> 2026 | AH17: =AE17+1 -> 2027
E18: Direct Benefit | F18: Provincial | H18: Direct Benefit | I18: Provincial | K18: Direct Benefit | L18: Provincial | N18: Direct Benefit | O18: Provincial | Q18: Direct Benefit | R18: Provincial | T18: Direct Benefit | U18: Provincial | W18: Direct Benefit | X18: Provincial | Z18: Direct Benefit | AA18: Provincial | AC18: Direct Benefit | AD18: Provincial | AF18: Direct Benefit | AG18: Provincial | AI18: Direct Benefit | AJ18: Provincial
D19: Total | E19: 0.06 | F19: 0.94 | G19: Total | H19: 0.06 | I19: 0.94 | J19: Total | K19: 0.06 | L19: 0.94 | M19: Total | N19: 0.06 | O19: 0.94 | P19: Total | Q19: 0.06 | R19: 0.94 | S19: Total | T19: 0.06 | U19: 0.94 | V19: Total | W19: 0.06 | X19: 0.94 | Y19: Total | Z19: 0.06 | AA19: 0.94 | AB19: Total | AC19: 0.06 | AD19: 0.94 | AE19: Total | AF19: 0.06 | AG19: 0.94 | AH19: Total | AI19: 0.06 | AJ19: 0.94
A20: Net Fixed Assets (average) | D20: =E83 -> 0 | E20: =D20*E19 -> 0 | F20: =D20*F19 -> 0 | G20: =F83 -> 0 | H20: =G20*H19 -> 0 | I20: =G20*I19 -> 0 | J20: =G83 -> 0 | K20: =J20*K19 -> 0 | L20: =J20*L19 -> 0 | M20: =H83 -> 0 | N20: =M20*N19 -> 0 | O20: =M20*O19 -> 0 | P20: =I83 -> 0 | Q20: =P20*Q19 -> 0 | R20: =P20*R19 -> 0 | S20: =J83 -> 0 | T20: =S20*T19 -> 0 | U20: =S20*U19 -> 0 | V20: =K83 -> 0 | W20: =V20*W19 -> 0 | X20: =V20*X19 -> 0 | Y20: =L83 -> 0 | Z20: =Y20*Z19 -> 0 | AA20: =Y20*AA19 -> 0 | AB20: =M83 -> 0 | AC20: =AB20*AC19 -> 0 | AD20: =AB20*AD19 -> 0 | AE20: =N83 -> 0 | AF20: =AE20*AF19 -> 0 | AG20: =AE20*AG19 -> 0 | AH20: =O83 -> 0 | AI20: =AH20*AI19 -> 0 | AJ20: =AH20*AJ19 -> 0
A21: Incremental OM&A (on-going, N/A for Provincial Recovery) | D21: 0 | E21: =D21*E19 -> 0 | F21: =D21*F19 -> 0 | G21: 0 | H21: =G21*H19 -> 0 | I21: =G21*I19 -> 0 | J21: 0 | K21: =J21*K19 -> 0 | L21: =J21*L19 -> 0 | M21: 0 | N21: =M21*N19 -> 0 | O21: =M21*O19 -> 0 | P21: 0 | Q21: =P21*Q19 -> 0 | R21: =P21*R19 -> 0 | S21: 0 | T21: =S21*T19 -> 0 | U21: =S21*U19 -> 0 | V21: 0 | W21: =V21*W19 -> 0 | X21: =V21*X19 -> 0 | Y21: 0 | Z21: =Y21*Z19 -> 0 | AA21: =Y21*AA19 -> 0 | AB21: 0 | AC21: =AB21*AC19 -> 0 | AD21: =AB21*AD19 -> 0 | AE21: 0 | AF21: =AE21*AF19 -> 0 | AG21: =AE21*AG19 -> 0 | AH21: 0 | AI21: =AH21*AI19 -> 0 | AJ21: =AH21*AJ19 -> 0
A22: Incremental OM&A (start-up, applicable for Provincial Recovery) | D22: 0 | E22: =D22*E19 -> 0 | F22: =D22*F19 -> 0 | G22: 0 | H22: =G22*H19 -> 0 | I22: =G22*I19 -> 0 | J22: 0 | K22: =J22*K19 -> 0 | L22: =J22*L19 -> 0 | M22: 0 | N22: =M22*N19 -> 0 | O22: =M22*O19 -> 0 | P22: 0 | Q22: =P22*Q19 -> 0 | R22: =P22*R19 -> 0 | S22: 0 | T22: =S22*T19 -> 0 | U22: =S22*U19 -> 0 | V22: 0 | W22: =V22*W19 -> 0 | X22: =V22*X19 -> 0 | Y22: 0 | Z22: =Y22*Z19 -> 0 | AA22: =Y22*AA19 -> 0 | AB22: 0 | AC22: =AB22*AC19 -> 0 | AD22: =AB22*AD19 -> 0 | AE22: 0 | AF22: =AE22*AF19 -> 0 | AG22: =AE22*AG19 -> 0 | AH22: 0 | AI22: =AH22*AI19 -> 0 | AJ22: =AH22*AJ19 -> 0
A23: Rebasing Year vs. Test Year | B23: ='LDC Info'!E28 -> 2016 | C23: ='LDC Info'!E24 -> 2022
A24: Allowance for Working Capital (enter rate) | E24: =IF(AND(D$17>=$B$23, D$17<$C$23),(E21+E22)*$B$24,(E21+E22)*$C$24) -> 0 | F24: =IF(AND(D$17>=$B$23, D$17<$C$23),(F22)*$B$24,(F22)*$C$24) -> 0 | H24: =IF(AND(G$17>=$B$23, G$17<$C$23),(H21+H22)*$B$24,(H21+H22)*$C$24) -> 0 | I24: =IF(AND(G$17>=$B$23, G$17<$C$23),(I22)*$B$24,(I22)*$C$24) -> 0 | K24: =IF(AND(J$17>=$B$23, J$17<$C$23),(K21+K22)*$B$24,(K21+K22)*$C$24) -> 0 | L24: =IF(AND(J$17>=$B$23, J$17<$C$23),(L22)*$B$24,(L22)*$C$24) -> 0 | N24: =IF(AND(M$17>=$B$23, M$17<$C$23),(N21+N22)*$B$24,(N21+N22)*$C$24) -> 0 | O24: =IF(AND(M$17>=$B$23, M$17<$C$23),(O22)*$B$24,(O22)*$C$24) -> 0 | Q24: =IF(AND(P$17>=$B$23, P$17<$C$23),(Q21+Q22)*$B$24,(Q21+Q22)*$C$24) -> 0 | R24: =IF(AND(P$17>=$B$23, P$17<$C$23),(R22)*$B$24,(R22)*$C$24) -> 0 | T24: =IF(AND(S$17>=$B$23, S$17<$C$23),(T21+T22)*$B$24,(T21+T22)*$C$24) -> 0 | U24: =IF(AND(S$17>=$B$23, S$17<$C$23),(U22)*$B$24,(U22)*$C$24) -> 0 | W24: =IF(AND(V$17>=$B$23, V$17<$C$23),(W21+W22)*$B$24,(W21+W22)*$C$24) -> 0 | X24: =IF(AND(V$17>=$B$23, V$17<$C$23),(X22)*$B$24,(X22)*$C$24) -> 0 | Z24: =IF(AND(Y$17>=$B$23, Y$17<$C$23),(Z21+Z22)*$B$24,(Z21+Z22)*$C$24) -> 0 | AA24: =IF(AND(Y$17>=$B$23, Y$17<$C$23),(AA22)*$B$24,(AA22)*$C$24) -> 0 | AC24: =IF(AND(AB$17>=$B$23, AB$17<$C$23),(AC21+AC22)*$B$24,(AC21+AC22)*$C$24) -> 0 | AD24: =IF(AND(AB$17>=$B$23, AB$17<$C$23),(AD22)*$B$24,(AD22)*$C$24) -> 0 | AF24: =IF(AND(AE$17>=$B$23, AE$17<$C$23),(AF21+AF22)*$B$24,(AF21+AF22)*$C$24) -> 0 | AG24: =IF(AND(AE$17>=$B$23, AE$17<$C$23),(AG22)*$B$24,(AG22)*$C$24) -> 0 | AI24: =IF(AND(AH$17>=$B$23, AH$17<$C$23),(AI21+AI22)*$B$24,(AI21+AI22)*$C$24) -> 0 | AJ24: =IF(AND(AH$17>=$B$23, AH$17<$C$23),(AJ22)*$B$24,(AJ22)*$C$24) -> 0
A25: Rate Base | E25: =SUM(E20+E24) -> 0 | F25: =SUM(F20+F24) -> 0 | H25: =SUM(H20+H24) -> 0 | I25: =SUM(I20+I24) -> 0 | K25: =SUM(K20+K24) -> 0 | L25: =SUM(L20+L24) -> 0 | N25: =SUM(N20+N24) -> 0 | O25: =SUM(O20+O24) -> 0 | Q25: =SUM(Q20+Q24) -> 0 | R25: =SUM(R20+R24) -> 0 | T25: =SUM(T20+T24) -> 0 | U25: =SUM(U20+U24) -> 0 | W25: =SUM(W20+W24) -> 0 | X25: =SUM(X20+X24) -> 0 | Z25: =SUM(Z20+Z24) -> 0 | AA25: =SUM(AA20+AA24) -> 0 | AC25: =SUM(AC20+AC24) -> 0 | AD25: =SUM(AD20+AD24) -> 0 | AF25: =SUM(AF20+AF24) -> 0 | AG25: =SUM(AG20+AG24) -> 0 | AI25: =SUM(AI20+AI24) -> 0 | AJ25: =SUM(AJ20+AJ24) -> 0
A27: Rebasing Year vs. Test Year | B27: =B23 -> 2016 | C27: =C23 -> 2022
A28: Deemed ST Debt | B28: 0.04 | C28: 0.04 | E28: =E25*$B$28 -> 0 | F28: =F25*$B$28 -> 0 | H28: =H25*$B$28 -> 0 | I28: =I25*$B$28 -> 0 | K28: =K25*$B$28 -> 0 | L28: =L25*$B$28 -> 0 | N28: =N25*$B$28 -> 0 | O28: =O25*$B$28 -> 0 | Q28: =Q25*$B$28 -> 0 | R28: =R25*$B$28 -> 0 | T28: =T25*$C$28 -> 0 | U28: =U25*$C$28 -> 0 | W28: =W25*$C$28 -> 0 | X28: =X25*$C$28 -> 0 | Z28: =Z25*$C$28 -> 0 | AA28: =AA25*$C$28 -> 0 | AC28: =AC25*$C$28 -> 0 | AD28: =AD25*$C$28 -> 0 | AF28: =AF25*$C$28 -> 0 | AG28: =AG25*$C$28 -> 0 | AI28: =AI25*$C$28 -> 0 | AJ28: =AJ25*$C$28 -> 0
A29: Deemed LT Debt | B29: 0.56 | C29: 0.56 | E29: =E25*$B$29 -> 0 | F29: =F25*$B$29 -> 0 | H29: =H25*$B$29 -> 0 | I29: =I25*$B$29 -> 0 | K29: =K25*$B$29 -> 0 | L29: =L25*$B$29 -> 0 | N29: =N25*$B$29 -> 0 | O29: =O25*$B$29 -> 0 | Q29: =Q25*$B$29 -> 0 | R29: =R25*$B$29 -> 0 | T29: =T25*$C$29 -> 0 | U29: =U25*$C$29 -> 0 | W29: =W25*$C$29 -> 0 | X29: =X25*$C$29 -> 0 | Z29: =Z25*$C$29 -> 0 | AA29: =AA25*$C$29 -> 0 | AC29: =AC25*$C$29 -> 0 | AD29: =AD25*$C$29 -> 0 | AF29: =AF25*$C$29 -> 0 | AG29: =AG25*$C$29 -> 0 | AI29: =AI25*$C$29 -> 0 | AJ29: =AJ25*$C$29 -> 0
A30: Deemed Equity | B30: 0.4 | C30: 0.4 | E30: =E25*$B$30 -> 0 | F30: =F25*$B$30 -> 0 | H30: =H25*$B$30 -> 0 | I30: =I25*$B$30 -> 0 | K30: =K25*$B$30 -> 0 | L30: =L25*$B$30 -> 0 | N30: =N25*$B$30 -> 0 | O30: =O25*$B$30 -> 0 | Q30: =Q25*$B$30 -> 0 | R30: =R25*$B$30 -> 0 | T30: =T25*$C$30 -> 0 | U30: =U25*$C$30 -> 0 | W30: =W25*$C$30 -> 0 | X30: =X25*$C$30 -> 0 | Z30: =Z25*$C$30 -> 0 | AA30: =AA25*$C$30 -> 0 | AC30: =AC25*$C$30 -> 0 | AD30: =AD25*$C$30 -> 0 | AF30: =AF25*$C$30 -> 0 | AG30: =AG25*$C$30 -> 0 | AI30: =AI25*$C$30 -> 0 | AJ30: =AJ25*$C$30 -> 0
A32: ST Interest (enter rate) | E32: =E28*$B32 -> 0 | F32: 0 | H32: 0 | I32: 0 | K32: 0 | L32: 0 | N32: 0 | O32: 0 | Q32: 0 | R32: 0 | T32: =T28*$C32 -> 0 | U32: 0 | W32: =W28*$C32 -> 0 | X32: 0 | Z32: =Z28*$C32 -> 0 | AA32: 0 | AC32: =AC28*$C32 -> 0 | AD32: 0 | AF32: =AF28*$C32 -> 0 | AG32: 0 | AI32: =AI28*$C32 -> 0 | AJ32: 0
A33: LT Interest (enter rate) | E33: 0 | F33: 0 | H33: 0 | I33: 0 | K33: 0 | L33: 0 | N33: 0 | O33: 0 | Q33: 0 | R33: 0 | T33: 0 | U33: 0 | W33: 0 | X33: 0 | Z33: 0 | AA33: 0 | AC33: 0 | AD33: 0 | AF33: 0 | AG33: 0 | AI33: 0 | AJ33: 0
A34: Return on Equity (enter rate) | E34: 0 | F34: 0 | H34: 0 | I34: 0 | K34: 0 | L34: 0 | N34: 0 | O34: 0 | Q34: 0 | R34: 0 | T34: 0 | U34: 0 | W34: 0 | X34: 0 | Z34: 0 | AA34: 0 | AC34: 0 | AD34: 0 | AF34: 0 | AG34: 0 | AI34: 0 | AJ34: 0
A35: Cost of Capital Total | E35: =SUM(E32:E34) -> 0 | F35: =SUM(F32:F34) -> 0 | H35: =SUM(H32:H34) -> 0 | I35: =SUM(I32:I34) -> 0 | K35: =SUM(K32:K34) -> 0 | L35: =SUM(L32:L34) -> 0 | N35: =SUM(N32:N34) -> 0 | O35: =SUM(O32:O34) -> 0 | Q35: =SUM(Q32:Q34) -> 0 | R35: =SUM(R32:R34) -> 0 | T35: =SUM(T32:T34) -> 0 | U35: =SUM(U32:U34) -> 0 | W35: =SUM(W32:W34) -> 0 | X35: =SUM(X32:X34) -> 0 | Z35: =SUM(Z32:Z34) -> 0 | AA35: =SUM(AA32:AA34) -> 0 | AC35: =SUM(AC32:AC34) -> 0 | AD35: =SUM(AD32:AD34) -> 0 | AF35: =SUM(AF32:AF34) -> 0 | AG35: =SUM(AG32:AG34) -> 0 | AI35: =SUM(AI32:AI34) -> 0 | AJ35: =SUM(AJ32:AJ34) -> 0
A37: OM&A | E37: =E21+E22 -> 0 | F37: =F22 -> 0 | H37: =H21+H22 -> 0 | I37: =I22 -> 0 | K37: =K21+K22 -> 0 | L37: =L22 -> 0 | N37: =N21+N22 -> 0 | O37: =O22 -> 0 | Q37: =Q21+Q22 -> 0 | R37: =R22 -> 0 | T37: =T21+T22 -> 0 | U37: =U22 -> 0 | W37: =W21+W22 -> 0 | X37: =X22 -> 0 | Z37: =Z21+Z22 -> 0 | AA37: =AA22 -> 0 | AC37: =AC21+AC22 -> 0 | AD37: =AD22 -> 0 | AF37: =AF21+AF22 -> 0 | AG37: =AG22 -> 0 | AI37: =AI21+AI22 -> 0 | AJ37: =AJ22 -> 0
A38: Amortization | D38: =+E77+E78 -> 0 | E38: =D38*E$19 -> 0 | F38: =D38*F$19 -> 0 | G38: =+F77+F78 -> 0 | H38: =G38*H$19 -> 0 | I38: =G38*I$19 -> 0 | J38: =+G77+G78 -> 0 | K38: =J38*K$19 -> 0 | L38: =J38*L$19 -> 0 | M38: =+H77+H78 -> 0 | N38: =M38*N$19 -> 0 | O38: =M38*O$19 -> 0 | P38: =+I77+I78 -> 0 | Q38: =P38*Q$19 -> 0 | R38: =P38*R$19 -> 0 | S38: =+J77+J78 -> 0 | T38: =S38*T$19 -> 0 | U38: =S38*U$19 -> 0 | V38: =+K77+K78 -> 0 | W38: =V38*W$19 -> 0 | X38: =V38*X$19 -> 0 | Y38: =+L77+L78 -> 0 | Z38: =Y38*Z$19 -> 0 | AA38: =Y38*AA$19 -> 0 | AB38: =+M77+M78 -> 0 | AC38: =AB38*AC$19 -> 0 | AD38: =AB38*AD$19 -> 0 | AE38: =+N77+N78 -> 0 | AF38: =AE38*AF$19 -> 0 | AG38: =AE38*AG$19 -> 0 | AH38: =+O77+O78 -> 0 | AI38: =AH38*AI$19 -> 0 | AJ38: =AH38*AJ$19 -> 0
A39: Grossed-up PILs | E39: =+E66 -> 0 | F39: =+F66 -> 0 | H39: =+H66 -> 0 | I39: =+I66 -> 0 | K39: =+K66 -> 0 | L39: =+L66 -> 0 | N39: =+N66 -> 0 | O39: =+O66 -> 0 | Q39: =+Q66 -> 0 | R39: =+R66 -> 0 | T39: =+T66 -> 0 | U39: =+U66 -> 0 | W39: =+W66 -> 0 | X39: =+X66 -> 0 | Z39: =+Z66 -> 0 | AA39: =+AA66 -> 0 | AC39: =+AC66 -> 0 | AD39: =+AD66 -> 0 | AF39: =+AF66 -> 0 | AG39: =+AG66 -> 0 | AI39: =+AI66 -> 0 | AJ39: =+AJ66 -> 0
A41: Revenue Requirement | E41: =SUM(E35:E39) -> 0 | F41: =SUM(F35:F39) -> 0 | H41: =SUM(H35:H39) -> 0 | I41: =SUM(I35:I39) -> 0 | K41: =SUM(K35:K39) -> 0 | L41: =SUM(L35:L39) -> 0 | N41: =SUM(N35:N39) -> 0 | O41: =SUM(O35:O39) -> 0 | Q41: =SUM(Q35:Q39) -> 0 | R41: =SUM(R35:R39) -> 0 | T41: =SUM(T35:T39) -> 0 | U41: =SUM(U35:U39) -> 0 | W41: =SUM(W35:W39) -> 0 | X41: =SUM(X35:X39) -> 0 | Z41: =SUM(Z35:Z39) -> 0 | AA41: =SUM(AA35:AA39) -> 0 | AC41: =SUM(AC35:AC39) -> 0 | AD41: =SUM(AD35:AD39) -> 0 | AF41: =SUM(AF35:AF39) -> 0 | AG41: =SUM(AG35:AG39) -> 0 | AI41: =SUM(AI35:AI39) -> 0 | AJ41: =SUM(AJ35:AJ39) -> 0
A44: Provincial Rate Protection | F44: =F41 -> 0 | I44: =I41 -> 0 | L44: =L41 -> 0 | O44: =O41 -> 0 | R44: =R41 -> 0 | U44: =U41 -> 0 | X44: =X41 -> 0 | AA44: =AA41 -> 0 | AD44: =AD41 -> 0 | AG44: =AG41 -> 0 | AJ44: =AJ41 -> 0
A46: Monthly Amount Paid by IESO | F46: =F44/12 -> 0 | I46: =I44/12 -> 0 | L46: =L44/12 -> 0 | O46: =O44/12 -> 0 | R46: =R44/12 -> 0 | U46: =U44/12 -> 0 | X46: =X44/12 -> 0 | AA46: =AA44/12 -> 0 | AD46: =AD44/12 -> 0 | AG46: =AG44/12 -> 0 | AJ46: =AJ44/12 -> 0
A48: Note 1: The distributor should follow the regulatory accounting set out in the Accounting Procedure Handbook Guidance FAQs issued in March 2015. Q10 of the APH FAQs states that: “For approved eligible investments as defined under O.Reg. 330/09 under the OEB Act, a variance account will continue to be used for the purpose of recording variances between the revenue requirement based on actual costs of approved eligible investments and the revenue received from the IESO.” The answer for Q10 provides the accounting guidance for this variance account: “Distributors that have included eligible investments to connect qualifying facilities in their DS plans are to establish the variance Account 1533 Renewable Generation Connection Funding Adder Deferral Account, Sub-account Provincial Rate Protection Payment Variances following OEB approval for investments forecast to enter service beyond the test year for purposes of implementing rate protection pursuant to O.Reg. 330/09. The purpose of this variance account is to track the variance between the distributor’s revenue requirement associated with the portion of the actual capital and/or operating costs that are eligible for rate protection, as incurred by the distributor for eligible renewable enabling and expansion investments, and the rate protection payments collected from the IESO.” The answer further provides the journal entries to record the variances. Distributors should follow the instructions in the answer for recording the journal entries in the variance account 1533.
A50: Note 2: For the Test Year, Costs and Revenues of the Direct Benefit are to be included in the test year applicant Rate Base and Revenues.
A52: PILs Calculation | T52: Test Year
E53: =G17-1 -> 2017 | H53: =G17 -> 2018 | K53: =J17 -> 2019 | N53: =M17 -> 2020 | Q53: =P17 -> 2021 | T53: =S17 -> 2022 | W53: =V17 -> 2023 | Z53: =Y17 -> 2024 | AC53: =AB17 -> 2025 | AF53: =AE17 -> 2026 | AI53: =AH17 -> 2027
A54: Income Tax | E54: Direct Benefit | F54: Provincial | H54: Direct Benefit | I54: Provincial | K54: Direct Benefit | L54: Provincial | N54: Direct Benefit | O54: Provincial | Q54: Direct Benefit | R54: Provincial | T54: Direct Benefit | U54: Provincial | W54: Direct Benefit | X54: Provincial | Z54: Direct Benefit | AA54: Provincial | AC54: Direct Benefit | AD54: Provincial | AF54: Direct Benefit | AG54: Provincial | AI54: Direct Benefit | AJ54: Provincial
AB55: Total | AE55: Total | AH55: Total
A56: Net Income - ROE on Rate Base | E56: =E34 -> 0 | F56: =F34 -> 0 | H56: =H34 -> 0 | I56: =I34 -> 0 | K56: =K34 -> 0 | L56: =L34 -> 0 | N56: =N34 -> 0 | O56: =O34 -> 0 | Q56: =Q34 -> 0 | R56: =R34 -> 0 | T56: =T34 -> 0 | U56: =U34 -> 0 | W56: =W34 -> 0 | X56: =X34 -> 0 | Z56: =Z34 -> 0 | AA56: =AA34 -> 0 | AC56: =AC34 -> 0 | AD56: =AD34 -> 0 | AF56: =AF34 -> 0 | AG56: =AG34 -> 0 | AI56: =AI34 -> 0 | AJ56: =AJ34 -> 0
A57: Amortization (6% DB and 94% P) | E57: =E38 -> 0 | F57: =F38 -> 0 | H57: =H38 -> 0 | I57: =I38 -> 0 | K57: =K38 -> 0 | L57: =L38 -> 0 | N57: =N38 -> 0 | O57: =O38 -> 0 | Q57: =Q38 -> 0 | R57: =R38 -> 0 | T57: =T38 -> 0 | U57: =U38 -> 0 | W57: =W38 -> 0 | X57: =X38 -> 0 | Z57: =Z38 -> 0 | AA57: =AA38 -> 0 | AC57: =AC38 -> 0 | AD57: =AD38 -> 0 | AF57: =AF38 -> 0 | AG57: =AG38 -> 0 | AI57: =AI38 -> 0 | AJ57: =AJ38 -> 0
A58: CCA (6% DB and 94% P) | E58: =-E95*$E$19 -> 0 | F58: =-E95*$F$19 -> 0 | H58: =-F95*$E$19 -> 0 | I58: =-F95*$F$19 -> 0 | K58: =-G95*$E$19 -> 0 | L58: =-G95*$F$19 -> 0 | N58: =-H95*$E$19 -> 0 | O58: =-H95*$F$19 -> 0 | Q58: =-I95*$E$19 -> 0 | R58: =-I95*$F$19 -> 0 | T58: =-J95*$E$19 -> 0 | U58: =-J95*$F$19 -> 0 | W58: =-K95*$E$19 -> 0 | X58: =-K95*$F$19 -> 0 | Z58: =-L95*$E$19 -> 0 | AA58: =-L95*$F$19 -> 0 | AC58: =-M95*$E$19 -> 0 | AD58: =-M95*$F$19 -> 0 | AF58: =-N95*$E$19 -> 0 | AG58: =-N95*$F$19 -> 0 | AI58: =-Q95*$E$19 -> 0 | AJ58: =-Q95*$F$19 -> 0
A59: Taxable income | E59: =SUM(E56:E58) -> 0 | F59: =SUM(F56:F58) -> 0 | H59: =SUM(H56:H58) -> 0 | I59: =SUM(I56:I58) -> 0 | K59: =SUM(K56:K58) -> 0 | L59: =SUM(L56:L58) -> 0 | N59: =SUM(N56:N58) -> 0 | O59: =SUM(O56:O58) -> 0 | Q59: =SUM(Q56:Q58) -> 0 | R59: =SUM(R56:R58) -> 0 | T59: =SUM(T56:T58) -> 0 | U59: =SUM(U56:U58) -> 0 | W59: =SUM(W56:W58) -> 0 | X59: =SUM(X56:X58) -> 0 | Z59: =SUM(Z56:Z58) -> 0 | AA59: =SUM(AA56:AA58) -> 0 | AC59: =SUM(AC56:AC58) -> 0 | AD59: =SUM(AD56:AD58) -> 0 | AF59: =SUM(AF56:AF58) -> 0 | AG59: =SUM(AG56:AG58) -> 0 | AI59: =SUM(AI56:AI58) -> 0 | AJ59: =SUM(AJ56:AJ58) -> 0
B60: =B27 -> 2016 | C60: =C27 -> 2022
A61: Tax Rate (to be entered) | E61: =IF(AND(E$53>=$B$60, E$53<$C$60),$B$61,$C$61) -> 0 | F61: =IF(AND(E$53>=$B$60, E$53<$C$60),$B$61,$C$61) -> 0 | H61: =IF(AND(H$53>=$B$60, H$53<$C$60),$B$61,$C$61) -> 0 | I61: =IF(AND(H$53>=$B$60, H$53<$C$60),$B$61,$C$61) -> 0 | K61: =IF(AND(K$53>=$B$60, K$53<$C$60),$B$61,$C$61) -> 0 | L61: =IF(AND(K$53>=$B$60, K$53<$C$60),$B$61,$C$61) -> 0 | N61: =IF(AND(N$53>=$B$60, N$53<$C$60),$B$61,$C$61) -> 0 | O61: =IF(AND(N$53>=$B$60, N$53<$C$60),$B$61,$C$61) -> 0 | Q61: =IF(AND(Q$53>=$B$60, Q$53<$C$60),$B$61,$C$61) -> 0 | R61: =IF(AND(Q$53>=$B$60, Q$53<$C$60),$B$61,$C$61) -> 0 | T61: =IF(AND(T$53>=$B$60, T$53<$C$60),$B$61,$C$61) -> 0 | U61: =IF(AND(T$53>=$B$60, T$53<$C$60),$B$61,$C$61) -> 0 | W61: =IF(AND(W$53>=$B$60, W$53<$C$60),$B$61,$C$61) -> 0 | X61: =IF(AND(W$53>=$B$60, W$53<$C$60),$B$61,$C$61) -> 0 | Z61: =IF(AND(Z$53>=$B$60, Z$53<$C$60),$B$61,$C$61) -> 0 | AA61: =IF(AND(Z$53>=$B$60, Z$53<$C$60),$B$61,$C$61) -> 0 | AC61: =IF(AND(AC$53>=$B$60, AC$53<$C$60),$B$61,$C$61) -> 0 | AD61: =IF(AND(AC$53>=$B$60, AC$53<$C$60),$B$61,$C$61) -> 0 | AF61: =IF(AND(AF$53>=$B$60, AF$53<$C$60),$B$61,$C$61) -> 0 | AG61: =IF(AND(AF$53>=$B$60, AF$53<$C$60),$B$61,$C$61) -> 0 | AI61: =IF(AND(AI$53>=$B$60, AI$53<$C$60),$B$61,$C$61) -> 0 | AJ61: =IF(AND(AI$53>=$B$60, AI$53<$C$60),$B$61,$C$61) -> 0
A63: Income Taxes Payable | E63: =E59*E61 -> 0 | F63: =F59*F61 -> 0 | H63: =H59*H61 -> 0 | I63: =I59*I61 -> 0 | K63: =K59*K61 -> 0 | L63: =L59*L61 -> 0 | N63: =N59*N61 -> 0 | O63: =O59*O61 -> 0 | Q63: =Q59*Q61 -> 0 | R63: =R59*R61 -> 0 | T63: =T59*T61 -> 0 | U63: =U59*U61 -> 0 | W63: =W59*W61 -> 0 | X63: =X59*X61 -> 0 | Z63: =Z59*Z61 -> 0 | AA63: =AA59*AA61 -> 0 | AC63: =AC59*AC61 -> 0 | AD63: =AD59*AD61 -> 0 | AF63: =AF59*AF61 -> 0 | AG63: =AG59*AG61 -> 0 | AI63: =AI59*AI61 -> 0 | AJ63: =AJ59*AJ61 -> 0
A64: Gross Up
A65: Income Taxes Payable | E65: =E63/(1-E61) -> 0 | F65: =F63/(1-F61) -> 0 | H65: =H63/(1-H61) -> 0 | I65: =I63/(1-I61) -> 0 | K65: =K63/(1-K61) -> 0 | L65: =L63/(1-L61) -> 0 | N65: =N63/(1-N61) -> 0 | O65: =O63/(1-O61) -> 0 | Q65: =Q63/(1-Q61) -> 0 | R65: =R63/(1-R61) -> 0 | T65: =T63/(1-T61) -> 0 | U65: =U63/(1-U61) -> 0 | W65: =W63/(1-W61) -> 0 | X65: =X63/(1-X61) -> 0 | Z65: =Z63/(1-Z61) -> 0 | AA65: =AA63/(1-AA61) -> 0 | AC65: =AC63/(1-AC61) -> 0 | AD65: =AD63/(1-AD61) -> 0 | AF65: =AF63/(1-AF61) -> 0 | AG65: =AG63/(1-AG61) -> 0 | AI65: =AI63/(1-AI61) -> 0 | AJ65: =AJ63/(1-AJ61) -> 0
A66: Grossed Up PILs | E66: =+E65 -> 0 | F66: =+F65 -> 0 | H66: =+H65 -> 0 | I66: =+I65 -> 0 | K66: =+K65 -> 0 | L66: =+L65 -> 0 | N66: =+N65 -> 0 | O66: =+O65 -> 0 | Q66: =+Q65 -> 0 | R66: =+R65 -> 0 | T66: =+T65 -> 0 | U66: =+U65 -> 0 | W66: =+W65 -> 0 | X66: =+X65 -> 0 | Z66: =+Z65 -> 0 | AA66: =+AA65 -> 0 | AC66: =+AC65 -> 0 | AD66: =+AD65 -> 0 | AF66: =+AF65 -> 0 | AG66: =+AG65 -> 0 | AI66: =+AI65 -> 0 | AJ66: =+AJ65 -> 0
J68: Test Year
E69: =F69-1 -> 2017 | F69: =G69-1 -> 2018 | G69: =H69-1 -> 2019 | H69: =I69-1 -> 2020 | I69: =J69-1 -> 2021 | J69: ='LDC Info'!E24 -> 2022 | K69: =J69+1 -> 2023 | L69: =K69+1 -> 2024 | M69: =L69+1 -> 2025 | N69: =M69+1 -> 2026 | O69: =N69+1 -> 2027
A70: Net Fixed Assets
A71: Enter applicable amortization in years: | B71: 40
A72: Opening Gross Fixed Assets | F72: =E74 -> 0 | G72: 0 | H72: 0 | I72: 0 | J72: 0 | K72: 0 | L72: 0 | M72: 0 | N72: 0 | O72: 0
A73: Capital Additions | E73: ='App.2-FA Proposed REG Invest.'!C62 -> 0 | F73: ='App.2-FA Proposed REG Invest.'!D62 -> 0 | G73: ='App.2-FA Proposed REG Invest.'!E62 -> 0 | H73: ='App.2-FA Proposed REG Invest.'!F62 -> 0 | I73: ='App.2-FA Proposed REG Invest.'!G62 -> 0 | J73: ='App.2-FA Proposed REG Invest.'!H62 -> 0 | K73: ='App.2-FA Proposed REG Invest.'!I62 -> 0 | L73: ='App.2-FA Proposed REG Invest.'!J62 -> 0 | M73: ='App.2-FA Proposed REG Invest.'!K62 -> 0 | N73: ='App.2-FA Proposed REG Invest.'!L62 -> 0 | O73: ='App.2-FA Proposed REG Invest.'!M62 -> 0
A74: Closing Gross Fixed Assets | E74: =SUM(E72:E73) -> 0 | F74: 0 | G74: 0 | H74: 0 | I74: 0 | J74: 0 | K74: 0 | L74: 0 | M74: 0 | N74: 0 | O74: =SUM(O72:O73) -> 0
A76: Opening Accumulated Amortization | F76: =+E79 -> 0 | G76: =+F79 -> 0 | H76: 0 | I76: 0 | J76: 0 | K76: 0 | L76: 0 | M76: 0 | N76: 0 | O76: 0
A77: Current Year Amortization (before additions) | E77: =IF(ISERROR(E72/$B$71), 0, E72/$B$71) -> 0 | F77: =IF(ISERROR(F72/$B$71), 0, F72/$B$71) -> 0 | G77: 0 | H77: 0 | I77: 0 | J77: 0 | K77: 0 | L77: 0 | M77: 0 | N77: 0 | O77: =IF(ISERROR(O72/$B$71), 0, O72/$B$71) -> 0
A78: Capital Additions Amortization (half year) | E78: =E73/$B$71/2 -> 0 | F78: =F73/$B$71/2 -> 0 | G78: 0 | H78: 0 | I78: 0 | J78: 0 | K78: 0 | L78: 0 | M78: 0 | N78: 0 | O78: =O73/$B$71/2 -> 0
A79: Closing Accumulated Amortization | E79: =SUM(E76+E77+E78) -> 0 | F79: 0 | G79: 0 | H79: 0 | I79: 0 | J79: 0 | K79: 0 | L79: 0 | M79: 0 | N79: 0 | O79: =SUM(O76+O77+O78) -> 0
A81: Opening Net Fixed Assets | E81: =E72-E76 -> 0 | F81: 0 | G81: 0 | H81: 0 | I81: 0 | J81: 0 | K81: 0 | L81: 0 | M81: 0 | N81: 0 | O81: =O72-O76 -> 0
A82: Closing Net Fixed Assets | E82: =E74-E79 -> 0 | F82: 0 | G82: 0 | H82: 0 | I82: 0 | J82: 0 | K82: 0 | L82: 0 | M82: 0 | N82: 0 | O82: =O74-O79 -> 0
A83: Average Net Fixed Assets | E83: =SUM(E81:E82)/2 -> 0 | F83: 0 | G83: 0 | H83: 0 | I83: 0 | J83: 0 | K83: 0 | L83: 0 | M83: 0 | N83: 0 | O83: =SUM(O81:O82)/2 -> 0
A85: UCC for PILs Calculation | J85: Test Year
E86: =E69 -> 2017 | F86: =F69 -> 2018 | G86: =G69 -> 2019 | H86: 2020 | I86: 2021 | J86: 2022 | K86: 2023 | L86: 2024 | M86: 2025 | N86: 2026 | O86: =O69 -> 2027
A88: Opening UCC | E88: =E72 -> 0 | F88: =E96 -> 0 | G88: 0 | H88: 0 | I88: 0 | J88: 0 | K88: 0 | L88: 0 | M88: 0 | N88: 0 | O88: 0
A89: Capital Additions | E89: =E73 -> 0 | F89: 0 | G89: 0 | H89: 0 | I89: 0 | J89: 0 | K89: 0 | L89: 0 | M89: 0 | N89: 0 | O89: =O73 -> 0
A90: UCC Before Half Year Rule | E90: =SUM(E88:E89) -> 0 | F90: 0 | G90: 0 | H90: 0 | I90: 0 | J90: 0 | K90: 0 | L90: 0 | M90: 0 | N90: 0 | O90: =SUM(O88:O89) -> 0
A91: Capital Additions (half year) | E91: =E89/2 -> 0 | F91: 0 | G91: 0 | H91: 0 | I91: 0 | J91: 0 | K91: 0 | L91: 0 | M91: 0 | N91: 0 | O91: =O89/2 -> 0
A92: Reduced UCC | E92: =E90-E91 -> 0 | F92: 0 | G92: 0 | H92: 0 | I92: 0 | J92: 0 | K92: 0 | L92: 0 | M92: 0 | N92: 0 | O92: =O90-O91 -> 0
A93: CCA Rate Class (to be entered)
A94: CCA Rate (to be entered)
A95: CCA | E95: =E92*$B$94 -> 0 | F95: =F92*$B$94 -> 0 | G95: 0 | H95: 0 | I95: 0 | J95: 0 | K95: 0 | L95: 0 | M95: 0 | N95: 0 | O95: =O92*$B$94 -> 0
A96: Closing UCC | E96: =E90-E95 -> 0 | F96: 0 | G96: 0 | H96: 0 | I96: 0 | J96: 0 | K96: 0 | L96: 0 | M96: 0 | N96: 0 | O96: =O90-O95 -> 0

Sheet App.2-FC Calc of REG Expansion
R1: File Number: | S1: 0
R2: Exhibit:
R3: Tab:
A4: TO BE UPDATED AT DRAFT RATE ORDER STAGE | R4: Schedule:
R5: Page:
R7: Date:
A9: Appendix 2-FC
A10: Calculation of Renewable Generation Connection Direct Benefits/Provincial Amount: Renewable Expansion Investments
A12: This table will calculate the distributor/provincial shares of the investments entered in Part B of Appendix 2-FA.
A13: Enter values in green shaded cells: WCA percentage, debt percentages, interest rates, kWh, tax rates, amortization period, CCA Class and percentage.
A14: For historical investments, enter these variables that were approved in your last cost of service test year. For 2021 and beyond, enter variables as in the application.
A15: Rate Riders related to the direct benefit portion of the renewable investments are not calculated for the Test Year as these assets and costs are already in the distributor's rate base/revenue requirement.
S16: Test Year
D17: =G17-1 -> 2017 | G17: =J17-1 -> 2018 | J17: =M17-1 -> 2019 | M17: =P17-1 -> 2020 | P17: =S17-1 -> 2021 | S17: ='LDC Info'!$E$24 -> 2022 | V17: =S17+1 -> 2023 | Y17: =V17+1 -> 2024 | Z17: 2016 | AB17: =Y17+1 -> 2025 | AE17: =AB17+1 -> 2026 | AH17: =AE17+1 -> 2027
E18: Direct Benefit | F18: Provincial | H18: Direct Benefit | I18: Provincial | K18: Direct Benefit | L18: Provincial | N18: Direct Benefit | O18: Provincial | Q18: Direct Benefit | R18: Provincial | T18: Direct Benefit | U18: Provincial | W18: Direct Benefit | X18: Provincial | Z18: Direct Benefit | AA18: Provincial | AC18: Direct Benefit | AD18: Provincial | AF18: Direct Benefit | AG18: Provincial | AI18: Direct Benefit | AJ18: Provincial
D19: Total | E19: 0.17 | F19: 0.83 | G19: Total | H19: 0.17 | I19: 0.83 | J19: Total | K19: 0.17 | L19: 0.83 | M19: Total | N19: 0.17 | O19: 0.83 | P19: Total | Q19: 0.17 | R19: 0.83 | S19: Total | T19: 0.17 | U19: 0.83 | V19: Total | W19: 0.17 | X19: 0.83 | Y19: Total | Z19: 0.17 | AA19: 0.83 | AB19: Total | AC19: 0.17 | AD19: 0.83 | AE19: Total | AF19: 0.17 | AG19: 0.83 | AH19: Total | AI19: 0.17 | AJ19: 0.83
A20: Net Fixed Assets (average) | D20: =E83 -> 0 | E20: =D20*E19 -> 0 | F20: =D20*F19 -> 0 | G20: =F83 -> 0 | H20: =G20*H19 -> 0 | I20: =G20*I19 -> 0 | J20: =G83 -> 0 | K20: =J20*K19 -> 0 | L20: =J20*L19 -> 0 | M20: =H83 -> 0 | N20: =M20*N19 -> 0 | O20: =M20*O19 -> 0 | P20: =I83 -> 0 | Q20: =P20*Q19 -> 0 | R20: =P20*R19 -> 0 | S20: =J83 -> 0 | T20: =S20*T19 -> 0 | U20: =S20*U19 -> 0 | V20: =K83 -> 0 | W20: =V20*W19 -> 0 | X20: =V20*X19 -> 0 | Y20: =L83 -> 0 | Z20: =Y20*Z19 -> 0 | AA20: =Y20*AA19 -> 0 | AB20: =M83 -> 0 | AC20: =AB20*AC19 -> 0 | AD20: =AB20*AD19 -> 0 | AE20: =N83 -> 0 | AF20: =AE20*AF19 -> 0 | AG20: =AE20*AG19 -> 0 | AH20: =O83 -> 0 | AI20: =AH20*AI19 -> 0 | AJ20: =AH20*AJ19 -> 0
A21: Incremental OM&A (on-going, N/A for Provincial Recovery) | D21: 0 | E21: =D21*E19 -> 0 | F21: =D21*F19 -> 0 | G21: 0 | H21: =G21*H19 -> 0 | I21: =G21*I19 -> 0 | J21: 0 | K21: =J21*K19 -> 0 | L21: =J21*L19 -> 0 | M21: 0 | N21: =M21*N19 -> 0 | O21: =M21*O19 -> 0 | P21: 0 | Q21: =P21*Q19 -> 0 | R21: =P21*R19 -> 0 | S21: 0 | T21: =S21*T19 -> 0 | U21: =S21*U19 -> 0 | V21: 0 | W21: =V21*W19 -> 0 | X21: =V21*X19 -> 0 | Y21: 0 | Z21: =Y21*Z19 -> 0 | AA21: =Y21*AA19 -> 0 | AB21: 0 | AC21: =AB21*AC19 -> 0 | AD21: =AB21*AD19 -> 0 | AE21: 0 | AF21: =AE21*AF19 -> 0 | AG21: =AE21*AG19 -> 0 | AH21: 0 | AI21: =AH21*AI19 -> 0 | AJ21: =AH21*AJ19 -> 0
A22: Incremental OM&A (start-up, applicable for Provincial Recovery) | D22: 0 | E22: =D22*E19 -> 0 | F22: =D22*F19 -> 0 | G22: 0 | H22: =G22*H19 -> 0 | I22: =G22*I19 -> 0 | J22: 0 | K22: =J22*K19 -> 0 | L22: =J22*L19 -> 0 | M22: 0 | N22: =M22*N19 -> 0 | O22: =M22*O19 -> 0 | P22: 0 | Q22: =P22*Q19 -> 0 | R22: =P22*R19 -> 0 | S22: 0 | T22: =S22*T19 -> 0 | U22: =S22*U19 -> 0 | V22: 0 | W22: =V22*W19 -> 0 | X22: =V22*X19 -> 0 | Y22: 0 | Z22: =Y22*Z19 -> 0 | AA22: =Y22*AA19 -> 0 | AB22: 0 | AC22: =AB22*AC19 -> 0 | AD22: =AB22*AD19 -> 0 | AE22: 0 | AF22: =AE22*AF19 -> 0 | AG22: =AE22*AG19 -> 0 | AH22: 0 | AI22: =AH22*AI19 -> 0 | AJ22: =AH22*AJ19 -> 0
A23: Rebasing Year vs. Test Year | B23: ='LDC Info'!E28 -> 2016 | C23: ='LDC Info'!E24 -> 2022
A24: Allowance for Working Capital (enter rate) | E24: =IF(AND(D$17>=$B$23, D$17<$C$23),(E21+E22)*$B$24,(E21+E22)*$C$24) -> 0 | F24: =IF(AND(D$17>=$B$23, D$17<$C$23),(F22)*$B$24,(F22)*$C$24) -> 0 | H24: =IF(AND(G$17>=$B$23, G$17<$C$23),(H21+H22)*$B$24,(H21+H22)*$C$24) -> 0 | I24: =IF(AND(G$17>=$B$23, G$17<$C$23),(I22)*$B$24,(I22)*$C$24) -> 0 | K24: =IF(AND(J$17>=$B$23, J$17<$C$23),(K21+K22)*$B$24,(K21+K22)*$C$24) -> 0 | L24: =IF(AND(J$17>=$B$23, J$17<$C$23),(L22)*$B$24,(L22)*$C$24) -> 0 | N24: =IF(AND(M$17>=$B$23, M$17<$C$23),(N21+N22)*$B$24,(N21+N22)*$C$24) -> 0 | O24: =IF(AND(M$17>=$B$23, M$17<$C$23),(O22)*$B$24,(O22)*$C$24) -> 0 | Q24: =IF(AND(P$17>=$B$23, P$17<$C$23),(Q21+Q22)*$B$24,(Q21+Q22)*$C$24) -> 0 | R24: =IF(AND(P$17>=$B$23, P$17<$C$23),(R22)*$B$24,(R22)*$C$24) -> 0 | T24: =IF(AND(S$17>=$B$23, S$17<$C$23),(T21+T22)*$B$24,(T21+T22)*$C$24) -> 0 | U24: =IF(AND(S$17>=$B$23, S$17<$C$23),(U22)*$B$24,(U22)*$C$24) -> 0 | W24: =IF(AND(V$17>=$B$23, V$17<$C$23),(W21+W22)*$B$24,(W21+W22)*$C$24) -> 0 | X24: =IF(AND(V$17>=$B$23, V$17<$C$23),(X22)*$B$24,(X22)*$C$24) -> 0 | Z24: =IF(AND(Y$17>=$B$23, Y$17<$C$23),(Z21+Z22)*$B$24,(Z21+Z22)*$C$24) -> 0 | AA24: =IF(AND(Y$17>=$B$23, Y$17<$C$23),(AA22)*$B$24,(AA22)*$C$24) -> 0 | AC24: =IF(AND(AB$17>=$B$23, AB$17<$C$23),(AC21+AC22)*$B$24,(AC21+AC22)*$C$24) -> 0 | AD24: =IF(AND(AB$17>=$B$23, AB$17<$C$23),(AD22)*$B$24,(AD22)*$C$24) -> 0 | AF24: =IF(AND(AE$17>=$B$23, AE$17<$C$23),(AF21+AF22)*$B$24,(AF21+AF22)*$C$24) -> 0 | AG24: =IF(AND(AE$17>=$B$23, AE$17<$C$23),(AG22)*$B$24,(AG22)*$C$24) -> 0 | AI24: =IF(AND(AH$17>=$B$23, AH$17<$C$23),(AI21+AI22)*$B$24,(AI21+AI22)*$C$24) -> 0 | AJ24: =IF(AND(AH$17>=$B$23, AH$17<$C$23),(AJ22)*$B$24,(AJ22)*$C$24) -> 0
A25: Rate Base | E25: =SUM(E20+E24) -> 0 | F25: =SUM(F20+F24) -> 0 | H25: =SUM(H20+H24) -> 0 | I25: =SUM(I20+I24) -> 0 | K25: =SUM(K20+K24) -> 0 | L25: =SUM(L20+L24) -> 0 | N25: =SUM(N20+N24) -> 0 | O25: =SUM(O20+O24) -> 0 | Q25: =SUM(Q20+Q24) -> 0 | R25: =SUM(R20+R24) -> 0 | T25: =SUM(T20+T24) -> 0 | U25: =SUM(U20+U24) -> 0 | W25: =SUM(W20+W24) -> 0 | X25: =SUM(X20+X24) -> 0 | Z25: =SUM(Z20+Z24) -> 0 | AA25: =SUM(AA20+AA24) -> 0 | AC25: =SUM(AC20+AC24) -> 0 | AD25: =SUM(AD20+AD24) -> 0 | AF25: =SUM(AF20+AF24) -> 0 | AG25: =SUM(AG20+AG24) -> 0 | AI25: =SUM(AI20+AI24) -> 0 | AJ25: =SUM(AJ20+AJ24) -> 0
B27: =B23 -> 2016 | C27: =C23 -> 2022
A28: Deemed ST Debt | B28: 0.04 | C28: 0.04 | E28: =E25*$B$28 -> 0 | F28: =F25*$B$28 -> 0 | H28: =H25*$B$28 -> 0 | I28: =I25*$B$28 -> 0 | K28: =K25*$B$28 -> 0 | L28: =L25*$B$28 -> 0 | N28: =N25*$B$28 -> 0 | O28: =O25*$B$28 -> 0 | Q28: =Q25*$B$28 -> 0 | R28: =R25*$B$28 -> 0 | T28: =T25*$C$28 -> 0 | U28: =U25*$C$28 -> 0 | W28: =W25*$C$28 -> 0 | X28: =X25*$C$28 -> 0 | Z28: =Z25*$C$28 -> 0 | AA28: =AA25*$C$28 -> 0 | AC28: =AC25*$C$28 -> 0 | AD28: =AD25*$C$28 -> 0 | AF28: =AF25*$C$28 -> 0 | AG28: =AG25*$C$28 -> 0 | AI28: =AI25*$C$28 -> 0 | AJ28: =AJ25*$C$28 -> 0
A29: Deemed LT Debt | B29: 0.56 | C29: 0.56 | E29: =E25*$B$29 -> 0 | F29: =F25*$B$29 -> 0 | H29: =H25*$B$29 -> 0 | I29: =I25*$B$29 -> 0 | K29: =K25*$B$29 -> 0 | L29: =L25*$B$29 -> 0 | N29: =N25*$B$29 -> 0 | O29: =O25*$B$29 -> 0 | Q29: =Q25*$B$29 -> 0 | R29: =R25*$B$29 -> 0 | T29: =T25*$C$29 -> 0 | U29: =U25*$C$29 -> 0 | W29: =W25*$C$29 -> 0 | X29: =X25*$C$29 -> 0 | Z29: =Z25*$C$29 -> 0 | AA29: =AA25*$C$29 -> 0 | AC29: =AC25*$C$29 -> 0 | AD29: =AD25*$C$29 -> 0 | AF29: =AF25*$C$29 -> 0 | AG29: =AG25*$C$29 -> 0 | AI29: =AI25*$C$29 -> 0 | AJ29: =AJ25*$C$29 -> 0
A30: Deemed Equity | B30: 0.4 | C30: 0.4 | E30: =E25*$B$30 -> 0 | F30: =F25*$B$30 -> 0 | H30: =H25*$B$30 -> 0 | I30: =I25*$B$30 -> 0 | K30: =K25*$B$30 -> 0 | L30: =L25*$B$30 -> 0 | N30: =N25*$B$30 -> 0 | O30: =O25*$B$30 -> 0 | Q30: =Q25*$B$30 -> 0 | R30: =R25*$B$30 -> 0 | T30: =T25*$C$30 -> 0 | U30: =U25*$C$30 -> 0 | W30: =W25*$C$30 -> 0 | X30: =X25*$C$30 -> 0 | Z30: =Z25*$C$30 -> 0 | AA30: =AA25*$C$30 -> 0 | AC30: =AC25*$C$30 -> 0 | AD30: =AD25*$C$30 -> 0 | AF30: =AF25*$C$30 -> 0 | AG30: =AG25*$C$30 -> 0 | AI30: =AI25*$C$30 -> 0 | AJ30: =AJ25*$C$30 -> 0
A32: ST Interest (enter rate) | E32: =E28*$B32 -> 0 | F32: 0 | H32: 0 | I32: 0 | K32: 0 | L32: 0 | N32: 0 | O32: 0 | Q32: 0 | R32: 0 | T32: =T28*$C32 -> 0 | U32: 0 | W32: =W28*$C32 -> 0 | X32: 0 | Z32: =Z28*$C32 -> 0 | AA32: 0 | AC32: =AC28*$C32 -> 0 | AD32: 0 | AF32: =AF28*$C32 -> 0 | AG32: 0 | AI32: =AI28*$C32 -> 0 | AJ32: 0
A33: LT Interest (enter rate) | E33: 0 | F33: 0 | H33: 0 | I33: 0 | K33: 0 | L33: 0 | N33: 0 | O33: 0 | Q33: 0 | R33: 0 | T33: 0 | U33: 0 | W33: 0 | X33: 0 | Z33: 0 | AA33: 0 | AC33: 0 | AD33: 0 | AF33: 0 | AG33: 0 | AI33: 0 | AJ33: 0
A34: Return on Equity (enter rate) | E34: 0 | F34: 0 | H34: 0 | I34: 0 | K34: 0 | L34: 0 | N34: 0 | O34: 0 | Q34: 0 | R34: 0 | T34: 0 | U34: 0 | W34: 0 | X34: 0 | Z34: 0 | AA34: 0 | AC34: 0 | AD34: 0 | AF34: 0 | AG34: 0 | AI34: 0 | AJ34: 0
A35: Cost of Capital Total | E35: =SUM(E32:E34) -> 0 | F35: =SUM(F32:F34) -> 0 | H35: =SUM(H32:H34) -> 0 | I35: =SUM(I32:I34) -> 0 | K35: =SUM(K32:K34) -> 0 | L35: =SUM(L32:L34) -> 0 | N35: =SUM(N32:N34) -> 0 | O35: =SUM(O32:O34) -> 0 | Q35: =SUM(Q32:Q34) -> 0 | R35: =SUM(R32:R34) -> 0 | T35: =SUM(T32:T34) -> 0 | U35: =SUM(U32:U34) -> 0 | W35: =SUM(W32:W34) -> 0 | X35: =SUM(X32:X34) -> 0 | Z35: =SUM(Z32:Z34) -> 0 | AA35: =SUM(AA32:AA34) -> 0 | AC35: =SUM(AC32:AC34) -> 0 | AD35: =SUM(AD32:AD34) -> 0 | AF35: =SUM(AF32:AF34) -> 0 | AG35: =SUM(AG32:AG34) -> 0 | AI35: =SUM(AI32:AI34) -> 0 | AJ35: =SUM(AJ32:AJ34) -> 0
A37: OM&A | E37: =E21+E22 -> 0 | F37: =F22 -> 0 | H37: =H21+H22 -> 0 | I37: =I22 -> 0 | K37: =K21+K22 -> 0 | L37: =L22 -> 0 | N37: =N21+N22 -> 0 | O37: =O22 -> 0 | Q37: =Q21+Q22 -> 0 | R37: =R22 -> 0 | T37: =T21+T22 -> 0 | U37: =U22 -> 0 | W37: =W21+W22 -> 0 | X37: =X22 -> 0 | Z37: =Z21+Z22 -> 0 | AA37: =AA22 -> 0 | AC37: =AC21+AC22 -> 0 | AD37: =AD22 -> 0 | AF37: =AF21+AF22 -> 0 | AG37: =AG22 -> 0 | AI37: =AI21+AI22 -> 0 | AJ37: =AJ22 -> 0
A38: Amortization | D38: =+E77+E78 -> 0 | E38: =D38*E$19 -> 0 | F38: =D38*F$19 -> 0 | G38: =+F77+F78 -> 0 | H38: =G38*H$19 -> 0 | I38: =G38*I$19 -> 0 | J38: =+G77+G78 -> 0 | K38: =J38*K$19 -> 0 | L38: =J38*L$19 -> 0 | M38: =+H77+H78 -> 0 | N38: =M38*N$19 -> 0 | O38: =M38*O$19 -> 0 | P38: =+I77+I78 -> 0 | Q38: =P38*Q$19 -> 0 | R38: =P38*R$19 -> 0 | S38: =+J77+J78 -> 0 | T38: =S38*T$19 -> 0 | U38: =S38*U$19 -> 0 | V38: =+K77+K78 -> 0 | W38: =V38*W$19 -> 0 | X38: =V38*X$19 -> 0 | Y38: =+L77+L78 -> 0 | Z38: =Y38*Z$19 -> 0 | AA38: =Y38*AA$19 -> 0 | AB38: =+M77+M78 -> 0 | AC38: =AB38*AC$19 -> 0 | AD38: =AB38*AD$19 -> 0 | AE38: =+N77+N78 -> 0 | AF38: =AE38*AF$19 -> 0 | AG38: =AE38*AG$19 -> 0 | AH38: =+O77+O78 -> 0 | AI38: =AH38*AI$19 -> 0 | AJ38: =AH38*AJ$19 -> 0
A39: Grossed-up PILs | E39: =+E66 -> 0 | F39: =+F66 -> 0 | H39: =+H66 -> 0 | I39: =+I66 -> 0 | K39: =+K66 -> 0 | L39: =+L66 -> 0 | N39: =+N66 -> 0 | O39: =+O66 -> 0 | Q39: =+Q66 -> 0 | R39: =+R66 -> 0 | T39: =+T66 -> 0 | U39: =+U66 -> 0 | W39: =+W66 -> 0 | X39: =+X66 -> 0 | Z39: =+Z66 -> 0 | AA39: =+AA66 -> 0 | AC39: =+AC66 -> 0 | AD39: =+AD66 -> 0 | AF39: =+AF66 -> 0 | AG39: =+AG66 -> 0 | AI39: =+AI66 -> 0 | AJ39: =+AJ66 -> 0
A41: Revenue Requirement | E41: =SUM(E35:E39) -> 0 | F41: =SUM(F35:F39) -> 0 | H41: =SUM(H35:H39) -> 0 | I41: =SUM(I35:I39) -> 0 | K41: =SUM(K35:K39) -> 0 | L41: =SUM(L35:L39) -> 0 | N41: =SUM(N35:N39) -> 0 | O41: =SUM(O35:O39) -> 0 | Q41: =SUM(Q35:Q39) -> 0 | R41: =SUM(R35:R39) -> 0 | T41: =SUM(T35:T39) -> 0 | U41: =SUM(U35:U39) -> 0 | W41: =SUM(W35:W39) -> 0 | X41: =SUM(X35:X39) -> 0 | Z41: =SUM(Z35:Z39) -> 0 | AA41: =SUM(AA35:AA39) -> 0 | AC41: =SUM(AC35:AC39) -> 0 | AD41: =SUM(AD35:AD39) -> 0 | AF41: =SUM(AF35:AF39) -> 0 | AG41: =SUM(AG35:AG39) -> 0 | AI41: =SUM(AI35:AI39) -> 0 | AJ41: =SUM(AJ35:AJ39) -> 0
A44: Provincial Rate Protection | F44: =F41 -> 0 | I44: =I41 -> 0 | L44: =L41 -> 0 | O44: =O41 -> 0 | R44: =R41 -> 0 | U44: =U41 -> 0 | X44: =X41 -> 0 | AA44: =AA41 -> 0 | AD44: =AD41 -> 0 | AG44: =AG41 -> 0 | AJ44: =AJ41 -> 0
A46: Monthly Amount Paid by IESO | F46: =F44/12 -> 0 | I46: =I44/12 -> 0 | L46: =L44/12 -> 0 | O46: =O44/12 -> 0 | R46: =R44/12 -> 0 | U46: =U44/12 -> 0 | X46: =X44/12 -> 0 | AA46: =AA44/12 -> 0 | AD46: =AD44/12 -> 0 | AG46: =AG44/12 -> 0 | AJ46: =AJ44/12 -> 0
A48: Note 1: The distributor should follow the regulatory accounting set out in the Accounting Procedure Handbook Guidance FAQs issued in March 2015. Q10 of the APH FAQs states that: “For approved eligible investments as defined under O.Reg. 330/09 under the OEB Act, a variance account will continue to be used for the purpose of recording variances between the revenue requirement based on actual costs of approved eligible investments and the revenue received from the IESO.” The answer for Q10 provides the accounting guidance for this variance account: “Distributors that have included eligible investments to connect qualifying facilities in their DS plans are to establish the variance Account 1533 Renewable Generation Connection Funding Adder Deferral Account, Sub-account Provincial Rate Protection Payment Variances following OEB approval for investments forecast to enter service beyond the test year for purposes of implementing rate protection pursuant to O.Reg. 330/09. The purpose of this variance account is to track the variance between the distributor’s revenue requirement associated with the portion of the actual capital and/or operating costs that are eligible for rate protection, as incurred by the distributor for eligible renewable enabling and expansion investments, and the rate protection payments collected from the IESO.” The answer further provides the journal entries to record the variances. Distributors should follow the instructions in the answer for recording the journal entries in the variance account 1533.
A50: Note 2: For the Test Year, Costs and Revenues of the Direct Benefit are to be included in the test year applicant Rate Base and Revenues.
A52: PILs Calculation | T52: Test Year
E53: =G17-1 -> 2017 | H53: =G17 -> 2018 | K53: =J17 -> 2019 | N53: =M17 -> 2020 | Q53: =P17 -> 2021 | T53: =S17 -> 2022 | W53: =V17 -> 2023 | Z53: =Y17 -> 2024 | AC53: =AB17 -> 2025 | AF53: =AE17 -> 2026 | AI53: =AH17 -> 2027
A54: Income Tax | E54: Direct Benefit | F54: Provincial | H54: Direct Benefit | I54: Provincial | K54: Direct Benefit | L54: Provincial | N54: Direct Benefit | O54: Provincial | Q54: Direct Benefit | R54: Provincial | T54: Direct Benefit | U54: Provincial | W54: Direct Benefit | X54: Provincial | Z54: Direct Benefit | AA54: Provincial | AC54: Direct Benefit | AD54: Provincial | AF54: Direct Benefit | AG54: Provincial | AI54: Direct Benefit | AJ54: Provincial
AB55: Total | AE55: Total | AH55: Total
A56: Net Income - ROE on Rate Base | E56: =E34 -> 0 | F56: =F34 -> 0 | H56: =H34 -> 0 | I56: =I34 -> 0 | K56: =K34 -> 0 | L56: =L34 -> 0 | N56: =N34 -> 0 | O56: =O34 -> 0 | Q56: =Q34 -> 0 | R56: =R34 -> 0 | T56: =T34 -> 0 | U56: =U34 -> 0 | W56: =W34 -> 0 | X56: =X34 -> 0 | Z56: =Z34 -> 0 | AA56: =AA34 -> 0 | AC56: =AC34 -> 0 | AD56: =AD34 -> 0 | AF56: =AF34 -> 0 | AG56: =AG34 -> 0 | AI56: =AI34 -> 0 | AJ56: =AJ34 -> 0
A57: Amortization (6% DB and 94% P) | E57: =E38 -> 0 | F57: =F38 -> 0 | H57: =H38 -> 0 | I57: =I38 -> 0 | K57: =K38 -> 0 | L57: =L38 -> 0 | N57: =N38 -> 0 | O57: =O38 -> 0 | Q57: =Q38 -> 0 | R57: =R38 -> 0 | T57: =T38 -> 0 | U57: =U38 -> 0 | W57: =W38 -> 0 | X57: =X38 -> 0 | Z57: =Z38 -> 0 | AA57: =AA38 -> 0 | AC57: =AC38 -> 0 | AD57: =AD38 -> 0 | AF57: =AF38 -> 0 | AG57: =AG38 -> 0 | AI57: =AI38 -> 0 | AJ57: =AJ38 -> 0
A58: CCA (6% DB and 94% P) | E58: =-E95*$E$19 -> 0 | F58: =-E95*$F$19 -> 0 | H58: =-F95*$E$19 -> 0 | I58: =-F95*$F$19 -> 0 | K58: =-G95*$E$19 -> 0 | L58: =-G95*$F$19 -> 0 | N58: =-H95*$E$19 -> 0 | O58: =-H95*$F$19 -> 0 | Q58: =-I95*$E$19 -> 0 | R58: =-I95*$F$19 -> 0 | T58: =-J95*$E$19 -> 0 | U58: =-J95*$F$19 -> 0 | W58: =-K95*$E$19 -> 0 | X58: =-K95*$F$19 -> 0 | Z58: =-L95*$E$19 -> 0 | AA58: =-L95*$F$19 -> 0 | AC58: =-M95*$E$19 -> 0 | AD58: =-M95*$F$19 -> 0 | AF58: =-N95*$E$19 -> 0 | AG58: =-N95*$F$19 -> 0 | AI58: =-Q95*$E$19 -> 0 | AJ58: =-Q95*$F$19 -> 0
A59: Taxable income | E59: =SUM(E56:E58) -> 0 | F59: =SUM(F56:F58) -> 0 | H59: =SUM(H56:H58) -> 0 | I59: =SUM(I56:I58) -> 0 | K59: =SUM(K56:K58) -> 0 | L59: =SUM(L56:L58) -> 0 | N59: =SUM(N56:N58) -> 0 | O59: =SUM(O56:O58) -> 0 | Q59: =SUM(Q56:Q58) -> 0 | R59: =SUM(R56:R58) -> 0 | T59: =SUM(T56:T58) -> 0 | U59: =SUM(U56:U58) -> 0 | W59: =SUM(W56:W58) -> 0 | X59: =SUM(X56:X58) -> 0 | Z59: =SUM(Z56:Z58) -> 0 | AA59: =SUM(AA56:AA58) -> 0 | AC59: =SUM(AC56:AC58) -> 0 | AD59: =SUM(AD56:AD58) -> 0 | AF59: =SUM(AF56:AF58) -> 0 | AG59: =SUM(AG56:AG58) -> 0 | AI59: =SUM(AI56:AI58) -> 0 | AJ59: =SUM(AJ56:AJ58) -> 0
B60: =B27 -> 2016 | C60: =C27 -> 2022
A61: Tax Rate (to be entered) | E61: =IF(AND(E$53>=$B$60, E$53<$C$60),$B$61,$C$61) -> 0 | F61: =IF(AND(E$53>=$B$60, E$53<$C$60),$B$61,$C$61) -> 0 | H61: =IF(AND(H$53>=$B$60, H$53<$C$60),$B$61,$C$61) -> 0 | I61: =IF(AND(H$53>=$B$60, H$53<$C$60),$B$61,$C$61) -> 0 | K61: =IF(AND(K$53>=$B$60, K$53<$C$60),$B$61,$C$61) -> 0 | L61: =IF(AND(K$53>=$B$60, K$53<$C$60),$B$61,$C$61) -> 0 | N61: =IF(AND(N$53>=$B$60, N$53<$C$60),$B$61,$C$61) -> 0 | O61: =IF(AND(N$53>=$B$60, N$53<$C$60),$B$61,$C$61) -> 0 | Q61: =IF(AND(Q$53>=$B$60, Q$53<$C$60),$B$61,$C$61) -> 0 | R61: =IF(AND(Q$53>=$B$60, Q$53<$C$60),$B$61,$C$61) -> 0 | T61: =IF(AND(T$53>=$B$60, T$53<$C$60),$B$61,$C$61) -> 0 | U61: =IF(AND(T$53>=$B$60, T$53<$C$60),$B$61,$C$61) -> 0 | W61: =IF(AND(W$53>=$B$60, W$53<$C$60),$B$61,$C$61) -> 0 | X61: =IF(AND(W$53>=$B$60, W$53<$C$60),$B$61,$C$61) -> 0 | Z61: =IF(AND(Z$53>=$B$60, Z$53<$C$60),$B$61,$C$61) -> 0 | AA61: =IF(AND(Z$53>=$B$60, Z$53<$C$60),$B$61,$C$61) -> 0 | AC61: =IF(AND(AC$53>=$B$60, AC$53<$C$60),$B$61,$C$61) -> 0 | AD61: =IF(AND(AC$53>=$B$60, AC$53<$C$60),$B$61,$C$61) -> 0 | AF61: =IF(AND(AF$53>=$B$60, AF$53<$C$60),$B$61,$C$61) -> 0 | AG61: =IF(AND(AF$53>=$B$60, AF$53<$C$60),$B$61,$C$61) -> 0 | AI61: =IF(AND(AI$53>=$B$60, AI$53<$C$60),$B$61,$C$61) -> 0 | AJ61: =IF(AND(AI$53>=$B$60, AI$53<$C$60),$B$61,$C$61) -> 0
A63: Income Taxes Payable | E63: =E59*E61 -> 0 | F63: =F59*F61 -> 0 | H63: =H59*H61 -> 0 | I63: =I59*I61 -> 0 | K63: =K59*K61 -> 0 | L63: =L59*L61 -> 0 | N63: =N59*N61 -> 0 | O63: =O59*O61 -> 0 | Q63: =Q59*Q61 -> 0 | R63: =R59*R61 -> 0 | T63: =T59*T61 -> 0 | U63: =U59*U61 -> 0 | W63: =W59*W61 -> 0 | X63: =X59*X61 -> 0 | Z63: =Z59*Z61 -> 0 | AA63: =AA59*AA61 -> 0 | AC63: =AC59*AC61 -> 0 | AD63: =AD59*AD61 -> 0 | AF63: =AF59*AF61 -> 0 | AG63: =AG59*AG61 -> 0 | AI63: =AI59*AI61 -> 0 | AJ63: =AJ59*AJ61 -> 0
A64: Gross Up
A65: Income Taxes Payable | E65: =E63/(1-E61) -> 0 | F65: =F63/(1-F61) -> 0 | H65: =H63/(1-H61) -> 0 | I65: =I63/(1-I61) -> 0 | K65: =K63/(1-K61) -> 0 | L65: =L63/(1-L61) -> 0 | N65: =N63/(1-N61) -> 0 | O65: =O63/(1-O61) -> 0 | Q65: =Q63/(1-Q61) -> 0 | R65: =R63/(1-R61) -> 0 | T65: =T63/(1-T61) -> 0 | U65: =U63/(1-U61) -> 0 | W65: =W63/(1-W61) -> 0 | X65: =X63/(1-X61) -> 0 | Z65: =Z63/(1-Z61) -> 0 | AA65: =AA63/(1-AA61) -> 0 | AC65: =AC63/(1-AC61) -> 0 | AD65: =AD63/(1-AD61) -> 0 | AF65: =AF63/(1-AF61) -> 0 | AG65: =AG63/(1-AG61) -> 0 | AI65: =AI63/(1-AI61) -> 0 | AJ65: =AJ63/(1-AJ61) -> 0
A66: Grossed Up PILs | E66: =+E65 -> 0 | F66: =+F65 -> 0 | H66: =+H65 -> 0 | I66: =+I65 -> 0 | K66: =+K65 -> 0 | L66: =+L65 -> 0 | N66: =+N65 -> 0 | O66: =+O65 -> 0 | Q66: =+Q65 -> 0 | R66: =+R65 -> 0 | T66: =+T65 -> 0 | U66: =+U65 -> 0 | W66: =+W65 -> 0 | X66: =+X65 -> 0 | Z66: =+Z65 -> 0 | AA66: =+AA65 -> 0 | AC66: =+AC65 -> 0 | AD66: =+AD65 -> 0 | AF66: =+AF65 -> 0 | AG66: =+AG65 -> 0 | AI66: =+AI65 -> 0 | AJ66: =+AJ65 -> 0
J68: Test Year
E69: =F69-1 -> 2017 | F69: =G69-1 -> 2018 | G69: =H69-1 -> 2019 | H69: =I69-1 -> 2020 | I69: =J69-1 -> 2021 | J69: ='LDC Info'!E24 -> 2022 | K69: =J69+1 -> 2023 | L69: =K69+1 -> 2024 | M69: =L69+1 -> 2025 | N69: =M69+1 -> 2026 | O69: =N69+1 -> 2027
A70: Net Fixed Assets
A71: Enter applicable amortization in years: | B71: 40
A72: Opening Gross Fixed Assets | F72: =E74 -> 0 | G72: 0 | H72: 0 | I72: 0 | J72: 0 | K72: 0 | L72: 0 | M72: 0 | N72: 0 | O72: 0
A73: Capital Additions | E73: ='App.2-FA Proposed REG Invest.'!C99 -> 0 | F73: ='App.2-FA Proposed REG Invest.'!D99 -> 0 | G73: ='App.2-FA Proposed REG Invest.'!E99 -> 0 | H73: ='App.2-FA Proposed REG Invest.'!F99 -> 0 | I73: ='App.2-FA Proposed REG Invest.'!G99 -> 0 | J73: ='App.2-FA Proposed REG Invest.'!H99 -> 0 | K73: ='App.2-FA Proposed REG Invest.'!I99 -> 0 | L73: ='App.2-FA Proposed REG Invest.'!J99 -> 0 | M73: ='App.2-FA Proposed REG Invest.'!K99 -> 0 | N73: ='App.2-FA Proposed REG Invest.'!L99 -> 0 | O73: ='App.2-FA Proposed REG Invest.'!M99 -> 0
A74: Closing Gross Fixed Assets | E74: =SUM(E72:E73) -> 0 | F74: 0 | G74: 0 | H74: 0 | I74: 0 | J74: 0 | K74: 0 | L74: 0 | M74: 0 | N74: 0 | O74: =SUM(O72:O73) -> 0
A76: Opening Accumulated Amortization | E76: 0 | F76: =+E79 -> 0 | G76: =+F79 -> 0 | H76: 0 | I76: 0 | J76: 0 | K76: 0 | L76: 0 | M76: 0 | N76: 0 | O76: 0
A77: Current Year Amortization (before additions) | E77: =IF(ISERROR(E72/$B$71), 0, E72/$B$71) -> 0 | F77: =IF(ISERROR(F72/$B$71), 0, F72/$B$71) -> 0 | G77: 0 | H77: 0 | I77: 0 | J77: 0 | K77: 0 | L77: 0 | M77: 0 | N77: 0 | O77: =IF(ISERROR(O72/$B$71), 0, O72/$B$71) -> 0
A78: Capital Additions Amortization (half year) | E78: =E73/$B$71/2 -> 0 | F78: =F73/$B$71/2 -> 0 | G78: 0 | H78: 0 | I78: 0 | J78: 0 | K78: 0 | L78: 0 | M78: 0 | N78: 0 | O78: =O73/$B$71/2 -> 0
A79: Closing Accumulated Amortization | E79: =SUM(E76+E77+E78) -> 0 | F79: 0 | G79: 0 | H79: 0 | I79: 0 | J79: 0 | K79: 0 | L79: 0 | M79: 0 | N79: 0 | O79: =SUM(O76+O77+O78) -> 0
A81: Opening Net Fixed Assets | E81: =E72-E76 -> 0 | F81: 0 | G81: 0 | H81: 0 | I81: 0 | J81: 0 | K81: 0 | L81: 0 | M81: 0 | N81: 0 | O81: =O72-O76 -> 0
A82: Closing Net Fixed Assets | E82: =E74-E79 -> 0 | F82: 0 | G82: 0 | H82: 0 | I82: 0 | J82: 0 | K82: 0 | L82: 0 | M82: 0 | N82: 0 | O82: =O74-O79 -> 0
A83: Average Net Fixed Assets | E83: =SUM(E81:E82)/2 -> 0 | F83: 0 | G83: 0 | H83: 0 | I83: 0 | J83: 0 | K83: 0 | L83: 0 | M83: 0 | N83: 0 | O83: =SUM(O81:O82)/2 -> 0
A85: UCC for PILs Calculation | J85: =J68 -> Test Year
E86: =E69 -> 2017 | F86: =F69 -> 2018 | G86: =G69 -> 2019 | H86: 2020 | I86: 2021 | J86: 2022 | K86: 2023 | L86: 2024 | M86: 2025 | N86: 2026 | O86: =O69 -> 2027
A88: Opening UCC | E88: =E72 -> 0 | F88: =E96 -> 0 | G88: 0 | H88: 0 | I88: 0 | J88: 0 | K88: 0 | L88: 0 | M88: 0 | N88: 0 | O88: 0
A89: Capital Additions | E89: =E73 -> 0 | F89: 0 | G89: 0 | H89: 0 | I89: 0 | J89: 0 | K89: 0 | L89: 0 | M89: 0 | N89: 0 | O89: =O73 -> 0
A90: UCC Before Half Year Rule | E90: =SUM(E88:E89) -> 0 | F90: 0 | G90: 0 | H90: 0 | I90: 0 | J90: 0 | K90: 0 | L90: 0 | M90: 0 | N90: 0 | O90: =SUM(O88:O89) -> 0
A91: Capital Additions (half year) | E91: =E89/2 -> 0 | F91: 0 | G91: 0 | H91: 0 | I91: 0 | J91: 0 | K91: 0 | L91: 0 | M91: 0 | N91: 0 | O91: =O89/2 -> 0
A92: Reduced UCC | E92: =E90-E91 -> 0 | F92: 0 | G92: 0 | H92: 0 | I92: 0 | J92: 0 | K92: 0 | L92: 0 | M92: 0 | N92: 0 | O92: =O90-O91 -> 0
A93: CCA Rate Class (to be entered)
A94: CCA Rate (to be entered)
A95: CCA | E95: =E92*$B$94 -> 0 | F95: =F92*$B$94 -> 0 | G95: 0 | H95: 0 | I95: 0 | J95: 0 | K95: 0 | L95: 0 | M95: 0 | N95: 0 | O95: =O92*$B$94 -> 0
A96: Closing UCC | E96: =E90-E95 -> 0 | F96: 0 | G96: 0 | H96: 0 | I96: 0 | J96: 0 | K96: 0 | L96: 0 | M96: 0 | N96: 0 | O96: =O90-O95 -> 0

Sheet App.2-G SQI
M1: File Number: | O1: =EBNUMBER -> EB-2021-0027
M2: Exhibit:
M3: Tab:
M4: Schedule:
M5: Page:
M7: Date: | O7: 2021-07-30
A9: Appendix 2-G
A10: Service Reliability and Quality Indicators
A13: Service Reliability
A15: Index | B15: Including outages caused by loss of supply | G15: Excluding outages caused by loss of supply | L15: Excluding Major Event Days
B16: =TestYear-6 -> 2016 | C16: =TestYear-5 -> 2017 | D16: =TestYear-4 -> 2018 | E16: =TestYear-3 -> 2019 | F16: =TestYear-2 -> 2020 | G16: =B16 -> 2016 | H16: 2017 | I16: 2018 | J16: 2019 | K16: 2020 | L16: 2016 | M16: 2017 | N16: 2018 | O16: 2019 | P16: 2020
A17: SAIDI | B17: 1.19 | C17: 1.2 | D17: 2.01 | E17: 5.54 | F17: 0.64 | G17: 0.55 | H17: 1.2 | I17: 1.73 | J17: 5 | K17: 0.64 | L17: =G17 -> 0.55 | M17: 1.2 | N17: 1.73 | O17: 5 | P17: 0.64
A18: SAIFI | B18: 1.41 | C18: 0.99 | D18: 1.37 | E18: 3.97 | F18: 0.92 | G18: 0.69 | H18: 0.99 | I18: 1.17 | J18: 3.44 | K18: 0.92 | L18: =G18 -> 0.69 | M18: 0.99 | N18: 1.17 | O18: 3.44 | P18: 0.92
A20: 5 Year Historical Average
A21: SAIDI | F21: =IF(ISERROR(AVERAGE(B17:F17)), "", AVERAGE(B17:F17)) -> 2.116 | K21: =IF(ISERROR(AVERAGE(G17:K17)), "", AVERAGE(G17:K17)) -> 1.824 | P21: =IF(ISERROR(AVERAGE(L17:P17)), "", AVERAGE(L17:P17)) -> 1.824
A22: SAIFI | F22: =IF(ISERROR(AVERAGE(B18:F18)), "", AVERAGE(B18:F18)) -> 1.732 | K22: =IF(ISERROR(AVERAGE(G18:K18)), "", AVERAGE(G18:K18)) -> 1.442 | P22: =IF(ISERROR(AVERAGE(L18:P18)), "", AVERAGE(L18:P18)) -> 1.442
A24: SAIDI = System Average Interruption Duration Index
A25: SAIFI = System Average Interruption Frequency Index
A27: Service Quality
A29: Indicator | E29: OEB Minimum Standard | G29: =B16 -> 2016 | H29: =C16 -> 2017 | I29: =D16 -> 2018 | J29: =E16 -> 2019 | K29: =F16 -> 2020
A30: Low Voltage Connections | E30: 0.9 | G30: 0.986 | H30: 0.9802 | I30: 0.9671 | J30: 1 | K30: 1
A31: High Voltage Connections | E31: 0.9 | G31: N/A | H31: N/A | I31: N/A | J31: N/A | K31: N\A
A32: Telephone Accessibility | E32: 0.65 | G32: 0.7 | H32: 0.754 | I32: 0.885 | J32: 0.902 | K32: 0.894
A33: Appointments Met | E33: 0.9 | G33: 1 | H33: 1 | I33: 0.995 | J33: 1 | K33: 1
A34: Written Response to Enquires | E34: 0.8 | G34: 1 | H34: 1 | I34: 1 | J34: 0.999 | K34: 0.994
A35: Emergency Urban Response | E35: 0.8 | G35: 1 | H35: 1 | I35: 1 | J35: 1 | K35: 1
A36: Emergency Rural Response | E36: 0.8 | G36: 1 | H36: 1 | I36: N/A | J36: 1 | K36: 1
A37: Telephone Call Abandon Rate | E37: 0.1 | G37: 0.042 | H37: 0.014 | I37: 0.0089 | J37: 0.0051 | K37: 0.018
A38: Appointment Scheduling | E38: 0.9 | G38: 1 | H38: 0.844 | I38: 0.912 | J38: 0.898 | K38: 1
A39: Rescheduling a Missed Appointment | E39: 1 | G39: N/A | H39: 1 | I39: 1 | J39: 1 | K39: 1
A40: Reconnection Performance Standard | E40: 0.85 | G40: 1 | H40: 1 | I40: 1 | J40: 1 | K40: 1

Sheet App.2-H_Other_Oper_Rev
K1: File Number: | L1: =EBNUMBER -> EB-2021-0027
K2: Exhibit:
K3: Tab:
A4: TO BE UPDATED AT THE DRAFT RATE ORDER STAGE | K4: Schedule:
K5: Page:
K7: Date: | L7: July 30, 2021
A9: Appendix 2-H
A10: Other Operating Revenue
A12: USoA # | B12: USoA Description | C12: =D13 - 1 &" Actual"&CHAR(178) -> 2013 Actual² | D12: 2014 Actual² | E12: 2015 Actual² | F12: 2016 Actual² | G12: 2017 Actual² | H12: 2018 Actual² | I12: =I13 & " Actual" & CHAR(178) -> 2019 Actual² | J12: =J13& " Actual" -> 2020 Actual | K12: Bridge Year | L12: Test Year | N12: CGAAP
C13: =D13-1 -> 2013 | D13: 2014 | E13: 2015 | F13: 2016 | G13: 2017 | H13: 2018 | I13: 2019 | J13: 2020 | K13: =BridgeYear -> 2021 | L13: =TestYear -> 2022 | N13: Enter Transition Year
B14: Reporting Basis | F14: MIFRS | G14: MIFRS | H14: MIFRS | I14: MIFRS | J14: MIFRS | K14: MIFRS | L14: MIFRS | N14: CGAAP
A15: 4235 | B15: Specific Service Charges | F15: 67402.78 | G15: 77513.25 | H15: 83475.58 | I15: 77977.18 | J15: 75349.63 | K15: 77346 | L15: 78460
A16: 4225 | B16: Late Payment Charges | F16: 63560.69 | G16: 47476.14 | H16: 44219.91 | I16: 38435.64 | J16: 21617.78 | K16: 23000 | L16: 30000
A17: 4082 | B17: Retail Services Revenues | F17: 8903.6 | G17: 8046.3 | H17: 7561.7 | I17: 11537.6 | J17: 13400.2 | K17: 10392.16 | L17: 14337.12
A18: 4084 | B18: Service Transaction Requests Revenues | F18: 131.75 | G18: 81.5 | H18: 55.25 | I18: 116 | J18: 84.5 | K18: 112.75 | L18: 192.31
A19: 4086 | B19: Distribution Services Revenue SSS Administration | F19: 32383.75 | G19: 32894.75 | H19: 33605 | I19: 34109 | J19: 34495.75 | K19: 34969.04 | L19: 35018.87
A20: 4210 | B20: Rent from Electric Property | F20: 80316.11 | G20: 82830.45 | H20: 81467.16 | I20: 81556 | J20: 82449.71 | K20: 83218.46 | L20: =84882.82+81000 -> 165882.82
A21: 4220 | B21: Other Electric Revenues | F21: -11263.05 | G21: 2233.85 | H21: -6187.41 | I21: 7269.02 | J21: -12254.58 | K21: 0
A22: 4245 | B22: Government and Other Assistance Directly Credited to Income (Deferred Revenue) | F22: ='App.2-BA_Fixed Asset Cont'!K78 -> 107794.69 | G22: ='App.2-BA_Fixed Asset Cont'!K172 -> 121588.1 | H22: ='App.2-BA_Fixed Asset Cont'!K246 -> 136816.29 | I22: ='App.2-BA_Fixed Asset Cont'!K322 -> 145597.92 | J22: ='App.2-BA_Fixed Asset Cont'!K398 -> 154859.3 | K22: ='App.2-BA_Fixed Asset Cont'!K474 -> 166052.05 | L22: 176334.63
A23: 4325 | B23: Revenues from Merchandise, Jobbing, Etc. | F23: 5728.89 | G23: 4866.788 | H23: 2936.79
A24: 4355 | B24: Gain on Disposition of Utility and Other Property | F24: 0 | G24: 5278.23 | H24: 5000 | I24: 1716.36
A25: 4360 | B25: Loss on Disposition of Utility and Other Property | F25: -4947.61 | G25: -220 | H25: -1244.51 | J25: -18732.61
A26: 4362 | B26: Loss from Retirement of Utility and Other Property | F26: -830.32
A27: 4375 | B27: Revenues from Non-Utility Operations | F27: 472077.35 | G27: 302036.53 | H27: 419180.51 | I27: 119010.36 | J27: 4847.39 | K27: 23066.1 | L27: 1200
A28: 4380 | B28: Expenses of Non-Utility Operations | F28: -427461.35 | G28: -297836.53 | H28: -294125.81 | I28: -117810.36 | J28: -6469.5 | K28: -22466.1
A29: 4390 | B29: Miscellaneous Non-Operating Income | F29: 5399.61 | G29: 6281.5 | H29: 5129.99 | I29: 5528.92 | J29: 6365.78 | K29: 5400 | L29: 6500
A30: 4398 | B30: Foreign Exchange Gains and Losses, Including Amortization | F30: -2388.86 | G30: -5255.73 | H30: 272.95 | I30: -1863.73 | J30: -18761.6
A31: 4405 | B31: Interest and Dividend Income | F31: 16441.4 | G31: 19341.73 | H31: 28767.86 | I31: 35142.24 | J31: 21758.97 | K31: 26000 | L31: 20000
A53: Specific Service Charges | C53: =C15 -> 0 | D53: 0 | E53: 0 | F53: 67402.78 | G53: 77513.25 | H53: 83475.58 | I53: 77977.18 | J53: 75349.63 | K53: 77346 | L53: 78460 | N53: =N15 -> 0
A54: Late Payment Charges | C54: =C16 -> 0 | D54: 0 | E54: 0 | F54: 63560.69 | G54: 47476.14 | H54: 44219.91 | I54: 38435.64 | J54: 21617.78 | K54: 23000 | L54: 30000 | N54: =N16 -> 0
A55: Other Operating Revenues | F55: =SUM(F17:F22) -> 218266.85 | G55: =SUM(G17:G22) -> 247674.95 | H55: 253317.99 | I55: 280185.54 | J55: 273034.88 | K55: 294744.46 | L55: 391765.75
A56: Other Income or Deductions | F56: =SUM(F23:F31) -> 64019.11 | G56: 34492.518 | H56: 165917.78 | I56: 41723.79 | J56: -10991.57 | K56: 32000 | L56: 27700
A57: Total | C57: =SUM(C53:C56) -> 0 | D57: =SUM(D53:D56) -> 0 | E57: =SUM(E53:E56) -> 0 | F57: =SUM(F53:F56) -> 413249.43 | G57: =SUM(G53:G56) -> 407156.858 | H57: 546931.26 | I57: 438322.15 | J57: 359010.72 | K57: 427090.46 | L57: 527925.75 | N57: =SUM(N53:N56) -> 0
A59: Description Account(s)
A60: Specific Service Charges: 4235
A61: Late Payment Charges: 4225
A62: Other Distribution Revenues: 4082, 4084, 4090, 4205, 4210, 4215, 4220, 4230, 4240, 4245
A63: Other Income and Expenses: 4305, 4310, 4315, 4320, 4325, 4330, 4335, 4340, 4345, 4350, 4355, 4357, 4360, 4362, 4365, 4370, 4375, 4380, 4385, 4390, 4395, 4398, 4405, 4410, 4415, 4420
A66: Note: Add all applicable accounts listed above to the table and include all relevant information.
A68: Account Breakdown Details
A70: For each "Other Operating Revenue" and "Other Income or Deductions" Account, a detailed breakdown of the account components is required. See the example below for Account 4405, Interest and Dividend Income. Tables for the detailed breakdowns will be generated after cell B89 is filled in.
A73: Example: Account 4405 - Interest and Dividend Income
C74: =C12 -> 2013 Actual² | D74: 2014 Actual² | E74: 2015 Actual² | F74: 2016 Actual² | G74: 2017 Actual² | H74: 2018 Actual² | I74: 2019 Actual² | J74: 2020 Actual | K74: Bridge Year | L74: Test Year | N74: =N12 -> CGAAP
C75: =C13 -> 2013 | D75: 2014 | E75: 2015 | F75: 2016 | G75: 2017 | H75: 2018 | I75: 2019 | J75: =J13 -> 2020 | K75: =K13 -> 2021 | L75: =L13 -> 2022 | N75: =N13 -> Enter Transition Year
A76: Reporting Basis | C76: =IF(C14=0, "", C14) ->  | F76: MIFRS | G76: MIFRS | H76: MIFRS | I76: MIFRS | J76: MIFRS | K76: MIFRS | L76: MIFRS | N76: =IF(N14=0, "", N14) -> CGAAP
A77: Short-term Investment Interest
A78: Bank Deposit Interest
A79: Miscellaneous Interest Revenue
A80: etc.1
A83: Total | C83: =SUM(C77:C82) -> 0 | D83: 0 | E83: 0 | F83: 0 | G83: 0 | H83: 0 | I83: 0 | J83: 0 | K83: 0 | L83: 0 | N83: =SUM(N77:N82) -> 0
A86: Notes:
A87: 1 | B87: List and specify any other interest revenue.
A88: 2 | B88: For applicants rebasing under IFRS for the first time, in the transition year (2014) to IFRS, the applicant is to present information in both MIFRS and CGAAP. In column N, present CGAAP transition year information.
B89: 6 | C89: Enter the number of "Other Operating Revenue" and "Other Income or Deductions" Accounts that require a detailed breakdown of the account components.
A93: 4235-Specific Service Charges
C94: =C$12 -> 2013 Actual² | D94: 2014 Actual² | E94: 2015 Actual² | F94: 2016 Actual² | G94: 2017 Actual² | H94: 2018 Actual² | I94: 2019 Actual² | J94: 2020 Actual | K94: Bridge Year | L94: Test Year | N94: =N$12 -> CGAAP
C95: =C$13 -> 2013 | D95: 2014 | E95: 2015 | F95: 2016 | G95: 2017 | H95: 2018 | I95: 2019 | J95: 2020 | K95: 2021 | L95: 2022 | N95: =N$13 -> Enter Transition Year
A96: Reporting Basis | C96: =IF(C34=0, "", C34) ->  | N96: =IF(N$14=0, "", N$14) -> CGAAP
A97: Service Rev Arrears Certificate | F97: =825 -> 825 | G97: 435 | H97: 405 | I97: =300 -> 300 | J97: 165 | K97: 300 | L97: 300
A98: Service Rev Statement of account | F98: 150 | G98: =90+30 -> 120 | H98: =225+180 -> 405 | I98: =165+270 -> 435 | J98: =150+90 -> 240 | K98: 300 | L98: =200+100 -> 300
A99: Service Rev Credit Reference & Easement | F99: =15+1605 -> 1620 | G99: =30+15+915 -> 960 | H99: =105+525 -> 630 | I99: =75+675 -> 750 | J99: =120+540 -> 660 | K99: =100+600 -> 700 | L99: 700
A100: Service Revenue Returned Cheuque | F100: 1185 | G100: 915 | H100: 1575 | I100: 1605 | J100: 840 | K100: 800 | L100: 800
A101: Service Revenue Account Set Up Fee | F101: 37740 | G101: =41880+30 -> 41910 | H101: 46200 | I101: 38280 | J101: 36180 | K101: 36000 | L101: 36000
A102: Service Revenue Meter Interrogation | F102: 20460 | G102: 23020 | H102: 23840 | I102: 23120 | J102: 24000 | K102: 26400 | L102: 26400
A103: Service Revenue Reconnection Fee | F103: =2320+370 -> 2690 | G103: =1150+185 -> 1335 | H103: 390 | I103: 900 | J103: =520+370+185 -> 1075 | K103: 750 | L103: 1300
A104: Service Revenue FIT/Microfit | F104: 2732.78 | G104: 8818.25 | H104: 10030.58 | I104: 12587.18 | J104: 12189.63 | K104: 12096 | L104: 12660
A105: Total | C105: =SUM(C97:C104) -> 0 | D105: 0 | E105: 0 | F105: 67402.78 | G105: 77513.25 | H105: 83475.58 | I105: 77977.18 | J105: 75349.63 | K105: =SUM(K97:K104) -> 77346 | L105: 78460 | N105: =SUM(N97:N104) -> 0
A107: 4086-SSS Administration Revenue
C108: =C$12 -> 2013 Actual² | D108: 2014 Actual² | E108: 2015 Actual² | F108: 2016 Actual² | G108: 2017 Actual² | H108: 2018 Actual² | I108: 2019 Actual² | J108: 2020 Actual | K108: Bridge Year | L108: Test Year | N108: =N$12 -> CGAAP
C109: =C$13 -> 2013 | D109: 2014 | E109: 2015 | F109: 2016 | G109: 2017 | H109: 2018 | I109: 2019 | J109: 2020 | K109: 2021 | L109: 2022 | N109: =N$13 -> Enter Transition Year
A110: Reporting Basis | C110: =IF(C48=0, "", C48) ->  | N110: =IF(N$14=0, "", N$14) -> CGAAP
A111: SSS Revenue Residential | F111: 29834.25 | G111: 30282 | H111: 30987.25 | I111: 31486 | J111: 31841.25 | K111: 32286.33 | L111: =32589.06-245+8 -> 32352.06
A112: SSS Revenue GS<50 | F112: =2080.5+6 -> 2086.5 | G112: =2134.75+6 -> 2140.75 | H112: =2138.5+5.5 -> 2144 | I112: =2146.75+6 -> 2152.75 | J112: =2185.75+6 -> 2191.75 | K112: 2195.8 | L112: 2204.19
A113: SSS Revenue GS>50 - 4,999 | F113: =63.25+194.25+3 -> 260.5 | G113: =47+221+5.25 -> 273.25 | H113: =36.75+235.75+5.5 -> 278 | I113: =41.25+228.5+6 -> 275.75 | J113: =30+242.25+4.5 -> 276.75 | K113: 292.29 | L113: 280
A114: SSS Revenue Street Lights | F114: =3 -> 3 | G114: 3 | H114: =2.75 -> 2.75 | I114: 3 | J114: 3 | K114: 3 | L114: 3
A115: SSS Revenue USL | F115: 199.5 | G115: 195.75 | H115: =193 -> 193 | I115: 191.5 | J115: 183 | K115: 191.61 | L115: 180
A119: Total | C119: =SUM(C111:C118) -> 0 | D119: 0 | E119: 0 | F119: 32383.75 | G119: 32894.75 | H119: 33605 | I119: 34109 | J119: 34495.75 | K119: 34969.03 | L119: 35019.25 | N119: =SUM(N111:N118) -> 0
A121: 4220-Other Electric Revenues
C122: =C$12 -> 2013 Actual² | D122: 2014 Actual² | E122: 2015 Actual² | F122: 2016 Actual² | G122: 2017 Actual² | H122: 2018 Actual² | I122: 2019 Actual² | J122: 2020 Actual | K122: Bridge Year | L122: Test Year | N122: =N$12 -> CGAAP
C123: =C$13 -> 2013 | D123: 2014 | E123: 2015 | F123: 2016 | G123: 2017 | H123: 2018 | I123: 2019 | J123: 2020 | K123: 2021 | L123: 2022 | N123: =N$13 -> Enter Transition Year
A124: Reporting Basis | C124: =IF(C62=0, "", C62) ->  | N124: =IF(N$14=0, "", N$14) -> CGAAP
